Workbook

Sheet Titelblatt
A2: Kosten-Nutzen-Untersuchung
A3: im Schutzwasserbau
A5: Version 2015 Juni
A8: gem. § 3 Abs 2 Zi 3 WbfG 1985 idgF
A10: Berechnungen für die Kosten-Nutzen-Untersuchung von wasserbaulichen Projekten gemäß RIWA - T
A12: gültig für Gewässerentwicklungskonzepte, Generelle Projekte, Detailprojekte
A14: Projektstitel
A15: Titel 1
A16: Titel 2 Zeile 1
A17: Titel 2 Zeile 2
A18: Projektsnummer | C18: Verfasser
A20: Ausfertigung | C20: Datum
A24: Auftragnehmer | C24: Auftraggeber
A25: Auftragnehmer 1 | C25: Auftraggeber 1
A26: Auftragnehmer 2 | C26: Auftraggeber 2
A27: Auftragnehmer 3 | C27: Auftraggeber 3
C28: =MID(CELL("Dateiname",C28),FIND("[",CELL("Dateiname",C28))+1,FIND("]",CELL("Dateiname",C28))-FIND("[",CELL("Dateiname",C28))-1) -> KNU-Berechnungsvorlage_juni_2015_krm.xlsm

Sheet INHALTSVERZEICHNIS
A1: INHALSVERZEICHNIS ZU DEN FORMBLÄTTERN
A2: Thema | B2: Alternativen
A3: GRUNDLAGEN
A4: Projektgrunddaten
A5: Flächennutzungen
A6: Bevölkerungs- und Beschäftigtenzahlen
A7: SCHADENSANALYSEN
A8: Schadensrelevante Merkmale Wohngebäude
A9: Schadensermittlung Wohngebäude
A10: Schadensrelevante Merkmale Nicht - Wohngebäude
A11: Schadensermittlung und -eingabe Nicht - Wohngebäude
A12: Schadenseingabe Öffentliche Gebäude
A13: Wertschöpfungsverluste
A14: Verkehrs-, Ver- und Entsorgungsinfrastruktur
A15: Wasserbauliche Anlagen und Gewässer
A16: Land- und forstwirtschaftliche Flächen
A17: Sonstige Flächennutzungen
A18: Fremdenverkehr
A19: Summe monetär bewertete Schäden
A20: AUSWERTUNGEN
A21: Schadenserwartungen
A22: Kostenermittlung | B22: A2 | C22: A3 | D22: A4
A23: monetär belegte ökonomische Effizienz | B23: A2 | C23: A3 | D23: A4
A24: Darstellung und Beurteilung der weiteren Projektwirkungen | B24: A2 | C24: A3 | D24: A4
A25: Zusammenfassung der Teilbilanzen einer Alternative | B25: A2 | C25: A3 | D25: A4
A26: Alternativenvergleich
A27: Einordnung in das integrale Hochwasserschutzmanagement
A29: LEGENDE
A31: Eingabefeld, Eingabe durch SachbearbeiterIn erforderlich | F31: Eingabefeld
A33: Feld mit Pull-Down Menü, Auswahl wird durch Bearbeiter getroffen | F33: Auswahl A
A35: Text- oder Berechnungsfelder, keine Eingaben erlaubt | F35: Ergebnis
A37: Sämtliche Angaben zu Kosten und Nutzen in den folgenden Formblättern sind in Nettogrößen anzugeben!

Sheet Projektgrunddaten
A1: PROJEKTGRUNDDATEN
A2: Projektkenndaten
A3: Projektbezeichnung
A4: Gewässereinzugsgebiet
A5: Gewässer
A6: Gemeinde(n), Bezirk
A7: Bundesland | C7: Österreich
A9: Projekttyp | C9: Detailprojekt
A11: Alternativen
B12: Anzahl
A13: Bezeichnung | C13: =+Berechnungsgrundlagen!E22 -> A1 | D13: Name Alternative 1
E14: Maßnahme | F14: Linearmaßnahmen
C15: =+Berechnungsgrundlagen!E23 -> A2 | D15: Name Alternative 2
E16: Maßnahme | F16: Linearmaßnahmen
C17: =+Berechnungsgrundlagen!E24 -> A3 | D17: Name Alternative 3
E18: Maßnahme | F18: Retentions- oder Kombimaßnahmen
C19: =+Berechnungsgrundlagen!E25 -> A4 | D19: Name Alternative 4
E20: Maßnahme | F20: Linearmaßnahmen
A22: Ausuferungsbeginn, Bemessungshochwasser und HQ - Stützstellen | C22: Jährlichkeit (HQ) | D22: Durchfluss (m³/s) | E22: BHQ | F22: Wählen Sie hier die Anzahl der maßgeblichen HQ-Stützstellen (siehe Erläuterungen!). Definieren Sie die Jährlichkeiten der Stützstellen, des Ausuferungsbeginns und ein Bemessungshochwasser (BHQ). Die Übernahme der Jährlichkeiten in die weiteren Arbeitsblätter erfolgt automatisch.
B23: Anzahl | F23: Ausuferungsbeginn
B24: 1 | F24: Stützstelle
B25: 2 | F25: Stützstelle
B26: 3 | F26: Stützstelle
B27: 4 | F27: Stützstelle
B28: 5 | F28: Stützstelle
B29: 6 | C29: 100 | F29: Bemessungshochwasser
B30: 7 | F30: Stützstelle
A33: Bisherige schadbringende Ereignisse
A34: Jahr | B34: max. Durchfluss in m³ | C34: Jährlichkeit HQ | D34: Schadenssumme in € | E34: Schadensbeschreibung in Stichworten

Sheet Flächennutzungen
A1: FLÄCHENNUTZUNGEN
B3: bei HQ | C3: =Projektgrunddaten!$C$24 -> 0 | E3: =Projektgrunddaten!$C$25 -> 0 | G3: =Projektgrunddaten!$C$26 -> 0 | I3: =Projektgrunddaten!$C$27 -> 0 | K3: =Projektgrunddaten!$C$28 -> 0 | M3: =Projektgrunddaten!$C$29 -> 100 | O3: =Projektgrunddaten!$C$30 -> 0
A4: Flächennutzung bebaute Grundstücke (Wohn- u. Nicht-Wohngebäude) | C4: Anzahl | D4: Bauland- fläche gesamt, m² | E4: Anzahl | F4: Bauland- fläche gesamt, m² | G4: Anzahl | H4: Bauland- fläche gesamt, m² | I4: Anzahl | J4: Bauland- fläche gesamt, m² | K4: Anzahl | L4: Bauland- fläche gesamt, m² | M4: Anzahl | N4: Bauland- fläche gesamt, m² | O4: Anzahl | P4: Bauland- fläche gesamt, m²
A5: Wohngebäude | B5: Gebäude mit einer Wohnung (Einfamilienhaus, Reihenhaus)
B6: Gebäude mit zwei oder mehr Wohnungen
B7: Wohngebäude für Gemeinschaften (Senioren-, Schüler-, Studentenheime, Schwesterntrakt)
A8: Nicht-Wohngebäude | B8: Hotels,andere Beherbungsbetriebe
B9: Bürogebäude
B10: Groß- und Einzelhandelsgebäude
B11: Gebäude des Verkehrs- und Nachrichtenwesens
B12: Industrie- und Lagergebäude
B13: Gebäude für Kultur- und Freizeitzwecke
B14: Gebäude des Bildungs- und Gesundheitswesens
B15: Sonstige Baulichkeiten (Landwirtschaftliche Nutzgebäude, Kirchen, freistehende Privatgaragen, sonstige und Pseudobaulichkeiten)
B16: Wirtschafts- und Nebengebäude
B17: Versorgungsobjekte (Kläranlagen, Brunnen, Trafostationen etc.)
B18: Hier nicht angeführte Nicht-Wohngebäude
A19: Zwischensumme Anzahl, Flächen Wohngebäude | C19: =SUM(C5:C7) -> 0 | D19: 0 | E19: 0 | F19: 0 | G19: 0 | H19: 0 | I19: 0 | J19: 0 | K19: 0 | L19: 0 | M19: 0 | N19: 0 | O19: 0 | P19: 0
A20: Zwischensumme Anzahl, Flächen Nicht-Wohngebäude | C20: =SUM(C8:C18) -> 0 | D20: =SUM(D8:D18) -> 0 | E20: =SUM(E8:E18) -> 0 | F20: 0 | G20: 0 | H20: 0 | I20: 0 | J20: 0 | K20: 0 | L20: 0 | M20: 0 | N20: 0 | O20: 0 | P20: 0
A21: Summe Anzahl, Fläche bebaute Grundstücke (Wohn- u. Nicht-Wohngebäude) | C21: =SUM(C19:C20) -> 0 | D21: 0 | E21: 0 | F21: 0 | G21: 0 | H21: 0 | I21: 0 | J21: 0 | K21: 0 | L21: 0 | M21: 0 | N21: 0 | O21: 0 | P21: 0
B23: bei HQ | C23: =Projektgrunddaten!$C$24 -> 0 | E23: =Projektgrunddaten!$C$25 -> 0 | G23: =Projektgrunddaten!$C$26 -> 0 | I23: =Projektgrunddaten!$C$27 -> 0 | K23: =Projektgrunddaten!$C$28 -> 0 | M23: =Projektgrunddaten!$C$29 -> 100 | O23: =Projektgrunddaten!$C$30 -> 0
A24: Flächennutzung Verkehrsinfrastruktur | D24: Fläche in m² | F24: Fläche in m² | H24: Fläche in m² | J24: Fläche in m² | L24: Fläche in m² | N24: Fläche in m² | P24: Fläche in m²
A25: Verkehrsinfrastruktur | B25: Autobahn, Schnellstraße (4- und mehrspurig, baulich getrennt)
B26: Landeshauptstraße (4-spurig)
B27: Landesstraße (2-spurig)
B28: Gemeindestraßen (2-spurig)
B29: Sonstige Wege
B30: Bahn 1-gleisig
B31: Bahn 2-gleisig
B32: Flugbetriebsflächen
B33: Schifffahrtseinrichtungen
A34: Summe Verkehrsinfrastruktur [m²] | D34: =SUM(D25:D33) -> 0 | F34: =SUM(F25:F33) -> 0 | H34: =SUM(H25:H33) -> 0 | J34: =SUM(J25:J33) -> 0 | L34: =SUM(L25:L33) -> 0 | N34: =SUM(N25:N33) -> 0 | P34: =SUM(P25:P33) -> 0
B36: bei HQ | C36: =Projektgrunddaten!$C$24 -> 0 | E36: =Projektgrunddaten!$C$25 -> 0 | G36: =Projektgrunddaten!$C$26 -> 0 | I36: =Projektgrunddaten!$C$27 -> 0 | K36: =Projektgrunddaten!$C$28 -> 0 | M36: =Projektgrunddaten!$C$29 -> 100 | O36: =Projektgrunddaten!$C$30 -> 0
A37: Land- und forstwirtschaftliche Flächen | D37: Fläche in m² | F37: Fläche in m² | H37: Fläche in m² | J37: Fläche in m² | L37: Fläche in m² | N37: Fläche in m² | P37: Fläche in m²
A38: Land- und forstw. Fl. | B38: Grünland
B39: Ackerland
B40: Sonderkulturen
B41: Sonstige Nutzflächen (z.B. Fischteichanlagen)
B42: Forstwirtschaftliche Flächen
A43: Summe Land- Forstwirtschaftliche Flächen [m²] | D43: =SUM(D38:D42) -> 0 | F43: =SUM(F38:F42) -> 0 | H43: =SUM(H38:H42) -> 0 | J43: =SUM(J38:J42) -> 0 | L43: =SUM(L38:L42) -> 0 | N43: =SUM(N38:N42) -> 0 | P43: =SUM(P38:P42) -> 0
B45: bei HQ | C45: =Projektgrunddaten!$C$24 -> 0 | E45: =Projektgrunddaten!$C$25 -> 0 | G45: =Projektgrunddaten!$C$26 -> 0 | I45: =Projektgrunddaten!$C$27 -> 0 | K45: =Projektgrunddaten!$C$28 -> 0 | M45: =Projektgrunddaten!$C$29 -> 100 | O45: =Projektgrunddaten!$C$30 -> 0
A46: Sonstige Flächennutzungen | D46: Fläche in m² | F46: Fläche in m² | H46: Fläche in m² | J46: Fläche in m² | L46: Fläche in m² | N46: Fläche in m² | P46: Fläche in m²
A47: Sonstige Flächen | B47: Grünflächen
B48: Sport- und Freizeitflächen, Kinderspielplätze
B49: Campingplätze
B50: Parkanlagen
B51: Friedhöfe
B52: Kleingartensiedlungen
B53: Sonstige Flächennutzungen 1
B54: Sonstige Flächennutzungen 2
A55: Summe Sonstige Flächennutzungen [m²] | D55: =SUM(D47:D54) -> 0 | F55: =SUM(F47:F54) -> 0 | H55: =SUM(H47:H54) -> 0 | J55: =SUM(J47:J54) -> 0 | L55: =SUM(L47:L54) -> 0 | N55: =SUM(N47:N54) -> 0 | P55: =SUM(P47:P54) -> 0
A58: Gesamtsumme betroffene Flächen bei HQx [m²] | C58: =Projektgrunddaten!$C$24 -> 0 | E58: =Projektgrunddaten!$C$25 -> 0 | G58: =Projektgrunddaten!$C$26 -> 0 | I58: =Projektgrunddaten!$C$27 -> 0 | K58: =Projektgrunddaten!$C$28 -> 0 | M58: =Projektgrunddaten!$C$29 -> 100 | O58: =Projektgrunddaten!$C$30 -> 0
D59: Fläche in m² | F59: Fläche in m² | H59: Fläche in m² | J59: Fläche in m² | L59: Fläche in m² | N59: Fläche in m² | P59: Fläche in m²
D60: =D21+D34+D43+D55 -> 0 | F60: =F21+F34+F43+F55 -> 0 | H60: =H21+H34+H43+H55 -> 0 | J60: =J21+J34+J43+J55 -> 0 | L60: =L21+L34+L43+L55 -> 0 | N60: =N21+N34+N43+N55 -> 0 | P60: =P21+P34+P43+P55 -> 0

Sheet Bevölkerung, Beschäftige
A1: BEVÖLKERUNGS- UND BESCHÄFTIGTENZAHLEN
C3: Anzahl Betroffene
B4: bei HQ | C4: =Projektgrunddaten!$C$24 -> 0 | D4: =Projektgrunddaten!$C$25 -> 0 | E4: =Projektgrunddaten!$C$26 -> 0 | F4: =Projektgrunddaten!$C$27 -> 0 | G4: =Projektgrunddaten!$C$28 -> 0 | H4: =Projektgrunddaten!$C$29 -> 100 | I4: =Projektgrunddaten!$C$30 -> 0
A5: Bevölkerungs -zahlen | B5: Direkt Betroffene
B6: Indirekt Betroffene (siehe Erläuterungen)
B7: Summe direkt/indirekt betroffene Bevölkerung | C7: =SUM(C5:C6) -> 0 | D7: 0 | E7: 0 | F7: 0 | G7: 0 | H7: 0 | I7: 0
A9: Beschäftigtenzahlen | B9: ='Daten für Bruttowertschöpfung'!B2 -> Bergbau und Gewinnung von Steinen u. Erden (B) | C9: =SUMIF('Schadensermittl. NichtWGebäude'!$B$7:$B$8,'Daten für Bruttowertschöpfung'!$B2,'Schadensermittl. NichtWGebäude'!$Q$7:$Q$8) -> 0 | D9: =SUMIF('Schadensermittl. NichtWGebäude'!$B$7:$B$8,'Daten für Bruttowertschöpfung'!$B2,'Schadensermittl. NichtWGebäude'!$AG$7:$AG$8) -> 0 | E9: =SUMIF('Schadensermittl. NichtWGebäude'!$B$7:$B$8,'Daten für Bruttowertschöpfung'!$B2,'Schadensermittl. NichtWGebäude'!$AW$7:$AW$8) -> 0 | F9: =SUMIF('Schadensermittl. NichtWGebäude'!$B$7:$B$8,'Daten für Bruttowertschöpfung'!$B2,'Schadensermittl. NichtWGebäude'!$BM$7:$BM$8) -> 0 | G9: =SUMIF('Schadensermittl. NichtWGebäude'!$B$7:$B$8,'Daten für Bruttowertschöpfung'!$B2,'Schadensermittl. NichtWGebäude'!$CC$7:$CC$8) -> 0 | H9: =SUMIF('Schadensermittl. NichtWGebäude'!$B$7:$B$8,'Daten für Bruttowertschöpfung'!$B2,'Schadensermittl. NichtWGebäude'!$CS$7:$CS$8) -> 0 | I9: =SUMIF('Schadensermittl. NichtWGebäude'!$B$7:$B$8,'Daten für Bruttowertschöpfung'!$B2,'Schadensermittl. NichtWGebäude'!$DI$7:$DI$8) -> 0
B10: ='Daten für Bruttowertschöpfung'!B3 -> Herstellung von Waren (C) | C10: =SUMIF('Schadensermittl. NichtWGebäude'!$B$7:$B$8,'Daten für Bruttowertschöpfung'!$B3,'Schadensermittl. NichtWGebäude'!$Q$7:$Q$8) -> 0 | D10: =SUMIF('Schadensermittl. NichtWGebäude'!$B$7:$B$8,'Daten für Bruttowertschöpfung'!$B3,'Schadensermittl. NichtWGebäude'!$AG$7:$AG$8) -> 0 | E10: =SUMIF('Schadensermittl. NichtWGebäude'!$B$7:$B$8,'Daten für Bruttowertschöpfung'!$B3,'Schadensermittl. NichtWGebäude'!$AW$7:$AW$8) -> 0 | F10: =SUMIF('Schadensermittl. NichtWGebäude'!$B$7:$B$8,'Daten für Bruttowertschöpfung'!$B3,'Schadensermittl. NichtWGebäude'!$BM$7:$BM$8) -> 0 | G10: =SUMIF('Schadensermittl. NichtWGebäude'!$B$7:$B$8,'Daten für Bruttowertschöpfung'!$B3,'Schadensermittl. NichtWGebäude'!$CC$7:$CC$8) -> 0 | H10: =SUMIF('Schadensermittl. NichtWGebäude'!$B$7:$B$8,'Daten für Bruttowertschöpfung'!$B3,'Schadensermittl. NichtWGebäude'!$CS$7:$CS$8) -> 0 | I10: =SUMIF('Schadensermittl. NichtWGebäude'!$B$7:$B$8,'Daten für Bruttowertschöpfung'!$B3,'Schadensermittl. NichtWGebäude'!$DI$7:$DI$8) -> 0
B11: ='Daten für Bruttowertschöpfung'!B4 -> Energieversorgung (D) | C11: =SUMIF('Schadensermittl. NichtWGebäude'!$B$7:$B$8,'Daten für Bruttowertschöpfung'!$B4,'Schadensermittl. NichtWGebäude'!$Q$7:$Q$8) -> 0 | D11: =SUMIF('Schadensermittl. NichtWGebäude'!$B$7:$B$8,'Daten für Bruttowertschöpfung'!$B4,'Schadensermittl. NichtWGebäude'!$AG$7:$AG$8) -> 0 | E11: =SUMIF('Schadensermittl. NichtWGebäude'!$B$7:$B$8,'Daten für Bruttowertschöpfung'!$B4,'Schadensermittl. NichtWGebäude'!$AW$7:$AW$8) -> 0 | F11: =SUMIF('Schadensermittl. NichtWGebäude'!$B$7:$B$8,'Daten für Bruttowertschöpfung'!$B4,'Schadensermittl. NichtWGebäude'!$BM$7:$BM$8) -> 0 | G11: =SUMIF('Schadensermittl. NichtWGebäude'!$B$7:$B$8,'Daten für Bruttowertschöpfung'!$B4,'Schadensermittl. NichtWGebäude'!$CC$7:$CC$8) -> 0 | H11: =SUMIF('Schadensermittl. NichtWGebäude'!$B$7:$B$8,'Daten für Bruttowertschöpfung'!$B4,'Schadensermittl. NichtWGebäude'!$CS$7:$CS$8) -> 0 | I11: =SUMIF('Schadensermittl. NichtWGebäude'!$B$7:$B$8,'Daten für Bruttowertschöpfung'!$B4,'Schadensermittl. NichtWGebäude'!$DI$7:$DI$8) -> 0
B12: ='Daten für Bruttowertschöpfung'!B5 -> Wasserversorgung; Abwasser- u. Abfallentsorgung u. Beseitigung v. Umweltverschmutzungen (E) | C12: =SUMIF('Schadensermittl. NichtWGebäude'!$B$7:$B$8,'Daten für Bruttowertschöpfung'!$B5,'Schadensermittl. NichtWGebäude'!$Q$7:$Q$8) -> 0 | D12: =SUMIF('Schadensermittl. NichtWGebäude'!$B$7:$B$8,'Daten für Bruttowertschöpfung'!$B5,'Schadensermittl. NichtWGebäude'!$AG$7:$AG$8) -> 0 | E12: =SUMIF('Schadensermittl. NichtWGebäude'!$B$7:$B$8,'Daten für Bruttowertschöpfung'!$B5,'Schadensermittl. NichtWGebäude'!$AW$7:$AW$8) -> 0 | F12: =SUMIF('Schadensermittl. NichtWGebäude'!$B$7:$B$8,'Daten für Bruttowertschöpfung'!$B5,'Schadensermittl. NichtWGebäude'!$BM$7:$BM$8) -> 0 | G12: =SUMIF('Schadensermittl. NichtWGebäude'!$B$7:$B$8,'Daten für Bruttowertschöpfung'!$B5,'Schadensermittl. NichtWGebäude'!$CC$7:$CC$8) -> 0 | H12: =SUMIF('Schadensermittl. NichtWGebäude'!$B$7:$B$8,'Daten für Bruttowertschöpfung'!$B5,'Schadensermittl. NichtWGebäude'!$CS$7:$CS$8) -> 0 | I12: =SUMIF('Schadensermittl. NichtWGebäude'!$B$7:$B$8,'Daten für Bruttowertschöpfung'!$B5,'Schadensermittl. NichtWGebäude'!$DI$7:$DI$8) -> 0
B13: ='Daten für Bruttowertschöpfung'!B6 -> Bau (F) | C13: =SUMIF('Schadensermittl. NichtWGebäude'!$B$7:$B$8,'Daten für Bruttowertschöpfung'!$B6,'Schadensermittl. NichtWGebäude'!$Q$7:$Q$8) -> 0 | D13: =SUMIF('Schadensermittl. NichtWGebäude'!$B$7:$B$8,'Daten für Bruttowertschöpfung'!$B6,'Schadensermittl. NichtWGebäude'!$AG$7:$AG$8) -> 0 | E13: =SUMIF('Schadensermittl. NichtWGebäude'!$B$7:$B$8,'Daten für Bruttowertschöpfung'!$B6,'Schadensermittl. NichtWGebäude'!$AW$7:$AW$8) -> 0 | F13: =SUMIF('Schadensermittl. NichtWGebäude'!$B$7:$B$8,'Daten für Bruttowertschöpfung'!$B6,'Schadensermittl. NichtWGebäude'!$BM$7:$BM$8) -> 0 | G13: =SUMIF('Schadensermittl. NichtWGebäude'!$B$7:$B$8,'Daten für Bruttowertschöpfung'!$B6,'Schadensermittl. NichtWGebäude'!$CC$7:$CC$8) -> 0 | H13: =SUMIF('Schadensermittl. NichtWGebäude'!$B$7:$B$8,'Daten für Bruttowertschöpfung'!$B6,'Schadensermittl. NichtWGebäude'!$CS$7:$CS$8) -> 0 | I13: =SUMIF('Schadensermittl. NichtWGebäude'!$B$7:$B$8,'Daten für Bruttowertschöpfung'!$B6,'Schadensermittl. NichtWGebäude'!$DI$7:$DI$8) -> 0
B14: ='Daten für Bruttowertschöpfung'!B7 -> Handel; Instandhaltung und Reparatur von KFZ (G) | C14: =SUMIF('Schadensermittl. NichtWGebäude'!$B$7:$B$8,'Daten für Bruttowertschöpfung'!$B7,'Schadensermittl. NichtWGebäude'!$Q$7:$Q$8) -> 0 | D14: =SUMIF('Schadensermittl. NichtWGebäude'!$B$7:$B$8,'Daten für Bruttowertschöpfung'!$B7,'Schadensermittl. NichtWGebäude'!$AG$7:$AG$8) -> 0 | E14: =SUMIF('Schadensermittl. NichtWGebäude'!$B$7:$B$8,'Daten für Bruttowertschöpfung'!$B7,'Schadensermittl. NichtWGebäude'!$AW$7:$AW$8) -> 0 | F14: =SUMIF('Schadensermittl. NichtWGebäude'!$B$7:$B$8,'Daten für Bruttowertschöpfung'!$B7,'Schadensermittl. NichtWGebäude'!$BM$7:$BM$8) -> 0 | G14: =SUMIF('Schadensermittl. NichtWGebäude'!$B$7:$B$8,'Daten für Bruttowertschöpfung'!$B7,'Schadensermittl. NichtWGebäude'!$CC$7:$CC$8) -> 0 | H14: =SUMIF('Schadensermittl. NichtWGebäude'!$B$7:$B$8,'Daten für Bruttowertschöpfung'!$B7,'Schadensermittl. NichtWGebäude'!$CS$7:$CS$8) -> 0 | I14: =SUMIF('Schadensermittl. NichtWGebäude'!$B$7:$B$8,'Daten für Bruttowertschöpfung'!$B7,'Schadensermittl. NichtWGebäude'!$DI$7:$DI$8) -> 0
B15: ='Daten für Bruttowertschöpfung'!B8 -> Verkehr und Lagerei (H) | C15: =SUMIF('Schadensermittl. NichtWGebäude'!$B$7:$B$8,'Daten für Bruttowertschöpfung'!$B8,'Schadensermittl. NichtWGebäude'!$Q$7:$Q$8) -> 0 | D15: =SUMIF('Schadensermittl. NichtWGebäude'!$B$7:$B$8,'Daten für Bruttowertschöpfung'!$B8,'Schadensermittl. NichtWGebäude'!$AG$7:$AG$8) -> 0 | E15: =SUMIF('Schadensermittl. NichtWGebäude'!$B$7:$B$8,'Daten für Bruttowertschöpfung'!$B8,'Schadensermittl. NichtWGebäude'!$AW$7:$AW$8) -> 0 | F15: =SUMIF('Schadensermittl. NichtWGebäude'!$B$7:$B$8,'Daten für Bruttowertschöpfung'!$B8,'Schadensermittl. NichtWGebäude'!$BM$7:$BM$8) -> 0 | G15: =SUMIF('Schadensermittl. NichtWGebäude'!$B$7:$B$8,'Daten für Bruttowertschöpfung'!$B8,'Schadensermittl. NichtWGebäude'!$CC$7:$CC$8) -> 0 | H15: =SUMIF('Schadensermittl. NichtWGebäude'!$B$7:$B$8,'Daten für Bruttowertschöpfung'!$B8,'Schadensermittl. NichtWGebäude'!$CS$7:$CS$8) -> 0 | I15: =SUMIF('Schadensermittl. NichtWGebäude'!$B$7:$B$8,'Daten für Bruttowertschöpfung'!$B8,'Schadensermittl. NichtWGebäude'!$DI$7:$DI$8) -> 0
B16: ='Daten für Bruttowertschöpfung'!B9 -> Beherbergung und Gastronomie (I) | C16: =SUMIF('Schadensermittl. NichtWGebäude'!$B$7:$B$8,'Daten für Bruttowertschöpfung'!$B9,'Schadensermittl. NichtWGebäude'!$Q$7:$Q$8) -> 0 | D16: =SUMIF('Schadensermittl. NichtWGebäude'!$B$7:$B$8,'Daten für Bruttowertschöpfung'!$B9,'Schadensermittl. NichtWGebäude'!$AG$7:$AG$8) -> 0 | E16: =SUMIF('Schadensermittl. NichtWGebäude'!$B$7:$B$8,'Daten für Bruttowertschöpfung'!$B9,'Schadensermittl. NichtWGebäude'!$AW$7:$AW$8) -> 0 | F16: =SUMIF('Schadensermittl. NichtWGebäude'!$B$7:$B$8,'Daten für Bruttowertschöpfung'!$B9,'Schadensermittl. NichtWGebäude'!$BM$7:$BM$8) -> 0 | G16: =SUMIF('Schadensermittl. NichtWGebäude'!$B$7:$B$8,'Daten für Bruttowertschöpfung'!$B9,'Schadensermittl. NichtWGebäude'!$CC$7:$CC$8) -> 0 | H16: =SUMIF('Schadensermittl. NichtWGebäude'!$B$7:$B$8,'Daten für Bruttowertschöpfung'!$B9,'Schadensermittl. NichtWGebäude'!$CS$7:$CS$8) -> 0 | I16: =SUMIF('Schadensermittl. NichtWGebäude'!$B$7:$B$8,'Daten für Bruttowertschöpfung'!$B9,'Schadensermittl. NichtWGebäude'!$DI$7:$DI$8) -> 0
B17: ='Daten für Bruttowertschöpfung'!B10 -> Information und Kommunikation (J) | C17: =SUMIF('Schadensermittl. NichtWGebäude'!$B$7:$B$8,'Daten für Bruttowertschöpfung'!$B10,'Schadensermittl. NichtWGebäude'!$Q$7:$Q$8) -> 0 | D17: =SUMIF('Schadensermittl. NichtWGebäude'!$B$7:$B$8,'Daten für Bruttowertschöpfung'!$B10,'Schadensermittl. NichtWGebäude'!$AG$7:$AG$8) -> 0 | E17: =SUMIF('Schadensermittl. NichtWGebäude'!$B$7:$B$8,'Daten für Bruttowertschöpfung'!$B10,'Schadensermittl. NichtWGebäude'!$AW$7:$AW$8) -> 0 | F17: =SUMIF('Schadensermittl. NichtWGebäude'!$B$7:$B$8,'Daten für Bruttowertschöpfung'!$B10,'Schadensermittl. NichtWGebäude'!$BM$7:$BM$8) -> 0 | G17: =SUMIF('Schadensermittl. NichtWGebäude'!$B$7:$B$8,'Daten für Bruttowertschöpfung'!$B10,'Schadensermittl. NichtWGebäude'!$CC$7:$CC$8) -> 0 | H17: =SUMIF('Schadensermittl. NichtWGebäude'!$B$7:$B$8,'Daten für Bruttowertschöpfung'!$B10,'Schadensermittl. NichtWGebäude'!$CS$7:$CS$8) -> 0 | I17: =SUMIF('Schadensermittl. NichtWGebäude'!$B$7:$B$8,'Daten für Bruttowertschöpfung'!$B10,'Schadensermittl. NichtWGebäude'!$DI$7:$DI$8) -> 0
B18: ='Daten für Bruttowertschöpfung'!B11 -> Erbringung von Finanz- und Versicherungsdienstl. (K) | C18: =SUMIF('Schadensermittl. NichtWGebäude'!$B$7:$B$8,'Daten für Bruttowertschöpfung'!$B11,'Schadensermittl. NichtWGebäude'!$Q$7:$Q$8) -> 0 | D18: =SUMIF('Schadensermittl. NichtWGebäude'!$B$7:$B$8,'Daten für Bruttowertschöpfung'!$B11,'Schadensermittl. NichtWGebäude'!$AG$7:$AG$8) -> 0 | E18: =SUMIF('Schadensermittl. NichtWGebäude'!$B$7:$B$8,'Daten für Bruttowertschöpfung'!$B11,'Schadensermittl. NichtWGebäude'!$AW$7:$AW$8) -> 0 | F18: =SUMIF('Schadensermittl. NichtWGebäude'!$B$7:$B$8,'Daten für Bruttowertschöpfung'!$B11,'Schadensermittl. NichtWGebäude'!$BM$7:$BM$8) -> 0 | G18: =SUMIF('Schadensermittl. NichtWGebäude'!$B$7:$B$8,'Daten für Bruttowertschöpfung'!$B11,'Schadensermittl. NichtWGebäude'!$CC$7:$CC$8) -> 0 | H18: =SUMIF('Schadensermittl. NichtWGebäude'!$B$7:$B$8,'Daten für Bruttowertschöpfung'!$B11,'Schadensermittl. NichtWGebäude'!$CS$7:$CS$8) -> 0 | I18: =SUMIF('Schadensermittl. NichtWGebäude'!$B$7:$B$8,'Daten für Bruttowertschöpfung'!$B11,'Schadensermittl. NichtWGebäude'!$DI$7:$DI$8) -> 0
B19: ='Daten für Bruttowertschöpfung'!B12 -> Grundstücks- und Wohnungswesen (L) | C19: =SUMIF('Schadensermittl. NichtWGebäude'!$B$7:$B$8,'Daten für Bruttowertschöpfung'!$B12,'Schadensermittl. NichtWGebäude'!$Q$7:$Q$8) -> 0 | D19: =SUMIF('Schadensermittl. NichtWGebäude'!$B$7:$B$8,'Daten für Bruttowertschöpfung'!$B12,'Schadensermittl. NichtWGebäude'!$AG$7:$AG$8) -> 0 | E19: =SUMIF('Schadensermittl. NichtWGebäude'!$B$7:$B$8,'Daten für Bruttowertschöpfung'!$B12,'Schadensermittl. NichtWGebäude'!$AW$7:$AW$8) -> 0 | F19: =SUMIF('Schadensermittl. NichtWGebäude'!$B$7:$B$8,'Daten für Bruttowertschöpfung'!$B12,'Schadensermittl. NichtWGebäude'!$BM$7:$BM$8) -> 0 | G19: =SUMIF('Schadensermittl. NichtWGebäude'!$B$7:$B$8,'Daten für Bruttowertschöpfung'!$B12,'Schadensermittl. NichtWGebäude'!$CC$7:$CC$8) -> 0 | H19: =SUMIF('Schadensermittl. NichtWGebäude'!$B$7:$B$8,'Daten für Bruttowertschöpfung'!$B12,'Schadensermittl. NichtWGebäude'!$CS$7:$CS$8) -> 0 | I19: =SUMIF('Schadensermittl. NichtWGebäude'!$B$7:$B$8,'Daten für Bruttowertschöpfung'!$B12,'Schadensermittl. NichtWGebäude'!$DI$7:$DI$8) -> 0
B20: ='Daten für Bruttowertschöpfung'!B13 -> Erbringung v. freiberuflichen, wissenschaftl. und techn.Dienstl. (M) | C20: =SUMIF('Schadensermittl. NichtWGebäude'!$B$7:$B$8,'Daten für Bruttowertschöpfung'!$B13,'Schadensermittl. NichtWGebäude'!$Q$7:$Q$8) -> 0 | D20: =SUMIF('Schadensermittl. NichtWGebäude'!$B$7:$B$8,'Daten für Bruttowertschöpfung'!$B13,'Schadensermittl. NichtWGebäude'!$AG$7:$AG$8) -> 0 | E20: =SUMIF('Schadensermittl. NichtWGebäude'!$B$7:$B$8,'Daten für Bruttowertschöpfung'!$B13,'Schadensermittl. NichtWGebäude'!$AW$7:$AW$8) -> 0 | F20: =SUMIF('Schadensermittl. NichtWGebäude'!$B$7:$B$8,'Daten für Bruttowertschöpfung'!$B13,'Schadensermittl. NichtWGebäude'!$BM$7:$BM$8) -> 0 | G20: =SUMIF('Schadensermittl. NichtWGebäude'!$B$7:$B$8,'Daten für Bruttowertschöpfung'!$B13,'Schadensermittl. NichtWGebäude'!$CC$7:$CC$8) -> 0 | H20: =SUMIF('Schadensermittl. NichtWGebäude'!$B$7:$B$8,'Daten für Bruttowertschöpfung'!$B13,'Schadensermittl. NichtWGebäude'!$CS$7:$CS$8) -> 0 | I20: =SUMIF('Schadensermittl. NichtWGebäude'!$B$7:$B$8,'Daten für Bruttowertschöpfung'!$B13,'Schadensermittl. NichtWGebäude'!$DI$7:$DI$8) -> 0
B21: ='Daten für Bruttowertschöpfung'!B14 -> Erbringung von sonstigen wirtschaftl. Dienstleistungen (N) | C21: =SUMIF('Schadensermittl. NichtWGebäude'!$B$7:$B$8,'Daten für Bruttowertschöpfung'!$B14,'Schadensermittl. NichtWGebäude'!$Q$7:$Q$8) -> 0 | D21: =SUMIF('Schadensermittl. NichtWGebäude'!$B$7:$B$8,'Daten für Bruttowertschöpfung'!$B14,'Schadensermittl. NichtWGebäude'!$AG$7:$AG$8) -> 0 | E21: =SUMIF('Schadensermittl. NichtWGebäude'!$B$7:$B$8,'Daten für Bruttowertschöpfung'!$B14,'Schadensermittl. NichtWGebäude'!$AW$7:$AW$8) -> 0 | F21: =SUMIF('Schadensermittl. NichtWGebäude'!$B$7:$B$8,'Daten für Bruttowertschöpfung'!$B14,'Schadensermittl. NichtWGebäude'!$BM$7:$BM$8) -> 0 | G21: =SUMIF('Schadensermittl. NichtWGebäude'!$B$7:$B$8,'Daten für Bruttowertschöpfung'!$B14,'Schadensermittl. NichtWGebäude'!$CC$7:$CC$8) -> 0 | H21: =SUMIF('Schadensermittl. NichtWGebäude'!$B$7:$B$8,'Daten für Bruttowertschöpfung'!$B14,'Schadensermittl. NichtWGebäude'!$CS$7:$CS$8) -> 0 | I21: =SUMIF('Schadensermittl. NichtWGebäude'!$B$7:$B$8,'Daten für Bruttowertschöpfung'!$B14,'Schadensermittl. NichtWGebäude'!$DI$7:$DI$8) -> 0
B22: ='Daten für Bruttowertschöpfung'!B15 -> Reparatur von Gebrauchsgütern (S95) | C22: =SUMIF('Schadensermittl. NichtWGebäude'!$B$7:$B$8,'Daten für Bruttowertschöpfung'!$B15,'Schadensermittl. NichtWGebäude'!$Q$7:$Q$8) -> 0 | D22: =SUMIF('Schadensermittl. NichtWGebäude'!$B$7:$B$8,'Daten für Bruttowertschöpfung'!$B15,'Schadensermittl. NichtWGebäude'!$AG$7:$AG$8) -> 0 | E22: =SUMIF('Schadensermittl. NichtWGebäude'!$B$7:$B$8,'Daten für Bruttowertschöpfung'!$B15,'Schadensermittl. NichtWGebäude'!$AW$7:$AW$8) -> 0 | F22: =SUMIF('Schadensermittl. NichtWGebäude'!$B$7:$B$8,'Daten für Bruttowertschöpfung'!$B15,'Schadensermittl. NichtWGebäude'!$BM$7:$BM$8) -> 0 | G22: =SUMIF('Schadensermittl. NichtWGebäude'!$B$7:$B$8,'Daten für Bruttowertschöpfung'!$B15,'Schadensermittl. NichtWGebäude'!$CC$7:$CC$8) -> 0 | H22: =SUMIF('Schadensermittl. NichtWGebäude'!$B$7:$B$8,'Daten für Bruttowertschöpfung'!$B15,'Schadensermittl. NichtWGebäude'!$CS$7:$CS$8) -> 0 | I22: =SUMIF('Schadensermittl. NichtWGebäude'!$B$7:$B$8,'Daten für Bruttowertschöpfung'!$B15,'Schadensermittl. NichtWGebäude'!$DI$7:$DI$8) -> 0
B23: Summe betroffene Beschäftigte | C23: =SUM(C9:C22) -> 0 | D23: 0 | E23: 0 | F23: 0 | G23: 0 | H23: 0 | I23: 0
A25: Erläuterungen zur Ausweisung Indirekt Betroffener

Sheet Schadensrel. Merkmale WGebäude
A1: SCHADENSRELEVANTE MERKMALE WOHNGEBÄUDE
A3: Hinweis: Wohngebäude dürfen nur bei gleichen Gebäudeeigenschaften, gleichem Schadensbild (Höhe der Schadensbeurteilung) UND gleicher Überflutungshöhe an den Stützstellen zu Clustern | T3: Schadensbeurteilungen
A4: zusammengefasst werden. | T4: Keller | X4: Erdgeschoss | AB4: Stockwerk | AE4: Aussenanlagen
A5: Adresse | B5: Gebäudetyp (Einfamilienhaus, Mehrfamilienhaus, Reihenhaus, ...) | C5: Anzahl Wohneinheiten an der Adresse | D5: Jahr der Errichtung bzw. letzte Generalsanierung | E5: Bauwerkstyp | F5: Erhaltungszustand des Gebäudes | G5: Anzahl Wohneinheiten an der Adresse | H5: Gewerbliche Nutzung | I5: Keller vohanden | J5: Höhe Keller (in m) (SIEHE ERLÄUTERUNGEN) | K5: Decke Keller (in m) | L5: Höhe Erdgeschoss (in m) | M5: Decke Erdgeschoss (in m) | N5: Höhe 1. Stock (in m) | O5: Lage Fussbodenoberkante EG | P5: Höhe erste Fussbodenoberkante über Gelände (in m) | Q5: Wassereintritt in den Keller nur vom Hausinneren, aus dem EG möglich? | R5: Außenanlagen (Ja/Nein) | S5: bekannte Hochwasserschäden (Jahr, Wassertiefe über Fußboden EG, Schaden in Keller, EG, Stockwerk) | T5: Keller Anfangsschaden (Smin) in € | U5: Keller Anfangsschaden (Smin) in € bei EFH | V5: Keller Schaden bei 1m Wassertiefe in 1.000 € (B) | W5: Keller Schaden bei 1m Wassertiefe in 1.000 € (B) | X5: Erdgeschoß Anfangsschaden (Smin) in € bei EFH | Y5: Erdgeschoß Anfangsschaden (Smin) in € bei EFH | Z5: Erdgeschoß Schaden bei 1m Wassertiefe in 1.000 € (B) | AA5: Erdgeschoß Schaden bei 1m Wassertiefe in 1.000 € (B) | AB5: 1: Stock Anfangsschaden (Smin) in € | AC5: Höhe über GOK | AD5: 1. Stock Schaden bei 1m Wassertiefe in 1.000 € (B) | AE5: Außenanlagen Schaden in €
A6: Gemeinde, Straße, Hausnummer
B7: EFH | E7: ZH | F7: sehr gut | H7: Nein | I7: Ja | O7: Ebenerdig | Q7: Nein | R7: Nein
B8: Sonst. | E8: BH | F8: sehr gut | H8: Nein | I8: Ja | O8: Ebenerdig | Q8: Nein | R8: Nein

Sheet Schadensermittlung Wohngebäude
A1: SCHADENSERMITTLUNG WOHNGEBÄUDE | C1: =$A$1 -> SCHADENSERMITTLUNG WOHNGEBÄUDE | S1: =$A$1 -> SCHADENSERMITTLUNG WOHNGEBÄUDE | AI1: =S1 -> SCHADENSERMITTLUNG WOHNGEBÄUDE | AY1: =AI1 -> SCHADENSERMITTLUNG WOHNGEBÄUDE | BO1: =AY1 -> SCHADENSERMITTLUNG WOHNGEBÄUDE | CE1: =BO1 -> SCHADENSERMITTLUNG WOHNGEBÄUDE | CU1: =CE1 -> SCHADENSERMITTLUNG WOHNGEBÄUDE
B5: bei HQx | C5: =Projektgrunddaten!$C$24 -> 0 | S5: =Projektgrunddaten!$C$25 -> 0 | AI5: =Projektgrunddaten!$C$26 -> 0 | AY5: =Projektgrunddaten!$C$27 -> 0 | BO5: =Projektgrunddaten!$C$28 -> 0 | CE5: =Projektgrunddaten!$C$29 -> 100 | CU5: =Projektgrunddaten!$C$30 -> 0
A6: Adresse | B6: Gebäudetyp | C6: Anzahl gleich bewertete Objekte | D6: Wassertiefe über GOK (m) | E6: Wasserstand Keller | F6: ALTERNATIV zur Wassertiefe: Wasserstand Keller (in m) | G6: Schaden Keller (€) | H6: Wasserstand EG | I6: ALTERNATIV zur Wassertiefe: Wasserstand Erdgeschoß (m) | J6: Schaden Erdgeschoss (€) | K6: Wasserstand 1.Stock | L6: ALTERNATIV zur Wassertiefe: Wasserstand 1. Stock (m) | M6: Schaden 1. Stock (€) | N6: Schaden Aussenanlagen (€) | O6: Reduktionsfaktor wegen Eigenvorsorge | P6: Schaden gesamt (€) | Q6: Schadenssumme gesamt | R6: ALTERNATIVE EINGABE: Gesamtschaden aus anderen Erhebungsmodellen (€) | S6: Anzahl gleich bewertete Objekte | T6: Wassertiefe über GOK (m) | U6: Wasserstand Keller | V6: ALTERNATIV zur Wassertiefe: Wasserstand Keller (in m) | W6: Schaden Keller (€) | X6: Wasserstand EG | Y6: ALTERNATIV zur Wassertiefe: Wasserstand Erdgeschoß (m) | Z6: Schaden Erdgeschoss (€) | AA6: Wasserstand 1.Stock | AB6: ALTERNATIV zur Wassertiefe: Wasserstand 1. Stock (m) | AC6: Schaden 1. Stock (€) | AD6: Schaden Aussenanlagen (€) | AE6: Reduktionsfaktor wegen Eigenvorsorge | AF6: Schaden gesamt (€) | AG6: Schadenssumme gesamt | AH6: ALTERNATIVE EINGABE: Gesamtschaden aus anderen Erhebungsmodellen (€) | AI6: Anzahl gleich bewertete Objekte | AJ6: Wassertiefe über GOK (m) | AK6: Wasserstand Keller | AL6: ALTERNATIV zur Wassertiefe: Wasserstand Keller (in m) | AM6: Schaden Keller (€) | AN6: Wasserstand EG | AO6: ALTERNATIV zur Wassertiefe: Wasserstand Erdgeschoß (m) | AP6: Schaden Erdgeschoss (€) | AQ6: Wasserstand 1.Stock | AR6: ALTERNATIV zur Wassertiefe: Wasserstand 1. Stock (m) | AS6: Schaden 1. Stock (€) | AT6: Schaden Aussenanlagen (€) | AU6: Reduktionsfaktor wegen Eigenvorsorge | AV6: Schaden gesamt (€) | AW6: Schadenssumme gesamt | AX6: ALTERNATIVE EINGABE: Gesamtschaden aus anderen Erhebungsmodellen (€) | AY6: Anzahl gleich bewertete Objekte | AZ6: Wassertiefe über GOK (m) | BA6: Wasserstand Keller | BB6: ALTERNATIV zur Wassertiefe: Wasserstand Keller (in m) | BC6: Schaden Keller (€) | BD6: Wasserstand EG | BE6: ALTERNATIV zur Wassertiefe: Wasserstand Erdgeschoß (m) | BF6: Schaden Erdgeschoss (€) | BG6: Wasserstand 1.Stock | BH6: ALTERNATIV zur Wassertiefe: Wasserstand 1. Stock (m) | BI6: Schaden 1. Stock (€) | BJ6: Schaden Aussenanlagen (€) | BK6: Reduktionsfaktor wegen Eigenvorsorge | BL6: Schaden gesamt (€) | BM6: Schadenssumme gesamt | BN6: ALTERNATIVE EINGABE: Gesamtschaden aus anderen Erhebungsmodellen (€) | BO6: Anzahl gleich bewertete Objekte | BP6: Wassertiefe über GOK (m) | BQ6: Wasserstand Keller | BR6: ALTERNATIV zur Wassertiefe: Wasserstand Keller (in m) | BS6: Schaden Keller (€) | BT6: Wasserstand EG | BU6: ALTERNATIV zur Wassertiefe: Wasserstand Erdgeschoß (m) | BV6: Schaden Erdgeschoss (€) | BW6: Wasserstand 1.Stock | BX6: ALTERNATIV zur Wassertiefe: Wasserstand 1. Stock (m) | BY6: Schaden 1. Stock (€) | BZ6: Schaden Aussenanlagen (€) | CA6: Reduktionsfaktor wegen Eigenvorsorge | CB6: Schaden gesamt (€) | CC6: Schadenssumme gesamt | CD6: ALTERNATIVE EINGABE: Gesamtschaden aus anderen Erhebungsmodellen (€) | CE6: Anzahl gleich bewertete Objekte | CF6: Wassertiefe über GOK (m) | CG6: Wasserstand Keller | CH6: ALTERNATIV zur Wassertiefe: Wasserstand Keller (in m) | CI6: Schaden Keller (€) | CJ6: Wasserstand EG | CK6: ALTERNATIV zur Wassertiefe: Wasserstand Erdgeschoß (m) | CL6: Schaden Erdgeschoss (€) | CM6: Wasserstand 1.Stock | CN6: ALTERNATIV zur Wassertiefe: Wasserstand 1. Stock (m) | CO6: Schaden 1. Stock (€) | CP6: Schaden Aussenanlagen (€) | CQ6: Reduktionsfaktor wegen Eigenvorsorge | CR6: Schaden gesamt (€) | CS6: Schadenssumme gesamt | CT6: ALTERNATIVE EINGABE: Gesamtschaden aus anderen Erhebungsmodellen (€) | CU6: Anzahl gleich bewertete Objekte | CV6: Wassertiefe über GOK (m) | CW6: Wasserstand Keller | CX6: ALTERNATIV zur Wassertiefe: Wasserstand Keller (in m) | CY6: Schaden Keller (€) | CZ6: Wasserstand EG | DA6: ALTERNATIV zur Wassertiefe: Wasserstand Erdgeschoß (m) | DB6: Schaden Erdgeschoss (€) | DC6: Wasserstand 1.Stock | DD6: ALTERNATIV zur Wassertiefe: Wasserstand 1. Stock (m) | DE6: Schaden 1. Stock (€) | DF6: Schaden Aussenanlagen (€) | DG6: Reduktionsfaktor wegen Eigenvorsorge | DH6: Schaden gesamt (€) | DI6: Schadenssumme gesamt | DJ6: ALTERNATIVE EINGABE: Gesamtschaden aus anderen Erhebungsmodellen (€)
A7: =IF('Schadensrel. Merkmale WGebäude'!A7="","",'Schadensrel. Merkmale WGebäude'!A7) ->  | B7: =IF('Schadensrel. Merkmale WGebäude'!B7="","",'Schadensrel. Merkmale WGebäude'!B7) -> EFH | E7: =IF(D7=0,0,IF(('Schadensrel. Merkmale WGebäude'!$J7+'Schadensrel. Merkmale WGebäude'!$K7)=0,(IF((Berechnungsgrundlagen!$B$18+Berechnungsgrundlagen!$B$19-'Schadensrel. Merkmale WGebäude'!$P7+D7)>(Berechnungsgrundlagen!$B$18+Berechnungsgrundlagen!$B$19),(Berechnungsgrundlagen!$B$18+Berechnungsgrundlagen!$B$19),(Berechnungsgrundlagen!$B$18+Berechnungsgrundlagen!$B$19-'Schadensrel. Merkmale WGebäude'!$P7+D7))),(IF(('Schadensrel. Merkmale WGebäude'!$J7+'Schadensrel. Merkmale WGebäude'!$K7-'Schadensrel. Merkmale WGebäude'!$P7+D7)>('Schadensrel. Merkmale WGebäude'!$J7+'Schadensrel. Merkmale WGebäude'!$K7),('Schadensrel. Merkmale WGebäude'!$J7+'Schadensrel. Merkmale WGebäude'!$K7),('Schadensrel. Merkmale WGebäude'!$J7+'Schadensrel. Merkmale WGebäude'!$K7-'Schadensrel. Merkmale WGebäude'!$P7+D7))))) -> 0 | G7: =IF('Schadensrel. Merkmale WGebäude'!$I7=Berechnungsgrundlagen!$D$17, IF(F7>0,'Schadensrel. Merkmale WGebäude'!$T7+(1000*'Schadensrel. Merkmale WGebäude'!$V7*SQRT(F7)),IF(E7=0,0,IF('Schadensrel. Merkmale WGebäude'!$Q7=Berechnungsgrundlagen!$D$18,'Schadensrel. Merkmale WGebäude'!$T7+(1000*'Schadensrel. Merkmale WGebäude'!$V7*SQRT(E7)),IF(D7<='Schadensrel. Merkmale WGebäude'!$P7,0,'Schadensrel. Merkmale WGebäude'!$T7+(1000*'Schadensrel. Merkmale WGebäude'!$V7*SQRT(E7)))))),0) -> 0 | H7: =IF(D7=0,0,IF((D7-'Schadensrel. Merkmale WGebäude'!$P7)<=0,0,IF(((D7-'Schadensrel. Merkmale WGebäude'!$P7))>(IF(('Schadensrel. Merkmale WGebäude'!$L7+'Schadensrel. Merkmale WGebäude'!$M7)=0,(Berechnungsgrundlagen!$B$20+Berechnungsgrundlagen!$B$21),('Schadensrel. Merkmale WGebäude'!$L7+'Schadensrel. Merkmale WGebäude'!$M7))),IF(('Schadensrel. Merkmale WGebäude'!$L7+'Schadensrel. Merkmale WGebäude'!$M7)=0,(Berechnungsgrundlagen!$B$20+Berechnungsgrundlagen!$B$21),('Schadensrel. Merkmale WGebäude'!$L7+'Schadensrel. Merkmale WGebäude'!$M7)),((D7-'Schadensrel. Merkmale WGebäude'!$P7))))) -> 0 | J7: =IF(I7>0,'Schadensrel. Merkmale WGebäude'!$X7+(1000*'Schadensrel. Merkmale WGebäude'!$Z7*SQRT(I7)),IF(H7=0,0,IF(D7<='Schadensrel. Merkmale WGebäude'!$P7,0,'Schadensrel. Merkmale WGebäude'!$X7+(1000*'Schadensrel. Merkmale WGebäude'!$Z7*SQRT(H7))))) -> 0 | K7: =IF(D7=0,0,D7-('Schadensrel. Merkmale WGebäude'!$P7+IF(('Schadensrel. Merkmale WGebäude'!$L7+'Schadensrel. Merkmale WGebäude'!$M7)=0,Berechnungsgrundlagen!$B$20+Berechnungsgrundlagen!$B$21,'Schadensrel. Merkmale WGebäude'!$L7+'Schadensrel. Merkmale WGebäude'!$M7))) -> 0 | M7: =IF(L7>0,'Schadensrel. Merkmale WGebäude'!$AB7+(1000*'Schadensrel. Merkmale WGebäude'!$AD7*SQRT(L7)),IF(D7<=('Schadensrel. Merkmale WGebäude'!$P7+IF(('Schadensrel. Merkmale WGebäude'!$L7+'Schadensrel. Merkmale WGebäude'!$M7)=0,Berechnungsgrundlagen!$B$20+Berechnungsgrundlagen!$B$21,'Schadensrel. Merkmale WGebäude'!$L7+'Schadensrel. Merkmale WGebäude'!$M7)),0,('Schadensrel. Merkmale WGebäude'!$AB7+(1000*'Schadensrel. Merkmale WGebäude'!$AD7*SQRT(K7))))) -> 0 | N7: =IF(D7=0,0,'Schadensrel. Merkmale WGebäude'!$AE7) -> 0 | P7: =SUM((G7+J7+M7+N7)*(IF(C7=0,1,C7)*(IF($C$5>50,1,IF(O7=0,1,1-O7))))) -> 0 | Q7: =MAX(P7,R7) -> 0 | U7: =IF(T7=0,0,IF(('Schadensrel. Merkmale WGebäude'!$J7+'Schadensrel. Merkmale WGebäude'!$K7)=0,(IF((Berechnungsgrundlagen!$B$18+Berechnungsgrundlagen!$B$19-'Schadensrel. Merkmale WGebäude'!$P7+T7)>(Berechnungsgrundlagen!$B$18+Berechnungsgrundlagen!$B$19),(Berechnungsgrundlagen!$B$18+Berechnungsgrundlagen!$B$19),(Berechnungsgrundlagen!$B$18+Berechnungsgrundlagen!$B$19-'Schadensrel. Merkmale WGebäude'!$P7+T7))),(IF(('Schadensrel. Merkmale WGebäude'!$J7+'Schadensrel. Merkmale WGebäude'!$K7-'Schadensrel. Merkmale WGebäude'!$P7+T7)>('Schadensrel. Merkmale WGebäude'!$J7+'Schadensrel. Merkmale WGebäude'!$K7),('Schadensrel. Merkmale WGebäude'!$J7+'Schadensrel. Merkmale WGebäude'!$K7),('Schadensrel. Merkmale WGebäude'!$J7+'Schadensrel. Merkmale WGebäude'!$K7-'Schadensrel. Merkmale WGebäude'!$P7+T7))))) -> 0 | W7: =IF('Schadensrel. Merkmale WGebäude'!$I7=Berechnungsgrundlagen!$D$17, IF(V7>0,'Schadensrel. Merkmale WGebäude'!$T7+(1000*'Schadensrel. Merkmale WGebäude'!$V7*SQRT(V7)),IF(U7=0,0,IF('Schadensrel. Merkmale WGebäude'!$Q7=Berechnungsgrundlagen!$D$18,'Schadensrel. Merkmale WGebäude'!$T7+(1000*'Schadensrel. Merkmale WGebäude'!$V7*SQRT(U7)),IF(T7<='Schadensrel. Merkmale WGebäude'!$P7,0,'Schadensrel. Merkmale WGebäude'!$T7+(1000*'Schadensrel. Merkmale WGebäude'!$V7*SQRT(U7)))))),0) -> 0 | X7: =IF(T7=0,0,IF((T7-'Schadensrel. Merkmale WGebäude'!$P7)<=0,0,IF(((T7-'Schadensrel. Merkmale WGebäude'!$P7))>(IF(('Schadensrel. Merkmale WGebäude'!$L7+'Schadensrel. Merkmale WGebäude'!$M7)=0,(Berechnungsgrundlagen!$B$20+Berechnungsgrundlagen!$B$21),('Schadensrel. Merkmale WGebäude'!$L7+'Schadensrel. Merkmale WGebäude'!$M7))),IF(('Schadensrel. Merkmale WGebäude'!$L7+'Schadensrel. Merkmale WGebäude'!$M7)=0,(Berechnungsgrundlagen!$B$20+Berechnungsgrundlagen!$B$21),('Schadensrel. Merkmale WGebäude'!$L7+'Schadensrel. Merkmale WGebäude'!$M7)),((T7-'Schadensrel. Merkmale WGebäude'!$P7))))) -> 0 | Z7: =IF(Y7>0,'Schadensrel. Merkmale WGebäude'!$X7+(1000*'Schadensrel. Merkmale WGebäude'!$Z7*SQRT(Y7)),IF(X7=0,0,IF(T7<='Schadensrel. Merkmale WGebäude'!$P7,0,'Schadensrel. Merkmale WGebäude'!$X7+(1000*'Schadensrel. Merkmale WGebäude'!$Z7*SQRT(X7))))) -> 0 | AA7: =IF(T7=0,0,T7-('Schadensrel. Merkmale WGebäude'!$P7+IF(('Schadensrel. Merkmale WGebäude'!$L7+'Schadensrel. Merkmale WGebäude'!$M7)=0,Berechnungsgrundlagen!$B$20+Berechnungsgrundlagen!$B$21,'Schadensrel. Merkmale WGebäude'!$L7+'Schadensrel. Merkmale WGebäude'!$M7))) -> 0 | AC7: =IF(AB7>0,'Schadensrel. Merkmale WGebäude'!$AB7+(1000*'Schadensrel. Merkmale WGebäude'!$AD7*SQRT(AB7)),IF(T7<=('Schadensrel. Merkmale WGebäude'!$P7+IF(('Schadensrel. Merkmale WGebäude'!$L7+'Schadensrel. Merkmale WGebäude'!$M7)=0,Berechnungsgrundlagen!$B$20+Berechnungsgrundlagen!$B$21,'Schadensrel. Merkmale WGebäude'!$L7+'Schadensrel. Merkmale WGebäude'!$M7)),0,('Schadensrel. Merkmale WGebäude'!$AB7+(1000*'Schadensrel. Merkmale WGebäude'!$AD7*SQRT(AA7))))) -> 0 | AD7: =IF(T7=0,0,'Schadensrel. Merkmale WGebäude'!$AE7) -> 0 | AF7: =SUM((W7+Z7+AC7+AD7)*(IF(S7=0,1,S7)*(IF($S$5>50,1,IF(AE7=0,1,(1-AE7)))))) -> 0 | AG7: =MAX(AF7,AH7) -> 0 | AK7: =IF(AJ7=0,0,IF(('Schadensrel. Merkmale WGebäude'!$J7+'Schadensrel. Merkmale WGebäude'!$K7)=0,(IF((Berechnungsgrundlagen!$B$18+Berechnungsgrundlagen!$B$19-'Schadensrel. Merkmale WGebäude'!$P7+AJ7)>(Berechnungsgrundlagen!$B$18+Berechnungsgrundlagen!$B$19),(Berechnungsgrundlagen!$B$18+Berechnungsgrundlagen!$B$19),(Berechnungsgrundlagen!$B$18+Berechnungsgrundlagen!$B$19-'Schadensrel. Merkmale WGebäude'!$P7+AJ7))),(IF(('Schadensrel. Merkmale WGebäude'!$J7+'Schadensrel. Merkmale WGebäude'!$K7-'Schadensrel. Merkmale WGebäude'!$P7+AJ7)>('Schadensrel. Merkmale WGebäude'!$J7+'Schadensrel. Merkmale WGebäude'!$K7),('Schadensrel. Merkmale WGebäude'!$J7+'Schadensrel. Merkmale WGebäude'!$K7),('Schadensrel. Merkmale WGebäude'!$J7+'Schadensrel. Merkmale WGebäude'!$K7-'Schadensrel. Merkmale WGebäude'!$P7+AJ7))))) -> 0 | AM7: =IF('Schadensrel. Merkmale WGebäude'!$I7=Berechnungsgrundlagen!$D$17,IF(AL7>0,'Schadensrel. Merkmale WGebäude'!$T7+(1000*'Schadensrel. Merkmale WGebäude'!$V7*SQRT(AL7)),IF(AK7=0,0,IF('Schadensrel. Merkmale WGebäude'!$Q7=Berechnungsgrundlagen!$D$18,'Schadensrel. Merkmale WGebäude'!$T7+(1000*'Schadensrel. Merkmale WGebäude'!$V7*SQRT(AK7)),IF(AJ7<='Schadensrel. Merkmale WGebäude'!$P7,0,'Schadensrel. Merkmale WGebäude'!$T7+(1000*'Schadensrel. Merkmale WGebäude'!$V7*SQRT(AK7)))))),0) -> 0 | AN7: =IF(AJ7=0,0,IF((AJ7-'Schadensrel. Merkmale WGebäude'!$P7)<=0,0,IF(((AJ7-'Schadensrel. Merkmale WGebäude'!$P7))>(IF(('Schadensrel. Merkmale WGebäude'!$L7+'Schadensrel. Merkmale WGebäude'!$M7)=0,(Berechnungsgrundlagen!$B$20+Berechnungsgrundlagen!$B$21),('Schadensrel. Merkmale WGebäude'!$L7+'Schadensrel. Merkmale WGebäude'!$M7))),IF(('Schadensrel. Merkmale WGebäude'!$L7+'Schadensrel. Merkmale WGebäude'!$M7)=0,(Berechnungsgrundlagen!$B$20+Berechnungsgrundlagen!$B$21),('Schadensrel. Merkmale WGebäude'!$L7+'Schadensrel. Merkmale WGebäude'!$M7)),((AJ7-'Schadensrel. Merkmale WGebäude'!$P7))))) -> 0 | AP7: =IF(AO7>0,'Schadensrel. Merkmale WGebäude'!$X7+(1000*'Schadensrel. Merkmale WGebäude'!$Z7*SQRT(AO7)),IF(AN7=0,0,IF(AJ7<='Schadensrel. Merkmale WGebäude'!$P7,0,'Schadensrel. Merkmale WGebäude'!$X7+(1000*'Schadensrel. Merkmale WGebäude'!$Z7*SQRT(AN7))))) -> 0 | AQ7: =IF(AJ7=0,0,AJ7-('Schadensrel. Merkmale WGebäude'!$P7+IF(('Schadensrel. Merkmale WGebäude'!$L7+'Schadensrel. Merkmale WGebäude'!$M7)=0,Berechnungsgrundlagen!$B$20+Berechnungsgrundlagen!$B$21,'Schadensrel. Merkmale WGebäude'!$L7+'Schadensrel. Merkmale WGebäude'!$M7))) -> 0 | AS7: =IF(AR7>0,'Schadensrel. Merkmale WGebäude'!$AB7+(1000*'Schadensrel. Merkmale WGebäude'!$AD7*SQRT(AR7)),IF(AJ7<=('Schadensrel. Merkmale WGebäude'!$P7+IF(('Schadensrel. Merkmale WGebäude'!$L7+'Schadensrel. Merkmale WGebäude'!$M7)=0,Berechnungsgrundlagen!$B$20+Berechnungsgrundlagen!$B$21,'Schadensrel. Merkmale WGebäude'!$L7+'Schadensrel. Merkmale WGebäude'!$M7)),0,('Schadensrel. Merkmale WGebäude'!$AB7+(1000*'Schadensrel. Merkmale WGebäude'!$AD7*SQRT(AQ7))))) -> 0 | AT7: =IF(AJ7=0,0,'Schadensrel. Merkmale WGebäude'!$AE7) -> 0 | AV7: =SUM((AM7+AP7+AS7+AT7)*(IF(AI7=0,1,AI7)*(IF($AI$5>50,1,IF(AU7=0,1,1-AU7))))) -> 0 | AW7: =MAX(AV7,AX7) -> 0 | BA7: =IF(AZ7=0,0,IF(('Schadensrel. Merkmale WGebäude'!$J7+'Schadensrel. Merkmale WGebäude'!$K7)=0,(IF((Berechnungsgrundlagen!$B$18+Berechnungsgrundlagen!$B$19-'Schadensrel. Merkmale WGebäude'!$P7+AZ7)>(Berechnungsgrundlagen!$B$18+Berechnungsgrundlagen!$B$19),(Berechnungsgrundlagen!$B$18+Berechnungsgrundlagen!$B$19),(Berechnungsgrundlagen!$B$18+Berechnungsgrundlagen!$B$19-'Schadensrel. Merkmale WGebäude'!$P7+AZ7))),(IF(('Schadensrel. Merkmale WGebäude'!$J7+'Schadensrel. Merkmale WGebäude'!$K7-'Schadensrel. Merkmale WGebäude'!$P7+AZ7)>('Schadensrel. Merkmale WGebäude'!$J7+'Schadensrel. Merkmale WGebäude'!$K7),('Schadensrel. Merkmale WGebäude'!$J7+'Schadensrel. Merkmale WGebäude'!$K7),('Schadensrel. Merkmale WGebäude'!$J7+'Schadensrel. Merkmale WGebäude'!$K7-'Schadensrel. Merkmale WGebäude'!$P7+AZ7))))) -> 0 | BC7: =IF('Schadensrel. Merkmale WGebäude'!$I7=Berechnungsgrundlagen!$D$17,IF(BB7>0,'Schadensrel. Merkmale WGebäude'!$T7+(1000*'Schadensrel. Merkmale WGebäude'!$V7*SQRT(BB7)),IF(BA7=0,0,IF('Schadensrel. Merkmale WGebäude'!$Q7=Berechnungsgrundlagen!$D$18,'Schadensrel. Merkmale WGebäude'!$T7+(1000*'Schadensrel. Merkmale WGebäude'!$V7*SQRT(BA7)),IF(AZ7<='Schadensrel. Merkmale WGebäude'!$P7,0,'Schadensrel. Merkmale WGebäude'!$T7+(1000*'Schadensrel. Merkmale WGebäude'!$V7*SQRT(BA7)))))),0) -> 0 | BD7: =IF(AZ7=0,0,IF((AZ7-'Schadensrel. Merkmale WGebäude'!$P7)<=0,0,IF(((AZ7-'Schadensrel. Merkmale WGebäude'!$P7))>(IF(('Schadensrel. Merkmale WGebäude'!$L7+'Schadensrel. Merkmale WGebäude'!$M7)=0,(Berechnungsgrundlagen!$B$20+Berechnungsgrundlagen!$B$21),('Schadensrel. Merkmale WGebäude'!$L7+'Schadensrel. Merkmale WGebäude'!$M7))),IF(('Schadensrel. Merkmale WGebäude'!$L7+'Schadensrel. Merkmale WGebäude'!$M7)=0,(Berechnungsgrundlagen!$B$20+Berechnungsgrundlagen!$B$21),('Schadensrel. Merkmale WGebäude'!$L7+'Schadensrel. Merkmale WGebäude'!$M7)),((AZ7-'Schadensrel. Merkmale WGebäude'!$P7))))) -> 0 | BF7: =IF(BE7>0,'Schadensrel. Merkmale WGebäude'!$X7+(1000*'Schadensrel. Merkmale WGebäude'!$Z7*SQRT(BE7)),IF(BD7=0,0,IF(AZ7<='Schadensrel. Merkmale WGebäude'!$P7,0,'Schadensrel. Merkmale WGebäude'!$X7+(1000*'Schadensrel. Merkmale WGebäude'!$Z7*SQRT(BD7))))) -> 0 | BG7: =IF(AZ7=0,0,AZ7-('Schadensrel. Merkmale WGebäude'!$P7+IF(('Schadensrel. Merkmale WGebäude'!$L7+'Schadensrel. Merkmale WGebäude'!$M7)=0,Berechnungsgrundlagen!$B$20+Berechnungsgrundlagen!$B$21,'Schadensrel. Merkmale WGebäude'!$L7+'Schadensrel. Merkmale WGebäude'!$M7))) -> 0 | BI7: =IF(BH7>0,'Schadensrel. Merkmale WGebäude'!$AB7+(1000*'Schadensrel. Merkmale WGebäude'!$AD7*SQRT(BH7)),IF(AZ7<=('Schadensrel. Merkmale WGebäude'!$P7+IF(('Schadensrel. Merkmale WGebäude'!$L7+'Schadensrel. Merkmale WGebäude'!$M7)=0,Berechnungsgrundlagen!$B$20+Berechnungsgrundlagen!$B$21,'Schadensrel. Merkmale WGebäude'!$L7+'Schadensrel. Merkmale WGebäude'!$M7)),0,('Schadensrel. Merkmale WGebäude'!$AB7+(1000*'Schadensrel. Merkmale WGebäude'!$AD7*SQRT(BG7))))) -> 0 | BJ7: =IF(AZ7=0,0,'Schadensrel. Merkmale WGebäude'!$AE7) -> 0 | BL7: =SUM((BC7+BF7+BI7+BJ7)*(IF(AY7=0,1,AY7)*(IF($AY$5>50,1,IF(BK7=0,1,1-BK7))))) -> 0 | BM7: =MAX(BL7,BN7) -> 0 | BQ7: =IF(BP7=0,0,IF(('Schadensrel. Merkmale WGebäude'!$J7+'Schadensrel. Merkmale WGebäude'!$K7)=0,(IF((Berechnungsgrundlagen!$B$18+Berechnungsgrundlagen!$B$19-'Schadensrel. Merkmale WGebäude'!$P7+BP7)>(Berechnungsgrundlagen!$B$18+Berechnungsgrundlagen!$B$19),(Berechnungsgrundlagen!$B$18+Berechnungsgrundlagen!$B$19),(Berechnungsgrundlagen!$B$18+Berechnungsgrundlagen!$B$19-'Schadensrel. Merkmale WGebäude'!$P7+BP7))),(IF(('Schadensrel. Merkmale WGebäude'!$J7+'Schadensrel. Merkmale WGebäude'!$K7-'Schadensrel. Merkmale WGebäude'!$P7+BP7)>('Schadensrel. Merkmale WGebäude'!$J7+'Schadensrel. Merkmale WGebäude'!$K7),('Schadensrel. Merkmale WGebäude'!$J7+'Schadensrel. Merkmale WGebäude'!$K7),('Schadensrel. Merkmale WGebäude'!$J7+'Schadensrel. Merkmale WGebäude'!$K7-'Schadensrel. Merkmale WGebäude'!$P7+BP7))))) -> 0 | BS7: =IF('Schadensrel. Merkmale WGebäude'!$I7=Berechnungsgrundlagen!$D$17,IF(BR7>0,'Schadensrel. Merkmale WGebäude'!$T7+(1000*'Schadensrel. Merkmale WGebäude'!$V7*SQRT(BR7)),IF(BQ7=0,0,IF('Schadensrel. Merkmale WGebäude'!$Q7=Berechnungsgrundlagen!$D$18,'Schadensrel. Merkmale WGebäude'!$T7+(1000*'Schadensrel. Merkmale WGebäude'!$V7*SQRT(BQ7)),IF(BP7<='Schadensrel. Merkmale WGebäude'!$P7,0,'Schadensrel. Merkmale WGebäude'!$T7+(1000*'Schadensrel. Merkmale WGebäude'!$V7*SQRT(BQ7)))))),0) -> 0 | BT7: =IF(BP7=0,0,IF((BP7-'Schadensrel. Merkmale WGebäude'!$P7)<=0,0,IF(((BP7-'Schadensrel. Merkmale WGebäude'!$P7))>(IF(('Schadensrel. Merkmale WGebäude'!$L7+'Schadensrel. Merkmale WGebäude'!$M7)=0,(Berechnungsgrundlagen!$B$20+Berechnungsgrundlagen!$B$21),('Schadensrel. Merkmale WGebäude'!$L7+'Schadensrel. Merkmale WGebäude'!$M7))),IF(('Schadensrel. Merkmale WGebäude'!$L7+'Schadensrel. Merkmale WGebäude'!$M7)=0,(Berechnungsgrundlagen!$B$20+Berechnungsgrundlagen!$B$21),('Schadensrel. Merkmale WGebäude'!$L7+'Schadensrel. Merkmale WGebäude'!$M7)),((BP7-'Schadensrel. Merkmale WGebäude'!$P7))))) -> 0 | BV7: =IF(BU7>0,'Schadensrel. Merkmale WGebäude'!$X7+(1000*'Schadensrel. Merkmale WGebäude'!$Z7*SQRT(BU7)),IF(BT7=0,0,IF(BP7<='Schadensrel. Merkmale WGebäude'!$P7,0,'Schadensrel. Merkmale WGebäude'!$X7+(1000*'Schadensrel. Merkmale WGebäude'!$Z7*SQRT(BT7))))) -> 0 | BW7: =IF(BP7=0,0,BP7-('Schadensrel. Merkmale WGebäude'!$P7+IF(('Schadensrel. Merkmale WGebäude'!$L7+'Schadensrel. Merkmale WGebäude'!$M7)=0,Berechnungsgrundlagen!$B$20+Berechnungsgrundlagen!$B$21,'Schadensrel. Merkmale WGebäude'!$L7+'Schadensrel. Merkmale WGebäude'!$M7))) -> 0 | BY7: =IF(BX7>0,'Schadensrel. Merkmale WGebäude'!$AB7+(1000*'Schadensrel. Merkmale WGebäude'!$AD7*SQRT(BX7)),IF(BP7<=('Schadensrel. Merkmale WGebäude'!$P7+IF(('Schadensrel. Merkmale WGebäude'!$L7+'Schadensrel. Merkmale WGebäude'!$M7)=0,Berechnungsgrundlagen!$B$20+Berechnungsgrundlagen!$B$21,'Schadensrel. Merkmale WGebäude'!$L7+'Schadensrel. Merkmale WGebäude'!$M7)),0,('Schadensrel. Merkmale WGebäude'!$AB7+(1000*'Schadensrel. Merkmale WGebäude'!$AD7*SQRT(BW7))))) -> 0 | BZ7: =IF(BP7=0,0,'Schadensrel. Merkmale WGebäude'!$AE7) -> 0 | CB7: =SUM((BS7+BV7+BY7+BZ7)*(IF(BO7=0,1,BO7)*(IF($BO$5>50,1,IF(CA7=0,1,1-CA7))))) -> 0 | CC7: =MAX(CB7,CD7) -> 0 | CG7: =IF(CF7=0,0,IF(('Schadensrel. Merkmale WGebäude'!$J7+'Schadensrel. Merkmale WGebäude'!$K7)=0,(IF((Berechnungsgrundlagen!$B$18+Berechnungsgrundlagen!$B$19-'Schadensrel. Merkmale WGebäude'!$P7+CF7)>(Berechnungsgrundlagen!$B$18+Berechnungsgrundlagen!$B$19),(Berechnungsgrundlagen!$B$18+Berechnungsgrundlagen!$B$19),(Berechnungsgrundlagen!$B$18+Berechnungsgrundlagen!$B$19-'Schadensrel. Merkmale WGebäude'!$P7+CF7))),(IF(('Schadensrel. Merkmale WGebäude'!$J7+'Schadensrel. Merkmale WGebäude'!$K7-'Schadensrel. Merkmale WGebäude'!$P7+CF7)>('Schadensrel. Merkmale WGebäude'!$J7+'Schadensrel. Merkmale WGebäude'!$K7),('Schadensrel. Merkmale WGebäude'!$J7+'Schadensrel. Merkmale WGebäude'!$K7),('Schadensrel. Merkmale WGebäude'!$J7+'Schadensrel. Merkmale WGebäude'!$K7-'Schadensrel. Merkmale WGebäude'!$P7+CF7))))) -> 0 | CI7: =IF('Schadensrel. Merkmale WGebäude'!$I7=Berechnungsgrundlagen!$D$17,IF(CH7>0,'Schadensrel. Merkmale WGebäude'!$T7+(1000*'Schadensrel. Merkmale WGebäude'!$V7*SQRT(CH7)),IF(CG7=0,0,IF('Schadensrel. Merkmale WGebäude'!$Q7=Berechnungsgrundlagen!$D$18,'Schadensrel. Merkmale WGebäude'!$T7+(1000*'Schadensrel. Merkmale WGebäude'!$V7*SQRT(CG7)),IF(CF7<='Schadensrel. Merkmale WGebäude'!$P7,0,'Schadensrel. Merkmale WGebäude'!$T7+(1000*'Schadensrel. Merkmale WGebäude'!$V7*SQRT(CG7)))))),0) -> 0 | CJ7: =IF(CF7=0,0,IF((CF7-'Schadensrel. Merkmale WGebäude'!$P7)<=0,0,IF(((CF7-'Schadensrel. Merkmale WGebäude'!$P7))>(IF(('Schadensrel. Merkmale WGebäude'!$L7+'Schadensrel. Merkmale WGebäude'!$M7)=0,(Berechnungsgrundlagen!$B$20+Berechnungsgrundlagen!$B$21),('Schadensrel. Merkmale WGebäude'!$L7+'Schadensrel. Merkmale WGebäude'!$M7))),IF(('Schadensrel. Merkmale WGebäude'!$L7+'Schadensrel. Merkmale WGebäude'!$M7)=0,(Berechnungsgrundlagen!$B$20+Berechnungsgrundlagen!$B$21),('Schadensrel. Merkmale WGebäude'!$L7+'Schadensrel. Merkmale WGebäude'!$M7)),((CF7-'Schadensrel. Merkmale WGebäude'!$P7))))) -> 0 | CL7: =IF(CK7>0,'Schadensrel. Merkmale WGebäude'!$X7+(1000*'Schadensrel. Merkmale WGebäude'!$Z7*SQRT(CK7)),IF(CJ7=0,0,IF(CF7<='Schadensrel. Merkmale WGebäude'!$P7,0,'Schadensrel. Merkmale WGebäude'!$X7+(1000*'Schadensrel. Merkmale WGebäude'!$Z7*SQRT(CJ7))))) -> 0 | CM7: =IF(CF7=0,0,CF7-('Schadensrel. Merkmale WGebäude'!$P7+IF(('Schadensrel. Merkmale WGebäude'!$L7+'Schadensrel. Merkmale WGebäude'!$M7)=0,Berechnungsgrundlagen!$B$20+Berechnungsgrundlagen!$B$21,'Schadensrel. Merkmale WGebäude'!$L7+'Schadensrel. Merkmale WGebäude'!$M7))) -> 0 | CO7: =IF(CN7>0,'Schadensrel. Merkmale WGebäude'!$AB7+(1000*'Schadensrel. Merkmale WGebäude'!$AD7*SQRT(CN7)),IF(CF7<=('Schadensrel. Merkmale WGebäude'!$P7+IF(('Schadensrel. Merkmale WGebäude'!$L7+'Schadensrel. Merkmale WGebäude'!$M7)=0,Berechnungsgrundlagen!$B$20+Berechnungsgrundlagen!$B$21,'Schadensrel. Merkmale WGebäude'!$L7+'Schadensrel. Merkmale WGebäude'!$M7)),0,('Schadensrel. Merkmale WGebäude'!$AB7+(1000*'Schadensrel. Merkmale WGebäude'!$AD7*SQRT(CM7))))) -> 0 | CP7: =IF(CF7=0,0,'Schadensrel. Merkmale WGebäude'!$AE7) -> 0 | CR7: =SUM((CI7+CL7+CO7+CP7)*(IF(CE7=0,1,CE7)*(IF($CE$5>50,1,IF(CQ7=0,1,1-CQ7))))) -> 0 | CS7: =MAX(CR7,CT7) -> 0 | CW7: =IF(CV7=0,0,IF(('Schadensrel. Merkmale WGebäude'!$J7+'Schadensrel. Merkmale WGebäude'!$K7)=0,(IF((Berechnungsgrundlagen!$B$18+Berechnungsgrundlagen!$B$19-'Schadensrel. Merkmale WGebäude'!$P7+CV7)>(Berechnungsgrundlagen!$B$18+Berechnungsgrundlagen!$B$19),(Berechnungsgrundlagen!$B$18+Berechnungsgrundlagen!$B$19),(Berechnungsgrundlagen!$B$18+Berechnungsgrundlagen!$B$19-'Schadensrel. Merkmale WGebäude'!$P7+CV7))),(IF(('Schadensrel. Merkmale WGebäude'!$J7+'Schadensrel. Merkmale WGebäude'!$K7-'Schadensrel. Merkmale WGebäude'!$P7+CV7)>('Schadensrel. Merkmale WGebäude'!$J7+'Schadensrel. Merkmale WGebäude'!$K7),('Schadensrel. Merkmale WGebäude'!$J7+'Schadensrel. Merkmale WGebäude'!$K7),('Schadensrel. Merkmale WGebäude'!$J7+'Schadensrel. Merkmale WGebäude'!$K7-'Schadensrel. Merkmale WGebäude'!$P7+CV7))))) -> 0 | CY7: =IF('Schadensrel. Merkmale WGebäude'!$I7=Berechnungsgrundlagen!$D$17,IF(CX7>0,'Schadensrel. Merkmale WGebäude'!$T7+(1000*'Schadensrel. Merkmale WGebäude'!$V7*SQRT(CX7)),IF(CW7=0,0,IF('Schadensrel. Merkmale WGebäude'!$Q7=Berechnungsgrundlagen!$D$18,'Schadensrel. Merkmale WGebäude'!$T7+(1000*'Schadensrel. Merkmale WGebäude'!$V7*SQRT(CW7)),IF(CV7<='Schadensrel. Merkmale WGebäude'!$P7,0,'Schadensrel. Merkmale WGebäude'!$T7+(1000*'Schadensrel. Merkmale WGebäude'!$V7*SQRT(CW7)))))),0) -> 0 | CZ7: =IF(CV7=0,0,IF((CV7-'Schadensrel. Merkmale WGebäude'!$P7)<=0,0,IF(((CV7-'Schadensrel. Merkmale WGebäude'!$P7))>(IF(('Schadensrel. Merkmale WGebäude'!$L7+'Schadensrel. Merkmale WGebäude'!$M7)=0,(Berechnungsgrundlagen!$B$20+Berechnungsgrundlagen!$B$21),('Schadensrel. Merkmale WGebäude'!$L7+'Schadensrel. Merkmale WGebäude'!$M7))),IF(('Schadensrel. Merkmale WGebäude'!$L7+'Schadensrel. Merkmale WGebäude'!$M7)=0,(Berechnungsgrundlagen!$B$20+Berechnungsgrundlagen!$B$21),('Schadensrel. Merkmale WGebäude'!$L7+'Schadensrel. Merkmale WGebäude'!$M7)),((CV7-'Schadensrel. Merkmale WGebäude'!$P7))))) -> 0 | DB7: =IF(DA7>0,'Schadensrel. Merkmale WGebäude'!$X7+(1000*'Schadensrel. Merkmale WGebäude'!$Z7*SQRT(DA7)),IF(CZ7=0,0,IF(CV7<='Schadensrel. Merkmale WGebäude'!$P7,0,'Schadensrel. Merkmale WGebäude'!$X7+(1000*'Schadensrel. Merkmale WGebäude'!$Z7*SQRT(CZ7))))) -> 0 | DC7: =IF(CV7=0,0,CV7-('Schadensrel. Merkmale WGebäude'!$P7+IF(('Schadensrel. Merkmale WGebäude'!$L7+'Schadensrel. Merkmale WGebäude'!$M7)=0,Berechnungsgrundlagen!$B$20+Berechnungsgrundlagen!$B$21,'Schadensrel. Merkmale WGebäude'!$L7+'Schadensrel. Merkmale WGebäude'!$M7))) -> 0 | DE7: =IF(DD7>0,'Schadensrel. Merkmale WGebäude'!$AB7+(1000*'Schadensrel. Merkmale WGebäude'!$AD7*SQRT(DD7)),IF(CV7<=('Schadensrel. Merkmale WGebäude'!$P7+IF(('Schadensrel. Merkmale WGebäude'!$L7+'Schadensrel. Merkmale WGebäude'!$M7)=0,Berechnungsgrundlagen!$B$20+Berechnungsgrundlagen!$B$21,'Schadensrel. Merkmale WGebäude'!$L7+'Schadensrel. Merkmale WGebäude'!$M7)),0,('Schadensrel. Merkmale WGebäude'!$AB7+(1000*'Schadensrel. Merkmale WGebäude'!$AD7*SQRT(DC7))))) -> 0 | DF7: =IF(CV7=0,0,'Schadensrel. Merkmale WGebäude'!$AE7) -> 0 | DH7: =SUM((CY7+DB7+DE7+DF7)*(IF(CU7=0,1,CU7)*(IF($CU$5>50,1,IF(DG7=0,1,1-DG7))))) -> 0 | DI7: =MAX(DH7,DJ7) -> 0
A8: =IF('Schadensrel. Merkmale WGebäude'!A8="","",'Schadensrel. Merkmale WGebäude'!A8) ->  | B8: =IF('Schadensrel. Merkmale WGebäude'!B8="","",'Schadensrel. Merkmale WGebäude'!B8) -> Sonst. | E8: =IF(D8=0,0,IF(('Schadensrel. Merkmale WGebäude'!$J8+'Schadensrel. Merkmale WGebäude'!$K8)=0,(IF((Berechnungsgrundlagen!$B$18+Berechnungsgrundlagen!$B$19-'Schadensrel. Merkmale WGebäude'!$P8+D8)>(Berechnungsgrundlagen!$B$18+Berechnungsgrundlagen!$B$19),(Berechnungsgrundlagen!$B$18+Berechnungsgrundlagen!$B$19),(Berechnungsgrundlagen!$B$18+Berechnungsgrundlagen!$B$19-'Schadensrel. Merkmale WGebäude'!$P8+D8))),(IF(('Schadensrel. Merkmale WGebäude'!$J8+'Schadensrel. Merkmale WGebäude'!$K8-'Schadensrel. Merkmale WGebäude'!$P8+D8)>('Schadensrel. Merkmale WGebäude'!$J8+'Schadensrel. Merkmale WGebäude'!$K8),('Schadensrel. Merkmale WGebäude'!$J8+'Schadensrel. Merkmale WGebäude'!$K8),('Schadensrel. Merkmale WGebäude'!$J8+'Schadensrel. Merkmale WGebäude'!$K8-'Schadensrel. Merkmale WGebäude'!$P8+D8))))) -> 0 | G8: =IF('Schadensrel. Merkmale WGebäude'!$I8=Berechnungsgrundlagen!$D$17, IF(F8>0,'Schadensrel. Merkmale WGebäude'!$T8+(1000*'Schadensrel. Merkmale WGebäude'!$V8*SQRT(F8)),IF(E8=0,0,IF('Schadensrel. Merkmale WGebäude'!$Q8=Berechnungsgrundlagen!$D$18,'Schadensrel. Merkmale WGebäude'!$T8+(1000*'Schadensrel. Merkmale WGebäude'!$V8*SQRT(E8)),IF(D8<='Schadensrel. Merkmale WGebäude'!$P8,0,'Schadensrel. Merkmale WGebäude'!$T8+(1000*'Schadensrel. Merkmale WGebäude'!$V8*SQRT(E8)))))),0) -> 0 | H8: =IF(D8=0,0,IF((D8-'Schadensrel. Merkmale WGebäude'!$P8)<=0,0,IF(((D8-'Schadensrel. Merkmale WGebäude'!$P8))>(IF(('Schadensrel. Merkmale WGebäude'!$L8+'Schadensrel. Merkmale WGebäude'!$M8)=0,(Berechnungsgrundlagen!$B$20+Berechnungsgrundlagen!$B$21),('Schadensrel. Merkmale WGebäude'!$L8+'Schadensrel. Merkmale WGebäude'!$M8))),IF(('Schadensrel. Merkmale WGebäude'!$L8+'Schadensrel. Merkmale WGebäude'!$M8)=0,(Berechnungsgrundlagen!$B$20+Berechnungsgrundlagen!$B$21),('Schadensrel. Merkmale WGebäude'!$L8+'Schadensrel. Merkmale WGebäude'!$M8)),((D8-'Schadensrel. Merkmale WGebäude'!$P8))))) -> 0 | J8: =IF(I8>0,'Schadensrel. Merkmale WGebäude'!$X8+(1000*'Schadensrel. Merkmale WGebäude'!$Z8*SQRT(I8)),IF(H8=0,0,IF(D8<='Schadensrel. Merkmale WGebäude'!$P8,0,'Schadensrel. Merkmale WGebäude'!$X8+(1000*'Schadensrel. Merkmale WGebäude'!$Z8*SQRT(H8))))) -> 0 | K8: =IF(D8=0,0,D8-('Schadensrel. Merkmale WGebäude'!$P8+IF(('Schadensrel. Merkmale WGebäude'!$L8+'Schadensrel. Merkmale WGebäude'!$M8)=0,Berechnungsgrundlagen!$B$20+Berechnungsgrundlagen!$B$21,'Schadensrel. Merkmale WGebäude'!$L8+'Schadensrel. Merkmale WGebäude'!$M8))) -> 0 | M8: =IF(L8>0,'Schadensrel. Merkmale WGebäude'!$AB8+(1000*'Schadensrel. Merkmale WGebäude'!$AD8*SQRT(L8)),IF(D8<=('Schadensrel. Merkmale WGebäude'!$P8+IF(('Schadensrel. Merkmale WGebäude'!$L8+'Schadensrel. Merkmale WGebäude'!$M8)=0,Berechnungsgrundlagen!$B$20+Berechnungsgrundlagen!$B$21,'Schadensrel. Merkmale WGebäude'!$L8+'Schadensrel. Merkmale WGebäude'!$M8)),0,('Schadensrel. Merkmale WGebäude'!$AB8+(1000*'Schadensrel. Merkmale WGebäude'!$AD8*SQRT(K8))))) -> 0 | N8: =IF(D8=0,0,'Schadensrel. Merkmale WGebäude'!$AE8) -> 0 | P8: =SUM((G8+J8+M8+N8)*(IF(C8=0,1,C8)*(IF($C$5>50,1,IF(O8=0,1,1-O8))))) -> 0 | Q8: =MAX(P8,R8) -> 0 | U8: =IF(T8=0,0,IF(('Schadensrel. Merkmale WGebäude'!$J8+'Schadensrel. Merkmale WGebäude'!$K8)=0,(IF((Berechnungsgrundlagen!$B$18+Berechnungsgrundlagen!$B$19-'Schadensrel. Merkmale WGebäude'!$P8+T8)>(Berechnungsgrundlagen!$B$18+Berechnungsgrundlagen!$B$19),(Berechnungsgrundlagen!$B$18+Berechnungsgrundlagen!$B$19),(Berechnungsgrundlagen!$B$18+Berechnungsgrundlagen!$B$19-'Schadensrel. Merkmale WGebäude'!$P8+T8))),(IF(('Schadensrel. Merkmale WGebäude'!$J8+'Schadensrel. Merkmale WGebäude'!$K8-'Schadensrel. Merkmale WGebäude'!$P8+T8)>('Schadensrel. Merkmale WGebäude'!$J8+'Schadensrel. Merkmale WGebäude'!$K8),('Schadensrel. Merkmale WGebäude'!$J8+'Schadensrel. Merkmale WGebäude'!$K8),('Schadensrel. Merkmale WGebäude'!$J8+'Schadensrel. Merkmale WGebäude'!$K8-'Schadensrel. Merkmale WGebäude'!$P8+T8))))) -> 0 | W8: =IF('Schadensrel. Merkmale WGebäude'!$I8=Berechnungsgrundlagen!$D$17, IF(V8>0,'Schadensrel. Merkmale WGebäude'!$T8+(1000*'Schadensrel. Merkmale WGebäude'!$V8*SQRT(V8)),IF(U8=0,0,IF('Schadensrel. Merkmale WGebäude'!$Q8=Berechnungsgrundlagen!$D$18,'Schadensrel. Merkmale WGebäude'!$T8+(1000*'Schadensrel. Merkmale WGebäude'!$V8*SQRT(U8)),IF(T8<='Schadensrel. Merkmale WGebäude'!$P8,0,'Schadensrel. Merkmale WGebäude'!$T8+(1000*'Schadensrel. Merkmale WGebäude'!$V8*SQRT(U8)))))),0) -> 0 | X8: =IF(T8=0,0,IF((T8-'Schadensrel. Merkmale WGebäude'!$P8)<=0,0,IF(((T8-'Schadensrel. Merkmale WGebäude'!$P8))>(IF(('Schadensrel. Merkmale WGebäude'!$L8+'Schadensrel. Merkmale WGebäude'!$M8)=0,(Berechnungsgrundlagen!$B$20+Berechnungsgrundlagen!$B$21),('Schadensrel. Merkmale WGebäude'!$L8+'Schadensrel. Merkmale WGebäude'!$M8))),IF(('Schadensrel. Merkmale WGebäude'!$L8+'Schadensrel. Merkmale WGebäude'!$M8)=0,(Berechnungsgrundlagen!$B$20+Berechnungsgrundlagen!$B$21),('Schadensrel. Merkmale WGebäude'!$L8+'Schadensrel. Merkmale WGebäude'!$M8)),((T8-'Schadensrel. Merkmale WGebäude'!$P8))))) -> 0 | Z8: =IF(Y8>0,'Schadensrel. Merkmale WGebäude'!$X8+(1000*'Schadensrel. Merkmale WGebäude'!$Z8*SQRT(Y8)),IF(X8=0,0,IF(T8<='Schadensrel. Merkmale WGebäude'!$P8,0,'Schadensrel. Merkmale WGebäude'!$X8+(1000*'Schadensrel. Merkmale WGebäude'!$Z8*SQRT(X8))))) -> 0 | AA8: =IF(T8=0,0,T8-('Schadensrel. Merkmale WGebäude'!$P8+IF(('Schadensrel. Merkmale WGebäude'!$L8+'Schadensrel. Merkmale WGebäude'!$M8)=0,Berechnungsgrundlagen!$B$20+Berechnungsgrundlagen!$B$21,'Schadensrel. Merkmale WGebäude'!$L8+'Schadensrel. Merkmale WGebäude'!$M8))) -> 0 | AC8: =IF(AB8>0,'Schadensrel. Merkmale WGebäude'!$AB8+(1000*'Schadensrel. Merkmale WGebäude'!$AD8*SQRT(AB8)),IF(T8<=('Schadensrel. Merkmale WGebäude'!$P8+IF(('Schadensrel. Merkmale WGebäude'!$L8+'Schadensrel. Merkmale WGebäude'!$M8)=0,Berechnungsgrundlagen!$B$20+Berechnungsgrundlagen!$B$21,'Schadensrel. Merkmale WGebäude'!$L8+'Schadensrel. Merkmale WGebäude'!$M8)),0,('Schadensrel. Merkmale WGebäude'!$AB8+(1000*'Schadensrel. Merkmale WGebäude'!$AD8*SQRT(AA8))))) -> 0 | AD8: =IF(T8=0,0,'Schadensrel. Merkmale WGebäude'!$AE8) -> 0 | AF8: =SUM((W8+Z8+AC8+AD8)*(IF(S8=0,1,S8)*(IF($S$5>50,1,IF(AE8=0,1,(1-AE8)))))) -> 0 | AG8: =MAX(AF8,AH8) -> 0 | AK8: =IF(AJ8=0,0,IF(('Schadensrel. Merkmale WGebäude'!$J8+'Schadensrel. Merkmale WGebäude'!$K8)=0,(IF((Berechnungsgrundlagen!$B$18+Berechnungsgrundlagen!$B$19-'Schadensrel. Merkmale WGebäude'!$P8+AJ8)>(Berechnungsgrundlagen!$B$18+Berechnungsgrundlagen!$B$19),(Berechnungsgrundlagen!$B$18+Berechnungsgrundlagen!$B$19),(Berechnungsgrundlagen!$B$18+Berechnungsgrundlagen!$B$19-'Schadensrel. Merkmale WGebäude'!$P8+AJ8))),(IF(('Schadensrel. Merkmale WGebäude'!$J8+'Schadensrel. Merkmale WGebäude'!$K8-'Schadensrel. Merkmale WGebäude'!$P8+AJ8)>('Schadensrel. Merkmale WGebäude'!$J8+'Schadensrel. Merkmale WGebäude'!$K8),('Schadensrel. Merkmale WGebäude'!$J8+'Schadensrel. Merkmale WGebäude'!$K8),('Schadensrel. Merkmale WGebäude'!$J8+'Schadensrel. Merkmale WGebäude'!$K8-'Schadensrel. Merkmale WGebäude'!$P8+AJ8))))) -> 0 | AM8: =IF('Schadensrel. Merkmale WGebäude'!$I8=Berechnungsgrundlagen!$D$17,IF(AL8>0,'Schadensrel. Merkmale WGebäude'!$T8+(1000*'Schadensrel. Merkmale WGebäude'!$V8*SQRT(AL8)),IF(AK8=0,0,IF('Schadensrel. Merkmale WGebäude'!$Q8=Berechnungsgrundlagen!$D$18,'Schadensrel. Merkmale WGebäude'!$T8+(1000*'Schadensrel. Merkmale WGebäude'!$V8*SQRT(AK8)),IF(AJ8<='Schadensrel. Merkmale WGebäude'!$P8,0,'Schadensrel. Merkmale WGebäude'!$T8+(1000*'Schadensrel. Merkmale WGebäude'!$V8*SQRT(AK8)))))),0) -> 0 | AN8: =IF(AJ8=0,0,IF((AJ8-'Schadensrel. Merkmale WGebäude'!$P8)<=0,0,IF(((AJ8-'Schadensrel. Merkmale WGebäude'!$P8))>(IF(('Schadensrel. Merkmale WGebäude'!$L8+'Schadensrel. Merkmale WGebäude'!$M8)=0,(Berechnungsgrundlagen!$B$20+Berechnungsgrundlagen!$B$21),('Schadensrel. Merkmale WGebäude'!$L8+'Schadensrel. Merkmale WGebäude'!$M8))),IF(('Schadensrel. Merkmale WGebäude'!$L8+'Schadensrel. Merkmale WGebäude'!$M8)=0,(Berechnungsgrundlagen!$B$20+Berechnungsgrundlagen!$B$21),('Schadensrel. Merkmale WGebäude'!$L8+'Schadensrel. Merkmale WGebäude'!$M8)),((AJ8-'Schadensrel. Merkmale WGebäude'!$P8))))) -> 0 | AP8: =IF(AO8>0,'Schadensrel. Merkmale WGebäude'!$X8+(1000*'Schadensrel. Merkmale WGebäude'!$Z8*SQRT(AO8)),IF(AN8=0,0,IF(AJ8<='Schadensrel. Merkmale WGebäude'!$P8,0,'Schadensrel. Merkmale WGebäude'!$X8+(1000*'Schadensrel. Merkmale WGebäude'!$Z8*SQRT(AN8))))) -> 0 | AQ8: =IF(AJ8=0,0,AJ8-('Schadensrel. Merkmale WGebäude'!$P8+IF(('Schadensrel. Merkmale WGebäude'!$L8+'Schadensrel. Merkmale WGebäude'!$M8)=0,Berechnungsgrundlagen!$B$20+Berechnungsgrundlagen!$B$21,'Schadensrel. Merkmale WGebäude'!$L8+'Schadensrel. Merkmale WGebäude'!$M8))) -> 0 | AS8: =IF(AR8>0,'Schadensrel. Merkmale WGebäude'!$AB8+(1000*'Schadensrel. Merkmale WGebäude'!$AD8*SQRT(AR8)),IF(AJ8<=('Schadensrel. Merkmale WGebäude'!$P8+IF(('Schadensrel. Merkmale WGebäude'!$L8+'Schadensrel. Merkmale WGebäude'!$M8)=0,Berechnungsgrundlagen!$B$20+Berechnungsgrundlagen!$B$21,'Schadensrel. Merkmale WGebäude'!$L8+'Schadensrel. Merkmale WGebäude'!$M8)),0,('Schadensrel. Merkmale WGebäude'!$AB8+(1000*'Schadensrel. Merkmale WGebäude'!$AD8*SQRT(AQ8))))) -> 0 | AT8: =IF(AJ8=0,0,'Schadensrel. Merkmale WGebäude'!$AE8) -> 0 | AV8: =SUM((AM8+AP8+AS8+AT8)*(IF(AI8=0,1,AI8)*(IF($AI$5>50,1,IF(AU8=0,1,1-AU8))))) -> 0 | AW8: =MAX(AV8,AX8) -> 0 | BA8: =IF(AZ8=0,0,IF(('Schadensrel. Merkmale WGebäude'!$J8+'Schadensrel. Merkmale WGebäude'!$K8)=0,(IF((Berechnungsgrundlagen!$B$18+Berechnungsgrundlagen!$B$19-'Schadensrel. Merkmale WGebäude'!$P8+AZ8)>(Berechnungsgrundlagen!$B$18+Berechnungsgrundlagen!$B$19),(Berechnungsgrundlagen!$B$18+Berechnungsgrundlagen!$B$19),(Berechnungsgrundlagen!$B$18+Berechnungsgrundlagen!$B$19-'Schadensrel. Merkmale WGebäude'!$P8+AZ8))),(IF(('Schadensrel. Merkmale WGebäude'!$J8+'Schadensrel. Merkmale WGebäude'!$K8-'Schadensrel. Merkmale WGebäude'!$P8+AZ8)>('Schadensrel. Merkmale WGebäude'!$J8+'Schadensrel. Merkmale WGebäude'!$K8),('Schadensrel. Merkmale WGebäude'!$J8+'Schadensrel. Merkmale WGebäude'!$K8),('Schadensrel. Merkmale WGebäude'!$J8+'Schadensrel. Merkmale WGebäude'!$K8-'Schadensrel. Merkmale WGebäude'!$P8+AZ8))))) -> 0 | BC8: =IF('Schadensrel. Merkmale WGebäude'!$I8=Berechnungsgrundlagen!$D$17,IF(BB8>0,'Schadensrel. Merkmale WGebäude'!$T8+(1000*'Schadensrel. Merkmale WGebäude'!$V8*SQRT(BB8)),IF(BA8=0,0,IF('Schadensrel. Merkmale WGebäude'!$Q8=Berechnungsgrundlagen!$D$18,'Schadensrel. Merkmale WGebäude'!$T8+(1000*'Schadensrel. Merkmale WGebäude'!$V8*SQRT(BA8)),IF(AZ8<='Schadensrel. Merkmale WGebäude'!$P8,0,'Schadensrel. Merkmale WGebäude'!$T8+(1000*'Schadensrel. Merkmale WGebäude'!$V8*SQRT(BA8)))))),0) -> 0 | BD8: =IF(AZ8=0,0,IF((AZ8-'Schadensrel. Merkmale WGebäude'!$P8)<=0,0,IF(((AZ8-'Schadensrel. Merkmale WGebäude'!$P8))>(IF(('Schadensrel. Merkmale WGebäude'!$L8+'Schadensrel. Merkmale WGebäude'!$M8)=0,(Berechnungsgrundlagen!$B$20+Berechnungsgrundlagen!$B$21),('Schadensrel. Merkmale WGebäude'!$L8+'Schadensrel. Merkmale WGebäude'!$M8))),IF(('Schadensrel. Merkmale WGebäude'!$L8+'Schadensrel. Merkmale WGebäude'!$M8)=0,(Berechnungsgrundlagen!$B$20+Berechnungsgrundlagen!$B$21),('Schadensrel. Merkmale WGebäude'!$L8+'Schadensrel. Merkmale WGebäude'!$M8)),((AZ8-'Schadensrel. Merkmale WGebäude'!$P8))))) -> 0 | BF8: =IF(BE8>0,'Schadensrel. Merkmale WGebäude'!$X8+(1000*'Schadensrel. Merkmale WGebäude'!$Z8*SQRT(BE8)),IF(BD8=0,0,IF(AZ8<='Schadensrel. Merkmale WGebäude'!$P8,0,'Schadensrel. Merkmale WGebäude'!$X8+(1000*'Schadensrel. Merkmale WGebäude'!$Z8*SQRT(BD8))))) -> 0 | BG8: =IF(AZ8=0,0,AZ8-('Schadensrel. Merkmale WGebäude'!$P8+IF(('Schadensrel. Merkmale WGebäude'!$L8+'Schadensrel. Merkmale WGebäude'!$M8)=0,Berechnungsgrundlagen!$B$20+Berechnungsgrundlagen!$B$21,'Schadensrel. Merkmale WGebäude'!$L8+'Schadensrel. Merkmale WGebäude'!$M8))) -> 0 | BI8: =IF(BH8>0,'Schadensrel. Merkmale WGebäude'!$AB8+(1000*'Schadensrel. Merkmale WGebäude'!$AD8*SQRT(BH8)),IF(AZ8<=('Schadensrel. Merkmale WGebäude'!$P8+IF(('Schadensrel. Merkmale WGebäude'!$L8+'Schadensrel. Merkmale WGebäude'!$M8)=0,Berechnungsgrundlagen!$B$20+Berechnungsgrundlagen!$B$21,'Schadensrel. Merkmale WGebäude'!$L8+'Schadensrel. Merkmale WGebäude'!$M8)),0,('Schadensrel. Merkmale WGebäude'!$AB8+(1000*'Schadensrel. Merkmale WGebäude'!$AD8*SQRT(BG8))))) -> 0 | BJ8: =IF(AZ8=0,0,'Schadensrel. Merkmale WGebäude'!$AE8) -> 0 | BL8: =SUM((BC8+BF8+BI8+BJ8)*(IF(AY8=0,1,AY8)*(IF($AY$5>50,1,IF(BK8=0,1,1-BK8))))) -> 0 | BM8: =MAX(BL8,BN8) -> 0 | BQ8: =IF(BP8=0,0,IF(('Schadensrel. Merkmale WGebäude'!$J8+'Schadensrel. Merkmale WGebäude'!$K8)=0,(IF((Berechnungsgrundlagen!$B$18+Berechnungsgrundlagen!$B$19-'Schadensrel. Merkmale WGebäude'!$P8+BP8)>(Berechnungsgrundlagen!$B$18+Berechnungsgrundlagen!$B$19),(Berechnungsgrundlagen!$B$18+Berechnungsgrundlagen!$B$19),(Berechnungsgrundlagen!$B$18+Berechnungsgrundlagen!$B$19-'Schadensrel. Merkmale WGebäude'!$P8+BP8))),(IF(('Schadensrel. Merkmale WGebäude'!$J8+'Schadensrel. Merkmale WGebäude'!$K8-'Schadensrel. Merkmale WGebäude'!$P8+BP8)>('Schadensrel. Merkmale WGebäude'!$J8+'Schadensrel. Merkmale WGebäude'!$K8),('Schadensrel. Merkmale WGebäude'!$J8+'Schadensrel. Merkmale WGebäude'!$K8),('Schadensrel. Merkmale WGebäude'!$J8+'Schadensrel. Merkmale WGebäude'!$K8-'Schadensrel. Merkmale WGebäude'!$P8+BP8))))) -> 0 | BS8: =IF('Schadensrel. Merkmale WGebäude'!$I8=Berechnungsgrundlagen!$D$17,IF(BR8>0,'Schadensrel. Merkmale WGebäude'!$T8+(1000*'Schadensrel. Merkmale WGebäude'!$V8*SQRT(BR8)),IF(BQ8=0,0,IF('Schadensrel. Merkmale WGebäude'!$Q8=Berechnungsgrundlagen!$D$18,'Schadensrel. Merkmale WGebäude'!$T8+(1000*'Schadensrel. Merkmale WGebäude'!$V8*SQRT(BQ8)),IF(BP8<='Schadensrel. Merkmale WGebäude'!$P8,0,'Schadensrel. Merkmale WGebäude'!$T8+(1000*'Schadensrel. Merkmale WGebäude'!$V8*SQRT(BQ8)))))),0) -> 0 | BT8: =IF(BP8=0,0,IF((BP8-'Schadensrel. Merkmale WGebäude'!$P8)<=0,0,IF(((BP8-'Schadensrel. Merkmale WGebäude'!$P8))>(IF(('Schadensrel. Merkmale WGebäude'!$L8+'Schadensrel. Merkmale WGebäude'!$M8)=0,(Berechnungsgrundlagen!$B$20+Berechnungsgrundlagen!$B$21),('Schadensrel. Merkmale WGebäude'!$L8+'Schadensrel. Merkmale WGebäude'!$M8))),IF(('Schadensrel. Merkmale WGebäude'!$L8+'Schadensrel. Merkmale WGebäude'!$M8)=0,(Berechnungsgrundlagen!$B$20+Berechnungsgrundlagen!$B$21),('Schadensrel. Merkmale WGebäude'!$L8+'Schadensrel. Merkmale WGebäude'!$M8)),((BP8-'Schadensrel. Merkmale WGebäude'!$P8))))) -> 0 | BV8: =IF(BU8>0,'Schadensrel. Merkmale WGebäude'!$X8+(1000*'Schadensrel. Merkmale WGebäude'!$Z8*SQRT(BU8)),IF(BT8=0,0,IF(BP8<='Schadensrel. Merkmale WGebäude'!$P8,0,'Schadensrel. Merkmale WGebäude'!$X8+(1000*'Schadensrel. Merkmale WGebäude'!$Z8*SQRT(BT8))))) -> 0 | BW8: =IF(BP8=0,0,BP8-('Schadensrel. Merkmale WGebäude'!$P8+IF(('Schadensrel. Merkmale WGebäude'!$L8+'Schadensrel. Merkmale WGebäude'!$M8)=0,Berechnungsgrundlagen!$B$20+Berechnungsgrundlagen!$B$21,'Schadensrel. Merkmale WGebäude'!$L8+'Schadensrel. Merkmale WGebäude'!$M8))) -> 0 | BY8: =IF(BX8>0,'Schadensrel. Merkmale WGebäude'!$AB8+(1000*'Schadensrel. Merkmale WGebäude'!$AD8*SQRT(BX8)),IF(BP8<=('Schadensrel. Merkmale WGebäude'!$P8+IF(('Schadensrel. Merkmale WGebäude'!$L8+'Schadensrel. Merkmale WGebäude'!$M8)=0,Berechnungsgrundlagen!$B$20+Berechnungsgrundlagen!$B$21,'Schadensrel. Merkmale WGebäude'!$L8+'Schadensrel. Merkmale WGebäude'!$M8)),0,('Schadensrel. Merkmale WGebäude'!$AB8+(1000*'Schadensrel. Merkmale WGebäude'!$AD8*SQRT(BW8))))) -> 0 | BZ8: =IF(BP8=0,0,'Schadensrel. Merkmale WGebäude'!$AE8) -> 0 | CB8: =SUM((BS8+BV8+BY8+BZ8)*(IF(BO8=0,1,BO8)*(IF($BO$5>50,1,IF(CA8=0,1,1-CA8))))) -> 0 | CC8: =MAX(CB8,CD8) -> 0 | CG8: =IF(CF8=0,0,IF(('Schadensrel. Merkmale WGebäude'!$J8+'Schadensrel. Merkmale WGebäude'!$K8)=0,(IF((Berechnungsgrundlagen!$B$18+Berechnungsgrundlagen!$B$19-'Schadensrel. Merkmale WGebäude'!$P8+CF8)>(Berechnungsgrundlagen!$B$18+Berechnungsgrundlagen!$B$19),(Berechnungsgrundlagen!$B$18+Berechnungsgrundlagen!$B$19),(Berechnungsgrundlagen!$B$18+Berechnungsgrundlagen!$B$19-'Schadensrel. Merkmale WGebäude'!$P8+CF8))),(IF(('Schadensrel. Merkmale WGebäude'!$J8+'Schadensrel. Merkmale WGebäude'!$K8-'Schadensrel. Merkmale WGebäude'!$P8+CF8)>('Schadensrel. Merkmale WGebäude'!$J8+'Schadensrel. Merkmale WGebäude'!$K8),('Schadensrel. Merkmale WGebäude'!$J8+'Schadensrel. Merkmale WGebäude'!$K8),('Schadensrel. Merkmale WGebäude'!$J8+'Schadensrel. Merkmale WGebäude'!$K8-'Schadensrel. Merkmale WGebäude'!$P8+CF8))))) -> 0 | CI8: =IF('Schadensrel. Merkmale WGebäude'!$I8=Berechnungsgrundlagen!$D$17,IF(CH8>0,'Schadensrel. Merkmale WGebäude'!$T8+(1000*'Schadensrel. Merkmale WGebäude'!$V8*SQRT(CH8)),IF(CG8=0,0,IF('Schadensrel. Merkmale WGebäude'!$Q8=Berechnungsgrundlagen!$D$18,'Schadensrel. Merkmale WGebäude'!$T8+(1000*'Schadensrel. Merkmale WGebäude'!$V8*SQRT(CG8)),IF(CF8<='Schadensrel. Merkmale WGebäude'!$P8,0,'Schadensrel. Merkmale WGebäude'!$T8+(1000*'Schadensrel. Merkmale WGebäude'!$V8*SQRT(CG8)))))),0) -> 0 | CJ8: =IF(CF8=0,0,IF((CF8-'Schadensrel. Merkmale WGebäude'!$P8)<=0,0,IF(((CF8-'Schadensrel. Merkmale WGebäude'!$P8))>(IF(('Schadensrel. Merkmale WGebäude'!$L8+'Schadensrel. Merkmale WGebäude'!$M8)=0,(Berechnungsgrundlagen!$B$20+Berechnungsgrundlagen!$B$21),('Schadensrel. Merkmale WGebäude'!$L8+'Schadensrel. Merkmale WGebäude'!$M8))),IF(('Schadensrel. Merkmale WGebäude'!$L8+'Schadensrel. Merkmale WGebäude'!$M8)=0,(Berechnungsgrundlagen!$B$20+Berechnungsgrundlagen!$B$21),('Schadensrel. Merkmale WGebäude'!$L8+'Schadensrel. Merkmale WGebäude'!$M8)),((CF8-'Schadensrel. Merkmale WGebäude'!$P8))))) -> 0 | CL8: =IF(CK8>0,'Schadensrel. Merkmale WGebäude'!$X8+(1000*'Schadensrel. Merkmale WGebäude'!$Z8*SQRT(CK8)),IF(CJ8=0,0,IF(CF8<='Schadensrel. Merkmale WGebäude'!$P8,0,'Schadensrel. Merkmale WGebäude'!$X8+(1000*'Schadensrel. Merkmale WGebäude'!$Z8*SQRT(CJ8))))) -> 0 | CM8: =IF(CF8=0,0,CF8-('Schadensrel. Merkmale WGebäude'!$P8+IF(('Schadensrel. Merkmale WGebäude'!$L8+'Schadensrel. Merkmale WGebäude'!$M8)=0,Berechnungsgrundlagen!$B$20+Berechnungsgrundlagen!$B$21,'Schadensrel. Merkmale WGebäude'!$L8+'Schadensrel. Merkmale WGebäude'!$M8))) -> 0 | CO8: =IF(CN8>0,'Schadensrel. Merkmale WGebäude'!$AB8+(1000*'Schadensrel. Merkmale WGebäude'!$AD8*SQRT(CN8)),IF(CF8<=('Schadensrel. Merkmale WGebäude'!$P8+IF(('Schadensrel. Merkmale WGebäude'!$L8+'Schadensrel. Merkmale WGebäude'!$M8)=0,Berechnungsgrundlagen!$B$20+Berechnungsgrundlagen!$B$21,'Schadensrel. Merkmale WGebäude'!$L8+'Schadensrel. Merkmale WGebäude'!$M8)),0,('Schadensrel. Merkmale WGebäude'!$AB8+(1000*'Schadensrel. Merkmale WGebäude'!$AD8*SQRT(CM8))))) -> 0 | CP8: =IF(CF8=0,0,'Schadensrel. Merkmale WGebäude'!$AE8) -> 0 | CR8: =SUM((CI8+CL8+CO8+CP8)*(IF(CE8=0,1,CE8)*(IF($CE$5>50,1,IF(CQ8=0,1,1-CQ8))))) -> 0 | CS8: =MAX(CR8,CT8) -> 0 | CW8: =IF(CV8=0,0,IF(('Schadensrel. Merkmale WGebäude'!$J8+'Schadensrel. Merkmale WGebäude'!$K8)=0,(IF((Berechnungsgrundlagen!$B$18+Berechnungsgrundlagen!$B$19-'Schadensrel. Merkmale WGebäude'!$P8+CV8)>(Berechnungsgrundlagen!$B$18+Berechnungsgrundlagen!$B$19),(Berechnungsgrundlagen!$B$18+Berechnungsgrundlagen!$B$19),(Berechnungsgrundlagen!$B$18+Berechnungsgrundlagen!$B$19-'Schadensrel. Merkmale WGebäude'!$P8+CV8))),(IF(('Schadensrel. Merkmale WGebäude'!$J8+'Schadensrel. Merkmale WGebäude'!$K8-'Schadensrel. Merkmale WGebäude'!$P8+CV8)>('Schadensrel. Merkmale WGebäude'!$J8+'Schadensrel. Merkmale WGebäude'!$K8),('Schadensrel. Merkmale WGebäude'!$J8+'Schadensrel. Merkmale WGebäude'!$K8),('Schadensrel. Merkmale WGebäude'!$J8+'Schadensrel. Merkmale WGebäude'!$K8-'Schadensrel. Merkmale WGebäude'!$P8+CV8))))) -> 0 | CY8: =IF('Schadensrel. Merkmale WGebäude'!$I8=Berechnungsgrundlagen!$D$17,IF(CX8>0,'Schadensrel. Merkmale WGebäude'!$T8+(1000*'Schadensrel. Merkmale WGebäude'!$V8*SQRT(CX8)),IF(CW8=0,0,IF('Schadensrel. Merkmale WGebäude'!$Q8=Berechnungsgrundlagen!$D$18,'Schadensrel. Merkmale WGebäude'!$T8+(1000*'Schadensrel. Merkmale WGebäude'!$V8*SQRT(CW8)),IF(CV8<='Schadensrel. Merkmale WGebäude'!$P8,0,'Schadensrel. Merkmale WGebäude'!$T8+(1000*'Schadensrel. Merkmale WGebäude'!$V8*SQRT(CW8)))))),0) -> 0 | CZ8: =IF(CV8=0,0,IF((CV8-'Schadensrel. Merkmale WGebäude'!$P8)<=0,0,IF(((CV8-'Schadensrel. Merkmale WGebäude'!$P8))>(IF(('Schadensrel. Merkmale WGebäude'!$L8+'Schadensrel. Merkmale WGebäude'!$M8)=0,(Berechnungsgrundlagen!$B$20+Berechnungsgrundlagen!$B$21),('Schadensrel. Merkmale WGebäude'!$L8+'Schadensrel. Merkmale WGebäude'!$M8))),IF(('Schadensrel. Merkmale WGebäude'!$L8+'Schadensrel. Merkmale WGebäude'!$M8)=0,(Berechnungsgrundlagen!$B$20+Berechnungsgrundlagen!$B$21),('Schadensrel. Merkmale WGebäude'!$L8+'Schadensrel. Merkmale WGebäude'!$M8)),((CV8-'Schadensrel. Merkmale WGebäude'!$P8))))) -> 0 | DB8: =IF(DA8>0,'Schadensrel. Merkmale WGebäude'!$X8+(1000*'Schadensrel. Merkmale WGebäude'!$Z8*SQRT(DA8)),IF(CZ8=0,0,IF(CV8<='Schadensrel. Merkmale WGebäude'!$P8,0,'Schadensrel. Merkmale WGebäude'!$X8+(1000*'Schadensrel. Merkmale WGebäude'!$Z8*SQRT(CZ8))))) -> 0 | DC8: =IF(CV8=0,0,CV8-('Schadensrel. Merkmale WGebäude'!$P8+IF(('Schadensrel. Merkmale WGebäude'!$L8+'Schadensrel. Merkmale WGebäude'!$M8)=0,Berechnungsgrundlagen!$B$20+Berechnungsgrundlagen!$B$21,'Schadensrel. Merkmale WGebäude'!$L8+'Schadensrel. Merkmale WGebäude'!$M8))) -> 0 | DE8: =IF(DD8>0,'Schadensrel. Merkmale WGebäude'!$AB8+(1000*'Schadensrel. Merkmale WGebäude'!$AD8*SQRT(DD8)),IF(CV8<=('Schadensrel. Merkmale WGebäude'!$P8+IF(('Schadensrel. Merkmale WGebäude'!$L8+'Schadensrel. Merkmale WGebäude'!$M8)=0,Berechnungsgrundlagen!$B$20+Berechnungsgrundlagen!$B$21,'Schadensrel. Merkmale WGebäude'!$L8+'Schadensrel. Merkmale WGebäude'!$M8)),0,('Schadensrel. Merkmale WGebäude'!$AB8+(1000*'Schadensrel. Merkmale WGebäude'!$AD8*SQRT(DC8))))) -> 0 | DF8: =IF(CV8=0,0,'Schadensrel. Merkmale WGebäude'!$AE8) -> 0 | DH8: =SUM((CY8+DB8+DE8+DF8)*(IF(CU8=0,1,CU8)*(IF($CU$5>50,1,IF(DG8=0,1,1-DG8))))) -> 0 | DI8: =MAX(DH8,DJ8) -> 0
A10: Summe Vermögensschäden
A11: Wohngebäude bei HQx | C11: =Projektgrunddaten!$C$24 -> 0 | S11: =Projektgrunddaten!$C$25 -> 0 | AI11: =Projektgrunddaten!$C$26 -> 0 | AY11: =Projektgrunddaten!$C$27 -> 0 | BO11: =Projektgrunddaten!$C$28 -> 0 | CE11: =Projektgrunddaten!$C$29 -> 100 | CU11: =Projektgrunddaten!$C$30 -> 0
C12: =SUM(Q7:Q8) -> 0 | S12: =SUM(AG7:AG8) -> 0 | AI12: =SUM(AW7:AW8) -> 0 | AY12: =SUM(BM7:BM8) -> 0 | BO12: =SUM(CC7:CC8) -> 0 | CE12: =SUM(CS7:CS8) -> 0 | CU12: =SUM(DI7:DI8) -> 0
A29: Anzahl der Wohngebäude | B29: Gebäudetyp
A30: Anzahl EFH | B30: EFH | C30: =SUMIFS($C$7:$C$8,$B$7:$B$8,$B30,$Q$7:$Q$8,">0") -> 0 | S30: =SUMIFS($S$7:$S$8,$B$7:$B$8,$B30,$AG$7:$AG$8,">0") -> 0 | AI30: =SUMIFS($AI$7:$AI$8,$B$7:$B$8,$B30,$AW$7:$AW$8,">0") -> 0 | AY30: =SUMIFS($AY$7:$AY$8,$B$7:$B$8,$B30,$BM$7:$BM$8,">0") -> 0 | BO30: =SUMIFS($BO$7:$BO$8,$B$7:$B$8,$B30,$CC$7:$CC$8,">0") -> 0 | CE30: =SUMIFS($CE$7:$CE$8,$B$7:$B$8,$B30,$CS$7:$CS$8,">0") -> 0 | CU30: =SUMIFS($CU$7:$CU$8,$B$7:$B$8,$B30,$DI$7:$DI$8,">0") -> 0
A31: Anzahl MFH | B31: MFH | C31: =SUMIFS($C$7:$C$8,$B$7:$B$8,$B31,$Q$7:$Q$8,">0") -> 0 | S31: =SUMIFS($S$7:$S$8,$B$7:$B$8,$B31,$AG$7:$AG$8,">0") -> 0 | AI31: =SUMIFS($AI$7:$AI$8,$B$7:$B$8,$B31,$AW$7:$AW$8,">0") -> 0 | AY31: =SUMIFS($AY$7:$AY$8,$B$7:$B$8,$B31,$BM$7:$BM$8,">0") -> 0 | BO31: =SUMIFS($BO$7:$BO$8,$B$7:$B$8,$B31,$CC$7:$CC$8,">0") -> 0 | CE31: =SUMIFS($CE$7:$CE$8,$B$7:$B$8,$B31,$CS$7:$CS$8,">0") -> 0 | CU31: =SUMIFS($CU$7:$CU$8,$B$7:$B$8,$B31,$DI$7:$DI$8,">0") -> 0
A32: Anzahl RH | B32: RH | C32: =SUMIFS($C$7:$C$8,$B$7:$B$8,$B32,$Q$7:$Q$8,">0") -> 0 | S32: =SUMIFS($S$7:$S$8,$B$7:$B$8,$B32,$AG$7:$AG$8,">0") -> 0 | AI32: =SUMIFS($AI$7:$AI$8,$B$7:$B$8,$B32,$AW$7:$AW$8,">0") -> 0 | AY32: =SUMIFS($AY$7:$AY$8,$B$7:$B$8,$B32,$BM$7:$BM$8,">0") -> 0 | BO32: =SUMIFS($BO$7:$BO$8,$B$7:$B$8,$B32,$CC$7:$CC$8,">0") -> 0 | CE32: =SUMIFS($CE$7:$CE$8,$B$7:$B$8,$B32,$CS$7:$CS$8,">0") -> 0 | CU32: =SUMIFS($CU$7:$CU$8,$B$7:$B$8,$B32,$DI$7:$DI$8,">0") -> 0
A33: Anzahl Sonst. | B33: Sonst. | C33: =SUMIFS($C$7:$C$8,$B$7:$B$8,$B33,$Q$7:$Q$8,">0") -> 0 | S33: =SUMIFS($S$7:$S$8,$B$7:$B$8,$B33,$AG$7:$AG$8,">0") -> 0 | AI33: =SUMIFS($AI$7:$AI$8,$B$7:$B$8,$B33,$AW$7:$AW$8,">0") -> 0 | AY33: =SUMIFS($AY$7:$AY$8,$B$7:$B$8,$B33,$BM$7:$BM$8,">0") -> 0 | BO33: =SUMIFS($BO$7:$BO$8,$B$7:$B$8,$B33,$CC$7:$CC$8,">0") -> 0 | CE33: =SUMIFS($CE$7:$CE$8,$B$7:$B$8,$B33,$CS$7:$CS$8,">0") -> 0 | CU33: =SUMIFS($CU$7:$CU$8,$B$7:$B$8,$B33,$DI$7:$DI$8,">0") -> 0
A34: Anzahl Objekte ges. | C34: =SUM(C30:C33) -> 0 | S34: =SUM(S30:S33) -> 0 | AI34: =SUM(AI30:AI33) -> 0 | AY34: =SUM(AY30:AY33) -> 0 | BO34: =SUM(BO30:BO33) -> 0 | CE34: =SUM(CE30:CE33) -> 0 | CU34: =SUM(CU30:CU33) -> 0
A36: Anzahl EFH mit Keller | B36: EFH | C36: =SUMIFS($C$7:$C$8,$B$7:$B$8,$B36,$G$7:$G$8,">0") -> 0 | S36: =SUMIFS($S$7:$S$8,$B$7:$B$8,$B36,$W$7:$W$8,">0") -> 0 | AI36: =SUMIFS($AI$7:$AI$8,$B$7:$B$8,$B36,$AM$7:$AM$8,">0") -> 0 | AY36: =SUMIFS($AY$7:$AY$8,$B$7:$B$8,$B36,$BC$7:$BC$8,">0") -> 0 | BO36: =SUMIFS($BO$7:$BO$8,$B$7:$B$8,$B36,$BS$7:$BS$8,">0") -> 0 | CE36: =SUMIFS($CE$7:$CE$8,$B$7:$B$8,$B36,$CI$7:$CI$8,">0") -> 0 | CU36: =SUMIFS($CU$7:$CU$8,$B$7:$B$8,$B36,$CY$7:$CY$8,">0") -> 0
A37: Anzahl MFH mit Keller | B37: MFH | C37: =SUMIFS($C$7:$C$8,$B$7:$B$8,$B37,$G$7:$G$8,">0") -> 0 | S37: =SUMIFS($S$7:$S$8,$B$7:$B$8,$B37,$W$7:$W$8,">0") -> 0 | AI37: =SUMIFS($AI$7:$AI$8,$B$7:$B$8,$B37,$AM$7:$AM$8,">0") -> 0 | AY37: =SUMIFS($AY$7:$AY$8,$B$7:$B$8,$B37,$BC$7:$BC$8,">0") -> 0 | BO37: =SUMIFS($BO$7:$BO$8,$B$7:$B$8,$B37,$BS$7:$BS$8,">0") -> 0 | CE37: =SUMIFS($CE$7:$CE$8,$B$7:$B$8,$B37,$CI$7:$CI$8,">0") -> 0 | CU37: =SUMIFS($CU$7:$CU$8,$B$7:$B$8,$B37,$CY$7:$CY$8,">0") -> 0
A39: Schaden bei Wohngebäude gesamt
A40: Schaden EFH ges. [€] | B40: EFH | C40: =SUMIF($B$7:$B$8,$B40,$Q$7:$Q$8) -> 0 | S40: =SUMIF($B$7:$B$8,$B40,$AG$7:$AG$8) -> 0 | AI40: =SUMIF($B$7:$B$8,$B40,$AW$7:$AW$8) -> 0 | AY40: =SUMIF($B$7:$B$8,$B40,$BM$7:$BM$8) -> 0 | BO40: =SUMIF($B$7:$B$8,$B40,$CC$7:$CC$8) -> 0 | CE40: =SUMIF($B$7:$B$8,$B40,$CS$7:$CS$8) -> 0 | CU40: =SUMIF($B$7:$B$8,$B40,$DI$7:$DI$8) -> 0
A41: Schaden MFH ges. [€] | B41: MFH | C41: =SUMIF($B$7:$B$8,$B41,$Q$7:$Q$8) -> 0 | S41: =SUMIF($B$7:$B$8,$B41,$AG$7:$AG$8) -> 0 | AI41: =SUMIF($B$7:$B$8,$B41,$AW$7:$AW$8) -> 0 | AY41: =SUMIF($B$7:$B$8,$B41,$BM$7:$BM$8) -> 0 | BO41: =SUMIF($B$7:$B$8,$B41,$CC$7:$CC$8) -> 0 | CE41: =SUMIF($B$7:$B$8,$B41,$CS$7:$CS$8) -> 0 | CU41: =SUMIF($B$7:$B$8,$B41,$DI$7:$DI$8) -> 0
A42: Schaden RH ges. [€] | B42: RH | C42: =SUMIF($B$7:$B$8,$B42,$Q$7:$Q$8) -> 0 | S42: =SUMIF($B$7:$B$8,$B42,$AG$7:$AG$8) -> 0 | AI42: =SUMIF($B$7:$B$8,$B42,$AW$7:$AW$8) -> 0 | AY42: =SUMIF($B$7:$B$8,$B42,$BM$7:$BM$8) -> 0 | BO42: =SUMIF($B$7:$B$8,$B42,$CC$7:$CC$8) -> 0 | CE42: =SUMIF($B$7:$B$8,$B42,$CS$7:$CS$8) -> 0 | CU42: =SUMIF($B$7:$B$8,$B42,$DI$7:$DI$8) -> 0
A43: Schaden Sonst. ges. [€] | B43: Sonst. | C43: =SUMIF($B$7:$B$8,$B43,$Q$7:$Q$8) -> 0 | S43: =SUMIF($B$7:$B$8,$B43,$AG$7:$AG$8) -> 0 | AI43: =SUMIF($B$7:$B$8,$B43,$AW$7:$AW$8) -> 0 | AY43: =SUMIF($B$7:$B$8,$B43,$BM$7:$BM$8) -> 0 | BO43: =SUMIF($B$7:$B$8,$B43,$CC$7:$CC$8) -> 0 | CE43: =SUMIF($B$7:$B$8,$B43,$CS$7:$CS$8) -> 0 | CU43: =SUMIF($B$7:$B$8,$B43,$DI$7:$DI$8) -> 0
A44: Schaden Objekte ges. [€] | C44: =SUM($Q$7:$Q$8) -> 0 | S44: =SUM($AG$7:$AG$8) -> 0 | AI44: =SUM($AW$7:$AW$8) -> 0 | AY44: =SUM($BM$7:$BM$8) -> 0 | BO44: =SUM($CC$7:$CC$8) -> 0 | CE44: =SUM($CS$7:$CS$8) -> 0 | CU44: =SUM($DI$7:$DI$8) -> 0
A46: Schaden Keller EFH ges. [€] | B46: EFH | C46: =SUMIF($B$7:$B$8,$B46,$G$7:$G$8) -> 0 | S46: =SUMIF($B$7:$B$8,$B46,$W$7:$W$8) -> 0 | AI46: =SUMIF($B$7:$B$8,$B46,$AM$7:$AM$8) -> 0 | AY46: =SUMIF($B$7:$B$8,$B46,$BC$7:$BC$8) -> 0 | BO46: =SUMIF($B$7:$B$8,$B46,$BS$7:$BS$8) -> 0 | CE46: =SUMIF($B$7:$B$8,$B46,$CI$7:$CI$8) -> 0 | CU46: =SUMIF($B$7:$B$8,$B46,$CY$7:$CY$8) -> 0
A47: Schaden Keller MFH ges. [€] | B47: MFH | C47: =SUMIF($B$7:$B$8,$B47,$G$7:$G$8) -> 0 | S47: =SUMIF($B$7:$B$8,$B47,$W$7:$W$8) -> 0 | AI47: =SUMIF($B$7:$B$8,$B47,$AM$7:$AM$8) -> 0 | AY47: =SUMIF($B$7:$B$8,$B47,$BC$7:$BC$8) -> 0 | BO47: =SUMIF($B$7:$B$8,$B47,$BS$7:$BS$8) -> 0 | CE47: =SUMIF($B$7:$B$8,$B47,$CI$7:$CI$8) -> 0 | CU47: =SUMIF($B$7:$B$8,$B47,$CY$7:$CY$8) -> 0
A48: Schaden Erdgeschoß EFH ges. [€] | B48: EFH | C48: =SUMIF($B$7:$B$8,$B48,$J$7:$J$8) -> 0 | S48: =SUMIF($B$7:$B$8,$B48,$Z$7:$Z$8) -> 0 | AI48: =SUMIF($B$7:$B$8,$B48,$AP$7:$AP$8) -> 0 | AY48: =SUMIF($B$7:$B$8,$B48,$BF$7:$BF$8) -> 0 | BO48: =SUMIF($B$7:$B$8,$B48,$BV$7:$BV$8) -> 0 | CE48: =SUMIF($B$7:$B$8,$B48,$CL$7:$CL$8) -> 0 | CU48: =SUMIF($B$7:$B$8,$B48,$DB$7:$DB$8) -> 0
A49: Schaden Erdgeschoß MFH ges. [€] | B49: MFH | C49: =SUMIF($B$7:$B$8,$B49,$J$7:$J$8) -> 0 | S49: =SUMIF($B$7:$B$8,$B49,$Z$7:$Z$8) -> 0 | AI49: =SUMIF($B$7:$B$8,$B49,$AP$7:$AP$8) -> 0 | AY49: =SUMIF($B$7:$B$8,$B49,$BF$7:$BF$8) -> 0 | BO49: =SUMIF($B$7:$B$8,$B49,$BV$7:$BV$8) -> 0 | CE49: =SUMIF($B$7:$B$8,$B49,$CL$7:$CL$8) -> 0 | CU49: =SUMIF($B$7:$B$8,$B49,$CY$7:$CY$8) -> 0
A51: Mittlerer Schaden bei Wohngebäuden
A52: Schaden je EFH [€] | B52: EFH | C52: =IF(C30=0,0,C40/C30) -> 0 | S52: =IF(S30=0,0,S40/S30) -> 0 | AI52: =IF(AI30=0,0,AI40/AI30) -> 0 | AY52: =IF(AY30=0,0,AY40/AY30) -> 0 | BO52: =IF(BO30=0,0,BO40/BO30) -> 0 | CE52: =IF(CE30=0,0,CE40/CE30) -> 0 | CU52: =IF(CU30=0,0,CU40/CU30) -> 0
A53: Schaden je MFH [€] | B53: MFH | C53: =IF(C31=0,0,C41/C31) -> 0 | S53: =IF(S31=0,0,S41/S31) -> 0 | AI53: =IF(AI31=0,0,AI41/AI31) -> 0 | AY53: =IF(AY31=0,0,AY41/AY31) -> 0 | BO53: =IF(BO31=0,0,BO41/BO31) -> 0 | CE53: =IF(CE31=0,0,CE41/CE31) -> 0 | CU53: =IF(CU31=0,0,CU41/CU31) -> 0
A54: Schaden je RH [€] | B54: RH | C54: =IF(C32=0,0,C42/C32) -> 0 | S54: =IF(S32=0,0,S42/S32) -> 0 | AI54: =IF(AI32=0,0,AI42/AI32) -> 0 | AY54: =IF(AY32=0,0,AY42/AY32) -> 0 | BO54: =IF(BO32=0,0,BO42/BO32) -> 0 | CE54: =IF(CE32=0,0,CE42/CE32) -> 0 | CU54: =IF(CU32=0,0,CU42/CU32) -> 0
A55: Schaden je Sonst. [€] | B55: Sonst. | C55: =IF(C33=0,0,C43/C33) -> 0 | S55: =IF(S33=0,0,S43/S33) -> 0 | AI55: =IF(AI33=0,0,AI43/AI33) -> 0 | AY55: =IF(AY33=0,0,AY43/AY33) -> 0 | BO55: =IF(BO33=0,0,BO43/BO33) -> 0 | CE55: =IF(CE33=0,0,CE43/CE33) -> 0 | CU55: =IF(CU33=0,0,CU43/CU33) -> 0
A56: Schaden je Objekt [€] | C56: =IF(C34=0,0,C44/C34) -> 0 | S56: =IF(S34=0,0,S44/S34) -> 0 | AI56: =IF(AI34=0,0,AI44/AI34) -> 0 | AY56: =IF(AY34=0,0,AY44/AY34) -> 0 | BO56: =IF(BO34=0,0,BO44/BO34) -> 0 | CE56: =IF(CE34=0,0,CE44/CE34) -> 0 | CU56: =IF(CU34=0,0,CU44/CU34) -> 0
A57: Mittl. Wassertiefe bei WG [m] | C57: =IF(ISERROR(AVERAGE($D$7:$D$8)),"",AVERAGE($D$7:$D$8)) ->  | S57: =IF(ISERROR(AVERAGE($T$7:$T$8)),"",AVERAGE($T$7:$T$8)) ->  | AI57: =IF(ISERROR(AVERAGE($AJ$7:$AJ$8)),"",AVERAGE($AJ$7:$AJ$8)) ->  | AY57: =IF(ISERROR(AVERAGE($AZ$7:$AZ$8)),"",AVERAGE($AZ$7:$AZ$8)) ->  | BO57: =IF(ISERROR(AVERAGE($BP$7:$BP$8)),"",AVERAGE($BP$7:$BP$8)) ->  | CE57: =IF(ISERROR(AVERAGE($CF$7:$CF$8)),"",AVERAGE($CF$7:$CF$8)) ->  | CU57: =IF(ISERROR(AVERAGE($CV$7:$CV$8)),"",AVERAGE($CV$7:$CV$8)) -> 
A59: Schaden je Keller EFH | B59: EFH | C59: =IF(C36=0,"",C46/C36) ->  | S59: =IF(S36=0,"",S46/S36) ->  | AI59: =IF(AI36=0,"",AI46/AI36) ->  | AY59: =IF(AY36=0,"",AY46/AY36) ->  | BO59: =IF(BO36=0,"",BO46/BO36) ->  | CE59: =IF(CE36=0,"",CE46/CE36) ->  | CU59: =IF(CU36=0,"",CU46/CU36) -> 
A60: Schaden je Keller MFH | B60: MFH | C60: =IF(C37=0,"",C47/C37) ->  | S60: =IF(S37=0,"",S47/S37) ->  | AI60: =IF(AI37=0,"",AI47/AI37) ->  | AY60: =IF(AY37=0,"",AY47/AY37) ->  | BO60: =IF(BO37=0,"",BO47/BO37) ->  | CE60: =IF(CE37=0,"",CE47/CE37) ->  | CU60: =IF(CU37=0,"",CU47/CU37) -> 
A61: Schaden je EG EFH | B61: EFH | C61: =IF(SUMIFS(C$7:C$8,$B$7:$B$8,$B61,J$7:J$8,">0")=0,"",C48/SUMIFS(C$7:C$8,$B$7:$B$8,$B61,J$7:J$8,">0")) ->  | S61: =IF(SUMIFS(S$7:S$8,$B$7:$B$8,$B61,Z$7:Z$8,">0")=0,"",S48/SUMIFS(S$7:S$8,$B$7:$B$8,$B61,Z$7:Z$8,">0")) ->  | AI61: =IF(SUMIFS(AI$7:AI$8,$B$7:$B$8,$B61,AP$7:AP$8,">0")=0,"",AI48/SUMIFS(AI$7:AI$8,$B$7:$B$8,$B61,AP$7:AP$8,">0")) ->  | AY61: =IF(SUMIFS(AY$7:AY$8,$B$7:$B$8,$B61,BF$7:BF$8,">0")=0,"",AY48/SUMIFS(AY$7:AY$8,$B$7:$B$8,$B61,BF$7:BF$8,">0")) ->  | BO61: =IF(SUMIFS(BO$7:BO$8,$B$7:$B$8,$B61,BV$7:BV$8,">0")=0,"",BO48/SUMIFS(BO$7:BO$8,$B$7:$B$8,$B61,BV$7:BV$8,">0")) ->  | CE61: =IF(SUMIFS(CE$7:CE$8,$B$7:$B$8,$B61,CL$7:CL$8,">0")=0,"",CE48/SUMIFS(CE$7:CE$8,$B$7:$B$8,$B61,CL$7:CL$8,">0")) ->  | CU61: =IF(SUMIFS(CU$7:CU$8,$B$7:$B$8,$B61,DB$7:DB$8,">0")=0,"",CU48/SUMIFS(CU$7:CU$8,$B$7:$B$8,$B61,DB$7:DB$8,">0")) -> 
A62: Schaden je EG MFH | B62: MFH | C62: =IF(SUMIFS(C$7:C$8,$B$7:$B$8,$B62,J$7:J$8,">0")=0,"",C49/SUMIFS(C$7:C$8,$B$7:$B$8,$B62,J$7:J$8,">0")) ->  | S62: =IF(SUMIFS(S$7:S$8,$B$7:$B$8,$B62,Z$7:Z$8,">0")=0,"",S49/SUMIFS(S$7:S$8,$B$7:$B$8,$B62,Z$7:Z$8,">0")) ->  | AI62: =IF(SUMIFS(AI$7:AI$8,$B$7:$B$8,$B62,AP$7:AP$8,">0")=0,"",AI49/SUMIFS(AI$7:AI$8,$B$7:$B$8,$B62,AP$7:AP$8,">0")) ->  | AY62: =IF(SUMIFS(AY$7:AY$8,$B$7:$B$8,$B62,BF$7:BF$8,">0")=0,"",AY49/SUMIFS(AY$7:AY$8,$B$7:$B$8,$B62,BF$7:BF$8,">0")) ->  | BO62: =IF(SUMIFS(BO$7:BO$8,$B$7:$B$8,$B62,BV$7:BV$8,">0")=0,"",BO49/SUMIFS(BO$7:BO$8,$B$7:$B$8,$B62,BV$7:BV$8,">0")) ->  | CE62: =IF(SUMIFS(CE$7:CE$8,$B$7:$B$8,$B62,CL$7:CL$8,">0")=0,"",CE49/SUMIFS(CE$7:CE$8,$B$7:$B$8,$B62,CL$7:CL$8,">0")) ->  | CU62: =IF(SUMIFS(CU$7:CU$8,$B$7:$B$8,$B62,DB$7:DB$8,">0")=0,"",CU49/SUMIFS(CU$7:CU$8,$B$7:$B$8,$B62,DB$7:DB$8,">0")) -> 
A64: Schadensanteil Keller an Gesamtschaden EFH | C64: =IF(C40=0,"",C46/C40) ->  | S64: =IF(S40=0,"",S46/S40) ->  | AI64: =IF(AI40=0,"",AI46/AI40) ->  | AY64: =IF(AY40=0,"",AY46/AY40) ->  | BO64: =IF(BO40=0,"",BO46/BO40) ->  | CE64: =IF(CE40=0,"",CE46/CE40) ->  | CU64: =IF(CU40=0,"",CU46/CU40) -> 
A65: Schadensanteil EG an Gesamtschaden EFH | C65: =IF(C40=0,"",C48/C40) ->  | S65: =IF(S40=0,"",S48/S40) ->  | AI65: =IF(AI40=0,"",AI48/AI40) ->  | AY65: =IF(AY40=0,"",AY48/AY40) ->  | BO65: =IF(BO40=0,"",BO48/BO40) ->  | CE65: =IF(CE40=0,"",CE48/CE40) ->  | CU65: =IF(CU40=0,"",CU48/CU40) -> 
A66: Schadensanteil Keller an Gesamtschaden MFH | C66: =IF(C41=0,"",C47/C41) ->  | S66: =IF(S41=0,"",S47/S41) ->  | AI66: =IF(AI41=0,"",AI47/AI41) ->  | AY66: =IF(AY41=0,"",AY47/AY41) ->  | BO66: =IF(BO41=0,"",BO47/BO41) ->  | CE66: =IF(CE41=0,"",CE47/CE41) ->  | CU66: =IF(CU41=0,"",CU47/CU41) -> 
A67: Schadensanteil EG an Gesamtschaden MFH | C67: =IF(C41=0,"",C49/C41) ->  | S67: =IF(S41=0,"",S49/S41) ->  | AI67: =IF(AI41=0,"",AI49/AI41) ->  | AY67: =IF(AY41=0,"",AY49/AY41) ->  | BO67: =IF(BO41=0,"",BO49/BO41) ->  | CE67: =IF(CE41=0,"",CE49/CE41) ->  | CU67: =IF(CU41=0,"",CU49/CU41) -> 

Sheet Schadensrel. MM NichtWGebäude
A1: SCHADENSRELEVANTE MERKMALE NICHT - WOHNGEBÄUDE
R3: Schadensbeurteilungen (siehe Erläuterungen) (nur bei Schadensermittlung mittels Schadensfunktion erforderlich)
R4: Untergeschoß | T4: Erdgeschoss | V4: Stockwerk | Y4: Aussenanlagen
A5: Adresse | B5: Name Betrieb | C5: Betroffene Gebäude (z.B. Halle, Werkstätte, Lager, Bürogebäude, etc.) | D5: Bauwerkstyp | E5: Erhaltungszustand des Gebäudes | F5: Untergeschoß vorhanden | G5: Nutzung | H5: Höhe Untergeschoß (in m) (SIEHE ERLÄUTERUNGEN) | I5: Decke Untergeschoß (in m) | J5: Höhe Erdgeschoss (in m) | K5: Decke Erdgeschoss (in m) | L5: Höhe 1. Stock (in m) | M5: Lage Fussbodenoberkante EG | N5: Höhe erste Fussbodenoberkante über Gelände (in m) | O5: Wassereintritt in den Keller nur vom Hausinneren, aus dem EG möglich? | P5: Außenanlagen (Ja/Nein) | Q5: bekannte Hochwasserschäden (Jahr, Wassertiefe über Fußboden EG, Schaden in Keller, EG, Stockwerk) | R5: Untergeschoß Anfangsschaden (Smin) in € | S5: Untergeschoß Schaden bei 1m Wassertiefe in 1.000 € (B) | T5: Erdgeschoß Anfangsschaden (Smin) in € | U5: Erdgeschoß Schaden bei 1m Wassertiefe in 1.000 € (B) | V5: 1. Stock Anfangsschaden (Smin) in € | W5: Höhe über GOK | X5: 1:Stock Schaden bei 1m Wassertiefe in 1.000 € (B) | Y5: Aussenanlagen Schaden in €
A6: Gemeinde, Straße, Hausnummer
D7: ZH | E7: sehr gut | F7: Nein | G7: hoch | M7: Ebenerdig | O7: Nein | P7: Ja
F8: Nein | O8: Nein | P8: Ja

Sheet Schadensermittl. NichtWGebäude
A1: SCHADENSERMITTLUNG UND -EINGABE NICHT-WOHNGEBÄUDE | C1: =+$A$1 -> SCHADENSERMITTLUNG UND -EINGABE NICHT-WOHNGEBÄUDE | S1: =C1 -> SCHADENSERMITTLUNG UND -EINGABE NICHT-WOHNGEBÄUDE | AI1: =S1 -> SCHADENSERMITTLUNG UND -EINGABE NICHT-WOHNGEBÄUDE | AY1: =AI1 -> SCHADENSERMITTLUNG UND -EINGABE NICHT-WOHNGEBÄUDE | BO1: =AY1 -> SCHADENSERMITTLUNG UND -EINGABE NICHT-WOHNGEBÄUDE | CE1: =BO1 -> SCHADENSERMITTLUNG UND -EINGABE NICHT-WOHNGEBÄUDE | CU1: =CE1 -> SCHADENSERMITTLUNG UND -EINGABE NICHT-WOHNGEBÄUDE
B5: bei HQx | C5: =Projektgrunddaten!C24 -> 0 | S5: =Projektgrunddaten!C25 -> 0 | AI5: =Projektgrunddaten!C26 -> 0 | AY5: =Projektgrunddaten!C27 -> 0 | BO5: =Projektgrunddaten!C28 -> 0 | CE5: =Projektgrunddaten!C29 -> 100 | CU5: =Projektgrunddaten!C30 -> 0
A6: Name Betrieb | B6: Zuordnung des Betriebes zu einem Wirtschaftssektor | C6: Wassertiefe über GOK (m) | D6: Wasserstand Untergeschoß | E6: ALTERNATIV zur Wassertiefe: Wasserstand Untergeschoß (m) | F6: Schaden Untergeschoß (€) | G6: Wasserstand Erdgeschoß | H6: ALTERNATIV statt Wassertiefe: Wasserstand Erdgeschoß (m) | I6: Schaden Erdgeschoss (€) | J6: Wasserstand 1. Stock | K6: ALTERNATIV statt Wassertiefe: Wasserstand 1. Stock (m) | L6: Schaden 1. Stock (€) | M6: Schaden Aussenanlagen €) | N6: Reduktionsfaktor wegen Eigenvorsorge (siehe Erläuterungen) | O6: Schaden gesamt aus Berechnung mit Schadensfunktion (€) | P6: ALTERNATIV: Bewertung ohne Schadensfunktion: Schadenseingabe gesamt aus gesonderten Erhebungen (€) | Q6: betroffene Beschäftigte | R6: Ausfalltage (Arbeitstage) | S6: Wassertiefe über GOK (m) | T6: Wasserstand Untergeschoß | U6: ALTERNATIV zur Wassertiefe: Wasserstand Untergeschoß (m) | V6: Schaden Untergeschoß (€) | W6: Wasserstand Erdgeschoß | X6: ALTERNATIV statt Wassertiefe: Wasserstand Erdgeschoß (m) | Y6: Schaden Erdgeschoss (€) | Z6: Wasserstand 1. Stock | AA6: ALTERNATIV statt Wassertiefe: Wasserstand 1. Stock (m) | AB6: Schaden 1. Stock (€) | AC6: Schaden Aussenanlagen €) | AD6: Reduktionsfaktor wegen Eigenvorsorge (siehe Erläuterungen) | AE6: Schaden gesamt aus Berechnung mit Schadensfunktion (€) | AF6: ALTERNATIV: Bewertung ohne Schadensfunktion: Schadenseingabe gesamt aus gesonderten Erhebungen (€) | AG6: betroffene Beschäftigte | AH6: Ausfalltage (Arbeitstage) | AI6: Wassertiefe über GOK (m) | AJ6: Wasserstand Untergeschoß | AK6: ALTERNATIV zur Wassertiefe: Wasserstand Untergeschoß (m) | AL6: Schaden Untergeschoß (€) | AM6: Wasserstand Erdgeschoß | AN6: ALTERNATIV statt Wassertiefe: Wasserstand Erdgeschoß (m) | AO6: Schaden Erdgeschoss (€) | AP6: Wasserstand 1. Stock | AQ6: ALTERNATIV statt Wassertiefe: Wasserstand 1. Stock (m) | AR6: Schaden 1. Stock (€) | AS6: Schaden Aussenanlagen €) | AT6: Reduktionsfaktor wegen Eigenvorsorge (siehe Erläuterungen) | AU6: Schaden gesamt aus Berechnung mit Schadensfunktion (€) | AV6: ALTERNATIV: Bewertung ohne Schadensfunktion: Schadenseingabe gesamt aus gesonderten Erhebungen (€) | AW6: betroffene Beschäftigte | AX6: Ausfalltage (Arbeitstage) | AY6: Wassertiefe über GOK (m) | AZ6: Wasserstand Untergeschoß | BA6: ALTERNATIV zur Wassertiefe: Wasserstand Untergeschoß (m) | BB6: Schaden Untergeschoß (€) | BC6: Wasserstand Erdgeschoß | BD6: ALTERNATIV statt Wassertiefe: Wasserstand Erdgeschoß (m) | BE6: Schaden Erdgeschoss (€) | BF6: Wasserstand 1. Stock | BG6: ALTERNATIV statt Wassertiefe: Wasserstand 1. Stock (m) | BH6: Schaden 1. Stock (€) | BI6: Schaden Aussenanlagen €) | BJ6: Reduktionsfaktor wegen Eigenvorsorge (siehe Erläuterungen) | BK6: Schaden gesamt aus Berechnung mit Schadensfunktion (€) | BL6: ALTERNATIV: Bewertung ohne Schadensfunktion: Schadenseingabe gesamt aus gesonderten Erhebungen (€) | BM6: betroffene Beschäftigte | BN6: Ausfalltage (Arbeitstage) | BO6: Wassertiefe über GOK (m) | BP6: Wasserstand Untergeschoß | BQ6: ALTERNATIV zur Wassertiefe: Wasserstand Untergeschoß (m) | BR6: Schaden Untergeschoß (€) | BS6: Wasserstand Erdgeschoß | BT6: ALTERNATIV statt Wassertiefe: Wasserstand Erdgeschoß (m) | BU6: Schaden Erdgeschoss (€) | BV6: Wasserstand 1. Stock | BW6: ALTERNATIV statt Wassertiefe: Wasserstand 1. Stock (m) | BX6: Schaden 1. Stock (€) | BY6: Schaden Aussenanlagen €) | BZ6: Reduktionsfaktor wegen Eigenvorsorge (siehe Erläuterungen) | CA6: Schaden gesamt aus Berechnung mit Schadensfunktion (€) | CB6: ALTERNATIV: Bewertung ohne Schadensfunktion: Schadenseingabe gesamt aus gesonderten Erhebungen (€) | CC6: betroffene Beschäftigte | CD6: Ausfalltage (Arbeitstage) | CE6: Wassertiefe über GOK (m) | CF6: Wasserstand Untergeschoß | CG6: ALTERNATIV zur Wassertiefe: Wasserstand Untergeschoß (m) | CH6: Schaden Untergeschoß (€) | CI6: Wasserstand Erdgeschoß | CJ6: ALTERNATIV statt Wassertiefe: Wasserstand Erdgeschoß (m) | CK6: Schaden Erdgeschoss (€) | CL6: Wasserstand 1. Stock | CM6: ALTERNATIV statt Wassertiefe: Wasserstand 1. Stock (m) | CN6: Schaden 1. Stock (€) | CO6: Schaden Aussenanlagen €) | CP6: Reduktionsfaktor wegen Eigenvorsorge (siehe Erläuterungen) | CQ6: Schaden gesamt aus Berechnung mit Schadensfunktion (€) | CR6: ALTERNATIV: Bewertung ohne Schadensfunktion: Schadenseingabe gesamt aus gesonderten Erhebungen (€) | CS6: betroffene Beschäftigte | CT6: Ausfalltage (Arbeitstage) | CU6: Wassertiefe über GOK (m) | CV6: Wasserstand Untergeschoß | CW6: ALTERNATIV zur Wassertiefe: Wasserstand Untergeschoß (m) | CX6: Schaden Untergeschoß (€) | CY6: Wasserstand Erdgeschoß | CZ6: ALTERNATIV statt Wassertiefe: Wasserstand Erdgeschoß (m) | DA6: Schaden Erdgeschoss (€) | DB6: Wasserstand 1. Stock | DC6: ALTERNATIV statt Wassertiefe: Wasserstand 1. Stock (m) | DD6: Schaden 1. Stock (€) | DE6: Schaden Aussenanlagen €) | DF6: Reduktionsfaktor wegen Eigenvorsorge (siehe Erläuterungen) | DG6: Schaden gesamt aus Berechnung mit Schadensfunktion (€) | DH6: ALTERNATIV: Bewertung ohne Schadensfunktion: Schadenseingabe gesamt aus gesonderten Erhebungen (€) | DI6: betroffene Beschäftigte | DJ6: Ausfalltage (Arbeitstage)
A7: =IF('Schadensrel. MM NichtWGebäude'!B7="","",'Schadensrel. MM NichtWGebäude'!B7) ->  | B7: Beherbergung und Gastronomie (I) | D7: =IF(C7=0,0,IF(('Schadensrel. MM NichtWGebäude'!H7+'Schadensrel. MM NichtWGebäude'!I7)=0,(IF((Berechnungsgrundlagen!$I$18+Berechnungsgrundlagen!$I$19-'Schadensrel. MM NichtWGebäude'!$N7+C7)>(Berechnungsgrundlagen!$I$18+Berechnungsgrundlagen!$I$19),(Berechnungsgrundlagen!$I$18+Berechnungsgrundlagen!$I$19),(Berechnungsgrundlagen!$I$18+Berechnungsgrundlagen!$I$19-'Schadensrel. MM NichtWGebäude'!$N7+C7))),(IF(('Schadensrel. MM NichtWGebäude'!$H7+'Schadensrel. MM NichtWGebäude'!$I7-'Schadensrel. MM NichtWGebäude'!$N7+C7)>('Schadensrel. MM NichtWGebäude'!$H7+'Schadensrel. MM NichtWGebäude'!$I7),('Schadensrel. MM NichtWGebäude'!$H7+'Schadensrel. MM NichtWGebäude'!$I7),('Schadensrel. MM NichtWGebäude'!$H7+'Schadensrel. MM NichtWGebäude'!$I7-'Schadensrel. MM NichtWGebäude'!$N7+C7))))) -> 0 | F7: =IF('Schadensrel. MM NichtWGebäude'!$F7=Berechnungsgrundlagen!$D$17, IF(E7>0, 'Schadensrel. MM NichtWGebäude'!$R7+(1000*'Schadensrel. MM NichtWGebäude'!$S7*SQRT(E7)), IF(D7=0, 0, IF('Schadensrel. MM NichtWGebäude'!$O7=Berechnungsgrundlagen!$D$18, 'Schadensrel. MM NichtWGebäude'!$R7+(1000*'Schadensrel. MM NichtWGebäude'!$S7*SQRT(D7)), IF(C7<='Schadensrel. MM NichtWGebäude'!$N7, 0, 'Schadensrel. MM NichtWGebäude'!$R7+(1000*'Schadensrel. MM NichtWGebäude'!$S7*SQRT(D7)))))),0) -> 0 | G7: =IF(C7=0,0, IF((C7-'Schadensrel. MM NichtWGebäude'!$N7)<=0, 0, IF(((C7-'Schadensrel. MM NichtWGebäude'!$N7))>(IF( ('Schadensrel. MM NichtWGebäude'!$J7+'Schadensrel. MM NichtWGebäude'!$K7)=0, (Berechnungsgrundlagen!$I$20+Berechnungsgrundlagen!$I$21), ('Schadensrel. MM NichtWGebäude'!$J7+'Schadensrel. MM NichtWGebäude'!$K7))), IF(('Schadensrel. MM NichtWGebäude'!$J7+'Schadensrel. MM NichtWGebäude'!$K7)=0, (Berechnungsgrundlagen!$I$20+Berechnungsgrundlagen!$I$21), ('Schadensrel. MM NichtWGebäude'!$J7+'Schadensrel. MM NichtWGebäude'!$K7)), ((C7-'Schadensrel. MM NichtWGebäude'!$N7))))) -> 0 | I7: =IF(H7>0,'Schadensrel. MM NichtWGebäude'!$T7+(1000*'Schadensrel. MM NichtWGebäude'!$U7*SQRT(H7)),IF(G7=0,0,IF(C7<='Schadensrel. MM NichtWGebäude'!$N7,0, 'Schadensrel. MM NichtWGebäude'!$T7+(1000*'Schadensrel. MM NichtWGebäude'!$U7*SQRT(G7))))) -> 0 | J7: =IF(C7=0, 0, C7-('Schadensrel. MM NichtWGebäude'!$N7+ IF(('Schadensrel. MM NichtWGebäude'!$J7+'Schadensrel. Merkmale WGebäude'!$K7)=0, Berechnungsgrundlagen!$I$20+Berechnungsgrundlagen!$I$21, 'Schadensrel. MM NichtWGebäude'!$J7+'Schadensrel. MM NichtWGebäude'!$K7))) -> 0 | L7: =IF(K7>0, 'Schadensrel. MM NichtWGebäude'!$V7+(1000*'Schadensrel. MM NichtWGebäude'!$X7*SQRT(K7)), IF(C7<=('Schadensrel. MM NichtWGebäude'!N7+IF( ('Schadensrel. MM NichtWGebäude'!$J7+'Schadensrel. MM NichtWGebäude'!$K7)=0, Berechnungsgrundlagen!$I$20+Berechnungsgrundlagen!$I$21, 'Schadensrel. MM NichtWGebäude'!$J7+'Schadensrel. MM NichtWGebäude'!$K7)), 0, ('Schadensrel. MM NichtWGebäude'!$V7+(1000*'Schadensrel. MM NichtWGebäude'!$X7*SQRT(J7))))) -> 0 | M7: =IF(C7=0,0,'Schadensrel. MM NichtWGebäude'!$Y7) -> 0 | O7: =SUM(F7+I7+L7+M7)*(IF($C$5>50,1,IF(N7=0,1,1-N7))) -> 0 | T7: =IF(S7=0,0,IF(('Schadensrel. MM NichtWGebäude'!H7+'Schadensrel. MM NichtWGebäude'!I7)=0,(IF((Berechnungsgrundlagen!$I$18+Berechnungsgrundlagen!$I$19-'Schadensrel. MM NichtWGebäude'!$N7+$S7)>(Berechnungsgrundlagen!$I$18+Berechnungsgrundlagen!$I$19),(Berechnungsgrundlagen!$I$18+Berechnungsgrundlagen!$I$19),(Berechnungsgrundlagen!$I$18+Berechnungsgrundlagen!$I$19-'Schadensrel. MM NichtWGebäude'!$N7+$S7))),(IF(('Schadensrel. MM NichtWGebäude'!$H7+'Schadensrel. MM NichtWGebäude'!$I7-'Schadensrel. MM NichtWGebäude'!$N7+$S7)>('Schadensrel. MM NichtWGebäude'!$H7+'Schadensrel. MM NichtWGebäude'!$I7),('Schadensrel. MM NichtWGebäude'!$H7+'Schadensrel. MM NichtWGebäude'!$I7),('Schadensrel. MM NichtWGebäude'!$H7+'Schadensrel. MM NichtWGebäude'!$I7-'Schadensrel. MM NichtWGebäude'!$N7+$S7))))) -> 0 | V7: =IF('Schadensrel. MM NichtWGebäude'!$F7=Berechnungsgrundlagen!$D$17, IF(U7>0, 'Schadensrel. MM NichtWGebäude'!$R7+(1000*'Schadensrel. MM NichtWGebäude'!$S7*SQRT(U7)), IF(T7=0, 0, IF('Schadensrel. MM NichtWGebäude'!$O7=Berechnungsgrundlagen!$D$18, 'Schadensrel. MM NichtWGebäude'!$R7+(1000*'Schadensrel. MM NichtWGebäude'!$S7*SQRT(T7)), IF(S7<='Schadensrel. MM NichtWGebäude'!$N7, 0, 'Schadensrel. MM NichtWGebäude'!$R7+(1000*'Schadensrel. MM NichtWGebäude'!$S7*SQRT(T7)))))),0) -> 0 | W7: =IF(S7=0,0, IF((S7-'Schadensrel. MM NichtWGebäude'!$N7)<=0, 0, IF(((S7-'Schadensrel. MM NichtWGebäude'!$N7))>(IF( ('Schadensrel. MM NichtWGebäude'!$J7+'Schadensrel. MM NichtWGebäude'!$K7)=0, (Berechnungsgrundlagen!$I$20+Berechnungsgrundlagen!$I$21), ('Schadensrel. MM NichtWGebäude'!$J7+'Schadensrel. MM NichtWGebäude'!$K7))), IF(('Schadensrel. MM NichtWGebäude'!$J7+'Schadensrel. MM NichtWGebäude'!$K7)=0, (Berechnungsgrundlagen!$I$20+Berechnungsgrundlagen!$I$21), ('Schadensrel. MM NichtWGebäude'!$J7+'Schadensrel. MM NichtWGebäude'!$K7)), ((S7-'Schadensrel. MM NichtWGebäude'!$N7))))) -> 0 | Y7: =IF(X7>0,'Schadensrel. MM NichtWGebäude'!$T7+(1000*'Schadensrel. MM NichtWGebäude'!$U7*SQRT(X7)),IF(W7=0,0,IF(S7<='Schadensrel. MM NichtWGebäude'!$N7,0, 'Schadensrel. MM NichtWGebäude'!$T7+(1000*'Schadensrel. MM NichtWGebäude'!$U7*SQRT(W7))))) -> 0 | Z7: =IF(S7=0, 0, S7-('Schadensrel. MM NichtWGebäude'!$N7+ IF(('Schadensrel. MM NichtWGebäude'!$J7+'Schadensrel. Merkmale WGebäude'!$K7)=0, Berechnungsgrundlagen!$I$20+Berechnungsgrundlagen!$I$21, 'Schadensrel. MM NichtWGebäude'!$J7+'Schadensrel. MM NichtWGebäude'!$K7))) -> 0 | AB7: =IF(AA7>0, 'Schadensrel. MM NichtWGebäude'!$V7+(1000*'Schadensrel. MM NichtWGebäude'!$X7*SQRT(AA7)), IF(S7<=('Schadensrel. MM NichtWGebäude'!N7+IF( ('Schadensrel. MM NichtWGebäude'!$J7+'Schadensrel. MM NichtWGebäude'!$K7)=0, Berechnungsgrundlagen!$I$20+Berechnungsgrundlagen!$I$21, 'Schadensrel. MM NichtWGebäude'!$J7+'Schadensrel. MM NichtWGebäude'!$K7)), 0, ('Schadensrel. MM NichtWGebäude'!$V7+(1000*'Schadensrel. MM NichtWGebäude'!$X7*SQRT(Z7))))) -> 0 | AC7: =IF(S7=0,0,'Schadensrel. MM NichtWGebäude'!$Y7) -> 0 | AE7: =SUM(V7+Y7+AB7+AC7)*(IF($S$5>50,1,IF(AD7=0,1,1-AD7))) -> 0 | AJ7: =IF(AI7=0, 0, IF(('Schadensrel. MM NichtWGebäude'!H7+'Schadensrel. MM NichtWGebäude'!I7)=0, (IF((Berechnungsgrundlagen!$I$18+Berechnungsgrundlagen!$I$19-'Schadensrel. MM NichtWGebäude'!$N7+$AI7)>(Berechnungsgrundlagen!$I$18+Berechnungsgrundlagen!$I$19), (Berechnungsgrundlagen!$I$18+Berechnungsgrundlagen!$I$19), (Berechnungsgrundlagen!$I$18+Berechnungsgrundlagen!$I$19-'Schadensrel. MM NichtWGebäude'!$N7+$AI7))), (IF(('Schadensrel. MM NichtWGebäude'!$H7+'Schadensrel. MM NichtWGebäude'!$I7-'Schadensrel. MM NichtWGebäude'!$N7+$AI7)>('Schadensrel. MM NichtWGebäude'!$H7+'Schadensrel. MM NichtWGebäude'!$I7), ('Schadensrel. MM NichtWGebäude'!$H7+'Schadensrel. MM NichtWGebäude'!$I7), ('Schadensrel. MM NichtWGebäude'!$H7+'Schadensrel. MM NichtWGebäude'!$I7-'Schadensrel. MM NichtWGebäude'!$N7+$AI7))))) -> 0 | AL7: =IF('Schadensrel. MM NichtWGebäude'!$F7=Berechnungsgrundlagen!$D$17, IF(AK7>0, 'Schadensrel. MM NichtWGebäude'!$R7+(1000*'Schadensrel. MM NichtWGebäude'!$S7*SQRT(AK7)), IF(AJ7=0, 0, IF('Schadensrel. MM NichtWGebäude'!$O7=Berechnungsgrundlagen!$D$18, 'Schadensrel. MM NichtWGebäude'!$R7+(1000*'Schadensrel. MM NichtWGebäude'!$S7*SQRT(AJ7)), IF(AI7<='Schadensrel. MM NichtWGebäude'!$N7, 0, 'Schadensrel. MM NichtWGebäude'!$R7+(1000*'Schadensrel. MM NichtWGebäude'!$S7*SQRT(AJ7)))))),0) -> 0 | AM7: =IF(AI7=0,0, IF((AI7-'Schadensrel. MM NichtWGebäude'!$N7)<=0, 0, IF(((AI7-'Schadensrel. MM NichtWGebäude'!$N7))>(IF( ('Schadensrel. MM NichtWGebäude'!$J7+'Schadensrel. MM NichtWGebäude'!$K7)=0, (Berechnungsgrundlagen!$I$20+Berechnungsgrundlagen!$I$21), ('Schadensrel. MM NichtWGebäude'!$J7+'Schadensrel. MM NichtWGebäude'!$K7))), IF(('Schadensrel. MM NichtWGebäude'!$J7+'Schadensrel. MM NichtWGebäude'!$K7)=0, (Berechnungsgrundlagen!$I$20+Berechnungsgrundlagen!$I$21), ('Schadensrel. MM NichtWGebäude'!$J7+'Schadensrel. MM NichtWGebäude'!$K7)), ((AI7-'Schadensrel. MM NichtWGebäude'!$N7))))) -> 0 | AO7: =IF(AN7>0,'Schadensrel. MM NichtWGebäude'!$T7+(1000*'Schadensrel. MM NichtWGebäude'!$U7*SQRT(AN7)),IF(AM7=0,0,IF(AI7<='Schadensrel. MM NichtWGebäude'!$N7,0, 'Schadensrel. MM NichtWGebäude'!$T7+(1000*'Schadensrel. MM NichtWGebäude'!$U7*SQRT(AM7))))) -> 0 | AP7: =IF(AI7=0, 0, AI7-('Schadensrel. MM NichtWGebäude'!$N7+ IF(('Schadensrel. MM NichtWGebäude'!$J7+'Schadensrel. Merkmale WGebäude'!$K7)=0, Berechnungsgrundlagen!$I$20+Berechnungsgrundlagen!$I$21, 'Schadensrel. MM NichtWGebäude'!$J7+'Schadensrel. MM NichtWGebäude'!$K7))) -> 0 | AR7: =IF(AQ7>0, 'Schadensrel. MM NichtWGebäude'!$V7+(1000*'Schadensrel. MM NichtWGebäude'!$X7*SQRT(AQ7)), IF(AI7<=('Schadensrel. MM NichtWGebäude'!N7+IF( ('Schadensrel. MM NichtWGebäude'!$J7+'Schadensrel. MM NichtWGebäude'!$K7)=0, Berechnungsgrundlagen!$I$20+Berechnungsgrundlagen!$I$21, 'Schadensrel. MM NichtWGebäude'!$J7+'Schadensrel. MM NichtWGebäude'!$K7)), 0, ('Schadensrel. MM NichtWGebäude'!$V7+(1000*'Schadensrel. MM NichtWGebäude'!$X7*SQRT(AP7))))) -> 0 | AS7: =IF(AI7=0,0,'Schadensrel. MM NichtWGebäude'!$Y7) -> 0 | AU7: =SUM(AL7+AO7+AR7+AS7)*(IF($AI$5>50,1,IF(AT7=0,1,1-AT7))) -> 0 | AZ7: =IF(AY7=0, 0, IF(('Schadensrel. MM NichtWGebäude'!H7+'Schadensrel. MM NichtWGebäude'!I7)=0, (IF((Berechnungsgrundlagen!$I$18+Berechnungsgrundlagen!$I$19-'Schadensrel. MM NichtWGebäude'!$N7+$AY7)>(Berechnungsgrundlagen!$I$18+Berechnungsgrundlagen!$I$19), (Berechnungsgrundlagen!$I$18+Berechnungsgrundlagen!$I$19), (Berechnungsgrundlagen!$I$18+Berechnungsgrundlagen!$I$19-'Schadensrel. MM NichtWGebäude'!$N7+$AY7))), (IF(('Schadensrel. MM NichtWGebäude'!$H7+'Schadensrel. MM NichtWGebäude'!$I7-'Schadensrel. MM NichtWGebäude'!$N7+$AY7)>('Schadensrel. MM NichtWGebäude'!$H7+'Schadensrel. MM NichtWGebäude'!$I7), ('Schadensrel. MM NichtWGebäude'!$H7+'Schadensrel. MM NichtWGebäude'!$I7), ('Schadensrel. MM NichtWGebäude'!$H7+'Schadensrel. MM NichtWGebäude'!$I7-'Schadensrel. MM NichtWGebäude'!$N7+$AY7))))) -> 0 | BB7: =IF('Schadensrel. MM NichtWGebäude'!$F7=Berechnungsgrundlagen!$D$17, IF(BA7>0, 'Schadensrel. MM NichtWGebäude'!$R7+(1000*'Schadensrel. MM NichtWGebäude'!$S7*SQRT(BA7)), IF(AZ7=0, 0, IF('Schadensrel. MM NichtWGebäude'!$O7=Berechnungsgrundlagen!$D$18, 'Schadensrel. MM NichtWGebäude'!$R7+(1000*'Schadensrel. MM NichtWGebäude'!$S7*SQRT(AZ7)), IF(AY7<='Schadensrel. MM NichtWGebäude'!$N7, 0, 'Schadensrel. MM NichtWGebäude'!$R7+(1000*'Schadensrel. MM NichtWGebäude'!$S7*SQRT(AZ7)))))),0) -> 0 | BC7: =IF(AY7=0,0, IF((AY7-'Schadensrel. MM NichtWGebäude'!$N7)<=0, 0, IF(((AY7-'Schadensrel. MM NichtWGebäude'!$N7))>(IF( ('Schadensrel. MM NichtWGebäude'!$J7+'Schadensrel. MM NichtWGebäude'!$K7)=0, (Berechnungsgrundlagen!$I$20+Berechnungsgrundlagen!$I$21), ('Schadensrel. MM NichtWGebäude'!$J7+'Schadensrel. MM NichtWGebäude'!$K7))), IF(('Schadensrel. MM NichtWGebäude'!$J7+'Schadensrel. MM NichtWGebäude'!$K7)=0, (Berechnungsgrundlagen!$I$20+Berechnungsgrundlagen!$I$21), ('Schadensrel. MM NichtWGebäude'!$J7+'Schadensrel. MM NichtWGebäude'!$K7)), ((AY7-'Schadensrel. MM NichtWGebäude'!$N7))))) -> 0 | BE7: =IF(BD7>0,'Schadensrel. MM NichtWGebäude'!$T7+(1000*'Schadensrel. MM NichtWGebäude'!$U7*SQRT(BD7)),IF(BC7=0,0,IF(AY7<='Schadensrel. MM NichtWGebäude'!$N7,0, 'Schadensrel. MM NichtWGebäude'!$T7+(1000*'Schadensrel. MM NichtWGebäude'!$U7*SQRT(BC7))))) -> 0 | BF7: =IF(AY7=0, 0, AY7-('Schadensrel. MM NichtWGebäude'!$N7+ IF(('Schadensrel. MM NichtWGebäude'!$J7+'Schadensrel. Merkmale WGebäude'!$K7)=0, Berechnungsgrundlagen!$I$20+Berechnungsgrundlagen!$I$21, 'Schadensrel. MM NichtWGebäude'!$J7+'Schadensrel. MM NichtWGebäude'!$K7))) -> 0 | BH7: =IF(BG7>0, 'Schadensrel. MM NichtWGebäude'!$V7+(1000*'Schadensrel. MM NichtWGebäude'!$X7*SQRT(BG7)), IF(AY7<=('Schadensrel. MM NichtWGebäude'!N7+IF( ('Schadensrel. MM NichtWGebäude'!$J7+'Schadensrel. MM NichtWGebäude'!$K7)=0, Berechnungsgrundlagen!$I$20+Berechnungsgrundlagen!$I$21, 'Schadensrel. MM NichtWGebäude'!$J7+'Schadensrel. MM NichtWGebäude'!$K7)), 0, ('Schadensrel. MM NichtWGebäude'!$V7+(1000*'Schadensrel. MM NichtWGebäude'!$X7*SQRT(BF7))))) -> 0 | BI7: =IF(AY7=0,0,'Schadensrel. MM NichtWGebäude'!$Y7) -> 0 | BK7: =SUM(BB7+BE7+BH7+BI7)*(IF($AY$5>50,1,IF(BJ7=0,1,1-BJ7))) -> 0 | BP7: =IF(BO7=0, 0, IF(('Schadensrel. MM NichtWGebäude'!H7+'Schadensrel. MM NichtWGebäude'!I7)=0, (IF((Berechnungsgrundlagen!$I$18+Berechnungsgrundlagen!$I$19-'Schadensrel. MM NichtWGebäude'!$N7+$BO7)>(Berechnungsgrundlagen!$I$18+Berechnungsgrundlagen!$I$19), (Berechnungsgrundlagen!$I$18+Berechnungsgrundlagen!$I$19), (Berechnungsgrundlagen!$I$18+Berechnungsgrundlagen!$I$19-'Schadensrel. MM NichtWGebäude'!$N7+$BO7))), (IF(('Schadensrel. MM NichtWGebäude'!$H7+'Schadensrel. MM NichtWGebäude'!$I7-'Schadensrel. MM NichtWGebäude'!$N7+$BO7)>('Schadensrel. MM NichtWGebäude'!$H7+'Schadensrel. MM NichtWGebäude'!$I7), ('Schadensrel. MM NichtWGebäude'!$H7+'Schadensrel. MM NichtWGebäude'!$I7), ('Schadensrel. MM NichtWGebäude'!$H7+'Schadensrel. MM NichtWGebäude'!$I7-'Schadensrel. MM NichtWGebäude'!$N7+$BO7))))) -> 0 | BR7: =IF('Schadensrel. MM NichtWGebäude'!$F7=Berechnungsgrundlagen!$D$17, IF(BQ7>0, 'Schadensrel. MM NichtWGebäude'!$R7+(1000*'Schadensrel. MM NichtWGebäude'!$S7*SQRT(BQ7)), IF(BP7=0, 0, IF('Schadensrel. MM NichtWGebäude'!$O7=Berechnungsgrundlagen!$D$18, 'Schadensrel. MM NichtWGebäude'!$R7+(1000*'Schadensrel. MM NichtWGebäude'!$S7*SQRT(BP7)), IF(BO7<='Schadensrel. MM NichtWGebäude'!$N7, 0, 'Schadensrel. MM NichtWGebäude'!$R7+(1000*'Schadensrel. MM NichtWGebäude'!$S7*SQRT(BP7)))))),0) -> 0 | BS7: =IF(BO7=0,0, IF((BO7-'Schadensrel. MM NichtWGebäude'!$N7)<=0, 0, IF(((BO7-'Schadensrel. MM NichtWGebäude'!$N7))>(IF( ('Schadensrel. MM NichtWGebäude'!$J7+'Schadensrel. MM NichtWGebäude'!$K7)=0, (Berechnungsgrundlagen!$I$20+Berechnungsgrundlagen!$I$21), ('Schadensrel. MM NichtWGebäude'!$J7+'Schadensrel. MM NichtWGebäude'!$K7))), IF(('Schadensrel. MM NichtWGebäude'!$J7+'Schadensrel. MM NichtWGebäude'!$K7)=0, (Berechnungsgrundlagen!$I$20+Berechnungsgrundlagen!$I$21), ('Schadensrel. MM NichtWGebäude'!$J7+'Schadensrel. MM NichtWGebäude'!$K7)), ((BO7-'Schadensrel. MM NichtWGebäude'!$N7))))) -> 0 | BU7: =IF(BT7>0,'Schadensrel. MM NichtWGebäude'!$T7+(1000*'Schadensrel. MM NichtWGebäude'!$U7*SQRT(BT7)),IF(BS7=0,0,IF(BO7<='Schadensrel. MM NichtWGebäude'!$N7,0, 'Schadensrel. MM NichtWGebäude'!$T7+(1000*'Schadensrel. MM NichtWGebäude'!$U7*SQRT(BS7))))) -> 0 | BV7: =IF(BO7=0, 0, BO7-('Schadensrel. MM NichtWGebäude'!$N7+ IF(('Schadensrel. MM NichtWGebäude'!$J7+'Schadensrel. Merkmale WGebäude'!$K7)=0, Berechnungsgrundlagen!$I$20+Berechnungsgrundlagen!$I$21, 'Schadensrel. MM NichtWGebäude'!$J7+'Schadensrel. MM NichtWGebäude'!$K7))) -> 0 | BX7: =IF(BW7>0, 'Schadensrel. MM NichtWGebäude'!$V7+(1000*'Schadensrel. MM NichtWGebäude'!$X7*SQRT(BW7)), IF(BO7<=('Schadensrel. MM NichtWGebäude'!N7+IF( ('Schadensrel. MM NichtWGebäude'!$J7+'Schadensrel. MM NichtWGebäude'!$K7)=0, Berechnungsgrundlagen!$I$20+Berechnungsgrundlagen!$I$21, 'Schadensrel. MM NichtWGebäude'!$J7+'Schadensrel. MM NichtWGebäude'!$K7)), 0, ('Schadensrel. MM NichtWGebäude'!$V7+(1000*'Schadensrel. MM NichtWGebäude'!$X7*SQRT(BV7))))) -> 0 | BY7: =IF(BO7=0,0,'Schadensrel. MM NichtWGebäude'!$Y7) -> 0 | CA7: =SUM(BR7+BU7+BX7+BY7)*(IF($BO$5>50,1,IF(BZ7=0,1,1-BZ7))) -> 0 | CF7: =IF(CE7=0, 0, IF(('Schadensrel. MM NichtWGebäude'!H7+'Schadensrel. MM NichtWGebäude'!I7)=0, (IF((Berechnungsgrundlagen!$I$18+Berechnungsgrundlagen!$I$19-'Schadensrel. MM NichtWGebäude'!$N7+$CE7)>(Berechnungsgrundlagen!$I$18+Berechnungsgrundlagen!$I$19), (Berechnungsgrundlagen!$I$18+Berechnungsgrundlagen!$I$19), (Berechnungsgrundlagen!$I$18+Berechnungsgrundlagen!$I$19-'Schadensrel. MM NichtWGebäude'!$N7+$CE7))), (IF(('Schadensrel. MM NichtWGebäude'!$H7+'Schadensrel. MM NichtWGebäude'!$I7-'Schadensrel. MM NichtWGebäude'!$N7+$CE7)>('Schadensrel. MM NichtWGebäude'!$H7+'Schadensrel. MM NichtWGebäude'!$I7), ('Schadensrel. MM NichtWGebäude'!$H7+'Schadensrel. MM NichtWGebäude'!$I7), ('Schadensrel. MM NichtWGebäude'!$H7+'Schadensrel. MM NichtWGebäude'!$I7-'Schadensrel. MM NichtWGebäude'!$N7+$CE7))))) -> 0 | CH7: =IF('Schadensrel. MM NichtWGebäude'!$F7=Berechnungsgrundlagen!$D$17, IF(CG7>0, 'Schadensrel. MM NichtWGebäude'!$R7+(1000*'Schadensrel. MM NichtWGebäude'!$S7*SQRT(CG7)), IF(CF7=0, 0, IF('Schadensrel. MM NichtWGebäude'!$O7=Berechnungsgrundlagen!$D$18, 'Schadensrel. MM NichtWGebäude'!$R7+(1000*'Schadensrel. MM NichtWGebäude'!$S7*SQRT(CF7)), IF(CE7<='Schadensrel. MM NichtWGebäude'!$N7, 0, 'Schadensrel. MM NichtWGebäude'!$R7+(1000*'Schadensrel. MM NichtWGebäude'!$S7*SQRT(CF7)))))),0) -> 0 | CI7: =IF(CE7=0,0, IF((CE7-'Schadensrel. MM NichtWGebäude'!$N7)<=0, 0, IF(((CE7-'Schadensrel. MM NichtWGebäude'!$N7))>(IF( ('Schadensrel. MM NichtWGebäude'!$J7+'Schadensrel. MM NichtWGebäude'!$K7)=0, (Berechnungsgrundlagen!$I$20+Berechnungsgrundlagen!$I$21), ('Schadensrel. MM NichtWGebäude'!$J7+'Schadensrel. MM NichtWGebäude'!$K7))), IF(('Schadensrel. MM NichtWGebäude'!$J7+'Schadensrel. MM NichtWGebäude'!$K7)=0, (Berechnungsgrundlagen!$I$20+Berechnungsgrundlagen!$I$21), ('Schadensrel. MM NichtWGebäude'!$J7+'Schadensrel. MM NichtWGebäude'!$K7)), ((CE7-'Schadensrel. MM NichtWGebäude'!$N7))))) -> 0 | CK7: =IF(CJ7>0,'Schadensrel. MM NichtWGebäude'!$T7+(1000*'Schadensrel. MM NichtWGebäude'!$U7*SQRT(CJ7)),IF(CI7=0,0,IF(CE7<='Schadensrel. MM NichtWGebäude'!$N7,0, 'Schadensrel. MM NichtWGebäude'!$T7+(1000*'Schadensrel. MM NichtWGebäude'!$U7*SQRT(CI7))))) -> 0 | CL7: =IF(CE7=0, 0, CE7-('Schadensrel. MM NichtWGebäude'!$N7+ IF(('Schadensrel. MM NichtWGebäude'!$J7+'Schadensrel. Merkmale WGebäude'!$K7)=0, Berechnungsgrundlagen!$I$20+Berechnungsgrundlagen!$I$21, 'Schadensrel. MM NichtWGebäude'!$J7+'Schadensrel. MM NichtWGebäude'!$K7))) -> 0 | CN7: =IF(CM7>0, 'Schadensrel. MM NichtWGebäude'!$V7+(1000*'Schadensrel. MM NichtWGebäude'!$X7*SQRT(CM7)), IF(CE7<=('Schadensrel. MM NichtWGebäude'!N7+IF( ('Schadensrel. MM NichtWGebäude'!$J7+'Schadensrel. MM NichtWGebäude'!$K7)=0, Berechnungsgrundlagen!$I$20+Berechnungsgrundlagen!$I$21, 'Schadensrel. MM NichtWGebäude'!$J7+'Schadensrel. MM NichtWGebäude'!$K7)), 0, ('Schadensrel. MM NichtWGebäude'!$V7+(1000*'Schadensrel. MM NichtWGebäude'!$X7*SQRT(CL7))))) -> 0 | CO7: =IF(CE7=0,0,'Schadensrel. MM NichtWGebäude'!$Y7) -> 0 | CQ7: =SUM(CH7+CK7+CN7+CO7)*(IF($CE$5>50,1,IF(CP7=0,1,1-CP7))) -> 0 | CV7: =IF(CU7=0, 0, IF(('Schadensrel. MM NichtWGebäude'!H7+'Schadensrel. MM NichtWGebäude'!I7)=0, (IF((Berechnungsgrundlagen!$I$18+Berechnungsgrundlagen!$I$19-'Schadensrel. MM NichtWGebäude'!$N7+$CU7)>(Berechnungsgrundlagen!$I$18+Berechnungsgrundlagen!$I$19), (Berechnungsgrundlagen!$I$18+Berechnungsgrundlagen!$I$19), (Berechnungsgrundlagen!$I$18+Berechnungsgrundlagen!$I$19-'Schadensrel. MM NichtWGebäude'!$N7+$CU7))), (IF(('Schadensrel. MM NichtWGebäude'!$H7+'Schadensrel. MM NichtWGebäude'!$I7-'Schadensrel. MM NichtWGebäude'!$N7+$CU7)>('Schadensrel. MM NichtWGebäude'!$H7+'Schadensrel. MM NichtWGebäude'!$I7), ('Schadensrel. MM NichtWGebäude'!$H7+'Schadensrel. MM NichtWGebäude'!$I7), ('Schadensrel. MM NichtWGebäude'!$H7+'Schadensrel. MM NichtWGebäude'!$I7-'Schadensrel. MM NichtWGebäude'!$N7+$CU7))))) -> 0 | CX7: =IF('Schadensrel. MM NichtWGebäude'!$F7=Berechnungsgrundlagen!$D$17, IF(CW7>0, 'Schadensrel. MM NichtWGebäude'!$R7+(1000*'Schadensrel. MM NichtWGebäude'!$S7*SQRT(CW7)), IF(CV7=0, 0, IF('Schadensrel. MM NichtWGebäude'!$O7=Berechnungsgrundlagen!$D$18, 'Schadensrel. MM NichtWGebäude'!$R7+(1000*'Schadensrel. MM NichtWGebäude'!$S7*SQRT(CV7)), IF(CU7<='Schadensrel. MM NichtWGebäude'!$N7, 0, 'Schadensrel. MM NichtWGebäude'!$R7+(1000*'Schadensrel. MM NichtWGebäude'!$S7*SQRT(CV7)))))),0) -> 0 | CY7: =IF(CU7=0,0, IF((CU7-'Schadensrel. MM NichtWGebäude'!$N7)<=0, 0, IF(((CU7-'Schadensrel. MM NichtWGebäude'!$N7))>(IF( ('Schadensrel. MM NichtWGebäude'!$J7+'Schadensrel. MM NichtWGebäude'!$K7)=0, (Berechnungsgrundlagen!$I$20+Berechnungsgrundlagen!$I$21), ('Schadensrel. MM NichtWGebäude'!$J7+'Schadensrel. MM NichtWGebäude'!$K7))), IF(('Schadensrel. MM NichtWGebäude'!$J7+'Schadensrel. MM NichtWGebäude'!$K7)=0, (Berechnungsgrundlagen!$I$20+Berechnungsgrundlagen!$I$21), ('Schadensrel. MM NichtWGebäude'!$J7+'Schadensrel. MM NichtWGebäude'!$K7)), ((CU7-'Schadensrel. MM NichtWGebäude'!$N7))))) -> 0 | DA7: =IF(CZ7>0,'Schadensrel. MM NichtWGebäude'!$T7+(1000*'Schadensrel. MM NichtWGebäude'!$U7*SQRT(CZ7)),IF(CY7=0,0,IF(CU7<='Schadensrel. MM NichtWGebäude'!$N7,0, 'Schadensrel. MM NichtWGebäude'!$T7+(1000*'Schadensrel. MM NichtWGebäude'!$U7*SQRT(CY7))))) -> 0 | DB7: =IF(CU7=0, 0, CU7-('Schadensrel. MM NichtWGebäude'!$N7+ IF(('Schadensrel. MM NichtWGebäude'!$J7+'Schadensrel. Merkmale WGebäude'!$K7)=0, Berechnungsgrundlagen!$I$20+Berechnungsgrundlagen!$I$21, 'Schadensrel. MM NichtWGebäude'!$J7+'Schadensrel. MM NichtWGebäude'!$K7))) -> 0 | DD7: =IF(DC7>0, 'Schadensrel. MM NichtWGebäude'!$V7+(1000*'Schadensrel. MM NichtWGebäude'!$X7*SQRT(DC7)), IF(CU7<=('Schadensrel. MM NichtWGebäude'!N7+IF( ('Schadensrel. MM NichtWGebäude'!$J7+'Schadensrel. MM NichtWGebäude'!$K7)=0, Berechnungsgrundlagen!$I$20+Berechnungsgrundlagen!$I$21, 'Schadensrel. MM NichtWGebäude'!$J7+'Schadensrel. MM NichtWGebäude'!$K7)), 0, ('Schadensrel. MM NichtWGebäude'!$V7+(1000*'Schadensrel. MM NichtWGebäude'!$X7*SQRT(DB7))))) -> 0 | DE7: =IF(CU7=0,0,'Schadensrel. MM NichtWGebäude'!$Y7) -> 0 | DG7: =SUM(CX7+DA7+DD7+DE7)*(IF($CU$5>50,1,IF(DF7=0,1,1-DF7))) -> 0
A8: =IF('Schadensrel. MM NichtWGebäude'!B8="","",'Schadensrel. MM NichtWGebäude'!B8) ->  | B8: Beherbergung und Gastronomie (I) | D8: =IF(C8=0,0,IF(('Schadensrel. MM NichtWGebäude'!H8+'Schadensrel. MM NichtWGebäude'!I8)=0,(IF((Berechnungsgrundlagen!$I$18+Berechnungsgrundlagen!$I$19-'Schadensrel. MM NichtWGebäude'!$N8+C8)>(Berechnungsgrundlagen!$I$18+Berechnungsgrundlagen!$I$19),(Berechnungsgrundlagen!$I$18+Berechnungsgrundlagen!$I$19),(Berechnungsgrundlagen!$I$18+Berechnungsgrundlagen!$I$19-'Schadensrel. MM NichtWGebäude'!$N8+C8))),(IF(('Schadensrel. MM NichtWGebäude'!$H8+'Schadensrel. MM NichtWGebäude'!$I8-'Schadensrel. MM NichtWGebäude'!$N8+C8)>('Schadensrel. MM NichtWGebäude'!$H8+'Schadensrel. MM NichtWGebäude'!$I8),('Schadensrel. MM NichtWGebäude'!$H8+'Schadensrel. MM NichtWGebäude'!$I8),('Schadensrel. MM NichtWGebäude'!$H8+'Schadensrel. MM NichtWGebäude'!$I8-'Schadensrel. MM NichtWGebäude'!$N8+C8))))) -> 0 | F8: =IF('Schadensrel. MM NichtWGebäude'!$F8=Berechnungsgrundlagen!$D$17, IF(E8>0, 'Schadensrel. MM NichtWGebäude'!$R8+(1000*'Schadensrel. MM NichtWGebäude'!$S8*SQRT(E8)), IF(D8=0, 0, IF('Schadensrel. MM NichtWGebäude'!$O8=Berechnungsgrundlagen!$D$18, 'Schadensrel. MM NichtWGebäude'!$R8+(1000*'Schadensrel. MM NichtWGebäude'!$S8*SQRT(D8)), IF(C8<='Schadensrel. MM NichtWGebäude'!$N8, 0, 'Schadensrel. MM NichtWGebäude'!$R8+(1000*'Schadensrel. MM NichtWGebäude'!$S8*SQRT(D8)))))),0) -> 0 | G8: =IF(C8=0,0, IF((C8-'Schadensrel. MM NichtWGebäude'!$N8)<=0, 0, IF(((C8-'Schadensrel. MM NichtWGebäude'!$N8))>(IF( ('Schadensrel. MM NichtWGebäude'!$J8+'Schadensrel. MM NichtWGebäude'!$K8)=0, (Berechnungsgrundlagen!$I$20+Berechnungsgrundlagen!$I$21), ('Schadensrel. MM NichtWGebäude'!$J8+'Schadensrel. MM NichtWGebäude'!$K8))), IF(('Schadensrel. MM NichtWGebäude'!$J8+'Schadensrel. MM NichtWGebäude'!$K8)=0, (Berechnungsgrundlagen!$I$20+Berechnungsgrundlagen!$I$21), ('Schadensrel. MM NichtWGebäude'!$J8+'Schadensrel. MM NichtWGebäude'!$K8)), ((C8-'Schadensrel. MM NichtWGebäude'!$N8))))) -> 0 | I8: =IF(H8>0,'Schadensrel. MM NichtWGebäude'!$T8+(1000*'Schadensrel. MM NichtWGebäude'!$U8*SQRT(H8)),IF(G8=0,0,IF(C8<='Schadensrel. MM NichtWGebäude'!$N8,0, 'Schadensrel. MM NichtWGebäude'!$T8+(1000*'Schadensrel. MM NichtWGebäude'!$U8*SQRT(G8))))) -> 0 | J8: =IF(C8=0, 0, C8-('Schadensrel. MM NichtWGebäude'!$N8+ IF(('Schadensrel. MM NichtWGebäude'!$J8+'Schadensrel. Merkmale WGebäude'!$K21)=0, Berechnungsgrundlagen!$I$20+Berechnungsgrundlagen!$I$21, 'Schadensrel. MM NichtWGebäude'!$J8+'Schadensrel. MM NichtWGebäude'!$K8))) -> 0 | L8: =IF(K8>0, 'Schadensrel. MM NichtWGebäude'!$V8+(1000*'Schadensrel. MM NichtWGebäude'!$X8*SQRT(K8)), IF(C8<=('Schadensrel. MM NichtWGebäude'!N8+IF( ('Schadensrel. MM NichtWGebäude'!$J8+'Schadensrel. MM NichtWGebäude'!$K8)=0, Berechnungsgrundlagen!$I$20+Berechnungsgrundlagen!$I$21, 'Schadensrel. MM NichtWGebäude'!$J8+'Schadensrel. MM NichtWGebäude'!$K8)), 0, ('Schadensrel. MM NichtWGebäude'!$V8+(1000*'Schadensrel. MM NichtWGebäude'!$X8*SQRT(J8))))) -> 0 | M8: =IF(C8=0,0,'Schadensrel. MM NichtWGebäude'!$Y8) -> 0 | O8: =SUM(F8+I8+L8+M8)*(IF($C$5>50,1,IF(N8=0,1,1-N8))) -> 0 | T8: =IF(S8=0,0,IF(('Schadensrel. MM NichtWGebäude'!H8+'Schadensrel. MM NichtWGebäude'!I8)=0,(IF((Berechnungsgrundlagen!$I$18+Berechnungsgrundlagen!$I$19-'Schadensrel. MM NichtWGebäude'!$N8+$S8)>(Berechnungsgrundlagen!$I$18+Berechnungsgrundlagen!$I$19),(Berechnungsgrundlagen!$I$18+Berechnungsgrundlagen!$I$19),(Berechnungsgrundlagen!$I$18+Berechnungsgrundlagen!$I$19-'Schadensrel. MM NichtWGebäude'!$N8+$S8))),(IF(('Schadensrel. MM NichtWGebäude'!$H8+'Schadensrel. MM NichtWGebäude'!$I8-'Schadensrel. MM NichtWGebäude'!$N8+$S8)>('Schadensrel. MM NichtWGebäude'!$H8+'Schadensrel. MM NichtWGebäude'!$I8),('Schadensrel. MM NichtWGebäude'!$H8+'Schadensrel. MM NichtWGebäude'!$I8),('Schadensrel. MM NichtWGebäude'!$H8+'Schadensrel. MM NichtWGebäude'!$I8-'Schadensrel. MM NichtWGebäude'!$N8+$S8))))) -> 0 | V8: =IF('Schadensrel. MM NichtWGebäude'!$F8=Berechnungsgrundlagen!$D$17, IF(U8>0, 'Schadensrel. MM NichtWGebäude'!$R8+(1000*'Schadensrel. MM NichtWGebäude'!$S8*SQRT(U8)), IF(T8=0, 0, IF('Schadensrel. MM NichtWGebäude'!$O8=Berechnungsgrundlagen!$D$18, 'Schadensrel. MM NichtWGebäude'!$R8+(1000*'Schadensrel. MM NichtWGebäude'!$S8*SQRT(T8)), IF(S8<='Schadensrel. MM NichtWGebäude'!$N8, 0, 'Schadensrel. MM NichtWGebäude'!$R8+(1000*'Schadensrel. MM NichtWGebäude'!$S8*SQRT(T8)))))),0) -> 0 | W8: =IF(S8=0,0, IF((S8-'Schadensrel. MM NichtWGebäude'!$N8)<=0, 0, IF(((S8-'Schadensrel. MM NichtWGebäude'!$N8))>(IF( ('Schadensrel. MM NichtWGebäude'!$J8+'Schadensrel. MM NichtWGebäude'!$K8)=0, (Berechnungsgrundlagen!$I$20+Berechnungsgrundlagen!$I$21), ('Schadensrel. MM NichtWGebäude'!$J8+'Schadensrel. MM NichtWGebäude'!$K8))), IF(('Schadensrel. MM NichtWGebäude'!$J8+'Schadensrel. MM NichtWGebäude'!$K8)=0, (Berechnungsgrundlagen!$I$20+Berechnungsgrundlagen!$I$21), ('Schadensrel. MM NichtWGebäude'!$J8+'Schadensrel. MM NichtWGebäude'!$K8)), ((S8-'Schadensrel. MM NichtWGebäude'!$N8))))) -> 0 | Y8: =IF(X8>0,'Schadensrel. MM NichtWGebäude'!$T8+(1000*'Schadensrel. MM NichtWGebäude'!$U8*SQRT(X8)),IF(W8=0,0,IF(S8<='Schadensrel. MM NichtWGebäude'!$N8,0, 'Schadensrel. MM NichtWGebäude'!$T8+(1000*'Schadensrel. MM NichtWGebäude'!$U8*SQRT(W8))))) -> 0 | Z8: =IF(S8=0, 0, S8-('Schadensrel. MM NichtWGebäude'!$N8+ IF(('Schadensrel. MM NichtWGebäude'!$J8+'Schadensrel. Merkmale WGebäude'!$K21)=0, Berechnungsgrundlagen!$I$20+Berechnungsgrundlagen!$I$21, 'Schadensrel. MM NichtWGebäude'!$J8+'Schadensrel. MM NichtWGebäude'!$K8))) -> 0 | AB8: =IF(AA8>0, 'Schadensrel. MM NichtWGebäude'!$V8+(1000*'Schadensrel. MM NichtWGebäude'!$X8*SQRT(AA8)), IF(S8<=('Schadensrel. MM NichtWGebäude'!N8+IF( ('Schadensrel. MM NichtWGebäude'!$J8+'Schadensrel. MM NichtWGebäude'!$K8)=0, Berechnungsgrundlagen!$I$20+Berechnungsgrundlagen!$I$21, 'Schadensrel. MM NichtWGebäude'!$J8+'Schadensrel. MM NichtWGebäude'!$K8)), 0, ('Schadensrel. MM NichtWGebäude'!$V8+(1000*'Schadensrel. MM NichtWGebäude'!$X8*SQRT(Z8))))) -> 0 | AC8: =IF(S8=0,0,'Schadensrel. MM NichtWGebäude'!$Y8) -> 0 | AE8: =SUM(V8+Y8+AB8+AC8)*(IF($S$5>50,1,IF(AD8=0,1,1-AD8))) -> 0 | AJ8: =IF(AI8=0, 0, IF(('Schadensrel. MM NichtWGebäude'!H8+'Schadensrel. MM NichtWGebäude'!I8)=0, (IF((Berechnungsgrundlagen!$I$18+Berechnungsgrundlagen!$I$19-'Schadensrel. MM NichtWGebäude'!$N8+$AI8)>(Berechnungsgrundlagen!$I$18+Berechnungsgrundlagen!$I$19), (Berechnungsgrundlagen!$I$18+Berechnungsgrundlagen!$I$19), (Berechnungsgrundlagen!$I$18+Berechnungsgrundlagen!$I$19-'Schadensrel. MM NichtWGebäude'!$N8+$AI8))), (IF(('Schadensrel. MM NichtWGebäude'!$H8+'Schadensrel. MM NichtWGebäude'!$I8-'Schadensrel. MM NichtWGebäude'!$N8+$AI8)>('Schadensrel. MM NichtWGebäude'!$H8+'Schadensrel. MM NichtWGebäude'!$I8), ('Schadensrel. MM NichtWGebäude'!$H8+'Schadensrel. MM NichtWGebäude'!$I8), ('Schadensrel. MM NichtWGebäude'!$H8+'Schadensrel. MM NichtWGebäude'!$I8-'Schadensrel. MM NichtWGebäude'!$N8+$AI8))))) -> 0 | AL8: =IF('Schadensrel. MM NichtWGebäude'!$F8=Berechnungsgrundlagen!$D$17, IF(AK8>0, 'Schadensrel. MM NichtWGebäude'!$R8+(1000*'Schadensrel. MM NichtWGebäude'!$S8*SQRT(AK8)), IF(AJ8=0, 0, IF('Schadensrel. MM NichtWGebäude'!$O8=Berechnungsgrundlagen!$D$18, 'Schadensrel. MM NichtWGebäude'!$R8+(1000*'Schadensrel. MM NichtWGebäude'!$S8*SQRT(AJ8)), IF(AI8<='Schadensrel. MM NichtWGebäude'!$N8, 0, 'Schadensrel. MM NichtWGebäude'!$R8+(1000*'Schadensrel. MM NichtWGebäude'!$S8*SQRT(AJ8)))))),0) -> 0 | AM8: =IF(AI8=0,0, IF((AI8-'Schadensrel. MM NichtWGebäude'!$N8)<=0, 0, IF(((AI8-'Schadensrel. MM NichtWGebäude'!$N8))>(IF( ('Schadensrel. MM NichtWGebäude'!$J8+'Schadensrel. MM NichtWGebäude'!$K8)=0, (Berechnungsgrundlagen!$I$20+Berechnungsgrundlagen!$I$21), ('Schadensrel. MM NichtWGebäude'!$J8+'Schadensrel. MM NichtWGebäude'!$K8))), IF(('Schadensrel. MM NichtWGebäude'!$J8+'Schadensrel. MM NichtWGebäude'!$K8)=0, (Berechnungsgrundlagen!$I$20+Berechnungsgrundlagen!$I$21), ('Schadensrel. MM NichtWGebäude'!$J8+'Schadensrel. MM NichtWGebäude'!$K8)), ((AI8-'Schadensrel. MM NichtWGebäude'!$N8))))) -> 0 | AO8: =IF(AN8>0,'Schadensrel. MM NichtWGebäude'!$T8+(1000*'Schadensrel. MM NichtWGebäude'!$U8*SQRT(AN8)),IF(AM8=0,0,IF(AI8<='Schadensrel. MM NichtWGebäude'!$N8,0, 'Schadensrel. MM NichtWGebäude'!$T8+(1000*'Schadensrel. MM NichtWGebäude'!$U8*SQRT(AM8))))) -> 0 | AP8: =IF(AI8=0, 0, AI8-('Schadensrel. MM NichtWGebäude'!$N8+ IF(('Schadensrel. MM NichtWGebäude'!$J8+'Schadensrel. Merkmale WGebäude'!$K8)=0, Berechnungsgrundlagen!$I$20+Berechnungsgrundlagen!$I$21, 'Schadensrel. MM NichtWGebäude'!$J8+'Schadensrel. MM NichtWGebäude'!$K8))) -> 0 | AR8: =IF(AQ8>0, 'Schadensrel. MM NichtWGebäude'!$V8+(1000*'Schadensrel. MM NichtWGebäude'!$X8*SQRT(AQ8)), IF(AI8<=('Schadensrel. MM NichtWGebäude'!N8+IF( ('Schadensrel. MM NichtWGebäude'!$J8+'Schadensrel. MM NichtWGebäude'!$K8)=0, Berechnungsgrundlagen!$I$20+Berechnungsgrundlagen!$I$21, 'Schadensrel. MM NichtWGebäude'!$J8+'Schadensrel. MM NichtWGebäude'!$K8)), 0, ('Schadensrel. MM NichtWGebäude'!$V8+(1000*'Schadensrel. MM NichtWGebäude'!$X8*SQRT(AP8))))) -> 0 | AS8: =IF(AI8=0,0,'Schadensrel. MM NichtWGebäude'!$Y8) -> 0 | AU8: =SUM(AL8+AO8+AR8+AS8)*(IF($AI$5>50,1,IF(AT8=0,1,1-AT8))) -> 0 | AZ8: =IF(AY8=0, 0, IF(('Schadensrel. MM NichtWGebäude'!H8+'Schadensrel. MM NichtWGebäude'!I8)=0, (IF((Berechnungsgrundlagen!$I$18+Berechnungsgrundlagen!$I$19-'Schadensrel. MM NichtWGebäude'!$N8+$AY8)>(Berechnungsgrundlagen!$I$18+Berechnungsgrundlagen!$I$19), (Berechnungsgrundlagen!$I$18+Berechnungsgrundlagen!$I$19), (Berechnungsgrundlagen!$I$18+Berechnungsgrundlagen!$I$19-'Schadensrel. MM NichtWGebäude'!$N8+$AY8))), (IF(('Schadensrel. MM NichtWGebäude'!$H8+'Schadensrel. MM NichtWGebäude'!$I8-'Schadensrel. MM NichtWGebäude'!$N8+$AY8)>('Schadensrel. MM NichtWGebäude'!$H8+'Schadensrel. MM NichtWGebäude'!$I8), ('Schadensrel. MM NichtWGebäude'!$H8+'Schadensrel. MM NichtWGebäude'!$I8), ('Schadensrel. MM NichtWGebäude'!$H8+'Schadensrel. MM NichtWGebäude'!$I8-'Schadensrel. MM NichtWGebäude'!$N8+$AY8))))) -> 0 | BB8: =IF('Schadensrel. MM NichtWGebäude'!$F8=Berechnungsgrundlagen!$D$17, IF(BA8>0, 'Schadensrel. MM NichtWGebäude'!$R8+(1000*'Schadensrel. MM NichtWGebäude'!$S8*SQRT(BA8)), IF(AZ8=0, 0, IF('Schadensrel. MM NichtWGebäude'!$O8=Berechnungsgrundlagen!$D$18, 'Schadensrel. MM NichtWGebäude'!$R8+(1000*'Schadensrel. MM NichtWGebäude'!$S8*SQRT(AZ8)), IF(AY8<='Schadensrel. MM NichtWGebäude'!$N8, 0, 'Schadensrel. MM NichtWGebäude'!$R8+(1000*'Schadensrel. MM NichtWGebäude'!$S8*SQRT(AZ8)))))),0) -> 0 | BC8: =IF(AY8=0,0, IF((AY8-'Schadensrel. MM NichtWGebäude'!$N8)<=0, 0, IF(((AY8-'Schadensrel. MM NichtWGebäude'!$N8))>(IF( ('Schadensrel. MM NichtWGebäude'!$J8+'Schadensrel. MM NichtWGebäude'!$K8)=0, (Berechnungsgrundlagen!$I$20+Berechnungsgrundlagen!$I$21), ('Schadensrel. MM NichtWGebäude'!$J8+'Schadensrel. MM NichtWGebäude'!$K8))), IF(('Schadensrel. MM NichtWGebäude'!$J8+'Schadensrel. MM NichtWGebäude'!$K8)=0, (Berechnungsgrundlagen!$I$20+Berechnungsgrundlagen!$I$21), ('Schadensrel. MM NichtWGebäude'!$J8+'Schadensrel. MM NichtWGebäude'!$K8)), ((AY8-'Schadensrel. MM NichtWGebäude'!$N8))))) -> 0 | BE8: =IF(BD8>0,'Schadensrel. MM NichtWGebäude'!$T8+(1000*'Schadensrel. MM NichtWGebäude'!$U8*SQRT(BD8)),IF(BC8=0,0,IF(AY8<='Schadensrel. MM NichtWGebäude'!$N8,0, 'Schadensrel. MM NichtWGebäude'!$T8+(1000*'Schadensrel. MM NichtWGebäude'!$U8*SQRT(BC8))))) -> 0 | BF8: =IF(AY8=0, 0, AY8-('Schadensrel. MM NichtWGebäude'!$N8+ IF(('Schadensrel. MM NichtWGebäude'!$J8+'Schadensrel. Merkmale WGebäude'!$K21)=0, Berechnungsgrundlagen!$I$20+Berechnungsgrundlagen!$I$21, 'Schadensrel. MM NichtWGebäude'!$J8+'Schadensrel. MM NichtWGebäude'!$K8))) -> 0 | BH8: =IF(BG8>0, 'Schadensrel. MM NichtWGebäude'!$V8+(1000*'Schadensrel. MM NichtWGebäude'!$X8*SQRT(BG8)), IF(AY8<=('Schadensrel. MM NichtWGebäude'!N8+IF( ('Schadensrel. MM NichtWGebäude'!$J8+'Schadensrel. MM NichtWGebäude'!$K8)=0, Berechnungsgrundlagen!$I$20+Berechnungsgrundlagen!$I$21, 'Schadensrel. MM NichtWGebäude'!$J8+'Schadensrel. MM NichtWGebäude'!$K8)), 0, ('Schadensrel. MM NichtWGebäude'!$V8+(1000*'Schadensrel. MM NichtWGebäude'!$X8*SQRT(BF8))))) -> 0 | BI8: =IF(AY8=0,0,'Schadensrel. MM NichtWGebäude'!$Y8) -> 0 | BK8: =SUM(BB8+BE8+BH8+BI8)*(IF($AY$5>50,1,IF(BJ8=0,1,1-BJ8))) -> 0 | BP8: =IF(BO8=0, 0, IF(('Schadensrel. MM NichtWGebäude'!H8+'Schadensrel. MM NichtWGebäude'!I8)=0, (IF((Berechnungsgrundlagen!$I$18+Berechnungsgrundlagen!$I$19-'Schadensrel. MM NichtWGebäude'!$N8+$BO8)>(Berechnungsgrundlagen!$I$18+Berechnungsgrundlagen!$I$19), (Berechnungsgrundlagen!$I$18+Berechnungsgrundlagen!$I$19), (Berechnungsgrundlagen!$I$18+Berechnungsgrundlagen!$I$19-'Schadensrel. MM NichtWGebäude'!$N8+$BO8))), (IF(('Schadensrel. MM NichtWGebäude'!$H8+'Schadensrel. MM NichtWGebäude'!$I8-'Schadensrel. MM NichtWGebäude'!$N8+$BO8)>('Schadensrel. MM NichtWGebäude'!$H8+'Schadensrel. MM NichtWGebäude'!$I8), ('Schadensrel. MM NichtWGebäude'!$H8+'Schadensrel. MM NichtWGebäude'!$I8), ('Schadensrel. MM NichtWGebäude'!$H8+'Schadensrel. MM NichtWGebäude'!$I8-'Schadensrel. MM NichtWGebäude'!$N8+$BO8))))) -> 0 | BR8: =IF('Schadensrel. MM NichtWGebäude'!$F8=Berechnungsgrundlagen!$D$17, IF(BQ8>0, 'Schadensrel. MM NichtWGebäude'!$R8+(1000*'Schadensrel. MM NichtWGebäude'!$S8*SQRT(BQ8)), IF(BP8=0, 0, IF('Schadensrel. MM NichtWGebäude'!$O8=Berechnungsgrundlagen!$D$18, 'Schadensrel. MM NichtWGebäude'!$R8+(1000*'Schadensrel. MM NichtWGebäude'!$S8*SQRT(BP8)), IF(BO8<='Schadensrel. MM NichtWGebäude'!$N8, 0, 'Schadensrel. MM NichtWGebäude'!$R8+(1000*'Schadensrel. MM NichtWGebäude'!$S8*SQRT(BP8)))))),0) -> 0 | BS8: =IF(BO8=0,0, IF((BO8-'Schadensrel. MM NichtWGebäude'!$N8)<=0, 0, IF(((BO8-'Schadensrel. MM NichtWGebäude'!$N8))>(IF( ('Schadensrel. MM NichtWGebäude'!$J8+'Schadensrel. MM NichtWGebäude'!$K8)=0, (Berechnungsgrundlagen!$I$20+Berechnungsgrundlagen!$I$21), ('Schadensrel. MM NichtWGebäude'!$J8+'Schadensrel. MM NichtWGebäude'!$K8))), IF(('Schadensrel. MM NichtWGebäude'!$J8+'Schadensrel. MM NichtWGebäude'!$K8)=0, (Berechnungsgrundlagen!$I$20+Berechnungsgrundlagen!$I$21), ('Schadensrel. MM NichtWGebäude'!$J8+'Schadensrel. MM NichtWGebäude'!$K8)), ((BO8-'Schadensrel. MM NichtWGebäude'!$N8))))) -> 0 | BU8: =IF(BT8>0,'Schadensrel. MM NichtWGebäude'!$T8+(1000*'Schadensrel. MM NichtWGebäude'!$U8*SQRT(BT8)),IF(BS8=0,0,IF(BO8<='Schadensrel. MM NichtWGebäude'!$N8,0, 'Schadensrel. MM NichtWGebäude'!$T8+(1000*'Schadensrel. MM NichtWGebäude'!$U8*SQRT(BS8))))) -> 0 | BV8: =IF(BO8=0, 0, BO8-('Schadensrel. MM NichtWGebäude'!$N8+ IF(('Schadensrel. MM NichtWGebäude'!$J8+'Schadensrel. Merkmale WGebäude'!$K21)=0, Berechnungsgrundlagen!$I$20+Berechnungsgrundlagen!$I$21, 'Schadensrel. MM NichtWGebäude'!$J8+'Schadensrel. MM NichtWGebäude'!$K8))) -> 0 | BX8: =IF(BW8>0, 'Schadensrel. MM NichtWGebäude'!$V8+(1000*'Schadensrel. MM NichtWGebäude'!$X8*SQRT(BW8)), IF(BO8<=('Schadensrel. MM NichtWGebäude'!N8+IF( ('Schadensrel. MM NichtWGebäude'!$J8+'Schadensrel. MM NichtWGebäude'!$K8)=0, Berechnungsgrundlagen!$I$20+Berechnungsgrundlagen!$I$21, 'Schadensrel. MM NichtWGebäude'!$J8+'Schadensrel. MM NichtWGebäude'!$K8)), 0, ('Schadensrel. MM NichtWGebäude'!$V8+(1000*'Schadensrel. MM NichtWGebäude'!$X8*SQRT(BV8))))) -> 0 | BY8: =IF(BO8=0,0,'Schadensrel. MM NichtWGebäude'!$Y8) -> 0 | CA8: =SUM(BR8+BU8+BX8+BY8)*(IF($BO$5>50,1,IF(BZ8=0,1,1-BZ8))) -> 0 | CF8: =IF(CE8=0, 0, IF(('Schadensrel. MM NichtWGebäude'!H8+'Schadensrel. MM NichtWGebäude'!I8)=0, (IF((Berechnungsgrundlagen!$I$18+Berechnungsgrundlagen!$I$19-'Schadensrel. MM NichtWGebäude'!$N8+$CE8)>(Berechnungsgrundlagen!$I$18+Berechnungsgrundlagen!$I$19), (Berechnungsgrundlagen!$I$18+Berechnungsgrundlagen!$I$19), (Berechnungsgrundlagen!$I$18+Berechnungsgrundlagen!$I$19-'Schadensrel. MM NichtWGebäude'!$N8+$CE8))), (IF(('Schadensrel. MM NichtWGebäude'!$H8+'Schadensrel. MM NichtWGebäude'!$I8-'Schadensrel. MM NichtWGebäude'!$N8+$CE8)>('Schadensrel. MM NichtWGebäude'!$H8+'Schadensrel. MM NichtWGebäude'!$I8), ('Schadensrel. MM NichtWGebäude'!$H8+'Schadensrel. MM NichtWGebäude'!$I8), ('Schadensrel. MM NichtWGebäude'!$H8+'Schadensrel. MM NichtWGebäude'!$I8-'Schadensrel. MM NichtWGebäude'!$N8+$CE8))))) -> 0 | CH8: =IF('Schadensrel. MM NichtWGebäude'!$F8=Berechnungsgrundlagen!$D$17, IF(CG8>0, 'Schadensrel. MM NichtWGebäude'!$R8+(1000*'Schadensrel. MM NichtWGebäude'!$S8*SQRT(CG8)), IF(CF8=0, 0, IF('Schadensrel. MM NichtWGebäude'!$O8=Berechnungsgrundlagen!$D$18, 'Schadensrel. MM NichtWGebäude'!$R8+(1000*'Schadensrel. MM NichtWGebäude'!$S8*SQRT(CF8)), IF(CE8<='Schadensrel. MM NichtWGebäude'!$N8, 0, 'Schadensrel. MM NichtWGebäude'!$R8+(1000*'Schadensrel. MM NichtWGebäude'!$S8*SQRT(CF8)))))),0) -> 0 | CI8: =IF(CE8=0,0, IF((CE8-'Schadensrel. MM NichtWGebäude'!$N8)<=0, 0, IF(((CE8-'Schadensrel. MM NichtWGebäude'!$N8))>(IF( ('Schadensrel. MM NichtWGebäude'!$J8+'Schadensrel. MM NichtWGebäude'!$K8)=0, (Berechnungsgrundlagen!$I$20+Berechnungsgrundlagen!$I$21), ('Schadensrel. MM NichtWGebäude'!$J8+'Schadensrel. MM NichtWGebäude'!$K8))), IF(('Schadensrel. MM NichtWGebäude'!$J8+'Schadensrel. MM NichtWGebäude'!$K8)=0, (Berechnungsgrundlagen!$I$20+Berechnungsgrundlagen!$I$21), ('Schadensrel. MM NichtWGebäude'!$J8+'Schadensrel. MM NichtWGebäude'!$K8)), ((CE8-'Schadensrel. MM NichtWGebäude'!$N8))))) -> 0 | CK8: =IF(CJ8>0,'Schadensrel. MM NichtWGebäude'!$T8+(1000*'Schadensrel. MM NichtWGebäude'!$U8*SQRT(CJ8)),IF(CI8=0,0,IF(CE8<='Schadensrel. MM NichtWGebäude'!$N8,0, 'Schadensrel. MM NichtWGebäude'!$T8+(1000*'Schadensrel. MM NichtWGebäude'!$U8*SQRT(CI8))))) -> 0 | CL8: =IF(CE8=0, 0, CE8-('Schadensrel. MM NichtWGebäude'!$N8+ IF(('Schadensrel. MM NichtWGebäude'!$J8+'Schadensrel. Merkmale WGebäude'!$K21)=0, Berechnungsgrundlagen!$I$20+Berechnungsgrundlagen!$I$21, 'Schadensrel. MM NichtWGebäude'!$J8+'Schadensrel. MM NichtWGebäude'!$K8))) -> 0 | CN8: =IF(CM8>0, 'Schadensrel. MM NichtWGebäude'!$V8+(1000*'Schadensrel. MM NichtWGebäude'!$X8*SQRT(CM8)), IF(CE8<=('Schadensrel. MM NichtWGebäude'!N8+IF( ('Schadensrel. MM NichtWGebäude'!$J8+'Schadensrel. MM NichtWGebäude'!$K8)=0, Berechnungsgrundlagen!$I$20+Berechnungsgrundlagen!$I$21, 'Schadensrel. MM NichtWGebäude'!$J8+'Schadensrel. MM NichtWGebäude'!$K8)), 0, ('Schadensrel. MM NichtWGebäude'!$V8+(1000*'Schadensrel. MM NichtWGebäude'!$X8*SQRT(CL8))))) -> 0 | CO8: =IF(CE8=0,0,'Schadensrel. MM NichtWGebäude'!$Y8) -> 0 | CQ8: =SUM(CH8+CK8+CN8+CO8)*(IF($CE$5>50,1,IF(CP8=0,1,1-CP8))) -> 0 | CV8: =IF(CU8=0, 0, IF(('Schadensrel. MM NichtWGebäude'!H8+'Schadensrel. MM NichtWGebäude'!I8)=0, (IF((Berechnungsgrundlagen!$I$18+Berechnungsgrundlagen!$I$19-'Schadensrel. MM NichtWGebäude'!$N8+$CU8)>(Berechnungsgrundlagen!$I$18+Berechnungsgrundlagen!$I$19), (Berechnungsgrundlagen!$I$18+Berechnungsgrundlagen!$I$19), (Berechnungsgrundlagen!$I$18+Berechnungsgrundlagen!$I$19-'Schadensrel. MM NichtWGebäude'!$N8+$CU8))), (IF(('Schadensrel. MM NichtWGebäude'!$H8+'Schadensrel. MM NichtWGebäude'!$I8-'Schadensrel. MM NichtWGebäude'!$N8+$CU8)>('Schadensrel. MM NichtWGebäude'!$H8+'Schadensrel. MM NichtWGebäude'!$I8), ('Schadensrel. MM NichtWGebäude'!$H8+'Schadensrel. MM NichtWGebäude'!$I8), ('Schadensrel. MM NichtWGebäude'!$H8+'Schadensrel. MM NichtWGebäude'!$I8-'Schadensrel. MM NichtWGebäude'!$N8+$CU8))))) -> 0 | CX8: =IF('Schadensrel. MM NichtWGebäude'!$F8=Berechnungsgrundlagen!$D$17, IF(CW8>0, 'Schadensrel. MM NichtWGebäude'!$R8+(1000*'Schadensrel. MM NichtWGebäude'!$S8*SQRT(CW8)), IF(CV8=0, 0, IF('Schadensrel. MM NichtWGebäude'!$O8=Berechnungsgrundlagen!$D$18, 'Schadensrel. MM NichtWGebäude'!$R8+(1000*'Schadensrel. MM NichtWGebäude'!$S8*SQRT(CV8)), IF(CU8<='Schadensrel. MM NichtWGebäude'!$N8, 0, 'Schadensrel. MM NichtWGebäude'!$R8+(1000*'Schadensrel. MM NichtWGebäude'!$S8*SQRT(CV8)))))),0) -> 0 | CY8: =IF(CU8=0,0, IF((CU8-'Schadensrel. MM NichtWGebäude'!$N8)<=0, 0, IF(((CU8-'Schadensrel. MM NichtWGebäude'!$N8))>(IF( ('Schadensrel. MM NichtWGebäude'!$J8+'Schadensrel. MM NichtWGebäude'!$K8)=0, (Berechnungsgrundlagen!$I$20+Berechnungsgrundlagen!$I$21), ('Schadensrel. MM NichtWGebäude'!$J8+'Schadensrel. MM NichtWGebäude'!$K8))), IF(('Schadensrel. MM NichtWGebäude'!$J8+'Schadensrel. MM NichtWGebäude'!$K8)=0, (Berechnungsgrundlagen!$I$20+Berechnungsgrundlagen!$I$21), ('Schadensrel. MM NichtWGebäude'!$J8+'Schadensrel. MM NichtWGebäude'!$K8)), ((CU8-'Schadensrel. MM NichtWGebäude'!$N8))))) -> 0 | DA8: =IF(CZ8>0,'Schadensrel. MM NichtWGebäude'!$T8+(1000*'Schadensrel. MM NichtWGebäude'!$U8*SQRT(CZ8)),IF(CY8=0,0,IF(CU8<='Schadensrel. MM NichtWGebäude'!$N8,0, 'Schadensrel. MM NichtWGebäude'!$T8+(1000*'Schadensrel. MM NichtWGebäude'!$U8*SQRT(CY8))))) -> 0 | DB8: =IF(CU8=0, 0, CU8-('Schadensrel. MM NichtWGebäude'!$N8+ IF(('Schadensrel. MM NichtWGebäude'!$J8+'Schadensrel. Merkmale WGebäude'!$K21)=0, Berechnungsgrundlagen!$I$20+Berechnungsgrundlagen!$I$21, 'Schadensrel. MM NichtWGebäude'!$J8+'Schadensrel. MM NichtWGebäude'!$K8))) -> 0 | DD8: =IF(DC8>0, 'Schadensrel. MM NichtWGebäude'!$V8+(1000*'Schadensrel. MM NichtWGebäude'!$X8*SQRT(DC8)), IF(CU8<=('Schadensrel. MM NichtWGebäude'!N8+IF( ('Schadensrel. MM NichtWGebäude'!$J8+'Schadensrel. MM NichtWGebäude'!$K8)=0, Berechnungsgrundlagen!$I$20+Berechnungsgrundlagen!$I$21, 'Schadensrel. MM NichtWGebäude'!$J8+'Schadensrel. MM NichtWGebäude'!$K8)), 0, ('Schadensrel. MM NichtWGebäude'!$V8+(1000*'Schadensrel. MM NichtWGebäude'!$X8*SQRT(DB8))))) -> 0 | DE8: =IF(CU8=0,0,'Schadensrel. MM NichtWGebäude'!$Y8) -> 0 | DG8: =SUM(CX8+DA8+DD8+DE8)*(IF($CU$5>50,1,IF(DF8=0,1,1-DF8))) -> 0
Q10: =SUM(Q7:Q8) -> 0 | AG10: =SUM(AG7:AG8) -> 0 | AW10: =SUM(AW7:AW8) -> 0 | BM10: =SUM(BM7:BM8) -> 0 | CC10: =SUM(CC7:CC8) -> 0 | CS10: =SUM(CS7:CS8) -> 0 | DI10: =SUM(DI7:DI8) -> 0
A11: Nicht - Wohngebäude sowie Gewerbe und Industrie bei HQx | C11: =C5 -> 0 | S11: =S5 -> 0 | AI11: =AI5 -> 0 | AY11: =AY5 -> 0 | BO11: =BO5 -> 0 | CE11: =CE5 -> 100 | CU11: =CU5 -> 0
C12: =SUM(O7:P8) -> 0 | S12: =SUM(AE7:AF8) -> 0 | AI12: =SUM(AU7:AV8) -> 0 | AY12: =SUM(BK7:BL8) -> 0 | BO12: =SUM(CA7:CB8) -> 0 | CE12: =SUM(CQ7:CR8) -> 0 | CU12: =SUM(DG7:DH8) -> 0

Sheet Schadenseingabe Öffentl. Geb.
A1: Schadenseingabe Öffentliche Gebäude
A2: Öffentliche Gebäude soweit nicht unter Nicht - Wohngebäude erfasst
C5: bei HQ | D5: =Projektgrunddaten!$C$24 -> 0 | F5: =Projektgrunddaten!$C$25 -> 0 | H5: =Projektgrunddaten!$C$26 -> 0 | J5: =Projektgrunddaten!$C$27 -> 0 | L5: =Projektgrunddaten!$C$28 -> 0 | N5: =Projektgrunddaten!$C$29 -> 100 | P5: =Projektgrunddaten!$C$30 -> 0
A6: Adresse (Gemeinde, Straße, Nummer) | B6: Bezeichnung bzw. Nutzung des Gebäudes (z.B. Pfarrhof, Trafostation, Schule, Museum, ect.) | C6: Erhaltungszustand des Gebäudes | D6: Wassertiefe über GOK [m] | E6: Vermögensschaden (€) | F6: Wassertiefe über GOK [m] | G6: Vermögensschaden (€) | H6: Wassertiefe über GOK [m] | I6: Vermögensschaden (€) | J6: Wassertiefe über GOK [m] | K6: Vermögensschaden (€) | L6: Wassertiefe über GOK [m] | M6: Vermögensschaden (€) | N6: Wassertiefe über GOK [m] | O6: Vermögensschaden (€) | P6: Wassertiefe über GOK [m] | Q6: Vermögensschaden (€)
C12: bei HQ | D12: =Projektgrunddaten!$C$24 -> 0 | F12: =Projektgrunddaten!$C$25 -> 0 | H12: =Projektgrunddaten!$C$26 -> 0 | J12: =Projektgrunddaten!$C$27 -> 0 | L12: =Projektgrunddaten!$C$28 -> 0 | N12: =Projektgrunddaten!$C$29 -> 100 | P12: =Projektgrunddaten!$C$30 -> 0
A13: SUMME Vermögensschäden Öffentliche Gebäude soweit nicht unter Nicht - Wohngebäude erfasst | D13: =SUM(E7:E8) -> 0 | F13: =SUM(G7:G8) -> 0 | H13: =SUM(I7:I8) -> 0 | J13: =SUM(K7:K8) -> 0 | L13: =SUM(M7:M8) -> 0 | N13: =SUM(O7:O8) -> 0 | P13: =SUM(Q7:Q8) -> 0

Sheet Wertschöpfungsverluste
A1: WERTSCHÖPFUNGSVERLUSTE
D3: Anzahl betroffene Beschäftigte / Ausfalltage bei HQx
A4: Wirtschaftssektor Gewerbe/Industrie | B4: Bundesland | C4: Anzahl Betriebe | D4: Betroffene Beschäftigte mal Anzahl der Ausfalltage; Summe aller Betriebe des betrachteten Wirtschaftssektors | E4: Summe der Ausfalltage im betrachteten Wirtschaftssektor (Arbeitstage) | F4: Betroffene Beschäftigte mal Anzahl der Ausfalltage; Summe aller Betriebe des betrachteten Wirtschaftssektors | G4: Summe der Ausfalltage im betrachteten Wirtschaftssektor (Arbeitstage) | H4: Betroffene Beschäftigte mal Anzahl der Ausfalltage; Summe aller Betriebe des betrachteten Wirtschaftssektors | I4: Summe der Ausfalltage im betrachteten Wirtschaftssektor (Arbeitstage) | J4: Betroffene Beschäftigte mal Anzahl der Ausfalltage; Summe aller Betriebe des betrachteten Wirtschaftssektors | K4: Summe der Ausfalltage im betrachteten Wirtschaftssektor (Arbeitstage) | L4: Betroffene Beschäftigte mal Anzahl der Ausfalltage; Summe aller Betriebe des betrachteten Wirtschaftssektors | M4: Summe der Ausfalltage im betrachteten Wirtschaftssektor (Arbeitstage) | N4: Betroffene Beschäftigte mal Anzahl der Ausfalltage; Summe aller Betriebe des betrachteten Wirtschaftssektors | O4: Summe der Ausfalltage im betrachteten Wirtschaftssektor (Arbeitstage) | P4: Betroffene Beschäftigte mal Anzahl der Ausfalltage; Summe aller Betriebe des betrachteten Wirtschaftssektors | Q4: Summe der Ausfalltage im betrachteten Wirtschaftssektor (Arbeitstage) | R4: Wertschöpfungs-verlust in € pro Tag und Person
D5: =Projektgrunddaten!$C$24 -> 0 | F5: =Projektgrunddaten!$C$25 -> 0 | H5: =Projektgrunddaten!$C$26 -> 0 | J5: =Projektgrunddaten!$C$27 -> 0 | L5: =Projektgrunddaten!$C$28 -> 0 | N5: =Projektgrunddaten!$C$29 -> 100 | P5: =Projektgrunddaten!$C$30 -> 0
A6: ='Daten für Bruttowertschöpfung'!B2 -> Bergbau und Gewinnung von Steinen u. Erden (B) | B6: =Projektgrunddaten!$C$7 -> Österreich | C6: =COUNTIF('Schadensermittl. NichtWGebäude'!$B$7:$B$8,$A6) -> 0 | D6: =SUMPRODUCT(('Schadensermittl. NichtWGebäude'!$B$7:$B$8=$A6 )*('Schadensermittl. NichtWGebäude'!Q$7:Q$8)*('Schadensermittl. NichtWGebäude'!R$7:R$8)) -> 0 | E6: =SUMIF('Schadensermittl. NichtWGebäude'!$B$7:$B$8,$A6,'Schadensermittl. NichtWGebäude'!$R$7:$R$8) -> 0 | F6: =SUMPRODUCT(('Schadensermittl. NichtWGebäude'!$B$7:$B$8=$A6 )*('Schadensermittl. NichtWGebäude'!AG$7:AG$8)*('Schadensermittl. NichtWGebäude'!AH$7:AH$8)) -> 0 | G6: =SUMIF('Schadensermittl. NichtWGebäude'!$B$7:$B$8,$A6,'Schadensermittl. NichtWGebäude'!$AH$7:$AH$8) -> 0 | H6: =SUMPRODUCT(('Schadensermittl. NichtWGebäude'!$B$7:$B$8=$A6 )*('Schadensermittl. NichtWGebäude'!AW$7:AW$8)*('Schadensermittl. NichtWGebäude'!AX$7:AX$8)) -> 0 | I6: =SUMIF('Schadensermittl. NichtWGebäude'!$B$7:$B$8,$A6,'Schadensermittl. NichtWGebäude'!$AX$7:$AX$8) -> 0 | J6: =SUMPRODUCT(('Schadensermittl. NichtWGebäude'!$B$7:$B$8=$A6 )*('Schadensermittl. NichtWGebäude'!BM$7:BM$8)*('Schadensermittl. NichtWGebäude'!BN$7:BN$8)) -> 0 | K6: =SUMIF('Schadensermittl. NichtWGebäude'!$B$7:$B$8,$A6,'Schadensermittl. NichtWGebäude'!$BN$7:$BN$8) -> 0 | L6: =SUMPRODUCT(('Schadensermittl. NichtWGebäude'!$B$7:$B$8=$A6 )*('Schadensermittl. NichtWGebäude'!CC$7:CC$8)*('Schadensermittl. NichtWGebäude'!CD$7:CD$8)) -> 0 | M6: =SUMIF('Schadensermittl. NichtWGebäude'!$B$7:$B$8,$A6,'Schadensermittl. NichtWGebäude'!$CD$7:$CD$8) -> 0 | N6: =SUMPRODUCT(('Schadensermittl. NichtWGebäude'!$B$7:$B$8=$A6 )*('Schadensermittl. NichtWGebäude'!CS$7:CS$8)*('Schadensermittl. NichtWGebäude'!CT$7:CT$8)) -> 0 | O6: =SUMIF('Schadensermittl. NichtWGebäude'!$B$7:$B$8,$A6,'Schadensermittl. NichtWGebäude'!$CT$7:$CT$8) -> 0 | P6: =SUMPRODUCT(('Schadensermittl. NichtWGebäude'!$B$7:$B$8=$A6 )*('Schadensermittl. NichtWGebäude'!DI$7:DI$8)*('Schadensermittl. NichtWGebäude'!DJ$7:DJ$8)) -> 0 | Q6: =SUMIF('Schadensermittl. NichtWGebäude'!$B$7:$B$8,$A6,'Schadensermittl. NichtWGebäude'!$DJ$7:$DJ$8) -> 0 | R6: =IF(OR($A6=0,$B6=0),0,INDEX('Daten für Bruttowertschöpfung'!$C$2:$L$15,MATCH(Wertschöpfungsverluste!$A6,'Daten für Bruttowertschöpfung'!$B$2:$B$15,0),MATCH(Wertschöpfungsverluste!$B6,'Daten für Bruttowertschöpfung'!$C$1:$L$1,0))) -> 969.1719469
A7: ='Daten für Bruttowertschöpfung'!B3 -> Herstellung von Waren (C) | B7: =Projektgrunddaten!$C$7 -> Österreich | C7: =COUNTIF('Schadensermittl. NichtWGebäude'!$B$7:$B$8,$A7) -> 0 | D7: =SUMPRODUCT(('Schadensermittl. NichtWGebäude'!$B$7:$B$8=$A7 )*('Schadensermittl. NichtWGebäude'!Q$7:Q$8)*('Schadensermittl. NichtWGebäude'!R$7:R$8)) -> 0 | E7: =SUMIF('Schadensermittl. NichtWGebäude'!$B$7:$B$8,$A7,'Schadensermittl. NichtWGebäude'!$R$7:$R$8) -> 0 | F7: =SUMPRODUCT(('Schadensermittl. NichtWGebäude'!$B$7:$B$8=$A7 )*('Schadensermittl. NichtWGebäude'!AG$7:AG$8)*('Schadensermittl. NichtWGebäude'!AH$7:AH$8)) -> 0 | G7: =SUMIF('Schadensermittl. NichtWGebäude'!$B$7:$B$8,$A7,'Schadensermittl. NichtWGebäude'!$AH$7:$AH$8) -> 0 | H7: =SUMPRODUCT(('Schadensermittl. NichtWGebäude'!$B$7:$B$8=$A7 )*('Schadensermittl. NichtWGebäude'!AW$7:AW$8)*('Schadensermittl. NichtWGebäude'!AX$7:AX$8)) -> 0 | I7: =SUMIF('Schadensermittl. NichtWGebäude'!$B$7:$B$8,$A7,'Schadensermittl. NichtWGebäude'!$AX$7:$AX$8) -> 0 | J7: =SUMPRODUCT(('Schadensermittl. NichtWGebäude'!$B$7:$B$8=$A7 )*('Schadensermittl. NichtWGebäude'!BM$7:BM$8)*('Schadensermittl. NichtWGebäude'!BN$7:BN$8)) -> 0 | K7: =SUMIF('Schadensermittl. NichtWGebäude'!$B$7:$B$8,$A7,'Schadensermittl. NichtWGebäude'!$BN$7:$BN$8) -> 0 | L7: =SUMPRODUCT(('Schadensermittl. NichtWGebäude'!$B$7:$B$8=$A7 )*('Schadensermittl. NichtWGebäude'!CC$7:CC$8)*('Schadensermittl. NichtWGebäude'!CD$7:CD$8)) -> 0 | M7: =SUMIF('Schadensermittl. NichtWGebäude'!$B$7:$B$8,$A7,'Schadensermittl. NichtWGebäude'!$CD$7:$CD$8) -> 0 | N7: =SUMPRODUCT(('Schadensermittl. NichtWGebäude'!$B$7:$B$8=$A7 )*('Schadensermittl. NichtWGebäude'!CS$7:CS$8)*('Schadensermittl. NichtWGebäude'!CT$7:CT$8)) -> 0 | O7: =SUMIF('Schadensermittl. NichtWGebäude'!$B$7:$B$8,$A7,'Schadensermittl. NichtWGebäude'!$CT$7:$CT$8) -> 0 | P7: =SUMPRODUCT(('Schadensermittl. NichtWGebäude'!$B$7:$B$8=$A7 )*('Schadensermittl. NichtWGebäude'!DI$7:DI$8)*('Schadensermittl. NichtWGebäude'!DJ$7:DJ$8)) -> 0 | Q7: =SUMIF('Schadensermittl. NichtWGebäude'!$B$7:$B$8,$A7,'Schadensermittl. NichtWGebäude'!$DJ$7:$DJ$8) -> 0 | R7: =IF(OR($A7=0,$B7=0),0,INDEX('Daten für Bruttowertschöpfung'!$C$2:$L$15,MATCH(Wertschöpfungsverluste!$A7,'Daten für Bruttowertschöpfung'!$B$2:$B$15,0),MATCH(Wertschöpfungsverluste!$B7,'Daten für Bruttowertschöpfung'!$C$1:$L$1,0))) -> 356.4675635
A8: ='Daten für Bruttowertschöpfung'!B4 -> Energieversorgung (D) | B8: =Projektgrunddaten!$C$7 -> Österreich | C8: =COUNTIF('Schadensermittl. NichtWGebäude'!$B$7:$B$8,$A8) -> 0 | D8: =SUMPRODUCT(('Schadensermittl. NichtWGebäude'!$B$7:$B$8=$A8 )*('Schadensermittl. NichtWGebäude'!Q$7:Q$8)*('Schadensermittl. NichtWGebäude'!R$7:R$8)) -> 0 | E8: =SUMIF('Schadensermittl. NichtWGebäude'!$B$7:$B$8,$A8,'Schadensermittl. NichtWGebäude'!$R$7:$R$8) -> 0 | F8: =SUMPRODUCT(('Schadensermittl. NichtWGebäude'!$B$7:$B$8=$A8 )*('Schadensermittl. NichtWGebäude'!AG$7:AG$8)*('Schadensermittl. NichtWGebäude'!AH$7:AH$8)) -> 0 | G8: =SUMIF('Schadensermittl. NichtWGebäude'!$B$7:$B$8,$A8,'Schadensermittl. NichtWGebäude'!$AH$7:$AH$8) -> 0 | H8: =SUMPRODUCT(('Schadensermittl. NichtWGebäude'!$B$7:$B$8=$A8 )*('Schadensermittl. NichtWGebäude'!AW$7:AW$8)*('Schadensermittl. NichtWGebäude'!AX$7:AX$8)) -> 0 | I8: =SUMIF('Schadensermittl. NichtWGebäude'!$B$7:$B$8,$A8,'Schadensermittl. NichtWGebäude'!$AX$7:$AX$8) -> 0 | J8: =SUMPRODUCT(('Schadensermittl. NichtWGebäude'!$B$7:$B$8=$A8 )*('Schadensermittl. NichtWGebäude'!BM$7:BM$8)*('Schadensermittl. NichtWGebäude'!BN$7:BN$8)) -> 0 | K8: =SUMIF('Schadensermittl. NichtWGebäude'!$B$7:$B$8,$A8,'Schadensermittl. NichtWGebäude'!$BN$7:$BN$8) -> 0 | L8: =SUMPRODUCT(('Schadensermittl. NichtWGebäude'!$B$7:$B$8=$A8 )*('Schadensermittl. NichtWGebäude'!CC$7:CC$8)*('Schadensermittl. NichtWGebäude'!CD$7:CD$8)) -> 0 | M8: =SUMIF('Schadensermittl. NichtWGebäude'!$B$7:$B$8,$A8,'Schadensermittl. NichtWGebäude'!$CD$7:$CD$8) -> 0 | N8: =SUMPRODUCT(('Schadensermittl. NichtWGebäude'!$B$7:$B$8=$A8 )*('Schadensermittl. NichtWGebäude'!CS$7:CS$8)*('Schadensermittl. NichtWGebäude'!CT$7:CT$8)) -> 0 | O8: =SUMIF('Schadensermittl. NichtWGebäude'!$B$7:$B$8,$A8,'Schadensermittl. NichtWGebäude'!$CT$7:$CT$8) -> 0 | P8: =SUMPRODUCT(('Schadensermittl. NichtWGebäude'!$B$7:$B$8=$A8 )*('Schadensermittl. NichtWGebäude'!DI$7:DI$8)*('Schadensermittl. NichtWGebäude'!DJ$7:DJ$8)) -> 0 | Q8: =SUMIF('Schadensermittl. NichtWGebäude'!$B$7:$B$8,$A8,'Schadensermittl. NichtWGebäude'!$DJ$7:$DJ$8) -> 0 | R8: =IF(OR($A8=0,$B8=0),0,INDEX('Daten für Bruttowertschöpfung'!$C$2:$L$15,MATCH(Wertschöpfungsverluste!$A8,'Daten für Bruttowertschöpfung'!$B$2:$B$15,0),MATCH(Wertschöpfungsverluste!$B8,'Daten für Bruttowertschöpfung'!$C$1:$L$1,0))) -> 853.9002057
A9: ='Daten für Bruttowertschöpfung'!B5 -> Wasserversorgung; Abwasser- u. Abfallentsorgung u. Beseitigung v. Umweltverschmutzungen (E) | B9: =Projektgrunddaten!$C$7 -> Österreich | C9: =COUNTIF('Schadensermittl. NichtWGebäude'!$B$7:$B$8,$A9) -> 0 | D9: =SUMPRODUCT(('Schadensermittl. NichtWGebäude'!$B$7:$B$8=$A9 )*('Schadensermittl. NichtWGebäude'!Q$7:Q$8)*('Schadensermittl. NichtWGebäude'!R$7:R$8)) -> 0 | E9: =SUMIF('Schadensermittl. NichtWGebäude'!$B$7:$B$8,$A9,'Schadensermittl. NichtWGebäude'!$R$7:$R$8) -> 0 | F9: =SUMPRODUCT(('Schadensermittl. NichtWGebäude'!$B$7:$B$8=$A9 )*('Schadensermittl. NichtWGebäude'!AG$7:AG$8)*('Schadensermittl. NichtWGebäude'!AH$7:AH$8)) -> 0 | G9: =SUMIF('Schadensermittl. NichtWGebäude'!$B$7:$B$8,$A9,'Schadensermittl. NichtWGebäude'!$AH$7:$AH$8) -> 0 | H9: =SUMPRODUCT(('Schadensermittl. NichtWGebäude'!$B$7:$B$8=$A9 )*('Schadensermittl. NichtWGebäude'!AW$7:AW$8)*('Schadensermittl. NichtWGebäude'!AX$7:AX$8)) -> 0 | I9: =SUMIF('Schadensermittl. NichtWGebäude'!$B$7:$B$8,$A9,'Schadensermittl. NichtWGebäude'!$AX$7:$AX$8) -> 0 | J9: =SUMPRODUCT(('Schadensermittl. NichtWGebäude'!$B$7:$B$8=$A9 )*('Schadensermittl. NichtWGebäude'!BM$7:BM$8)*('Schadensermittl. NichtWGebäude'!BN$7:BN$8)) -> 0 | K9: =SUMIF('Schadensermittl. NichtWGebäude'!$B$7:$B$8,$A9,'Schadensermittl. NichtWGebäude'!$BN$7:$BN$8) -> 0 | L9: =SUMPRODUCT(('Schadensermittl. NichtWGebäude'!$B$7:$B$8=$A9 )*('Schadensermittl. NichtWGebäude'!CC$7:CC$8)*('Schadensermittl. NichtWGebäude'!CD$7:CD$8)) -> 0 | M9: =SUMIF('Schadensermittl. NichtWGebäude'!$B$7:$B$8,$A9,'Schadensermittl. NichtWGebäude'!$CD$7:$CD$8) -> 0 | N9: =SUMPRODUCT(('Schadensermittl. NichtWGebäude'!$B$7:$B$8=$A9 )*('Schadensermittl. NichtWGebäude'!CS$7:CS$8)*('Schadensermittl. NichtWGebäude'!CT$7:CT$8)) -> 0 | O9: =SUMIF('Schadensermittl. NichtWGebäude'!$B$7:$B$8,$A9,'Schadensermittl. NichtWGebäude'!$CT$7:$CT$8) -> 0 | P9: =SUMPRODUCT(('Schadensermittl. NichtWGebäude'!$B$7:$B$8=$A9 )*('Schadensermittl. NichtWGebäude'!DI$7:DI$8)*('Schadensermittl. NichtWGebäude'!DJ$7:DJ$8)) -> 0 | Q9: =SUMIF('Schadensermittl. NichtWGebäude'!$B$7:$B$8,$A9,'Schadensermittl. NichtWGebäude'!$DJ$7:$DJ$8) -> 0 | R9: =IF(OR($A9=0,$B9=0),0,INDEX('Daten für Bruttowertschöpfung'!$C$2:$L$15,MATCH(Wertschöpfungsverluste!$A9,'Daten für Bruttowertschöpfung'!$B$2:$B$15,0),MATCH(Wertschöpfungsverluste!$B9,'Daten für Bruttowertschöpfung'!$C$1:$L$1,0))) -> 430.4638295
A10: ='Daten für Bruttowertschöpfung'!B6 -> Bau (F) | B10: =Projektgrunddaten!$C$7 -> Österreich | C10: =COUNTIF('Schadensermittl. NichtWGebäude'!$B$7:$B$8,$A10) -> 0 | D10: =SUMPRODUCT(('Schadensermittl. NichtWGebäude'!$B$7:$B$8=$A10 )*('Schadensermittl. NichtWGebäude'!Q$7:Q$8)*('Schadensermittl. NichtWGebäude'!R$7:R$8)) -> 0 | E10: =SUMIF('Schadensermittl. NichtWGebäude'!$B$7:$B$8,$A10,'Schadensermittl. NichtWGebäude'!$R$7:$R$8) -> 0 | F10: =SUMPRODUCT(('Schadensermittl. NichtWGebäude'!$B$7:$B$8=$A10 )*('Schadensermittl. NichtWGebäude'!AG$7:AG$8)*('Schadensermittl. NichtWGebäude'!AH$7:AH$8)) -> 0 | G10: =SUMIF('Schadensermittl. NichtWGebäude'!$B$7:$B$8,$A10,'Schadensermittl. NichtWGebäude'!$AH$7:$AH$8) -> 0 | H10: =SUMPRODUCT(('Schadensermittl. NichtWGebäude'!$B$7:$B$8=$A10 )*('Schadensermittl. NichtWGebäude'!AW$7:AW$8)*('Schadensermittl. NichtWGebäude'!AX$7:AX$8)) -> 0 | I10: =SUMIF('Schadensermittl. NichtWGebäude'!$B$7:$B$8,$A10,'Schadensermittl. NichtWGebäude'!$AX$7:$AX$8) -> 0 | J10: =SUMPRODUCT(('Schadensermittl. NichtWGebäude'!$B$7:$B$8=$A10 )*('Schadensermittl. NichtWGebäude'!BM$7:BM$8)*('Schadensermittl. NichtWGebäude'!BN$7:BN$8)) -> 0 | K10: =SUMIF('Schadensermittl. NichtWGebäude'!$B$7:$B$8,$A10,'Schadensermittl. NichtWGebäude'!$BN$7:$BN$8) -> 0 | L10: =SUMPRODUCT(('Schadensermittl. NichtWGebäude'!$B$7:$B$8=$A10 )*('Schadensermittl. NichtWGebäude'!CC$7:CC$8)*('Schadensermittl. NichtWGebäude'!CD$7:CD$8)) -> 0 | M10: =SUMIF('Schadensermittl. NichtWGebäude'!$B$7:$B$8,$A10,'Schadensermittl. NichtWGebäude'!$CD$7:$CD$8) -> 0 | N10: =SUMPRODUCT(('Schadensermittl. NichtWGebäude'!$B$7:$B$8=$A10 )*('Schadensermittl. NichtWGebäude'!CS$7:CS$8)*('Schadensermittl. NichtWGebäude'!CT$7:CT$8)) -> 0 | O10: =SUMIF('Schadensermittl. NichtWGebäude'!$B$7:$B$8,$A10,'Schadensermittl. NichtWGebäude'!$CT$7:$CT$8) -> 0 | P10: =SUMPRODUCT(('Schadensermittl. NichtWGebäude'!$B$7:$B$8=$A10 )*('Schadensermittl. NichtWGebäude'!DI$7:DI$8)*('Schadensermittl. NichtWGebäude'!DJ$7:DJ$8)) -> 0 | Q10: =SUMIF('Schadensermittl. NichtWGebäude'!$B$7:$B$8,$A10,'Schadensermittl. NichtWGebäude'!$DJ$7:$DJ$8) -> 0 | R10: =IF(OR($A10=0,$B10=0),0,INDEX('Daten für Bruttowertschöpfung'!$C$2:$L$15,MATCH(Wertschöpfungsverluste!$A10,'Daten für Bruttowertschöpfung'!$B$2:$B$15,0),MATCH(Wertschöpfungsverluste!$B10,'Daten für Bruttowertschöpfung'!$C$1:$L$1,0))) -> 238.8342754
A11: ='Daten für Bruttowertschöpfung'!B7 -> Handel; Instandhaltung und Reparatur von KFZ (G) | B11: =Projektgrunddaten!$C$7 -> Österreich | C11: =COUNTIF('Schadensermittl. NichtWGebäude'!$B$7:$B$8,$A11) -> 0 | D11: =SUMPRODUCT(('Schadensermittl. NichtWGebäude'!$B$7:$B$8=$A11 )*('Schadensermittl. NichtWGebäude'!Q$7:Q$8)*('Schadensermittl. NichtWGebäude'!R$7:R$8)) -> 0 | E11: =SUMIF('Schadensermittl. NichtWGebäude'!$B$7:$B$8,$A11,'Schadensermittl. NichtWGebäude'!$R$7:$R$8) -> 0 | F11: =SUMPRODUCT(('Schadensermittl. NichtWGebäude'!$B$7:$B$8=$A11 )*('Schadensermittl. NichtWGebäude'!AG$7:AG$8)*('Schadensermittl. NichtWGebäude'!AH$7:AH$8)) -> 0 | G11: =SUMIF('Schadensermittl. NichtWGebäude'!$B$7:$B$8,$A11,'Schadensermittl. NichtWGebäude'!$AH$7:$AH$8) -> 0 | H11: =SUMPRODUCT(('Schadensermittl. NichtWGebäude'!$B$7:$B$8=$A11 )*('Schadensermittl. NichtWGebäude'!AW$7:AW$8)*('Schadensermittl. NichtWGebäude'!AX$7:AX$8)) -> 0 | I11: =SUMIF('Schadensermittl. NichtWGebäude'!$B$7:$B$8,$A11,'Schadensermittl. NichtWGebäude'!$AX$7:$AX$8) -> 0 | J11: =SUMPRODUCT(('Schadensermittl. NichtWGebäude'!$B$7:$B$8=$A11 )*('Schadensermittl. NichtWGebäude'!BM$7:BM$8)*('Schadensermittl. NichtWGebäude'!BN$7:BN$8)) -> 0 | K11: =SUMIF('Schadensermittl. NichtWGebäude'!$B$7:$B$8,$A11,'Schadensermittl. NichtWGebäude'!$BN$7:$BN$8) -> 0 | L11: =SUMPRODUCT(('Schadensermittl. NichtWGebäude'!$B$7:$B$8=$A11 )*('Schadensermittl. NichtWGebäude'!CC$7:CC$8)*('Schadensermittl. NichtWGebäude'!CD$7:CD$8)) -> 0 | M11: =SUMIF('Schadensermittl. NichtWGebäude'!$B$7:$B$8,$A11,'Schadensermittl. NichtWGebäude'!$CD$7:$CD$8) -> 0 | N11: =SUMPRODUCT(('Schadensermittl. NichtWGebäude'!$B$7:$B$8=$A11 )*('Schadensermittl. NichtWGebäude'!CS$7:CS$8)*('Schadensermittl. NichtWGebäude'!CT$7:CT$8)) -> 0 | O11: =SUMIF('Schadensermittl. NichtWGebäude'!$B$7:$B$8,$A11,'Schadensermittl. NichtWGebäude'!$CT$7:$CT$8) -> 0 | P11: =SUMPRODUCT(('Schadensermittl. NichtWGebäude'!$B$7:$B$8=$A11 )*('Schadensermittl. NichtWGebäude'!DI$7:DI$8)*('Schadensermittl. NichtWGebäude'!DJ$7:DJ$8)) -> 0 | Q11: =SUMIF('Schadensermittl. NichtWGebäude'!$B$7:$B$8,$A11,'Schadensermittl. NichtWGebäude'!$DJ$7:$DJ$8) -> 0 | R11: =IF(OR($A11=0,$B11=0),0,INDEX('Daten für Bruttowertschöpfung'!$C$2:$L$15,MATCH(Wertschöpfungsverluste!$A11,'Daten für Bruttowertschöpfung'!$B$2:$B$15,0),MATCH(Wertschöpfungsverluste!$B11,'Daten für Bruttowertschöpfung'!$C$1:$L$1,0))) -> 220.196913
A12: ='Daten für Bruttowertschöpfung'!B8 -> Verkehr und Lagerei (H) | B12: =Projektgrunddaten!$C$7 -> Österreich | C12: =COUNTIF('Schadensermittl. NichtWGebäude'!$B$7:$B$8,$A12) -> 0 | D12: =SUMPRODUCT(('Schadensermittl. NichtWGebäude'!$B$7:$B$8=$A12 )*('Schadensermittl. NichtWGebäude'!Q$7:Q$8)*('Schadensermittl. NichtWGebäude'!R$7:R$8)) -> 0 | E12: =SUMIF('Schadensermittl. NichtWGebäude'!$B$7:$B$8,$A12,'Schadensermittl. NichtWGebäude'!$R$7:$R$8) -> 0 | F12: =SUMPRODUCT(('Schadensermittl. NichtWGebäude'!$B$7:$B$8=$A12 )*('Schadensermittl. NichtWGebäude'!AG$7:AG$8)*('Schadensermittl. NichtWGebäude'!AH$7:AH$8)) -> 0 | G12: =SUMIF('Schadensermittl. NichtWGebäude'!$B$7:$B$8,$A12,'Schadensermittl. NichtWGebäude'!$AH$7:$AH$8) -> 0 | H12: =SUMPRODUCT(('Schadensermittl. NichtWGebäude'!$B$7:$B$8=$A12 )*('Schadensermittl. NichtWGebäude'!AW$7:AW$8)*('Schadensermittl. NichtWGebäude'!AX$7:AX$8)) -> 0 | I12: =SUMIF('Schadensermittl. NichtWGebäude'!$B$7:$B$8,$A12,'Schadensermittl. NichtWGebäude'!$AX$7:$AX$8) -> 0 | J12: =SUMPRODUCT(('Schadensermittl. NichtWGebäude'!$B$7:$B$8=$A12 )*('Schadensermittl. NichtWGebäude'!BM$7:BM$8)*('Schadensermittl. NichtWGebäude'!BN$7:BN$8)) -> 0 | K12: =SUMIF('Schadensermittl. NichtWGebäude'!$B$7:$B$8,$A12,'Schadensermittl. NichtWGebäude'!$BN$7:$BN$8) -> 0 | L12: =SUMPRODUCT(('Schadensermittl. NichtWGebäude'!$B$7:$B$8=$A12 )*('Schadensermittl. NichtWGebäude'!CC$7:CC$8)*('Schadensermittl. NichtWGebäude'!CD$7:CD$8)) -> 0 | M12: =SUMIF('Schadensermittl. NichtWGebäude'!$B$7:$B$8,$A12,'Schadensermittl. NichtWGebäude'!$CD$7:$CD$8) -> 0 | N12: =SUMPRODUCT(('Schadensermittl. NichtWGebäude'!$B$7:$B$8=$A12 )*('Schadensermittl. NichtWGebäude'!CS$7:CS$8)*('Schadensermittl. NichtWGebäude'!CT$7:CT$8)) -> 0 | O12: =SUMIF('Schadensermittl. NichtWGebäude'!$B$7:$B$8,$A12,'Schadensermittl. NichtWGebäude'!$CT$7:$CT$8) -> 0 | P12: =SUMPRODUCT(('Schadensermittl. NichtWGebäude'!$B$7:$B$8=$A12 )*('Schadensermittl. NichtWGebäude'!DI$7:DI$8)*('Schadensermittl. NichtWGebäude'!DJ$7:DJ$8)) -> 0 | Q12: =SUMIF('Schadensermittl. NichtWGebäude'!$B$7:$B$8,$A12,'Schadensermittl. NichtWGebäude'!$DJ$7:$DJ$8) -> 0 | R12: =IF(OR($A12=0,$B12=0),0,INDEX('Daten für Bruttowertschöpfung'!$C$2:$L$15,MATCH(Wertschöpfungsverluste!$A12,'Daten für Bruttowertschöpfung'!$B$2:$B$15,0),MATCH(Wertschöpfungsverluste!$B12,'Daten für Bruttowertschöpfung'!$C$1:$L$1,0))) -> 314.0018694
A13: ='Daten für Bruttowertschöpfung'!B9 -> Beherbergung und Gastronomie (I) | B13: =Projektgrunddaten!$C$7 -> Österreich | C13: =COUNTIF('Schadensermittl. NichtWGebäude'!$B$7:$B$8,$A13) -> 2 | D13: =SUMPRODUCT(('Schadensermittl. NichtWGebäude'!$B$7:$B$8=$A13 )*('Schadensermittl. NichtWGebäude'!Q$7:Q$8)*('Schadensermittl. NichtWGebäude'!R$7:R$8)) -> 0 | E13: =SUMIF('Schadensermittl. NichtWGebäude'!$B$7:$B$8,$A13,'Schadensermittl. NichtWGebäude'!$R$7:$R$8) -> 0 | F13: =SUMPRODUCT(('Schadensermittl. NichtWGebäude'!$B$7:$B$8=$A13 )*('Schadensermittl. NichtWGebäude'!AG$7:AG$8)*('Schadensermittl. NichtWGebäude'!AH$7:AH$8)) -> 0 | G13: =SUMIF('Schadensermittl. NichtWGebäude'!$B$7:$B$8,$A13,'Schadensermittl. NichtWGebäude'!$AH$7:$AH$8) -> 0 | H13: =SUMPRODUCT(('Schadensermittl. NichtWGebäude'!$B$7:$B$8=$A13 )*('Schadensermittl. NichtWGebäude'!AW$7:AW$8)*('Schadensermittl. NichtWGebäude'!AX$7:AX$8)) -> 0 | I13: =SUMIF('Schadensermittl. NichtWGebäude'!$B$7:$B$8,$A13,'Schadensermittl. NichtWGebäude'!$AX$7:$AX$8) -> 0 | J13: =SUMPRODUCT(('Schadensermittl. NichtWGebäude'!$B$7:$B$8=$A13 )*('Schadensermittl. NichtWGebäude'!BM$7:BM$8)*('Schadensermittl. NichtWGebäude'!BN$7:BN$8)) -> 0 | K13: =SUMIF('Schadensermittl. NichtWGebäude'!$B$7:$B$8,$A13,'Schadensermittl. NichtWGebäude'!$BN$7:$BN$8) -> 0 | L13: =SUMPRODUCT(('Schadensermittl. NichtWGebäude'!$B$7:$B$8=$A13 )*('Schadensermittl. NichtWGebäude'!CC$7:CC$8)*('Schadensermittl. NichtWGebäude'!CD$7:CD$8)) -> 0 | M13: =SUMIF('Schadensermittl. NichtWGebäude'!$B$7:$B$8,$A13,'Schadensermittl. NichtWGebäude'!$CD$7:$CD$8) -> 0 | N13: =SUMPRODUCT(('Schadensermittl. NichtWGebäude'!$B$7:$B$8=$A13 )*('Schadensermittl. NichtWGebäude'!CS$7:CS$8)*('Schadensermittl. NichtWGebäude'!CT$7:CT$8)) -> 0 | O13: =SUMIF('Schadensermittl. NichtWGebäude'!$B$7:$B$8,$A13,'Schadensermittl. NichtWGebäude'!$CT$7:$CT$8) -> 0 | P13: =SUMPRODUCT(('Schadensermittl. NichtWGebäude'!$B$7:$B$8=$A13 )*('Schadensermittl. NichtWGebäude'!DI$7:DI$8)*('Schadensermittl. NichtWGebäude'!DJ$7:DJ$8)) -> 0 | Q13: =SUMIF('Schadensermittl. NichtWGebäude'!$B$7:$B$8,$A13,'Schadensermittl. NichtWGebäude'!$DJ$7:$DJ$8) -> 0 | R13: =IF(OR($A13=0,$B13=0),0,INDEX('Daten für Bruttowertschöpfung'!$C$2:$L$15,MATCH(Wertschöpfungsverluste!$A13,'Daten für Bruttowertschöpfung'!$B$2:$B$15,0),MATCH(Wertschöpfungsverluste!$B13,'Daten für Bruttowertschöpfung'!$C$1:$L$1,0))) -> 128.362995
A14: ='Daten für Bruttowertschöpfung'!B10 -> Information und Kommunikation (J) | B14: =Projektgrunddaten!$C$7 -> Österreich | C14: =COUNTIF('Schadensermittl. NichtWGebäude'!$B$7:$B$8,$A14) -> 0 | D14: =SUMPRODUCT(('Schadensermittl. NichtWGebäude'!$B$7:$B$8=$A14 )*('Schadensermittl. NichtWGebäude'!Q$7:Q$8)*('Schadensermittl. NichtWGebäude'!R$7:R$8)) -> 0 | E14: =SUMIF('Schadensermittl. NichtWGebäude'!$B$7:$B$8,$A14,'Schadensermittl. NichtWGebäude'!$R$7:$R$8) -> 0 | F14: =SUMPRODUCT(('Schadensermittl. NichtWGebäude'!$B$7:$B$8=$A14 )*('Schadensermittl. NichtWGebäude'!AG$7:AG$8)*('Schadensermittl. NichtWGebäude'!AH$7:AH$8)) -> 0 | G14: =SUMIF('Schadensermittl. NichtWGebäude'!$B$7:$B$8,$A14,'Schadensermittl. NichtWGebäude'!$AH$7:$AH$8) -> 0 | H14: =SUMPRODUCT(('Schadensermittl. NichtWGebäude'!$B$7:$B$8=$A14 )*('Schadensermittl. NichtWGebäude'!AW$7:AW$8)*('Schadensermittl. NichtWGebäude'!AX$7:AX$8)) -> 0 | I14: =SUMIF('Schadensermittl. NichtWGebäude'!$B$7:$B$8,$A14,'Schadensermittl. NichtWGebäude'!$AX$7:$AX$8) -> 0 | J14: =SUMPRODUCT(('Schadensermittl. NichtWGebäude'!$B$7:$B$8=$A14 )*('Schadensermittl. NichtWGebäude'!BM$7:BM$8)*('Schadensermittl. NichtWGebäude'!BN$7:BN$8)) -> 0 | K14: =SUMIF('Schadensermittl. NichtWGebäude'!$B$7:$B$8,$A14,'Schadensermittl. NichtWGebäude'!$BN$7:$BN$8) -> 0 | L14: =SUMPRODUCT(('Schadensermittl. NichtWGebäude'!$B$7:$B$8=$A14 )*('Schadensermittl. NichtWGebäude'!CC$7:CC$8)*('Schadensermittl. NichtWGebäude'!CD$7:CD$8)) -> 0 | M14: =SUMIF('Schadensermittl. NichtWGebäude'!$B$7:$B$8,$A14,'Schadensermittl. NichtWGebäude'!$CD$7:$CD$8) -> 0 | N14: =SUMPRODUCT(('Schadensermittl. NichtWGebäude'!$B$7:$B$8=$A14 )*('Schadensermittl. NichtWGebäude'!CS$7:CS$8)*('Schadensermittl. NichtWGebäude'!CT$7:CT$8)) -> 0 | O14: =SUMIF('Schadensermittl. NichtWGebäude'!$B$7:$B$8,$A14,'Schadensermittl. NichtWGebäude'!$CT$7:$CT$8) -> 0 | P14: =SUMPRODUCT(('Schadensermittl. NichtWGebäude'!$B$7:$B$8=$A14 )*('Schadensermittl. NichtWGebäude'!DI$7:DI$8)*('Schadensermittl. NichtWGebäude'!DJ$7:DJ$8)) -> 0 | Q14: =SUMIF('Schadensermittl. NichtWGebäude'!$B$7:$B$8,$A14,'Schadensermittl. NichtWGebäude'!$DJ$7:$DJ$8) -> 0 | R14: =IF(OR($A14=0,$B14=0),0,INDEX('Daten für Bruttowertschöpfung'!$C$2:$L$15,MATCH(Wertschöpfungsverluste!$A14,'Daten für Bruttowertschöpfung'!$B$2:$B$15,0),MATCH(Wertschöpfungsverluste!$B14,'Daten für Bruttowertschöpfung'!$C$1:$L$1,0))) -> 368.8599401
A15: ='Daten für Bruttowertschöpfung'!B11 -> Erbringung von Finanz- und Versicherungsdienstl. (K) | B15: =Projektgrunddaten!$C$7 -> Österreich | C15: =COUNTIF('Schadensermittl. NichtWGebäude'!$B$7:$B$8,$A15) -> 0 | D15: =SUMPRODUCT(('Schadensermittl. NichtWGebäude'!$B$7:$B$8=$A15 )*('Schadensermittl. NichtWGebäude'!Q$7:Q$8)*('Schadensermittl. NichtWGebäude'!R$7:R$8)) -> 0 | E15: =SUMIF('Schadensermittl. NichtWGebäude'!$B$7:$B$8,$A15,'Schadensermittl. NichtWGebäude'!$R$7:$R$8) -> 0 | F15: =SUMPRODUCT(('Schadensermittl. NichtWGebäude'!$B$7:$B$8=$A15 )*('Schadensermittl. NichtWGebäude'!AG$7:AG$8)*('Schadensermittl. NichtWGebäude'!AH$7:AH$8)) -> 0 | G15: =SUMIF('Schadensermittl. NichtWGebäude'!$B$7:$B$8,$A15,'Schadensermittl. NichtWGebäude'!$AH$7:$AH$8) -> 0 | H15: =SUMPRODUCT(('Schadensermittl. NichtWGebäude'!$B$7:$B$8=$A15 )*('Schadensermittl. NichtWGebäude'!AW$7:AW$8)*('Schadensermittl. NichtWGebäude'!AX$7:AX$8)) -> 0 | I15: =SUMIF('Schadensermittl. NichtWGebäude'!$B$7:$B$8,$A15,'Schadensermittl. NichtWGebäude'!$AX$7:$AX$8) -> 0 | J15: =SUMPRODUCT(('Schadensermittl. NichtWGebäude'!$B$7:$B$8=$A15 )*('Schadensermittl. NichtWGebäude'!BM$7:BM$8)*('Schadensermittl. NichtWGebäude'!BN$7:BN$8)) -> 0 | K15: =SUMIF('Schadensermittl. NichtWGebäude'!$B$7:$B$8,$A15,'Schadensermittl. NichtWGebäude'!$BN$7:$BN$8) -> 0 | L15: =SUMPRODUCT(('Schadensermittl. NichtWGebäude'!$B$7:$B$8=$A15 )*('Schadensermittl. NichtWGebäude'!CC$7:CC$8)*('Schadensermittl. NichtWGebäude'!CD$7:CD$8)) -> 0 | M15: =SUMIF('Schadensermittl. NichtWGebäude'!$B$7:$B$8,$A15,'Schadensermittl. NichtWGebäude'!$CD$7:$CD$8) -> 0 | N15: =SUMPRODUCT(('Schadensermittl. NichtWGebäude'!$B$7:$B$8=$A15 )*('Schadensermittl. NichtWGebäude'!CS$7:CS$8)*('Schadensermittl. NichtWGebäude'!CT$7:CT$8)) -> 0 | O15: =SUMIF('Schadensermittl. NichtWGebäude'!$B$7:$B$8,$A15,'Schadensermittl. NichtWGebäude'!$CT$7:$CT$8) -> 0 | P15: =SUMPRODUCT(('Schadensermittl. NichtWGebäude'!$B$7:$B$8=$A15 )*('Schadensermittl. NichtWGebäude'!DI$7:DI$8)*('Schadensermittl. NichtWGebäude'!DJ$7:DJ$8)) -> 0 | Q15: =SUMIF('Schadensermittl. NichtWGebäude'!$B$7:$B$8,$A15,'Schadensermittl. NichtWGebäude'!$DJ$7:$DJ$8) -> 0 | R15: =IF(OR($A15=0,$B15=0),0,INDEX('Daten für Bruttowertschöpfung'!$C$2:$L$15,MATCH(Wertschöpfungsverluste!$A15,'Daten für Bruttowertschöpfung'!$B$2:$B$15,0),MATCH(Wertschöpfungsverluste!$B15,'Daten für Bruttowertschöpfung'!$C$1:$L$1,0))) -> 661.8434244
A16: ='Daten für Bruttowertschöpfung'!B12 -> Grundstücks- und Wohnungswesen (L) | B16: =Projektgrunddaten!$C$7 -> Österreich | C16: =COUNTIF('Schadensermittl. NichtWGebäude'!$B$7:$B$8,$A16) -> 0 | D16: =SUMPRODUCT(('Schadensermittl. NichtWGebäude'!$B$7:$B$8=$A16 )*('Schadensermittl. NichtWGebäude'!Q$7:Q$8)*('Schadensermittl. NichtWGebäude'!R$7:R$8)) -> 0 | E16: =SUMIF('Schadensermittl. NichtWGebäude'!$B$7:$B$8,$A16,'Schadensermittl. NichtWGebäude'!$R$7:$R$8) -> 0 | F16: =SUMPRODUCT(('Schadensermittl. NichtWGebäude'!$B$7:$B$8=$A16 )*('Schadensermittl. NichtWGebäude'!AG$7:AG$8)*('Schadensermittl. NichtWGebäude'!AH$7:AH$8)) -> 0 | G16: =SUMIF('Schadensermittl. NichtWGebäude'!$B$7:$B$8,$A16,'Schadensermittl. NichtWGebäude'!$AH$7:$AH$8) -> 0 | H16: =SUMPRODUCT(('Schadensermittl. NichtWGebäude'!$B$7:$B$8=$A16 )*('Schadensermittl. NichtWGebäude'!AW$7:AW$8)*('Schadensermittl. NichtWGebäude'!AX$7:AX$8)) -> 0 | I16: =SUMIF('Schadensermittl. NichtWGebäude'!$B$7:$B$8,$A16,'Schadensermittl. NichtWGebäude'!$AX$7:$AX$8) -> 0 | J16: =SUMPRODUCT(('Schadensermittl. NichtWGebäude'!$B$7:$B$8=$A16 )*('Schadensermittl. NichtWGebäude'!BM$7:BM$8)*('Schadensermittl. NichtWGebäude'!BN$7:BN$8)) -> 0 | K16: =SUMIF('Schadensermittl. NichtWGebäude'!$B$7:$B$8,$A16,'Schadensermittl. NichtWGebäude'!$BN$7:$BN$8) -> 0 | L16: =SUMPRODUCT(('Schadensermittl. NichtWGebäude'!$B$7:$B$8=$A16 )*('Schadensermittl. NichtWGebäude'!CC$7:CC$8)*('Schadensermittl. NichtWGebäude'!CD$7:CD$8)) -> 0 | M16: =SUMIF('Schadensermittl. NichtWGebäude'!$B$7:$B$8,$A16,'Schadensermittl. NichtWGebäude'!$CD$7:$CD$8) -> 0 | N16: =SUMPRODUCT(('Schadensermittl. NichtWGebäude'!$B$7:$B$8=$A16 )*('Schadensermittl. NichtWGebäude'!CS$7:CS$8)*('Schadensermittl. NichtWGebäude'!CT$7:CT$8)) -> 0 | O16: =SUMIF('Schadensermittl. NichtWGebäude'!$B$7:$B$8,$A16,'Schadensermittl. NichtWGebäude'!$CT$7:$CT$8) -> 0 | P16: =SUMPRODUCT(('Schadensermittl. NichtWGebäude'!$B$7:$B$8=$A16 )*('Schadensermittl. NichtWGebäude'!DI$7:DI$8)*('Schadensermittl. NichtWGebäude'!DJ$7:DJ$8)) -> 0 | Q16: =SUMIF('Schadensermittl. NichtWGebäude'!$B$7:$B$8,$A16,'Schadensermittl. NichtWGebäude'!$DJ$7:$DJ$8) -> 0 | R16: =IF(OR($A16=0,$B16=0),0,INDEX('Daten für Bruttowertschöpfung'!$C$2:$L$15,MATCH(Wertschöpfungsverluste!$A16,'Daten für Bruttowertschöpfung'!$B$2:$B$15,0),MATCH(Wertschöpfungsverluste!$B16,'Daten für Bruttowertschöpfung'!$C$1:$L$1,0))) -> 803.9911083
A17: ='Daten für Bruttowertschöpfung'!B13 -> Erbringung v. freiberuflichen, wissenschaftl. und techn.Dienstl. (M) | B17: =Projektgrunddaten!$C$7 -> Österreich | C17: =COUNTIF('Schadensermittl. NichtWGebäude'!$B$7:$B$8,$A17) -> 0 | D17: =SUMPRODUCT(('Schadensermittl. NichtWGebäude'!$B$7:$B$8=$A17 )*('Schadensermittl. NichtWGebäude'!Q$7:Q$8)*('Schadensermittl. NichtWGebäude'!R$7:R$8)) -> 0 | E17: =SUMIF('Schadensermittl. NichtWGebäude'!$B$7:$B$8,$A17,'Schadensermittl. NichtWGebäude'!$R$7:$R$8) -> 0 | F17: =SUMPRODUCT(('Schadensermittl. NichtWGebäude'!$B$7:$B$8=$A17 )*('Schadensermittl. NichtWGebäude'!AG$7:AG$8)*('Schadensermittl. NichtWGebäude'!AH$7:AH$8)) -> 0 | G17: =SUMIF('Schadensermittl. NichtWGebäude'!$B$7:$B$8,$A17,'Schadensermittl. NichtWGebäude'!$AH$7:$AH$8) -> 0 | H17: =SUMPRODUCT(('Schadensermittl. NichtWGebäude'!$B$7:$B$8=$A17 )*('Schadensermittl. NichtWGebäude'!AW$7:AW$8)*('Schadensermittl. NichtWGebäude'!AX$7:AX$8)) -> 0 | I17: =SUMIF('Schadensermittl. NichtWGebäude'!$B$7:$B$8,$A17,'Schadensermittl. NichtWGebäude'!$AX$7:$AX$8) -> 0 | J17: =SUMPRODUCT(('Schadensermittl. NichtWGebäude'!$B$7:$B$8=$A17 )*('Schadensermittl. NichtWGebäude'!BM$7:BM$8)*('Schadensermittl. NichtWGebäude'!BN$7:BN$8)) -> 0 | K17: =SUMIF('Schadensermittl. NichtWGebäude'!$B$7:$B$8,$A17,'Schadensermittl. NichtWGebäude'!$BN$7:$BN$8) -> 0 | L17: =SUMPRODUCT(('Schadensermittl. NichtWGebäude'!$B$7:$B$8=$A17 )*('Schadensermittl. NichtWGebäude'!CC$7:CC$8)*('Schadensermittl. NichtWGebäude'!CD$7:CD$8)) -> 0 | M17: =SUMIF('Schadensermittl. NichtWGebäude'!$B$7:$B$8,$A17,'Schadensermittl. NichtWGebäude'!$CD$7:$CD$8) -> 0 | N17: =SUMPRODUCT(('Schadensermittl. NichtWGebäude'!$B$7:$B$8=$A17 )*('Schadensermittl. NichtWGebäude'!CS$7:CS$8)*('Schadensermittl. NichtWGebäude'!CT$7:CT$8)) -> 0 | O17: =SUMIF('Schadensermittl. NichtWGebäude'!$B$7:$B$8,$A17,'Schadensermittl. NichtWGebäude'!$CT$7:$CT$8) -> 0 | P17: =SUMPRODUCT(('Schadensermittl. NichtWGebäude'!$B$7:$B$8=$A17 )*('Schadensermittl. NichtWGebäude'!DI$7:DI$8)*('Schadensermittl. NichtWGebäude'!DJ$7:DJ$8)) -> 0 | Q17: =SUMIF('Schadensermittl. NichtWGebäude'!$B$7:$B$8,$A17,'Schadensermittl. NichtWGebäude'!$DJ$7:$DJ$8) -> 0 | R17: =IF(OR($A17=0,$B17=0),0,INDEX('Daten für Bruttowertschöpfung'!$C$2:$L$15,MATCH(Wertschöpfungsverluste!$A17,'Daten für Bruttowertschöpfung'!$B$2:$B$15,0),MATCH(Wertschöpfungsverluste!$B17,'Daten für Bruttowertschöpfung'!$C$1:$L$1,0))) -> 260.3864549
A18: ='Daten für Bruttowertschöpfung'!B14 -> Erbringung von sonstigen wirtschaftl. Dienstleistungen (N) | B18: =Projektgrunddaten!$C$7 -> Österreich | C18: =COUNTIF('Schadensermittl. NichtWGebäude'!$B$7:$B$8,$A18) -> 0 | D18: =SUMPRODUCT(('Schadensermittl. NichtWGebäude'!$B$7:$B$8=$A18 )*('Schadensermittl. NichtWGebäude'!Q$7:Q$8)*('Schadensermittl. NichtWGebäude'!R$7:R$8)) -> 0 | E18: =SUMIF('Schadensermittl. NichtWGebäude'!$B$7:$B$8,$A18,'Schadensermittl. NichtWGebäude'!$R$7:$R$8) -> 0 | F18: =SUMPRODUCT(('Schadensermittl. NichtWGebäude'!$B$7:$B$8=$A18 )*('Schadensermittl. NichtWGebäude'!AG$7:AG$8)*('Schadensermittl. NichtWGebäude'!AH$7:AH$8)) -> 0 | G18: =SUMIF('Schadensermittl. NichtWGebäude'!$B$7:$B$8,$A18,'Schadensermittl. NichtWGebäude'!$AH$7:$AH$8) -> 0 | H18: =SUMPRODUCT(('Schadensermittl. NichtWGebäude'!$B$7:$B$8=$A18 )*('Schadensermittl. NichtWGebäude'!AW$7:AW$8)*('Schadensermittl. NichtWGebäude'!AX$7:AX$8)) -> 0 | I18: =SUMIF('Schadensermittl. NichtWGebäude'!$B$7:$B$8,$A18,'Schadensermittl. NichtWGebäude'!$AX$7:$AX$8) -> 0 | J18: =SUMPRODUCT(('Schadensermittl. NichtWGebäude'!$B$7:$B$8=$A18 )*('Schadensermittl. NichtWGebäude'!BM$7:BM$8)*('Schadensermittl. NichtWGebäude'!BN$7:BN$8)) -> 0 | K18: =SUMIF('Schadensermittl. NichtWGebäude'!$B$7:$B$8,$A18,'Schadensermittl. NichtWGebäude'!$BN$7:$BN$8) -> 0 | L18: =SUMPRODUCT(('Schadensermittl. NichtWGebäude'!$B$7:$B$8=$A18 )*('Schadensermittl. NichtWGebäude'!CC$7:CC$8)*('Schadensermittl. NichtWGebäude'!CD$7:CD$8)) -> 0 | M18: =SUMIF('Schadensermittl. NichtWGebäude'!$B$7:$B$8,$A18,'Schadensermittl. NichtWGebäude'!$CD$7:$CD$8) -> 0 | N18: =SUMPRODUCT(('Schadensermittl. NichtWGebäude'!$B$7:$B$8=$A18 )*('Schadensermittl. NichtWGebäude'!CS$7:CS$8)*('Schadensermittl. NichtWGebäude'!CT$7:CT$8)) -> 0 | O18: =SUMIF('Schadensermittl. NichtWGebäude'!$B$7:$B$8,$A18,'Schadensermittl. NichtWGebäude'!$CT$7:$CT$8) -> 0 | P18: =SUMPRODUCT(('Schadensermittl. NichtWGebäude'!$B$7:$B$8=$A18 )*('Schadensermittl. NichtWGebäude'!DI$7:DI$8)*('Schadensermittl. NichtWGebäude'!DJ$7:DJ$8)) -> 0 | Q18: =SUMIF('Schadensermittl. NichtWGebäude'!$B$7:$B$8,$A18,'Schadensermittl. NichtWGebäude'!$DJ$7:$DJ$8) -> 0 | R18: =IF(OR($A18=0,$B18=0),0,INDEX('Daten für Bruttowertschöpfung'!$C$2:$L$15,MATCH(Wertschöpfungsverluste!$A18,'Daten für Bruttowertschöpfung'!$B$2:$B$15,0),MATCH(Wertschöpfungsverluste!$B18,'Daten für Bruttowertschöpfung'!$C$1:$L$1,0))) -> 212.9370911
A19: ='Daten für Bruttowertschöpfung'!B15 -> Reparatur von Gebrauchsgütern (S95) | B19: =Projektgrunddaten!$C$7 -> Österreich | C19: =COUNTIF('Schadensermittl. NichtWGebäude'!$B$7:$B$8,$A19) -> 0 | D19: =SUMPRODUCT(('Schadensermittl. NichtWGebäude'!$B$7:$B$8=$A19 )*('Schadensermittl. NichtWGebäude'!Q$7:Q$8)*('Schadensermittl. NichtWGebäude'!R$7:R$8)) -> 0 | E19: =SUMIF('Schadensermittl. NichtWGebäude'!$B$7:$B$8,$A19,'Schadensermittl. NichtWGebäude'!$R$7:$R$8) -> 0 | F19: =SUMPRODUCT(('Schadensermittl. NichtWGebäude'!$B$7:$B$8=$A19 )*('Schadensermittl. NichtWGebäude'!AG$7:AG$8)*('Schadensermittl. NichtWGebäude'!AH$7:AH$8)) -> 0 | G19: =SUMIF('Schadensermittl. NichtWGebäude'!$B$7:$B$8,$A19,'Schadensermittl. NichtWGebäude'!$AH$7:$AH$8) -> 0 | H19: =SUMPRODUCT(('Schadensermittl. NichtWGebäude'!$B$7:$B$8=$A19 )*('Schadensermittl. NichtWGebäude'!AW$7:AW$8)*('Schadensermittl. NichtWGebäude'!AX$7:AX$8)) -> 0 | I19: =SUMIF('Schadensermittl. NichtWGebäude'!$B$7:$B$8,$A19,'Schadensermittl. NichtWGebäude'!$AX$7:$AX$8) -> 0 | J19: =SUMPRODUCT(('Schadensermittl. NichtWGebäude'!$B$7:$B$8=$A19 )*('Schadensermittl. NichtWGebäude'!BM$7:BM$8)*('Schadensermittl. NichtWGebäude'!BN$7:BN$8)) -> 0 | K19: =SUMIF('Schadensermittl. NichtWGebäude'!$B$7:$B$8,$A19,'Schadensermittl. NichtWGebäude'!$BN$7:$BN$8) -> 0 | L19: =SUMPRODUCT(('Schadensermittl. NichtWGebäude'!$B$7:$B$8=$A19 )*('Schadensermittl. NichtWGebäude'!CC$7:CC$8)*('Schadensermittl. NichtWGebäude'!CD$7:CD$8)) -> 0 | M19: =SUMIF('Schadensermittl. NichtWGebäude'!$B$7:$B$8,$A19,'Schadensermittl. NichtWGebäude'!$CD$7:$CD$8) -> 0 | N19: =SUMPRODUCT(('Schadensermittl. NichtWGebäude'!$B$7:$B$8=$A19 )*('Schadensermittl. NichtWGebäude'!CS$7:CS$8)*('Schadensermittl. NichtWGebäude'!CT$7:CT$8)) -> 0 | O19: =SUMIF('Schadensermittl. NichtWGebäude'!$B$7:$B$8,$A19,'Schadensermittl. NichtWGebäude'!$CT$7:$CT$8) -> 0 | P19: =SUMPRODUCT(('Schadensermittl. NichtWGebäude'!$B$7:$B$8=$A19 )*('Schadensermittl. NichtWGebäude'!DI$7:DI$8)*('Schadensermittl. NichtWGebäude'!DJ$7:DJ$8)) -> 0 | Q19: =SUMIF('Schadensermittl. NichtWGebäude'!$B$7:$B$8,$A19,'Schadensermittl. NichtWGebäude'!$DJ$7:$DJ$8) -> 0 | R19: =IF(OR($A19=0,$B19=0),0,INDEX('Daten für Bruttowertschöpfung'!$C$2:$L$15,MATCH(Wertschöpfungsverluste!$A19,'Daten für Bruttowertschöpfung'!$B$2:$B$15,0),MATCH(Wertschöpfungsverluste!$B19,'Daten für Bruttowertschöpfung'!$C$1:$L$1,0))) -> 139.6196478
D21: bei HQ
D22: =D5 -> 0 | F22: =F5 -> 0 | H22: =H5 -> 0 | J22: =J5 -> 0 | L22: =L5 -> 0 | N22: =N5 -> 100 | P22: =P5 -> 0
A23: Summen Wertschöpfungsverluste | D23: =SUMPRODUCT(D6:D19,$R$6:$R$19) -> 0 | F23: =SUMPRODUCT(F6:F19,$R$6:$R$19) -> 0 | H23: =SUMPRODUCT(H6:H19,$R$6:$R$19) -> 0 | J23: =SUMPRODUCT(J6:J19,$R$6:$R$19) -> 0 | L23: =SUMPRODUCT(L6:L19,$R$6:$R$19) -> 0 | N23: =SUMPRODUCT(N6:N19,$R$6:$R$19) -> 0 | P23: =SUMPRODUCT(P6:P19,$R$6:$R$19) -> 0

Sheet Infrastruktur
A3: VERKEHRS-, VER- U. ENTSORGUNGSINFRASTRUKTUR | D3: HQ | F3: HQ | H3: HQ | J3: HQ | L3: HQ | N3: HQ | P3: HQ
D4: =Projektgrunddaten!$C$24 -> 0 | F4: =Projektgrunddaten!$C$25 -> 0 | H4: =Projektgrunddaten!$C$26 -> 0 | J4: =Projektgrunddaten!$C$27 -> 0 | L4: =Projektgrunddaten!$C$28 -> 0 | N4: =Projektgrunddaten!$C$29 -> 100 | P4: =Projektgrunddaten!$C$30 -> 0
A6: VERKEHRSINFRASTRUKTUR - STRASSE
A7: Räumungskosten
A8: Straßen (Material in m³) | B8: Kosten in € pro m³ Richtwert | C8: Kosten in € pro m³ eigene Erhebung | D8: m³ | E8: Kosten in € | F8: m³ | G8: Kosten in € | H8: m³ | I8: Kosten in € | J8: m³ | K8: Kosten in € | L8: m³ | M8: Kosten in € | N8: m³ | O8: Kosten in € | P8: m³ | Q8: Kosten in €
A9: Autobahn, Schnellstraße (4- und mehrspurig, baulich getrennt) | B9: =Berechnungsgrundlagen!B29 -> 28.13528855 | E9: =IF(C9>0,C9*D9,B9*D9) -> 0 | G9: =IF(C9>0,C9*F9,B9*F9) -> 0 | I9: =IF(C9>0,C9*H9,B9*H9) -> 0 | K9: =IF(C9>0,C9*J9,B9*J9) -> 0 | M9: =IF(C9>0,C9*L9,B9*L9) -> 0 | O9: =IF(C9>0,C9*N9,B9*N9) -> 0 | Q9: =IF(C9>0,C9*P9,B9*P9) -> 0
A10: Landeshauptstraße (4-spurig) | B10: =Berechnungsgrundlagen!B30 -> 22.01892148 | E10: 0 | G10: 0 | I10: 0 | K10: 0 | M10: 0 | O10: 0 | Q10: 0
A11: Landesstraße (2-spurig) | B11: =Berechnungsgrundlagen!B31 -> 22.01892148 | E11: 0 | G11: 0 | I11: 0 | K11: 0 | M11: 0 | O11: 0 | Q11: 0
A12: Gemeindestraßen (2-spurig) | B12: =Berechnungsgrundlagen!B32 -> 22.01892148 | E12: 0 | G12: 0 | I12: 0 | K12: 0 | M12: 0 | O12: 0 | Q12: 0
A13: Sonstige Wege | B13: =Berechnungsgrundlagen!B33 -> 14.67928098 | E13: 0 | G13: 0 | I13: 0 | K13: 0 | M13: 0 | O13: 0 | Q13: 0
A14: Parkplätze | B14: 12 | E14: 0 | G14: 0 | I14: 0 | K14: 0 | M14: 0 | O14: 0 | Q14: 0
A15: Andere | E15: =C15*D15 -> 0 | G15: =C15*F15 -> 0 | I15: =C15*H15 -> 0 | K15: =C15*J15 -> 0 | M15: =C15*L15 -> 0 | O15: =C15*N15 -> 0 | Q15: =C15*P15 -> 0
A16: Summe Räumung Straße | D16: =SUM(D9:D15) -> 0 | E16: 0 | F16: 0 | G16: 0 | H16: =SUM(H9:H15) -> 0 | I16: =SUM(I9:I15) -> 0 | J16: 0 | K16: 0 | L16: 0 | M16: 0 | N16: 0 | O16: 0 | P16: 0 | Q16: 0
A18: Reinigungskosten (NUR, wenn keine Räumungskosten angesetzt werden!)
A19: Straßen (Material in m2) | B19: Kosten in € pro m2 Richtwert | C19: Kosten in € pro m2 eigene Erhebung | D19: m2 | E19: Kosten in € | F19: m2 | G19: Kosten in € | H19: m2 | I19: Kosten in € | J19: m2 | K19: Kosten in € | L19: m2 | M19: Kosten in € | N19: m2 | O19: Kosten in € | P19: m2 | Q19: Kosten in €
A20: Autobahn, Schnellstraße (4- und mehrspurig, baulich getrennt) | B20: =Berechnungsgrundlagen!C29 -> 3.669820246 | E20: =IF(E9>0,0,IF(C20>0,C20*D20,B20*D20)) -> 0 | G20: =IF(G9>0,0,IF(C20>0,C20*F20,B20*F20)) -> 0 | I20: =IF(I9>0,0,IF(C20>0,C20*H20,B20*H20)) -> 0 | K20: =IF(K9>0,0,IF(C20>0,C20*J20,B20*J20)) -> 0 | M20: =IF(M9>0,0,IF(C20>0,C20*L20,B20*L20)) -> 0 | O20: =IF(O9>0,0,IF(C20>0,C20*N20,B20*N20)) -> 0 | Q20: =IF(Q9>0,0,IF(C20>0,C20*P20,B20*P20)) -> 0
A21: Landeshauptstraße (4-spurig) | B21: =Berechnungsgrundlagen!C30 -> 3.669820246 | E21: 0 | G21: 0 | I21: 0 | K21: 0 | M21: 0 | O21: 0 | Q21: 0
A22: Landesstraße (2-spurig) | B22: =Berechnungsgrundlagen!C31 -> 2.446546831 | E22: 0 | G22: 0 | I22: 0 | K22: 0 | M22: 0 | O22: 0 | Q22: 0
A23: Gemeindestraßen (2-spurig) | B23: =Berechnungsgrundlagen!C32 -> 2.446546831 | E23: 0 | G23: 0 | I23: 0 | K23: 0 | M23: 0 | O23: 0 | Q23: 0
A24: Sonstige Wege | B24: =Berechnungsgrundlagen!C33 -> 2.446546831 | E24: 0 | G24: 0 | I24: 0 | K24: 0 | M24: 0 | O24: 0 | Q24: 0
A25: Parkplätze | B25: 2 | E25: 0 | G25: 0 | I25: 0 | K25: 0 | M25: 0 | O25: 0 | Q25: 0
A26: Andere | E26: =IF(E15>0,0,C26*D26) -> 0 | G26: =IF(G15>0,0,C26*F26) -> 0 | I26: =IF(I15>0,0,C26*H26) -> 0 | K26: =IF(K15>0,0,C26*J26) -> 0 | M26: =IF(M15>0,0,C26*L26) -> 0 | O26: =IF(O15>0,0,C26*N26) -> 0 | Q26: =IF(Q15>0,0,C26*P26) -> 0
A27: Summe Reinigungskosten Straße | D27: =SUM(D20:D26) -> 0 | E27: =SUM(E20:E26) -> 0 | F27: 0 | G27: =SUM(G20:G26) -> 0 | H27: 0 | I27: =SUM(I20:I26) -> 0 | J27: 0 | K27: =SUM(K20:K26) -> 0 | L27: 0 | M27: =SUM(M20:M26) -> 0 | N27: 0 | O27: =SUM(O20:O26) -> 0 | P27: 0 | Q27: =SUM(Q20:Q26) -> 0
A29: Reparaturkosten | D29: eigene Schätzung | F29: eigene Schätzung | H29: eigene Schätzung | J29: eigene Schätzung | L29: eigene Schätzung | N29: eigene Schätzung | P29: eigene Schätzung
A30: Anfälligkeitsgrad (0 = keine, 1 = volle Anfälligkeit); Eingabe zwingend erforderlich!
B31: Kosten in € pro lfm Richtwert | C31: Kosten in € pro lfm eigene Erhebung | D31: lfm | E31: Kosten in € | F31: lfm | G31: Kosten in € | H31: lfm | I31: Kosten in € | J31: lfm | K31: Kosten in € | L31: lfm | M31: Kosten in € | N31: lfm | O31: Kosten in € | P31: lfm | Q31: Kosten in €
A32: Autobahn, Schnellstraße (4- und mehrspurig, baulich getrennt) | B32: =ROUND(Berechnungsgrundlagen!D29,0) -> 3150 | E32: =IF(C32>0,C32*D32,B32*D32)*$D$30 -> 0 | G32: =IF(C32>0,C32*F32,B32*F32)*$F$30 -> 0 | I32: =IF(C32>0,C32*H32,B32*H32)*$H$30 -> 0 | K32: =IF(C32>0,C32*J32,B32*J32)*$J$30 -> 0 | M32: =IF(C32>0,C32*L32,B32*L32)*$L$30 -> 0 | O32: =IF(C32>0,C32*N32,B32*N32)*$N$30 -> 0 | Q32: =IF(C32>0,C32*P32,B32*P32)*$P$30 -> 0
A33: Landeshauptstraße (4-spurig) | B33: =ROUND(Berechnungsgrundlagen!D30,0) -> 859 | E33: 0 | G33: 0 | I33: 0 | K33: 0 | M33: 0 | O33: 0 | Q33: 0
A34: Landesstraße (2-spurig) | B34: =ROUND(Berechnungsgrundlagen!D31,0) -> 645 | E34: 0 | G34: 0 | I34: 0 | K34: 0 | M34: 0 | O34: 0 | Q34: 0
A35: Gemeindestraßen (2-spurig) | B35: =ROUND(Berechnungsgrundlagen!D32,0) -> 645 | E35: 0 | G35: 0 | I35: 0 | K35: 0 | M35: 0 | O35: 0 | Q35: 0
A36: Sonstige Wege | B36: =ROUND(Berechnungsgrundlagen!D33,0) -> 15 | E36: 0 | G36: 0 | I36: 0 | K36: 0 | M36: 0 | O36: 0 | Q36: 0
A37: Andere | E37: 0 | G37: 0 | I37: 0 | K37: 0 | M37: 0 | O37: 0 | Q37: 0
A38: Summe Reparaturkosten Straße | D38: =SUM(D32:D37) -> 0 | E38: 0 | F38: 0 | G38: 0 | H38: 0 | I38: 0 | J38: 0 | K38: 0 | L38: 0 | M38: 0 | N38: 0 | O38: 0 | P38: 0 | Q38: 0
A40: Straßensperren
B41: €/Tag Richtwert | C41: €/Tag eigene Erhebung | D41: Tage | E41: Kosten in € | F41: Tage | G41: Kosten in € | H41: Tage | I41: Kosten in € | J41: Tage | K41: Kosten in € | L41: Tage | M41: Kosten in € | N41: Tage | O41: Kosten in € | P41: Tage | Q41: Kosten in €
A42: Autobahn, Schnellstraße (4- und mehrspurig, baulich getrennt) | B42: =Berechnungsgrundlagen!C42 -> 82941.60738 | E42: =IF(C42>0,C42*D42,B42*D42) -> 0 | G42: =IF(C42>0,C42*F42,B42*F42) -> 0 | I42: =IF(C42>0,C42*H42,B42*H42) -> 0 | K42: =IF(C42>0,C42*J42,B42*J42) -> 0 | M42: =IF(C42>0,C42*L42,B42*L42) -> 0 | O42: =IF(C42>0,C42*N42,B42*N42) -> 0 | Q42: =IF(C42>0,C42*P42,B42*P42) -> 0
A43: Landeshauptstraße (4-spurig) | B43: =Berechnungsgrundlagen!C43 -> 55294.40492 | E43: 0 | G43: 0 | I43: 0 | K43: 0 | M43: 0 | O43: 0 | Q43: 0
A44: Landesstraße (2-spurig) | B44: =Berechnungsgrundlagen!C44 -> 41470.19205 | E44: 0 | G44: 0 | I44: 0 | K44: 0 | M44: 0 | O44: 0 | Q44: 0
A45: Gemeindestraßen (2-spurig) | B45: =Berechnungsgrundlagen!C45 -> 27647.20246 | E45: 0 | G45: 0 | I45: 0 | K45: 0 | M45: 0 | O45: 0 | Q45: 0
A46: Sonstige Wege | B46: =Berechnungsgrundlagen!C46 -> 3455.747398 | E46: 0 | G46: 0 | I46: 0 | K46: 0 | M46: 0 | O46: 0 | Q46: 0
A47: Andere | E47: 0 | G47: 0 | I47: 0 | K47: 0 | M47: 0 | O47: 0 | Q47: 0
A48: Summe Sperre Straße | D48: =SUM(D42:D47) -> 0 | E48: 0 | F48: 0 | G48: 0 | H48: 0 | I48: 0 | J48: 0 | K48: 0 | L48: 0 | M48: 0 | N48: 0 | O48: 0 | P48: 0 | Q48: 0
A50: Umleitungskosten und Mautentgang
A51: Umleitungskosten | B51: €/km Richtwert | C51: €/km eigene Erhebung | D51: Länge Umweg in km | E51: PKW Einheiten gesamt | F51: Länge Umweg in km | G51: PKW Einheiten gesamt | H51: Länge Umweg in km | I51: PKW Einheiten gesamt | J51: Länge Umweg in km | K51: PKW Einheiten gesamt | L51: Länge Umweg in km | M51: PKW Einheiten gesamt | N51: Länge Umweg in km | O51: PKW Einheiten gesamt | P51: Länge Umweg in km | Q51: PKW Einheiten gesamt
A52: Straße A | B52: =Berechnungsgrundlagen!B68 -> 0.5211668274
A53: Straße B | B53: =Berechnungsgrundlagen!B68 -> 0.5211668274
A54: Straße C | B54: =Berechnungsgrundlagen!B68 -> 0.5211668274
A55: Straße D | B55: =Berechnungsgrundlagen!B68 -> 0.5211668274
A56: Straße E | B56: =Berechnungsgrundlagen!B68 -> 0.5211668274
A57: Mautentgang | C57: €/km eigene Erhebung | D57: Länge Mautstraße in km | F57: Länge Mautstraße in km | H57: Länge Mautstraße in km | J57: Länge Mautstraße in km | L57: Länge Mautstraße in km | N57: Länge Mautstraße in km | P57: Länge Mautstraße in km
A58: Mautstraße A
A59: Mautstraße B
A60: Mautstraße C
A61: Summe Umleitungskosten und Mautentgang Straße | D61: =SUM(D58:D60) -> 0 | E61: =SUM((IF($C$52>0,$C$52*D52*E52,$B$52*D52*E52))+(IF($C$53>0,$C$53*D53*E53,$B$53*D53*E53)))+(IF($C$54>0,$C$54*D54*E54,$B$54*D54*E54))+(IF($C$55>0,$C$55*D55*E55,$B$55*D55*E55))+(IF($C$56>0,$C$56*D56*E56,$B$56*D56*E56))+SUMPRODUCT(C58:C60,D58:D60) -> 0 | F61: =SUM(F58:F60) -> 0 | G61: =SUM((IF($C$52>0,$C$52*F52*G52,$B$52*F52*G52))+(IF($C$53>0,$C$53*F53*G53,$B$53*F53*G53)))+(IF($C$54>0,$C$54*F54*G54,$B$54*F54*G54))+(IF($C$55>0,$C$55*F55*G55,$B$55*F55*G55))+(IF($C$56>0,$C$56*F56*G56,$B$56*F56*G56))+SUMPRODUCT(C58:C60,F58:F60) -> 0 | H61: =SUM(H58:H60) -> 0 | I61: =SUM((IF($C$52>0,$C$52*H52*I52,$B$52*H52*I52))+(IF($C$53>0,$C$53*H53*I53,$B$53*H53*I53)))+(IF($C$54>0,$C$54*H54*I54,$B$54*H54*I54))+(IF($C$55>0,$C$55*H55*I55,$B$55*H55*I55))+(IF($C$56>0,$C$56*H56*I56,$B$56*H56*I56))+SUMPRODUCT(C58:C60,H58:H60) -> 0 | J61: =SUM(J58:J60) -> 0 | K61: =SUM((IF($C$52>0,$C$52*J52*K52,$B$52*J52*K52))+(IF($C$53>0,$C$53*J53*K53,$B$53*J53*K53)))+(IF($C$54>0,$C$54*J54*K54,$B$54*J54*K54))+(IF($C$55>0,$C$55*J55*K55,$B$55*J55*K55))+(IF($C$56>0,$C$56*J56*K56,$B$56*J56*K56))+SUMPRODUCT(C58:C60,J58:J60) -> 0 | L61: =SUM(L58:L60) -> 0 | M61: =SUM((IF($C$52>0,$C$52*L52*M52,$B$52*L52*M52))+(IF($C$53>0,$C$53*L53*M53,$B$53*L53*M53)))+(IF($C$54>0,$C$54*L54*M54,$B$54*L54*M54))+(IF($C$55>0,$C$55*L55*M55,$B$55*L55*M55))+(IF($C$56>0,$C$56*L56*M56,$B$56*L56*M56))+SUMPRODUCT(C58:C60,L58:L60) -> 0 | N61: =SUM(N58:N60) -> 0 | O61: =SUM((IF($C$52>0,$C$52*N52*O52,$B$52*N52*O52))+(IF($C$53>0,$C$53*N53*O53,$B$53*N53*O53)))+(IF($C$54>0,$C$54*N54*O54,$B$54*N54*O54))+(IF($C$55>0,$C$55*N55*O55,$B$55*N55*O55))+(IF($C$56>0,$C$56*N56*O56,$B$56*N56*O56))+SUMPRODUCT(C58:C60,N58:N60) -> 0 | P61: =SUM(P58:P60) -> 0 | Q61: =SUM((IF($C$52>0,$C$52*P52*Q52,$B$52*P52*Q52))+(IF($C$53>0,$C$53*P53*Q53,$B$53*P53*Q53)))+(IF($C$54>0,$C$54*P54*Q54,$B$54*P54*Q54))+(IF($C$55>0,$C$55*P55*Q55,$B$55*P55*Q55))+(IF($C$56>0,$C$56*P56*Q56,$B$56*P56*Q56))+SUMPRODUCT(C58:C60,P58:P60) -> 0
D63: HQ | F63: HQ | H63: HQ | J63: HQ | L63: HQ | N63: HQ | P63: HQ
D64: =Projektgrunddaten!$C$24 -> 0 | F64: =Projektgrunddaten!$C$25 -> 0 | H64: =Projektgrunddaten!$C$26 -> 0 | J64: =Projektgrunddaten!$C$27 -> 0 | L64: =Projektgrunddaten!$C$28 -> 0 | N64: =Projektgrunddaten!$C$29 -> 100 | P64: =Projektgrunddaten!$C$30 -> 0
A65: STRASSE SCHADENSANFÄLLIGKEIT GESAMT | D65: =SUM(E61+E48+E38+E27+E16) -> 0 | F65: =SUM(G61+G48+G38+G27+G16) -> 0 | H65: =SUM(I61+I48+I38+I27+I16) -> 0 | J65: =SUM(K61+K48+K38+K27+K16) -> 0 | L65: =SUM(M61+M48+M38+M27+M16) -> 0 | N65: =SUM(O61+O48+O38+O27+O16) -> 0 | P65: =SUM(Q61+Q48+Q38+Q27+Q16) -> 0
A67: VERKEHRSINFRASTRUKTUR - BAHN
A68: Räumungs- und Reinigungskosten
A69: Bahn (Material pro lfm) | B69: Kosten in € pro lfm | D69: lfm | E69: Kosten in € | F69: lfm | G69: Kosten in € | H69: lfm | I69: Kosten in € | J69: lfm | K69: Kosten in € | L69: lfm | M69: Kosten in € | N69: lfm | O69: Kosten in € | P69: lfm | Q69: Kosten in €
A70: Bahn 1-gleisig | B70: =Berechnungsgrundlagen!B35 -> 72.1731315 | E70: =B70*D70 -> 0 | G70: =B70*F70 -> 0 | I70: =B70*H70 -> 0 | K70: =B70*J70 -> 0 | M70: =B70*L70 -> 0 | O70: =B70*N70 -> 0 | Q70: =B70*P70 -> 0
A71: Bahn 2-gleisig | B71: =Berechnungsgrundlagen!B36 -> 143.1229896 | E71: =B71*D71 -> 0 | G71: =B71*F71 -> 0 | I71: =B71*H71 -> 0 | K71: =B71*J71 -> 0 | M71: =B71*L71 -> 0 | O71: =B71*N71 -> 0 | Q71: =B71*P71 -> 0
A72: Summe Räumungs- und Reinigungskosten Bahn | D72: =SUM(D70:D71) -> 0 | E72: 0 | F72: 0 | G72: 0 | H72: =SUM(H70:H71) -> 0 | I72: =SUM(I70:I71) -> 0 | J72: 0 | K72: 0 | L72: 0 | M72: 0 | N72: 0 | O72: 0 | P72: 0 | Q72: 0
A74: Schadensfeststellung und Betriebsbehinderungen
D75: Achtung: Diese Kosten nur einmalig pro HQ-Ereignis ansetzen! | J75: =+D75 -> Achtung: Diese Kosten nur einmalig pro HQ-Ereignis ansetzen!
A76: Schadensfeststellung | B76: =Berechnungsgrundlagen!F29 -> 2003.721854 | E76: =IF(COUNTA(D76)>0,$B$76,0) -> 0 | G76: =IF(COUNTA(F76)>0,$B$76,0) -> 0 | I76: =IF(COUNTA(H76)>0,$B$76,0) -> 0 | K76: =IF(COUNTA(J76)>0,$B$76,0) -> 0 | M76: =IF(COUNTA(L76)>0,$B$76,0) -> 0 | O76: =IF(COUNTA(N76)>0,$B$76,0) -> 0 | Q76: =IF(COUNTA(P76)>0,$B$76,0) -> 0
B77: Kosten in € pro Tag | D77: Anzahl Tage | E77: Kosten in € | F77: Anzahl Tage | G77: Kosten in € | H77: Anzahl Tage | I77: Kosten in € | J77: Anzahl Tage | K77: Kosten in € | L77: Anzahl Tage | M77: Kosten in € | N77: Anzahl Tage | O77: Kosten in € | P77: Anzahl Tage | Q77: Kosten in €
A78: Überwachung | B78: =Berechnungsgrundlagen!F31 -> 2291.191107 | E78: =B78*D78 -> 0 | G78: =B78*F78 -> 0 | I78: =B78*H78 -> 0 | K78: =B78*J78 -> 0 | M78: =B78*L78 -> 0 | O78: =N78*B78 -> 0 | Q78: =B78*P78 -> 0
A79: Langsamfahren 1-gleisige Strecke | B79: =Berechnungsgrundlagen!F32 -> 4008.666982 | E79: =B79*D79 -> 0 | G79: =B79*F79 -> 0 | I79: =B79*H79 -> 0 | K79: =B79*J79 -> 0 | M79: =B79*L79 -> 0 | O79: =N79*B79 -> 0 | Q79: =B79*P79 -> 0
A80: Langsamfahren 2-gleisige Strecke | B80: =Berechnungsgrundlagen!F33 -> 9734.809839 | E80: =B80*D80 -> 0 | G80: =B80*F80 -> 0 | I80: =B80*H80 -> 0 | K80: =B80*J80 -> 0 | M80: =B80*L80 -> 0 | O80: =N80*B80 -> 0 | Q80: =B80*P80 -> 0
A81: Summe Schadensfeststellung und Betriebsbehinderungen Bahn | D81: =SUM(D78:D80) -> 0 | E81: =SUM(E78:E80)+E76 -> 0 | F81: =SUM(F78:F80) -> 0 | G81: =SUM(G78:G80)+G76 -> 0 | H81: =SUM(H78:H80) -> 0 | I81: =SUM(I78:I80)+I76 -> 0 | J81: =SUM(J78:J80) -> 0 | K81: =SUM(K78:K80)+K76 -> 0 | L81: =SUM(L78:L80) -> 0 | M81: =SUM(M78:M80)+M76 -> 0 | N81: =SUM(N78:N80) -> 0 | O81: =SUM(O78:O80)+O76 -> 0 | P81: =SUM(P78:P80) -> 0 | Q81: =SUM(Q78:Q80)+Q76 -> 0
A83: Reparaturkosten
B84: Kosten in € pro lfm | D84: lfm | E84: Kosten in € | F84: lfm | G84: Kosten in € | H84: lfm | I84: Kosten in € | J84: lfm | K84: Kosten in € | L84: lfm | M84: Kosten in € | N84: lfm | O84: Kosten in € | P84: lfm | Q84: Kosten in €
A85: Bahn 1-gleisig | B85: =Berechnungsgrundlagen!D35 -> 4294.912961 | E85: =B85*D85 -> 0 | G85: =B85*F85 -> 0 | I85: =B85*H85 -> 0 | K85: =B85*J85 -> 0 | M85: =B85*L85 -> 0 | O85: =B85*N85 -> 0 | Q85: =B85*P85 -> 0
A86: Bahn 2-gleisig | B86: =Berechnungsgrundlagen!D36 -> 8589.825922 | E86: =B86*D86 -> 0 | G86: =B86*F86 -> 0 | I86: =B86*H86 -> 0 | K86: =B86*J86 -> 0 | M86: =B86*L86 -> 0 | O86: =B86*N86 -> 0 | Q86: =B86*P86 -> 0
A87: Summe Reparaturkosten Bahn | D87: =SUM(D85:D86) -> 0 | E87: 0 | F87: 0 | G87: 0 | H87: =SUM(H85:H86) -> 0 | I87: =SUM(I85:I86) -> 0 | J87: 0 | K87: 0 | L87: 0 | M87: 0 | N87: 0 | O87: 0 | P87: 0 | Q87: 0
A89: Sperren
B90: €/Tag | D90: Tage | E90: Kosten in € | F90: Tage | G90: Kosten in € | H90: Tage | I90: Kosten in € | J90: Tage | K90: Kosten in € | L90: Tage | M90: Kosten in € | N90: Tage | O90: Kosten in € | P90: Tage | Q90: Kosten in €
A91: Bahn 1-gleisig | B91: =Berechnungsgrundlagen!C48 -> 51838.65752 | E91: =B91*D91 -> 0 | G91: =B91*F91 -> 0 | I91: =H91*B91 -> 0 | K91: =J91*B91 -> 0 | M91: =B91*L91 -> 0 | O91: =N91*B91 -> 0 | Q91: =P91*B91 -> 0
A92: Bahn 2-gleisig | B92: =Berechnungsgrundlagen!C49 -> 57367.85336 | E92: =B92*D92 -> 0 | G92: =B92*F92 -> 0 | I92: =H92*B92 -> 0 | K92: =J92*B92 -> 0 | M92: =B92*L92 -> 0 | O92: =N92*B92 -> 0 | Q92: =P92*B92 -> 0
A93: Summe Sperre Bahn | D93: =SUM(D91:D92) -> 0 | E93: 0 | F93: 0 | G93: 0 | H93: =SUM(H91:H92) -> 0 | I93: =SUM(I91:I92) -> 0 | J93: 0 | K93: 0 | L93: 0 | M93: 0 | N93: 0 | O93: 0 | P93: 0 | Q93: 0
D95: HQ | F95: HQ | H95: HQ | J95: HQ | L95: HQ | N95: HQ | P95: HQ
D96: =Projektgrunddaten!$C$24 -> 0 | F96: =Projektgrunddaten!$C$25 -> 0 | H96: =Projektgrunddaten!$C$26 -> 0 | J96: =Projektgrunddaten!$C$27 -> 0 | L96: =Projektgrunddaten!$C$28 -> 0 | N96: =Projektgrunddaten!$C$29 -> 100 | P96: =Projektgrunddaten!$C$30 -> 0
A97: BAHN - SCHADENSANFÄLLIGKEIT GESAMT | D97: =SUM(E93+E87+E81+E72) -> 0 | F97: =SUM(G93+G87+G81+G72) -> 0 | H97: =SUM(I93+I87+I81+I72) -> 0 | J97: =SUM(K93+K87+K81+K72) -> 0 | L97: =SUM(M93+M87+M81+M72) -> 0 | N97: =SUM(O93+O87+O81+O72) -> 0 | P97: =SUM(Q93+Q87+Q81+Q72) -> 0
A99: VERKEHRSINFRASTRUKTUR und
A100: SONSTIGE VERKEHRSANLAGEN
A101: Räumungskosten | C101: Kosten in € pro m³ eigene Erhebung | D101: m³ | E101: Kosten in € | F101: m³ | G101: Kosten in € | H101: m³ | I101: Kosten in € | J101: m³ | K101: Kosten in € | L101: m³ | M101: Kosten in € | N101: m³ | O101: Kosten in € | P101: m³ | Q101: Kosten in €
A102: Flugbetriebsflächen | E102: =C102*D102 -> 0 | G102: =C102*F102 -> 0 | I102: =H102*C102 -> 0 | K102: =J102*C102 -> 0 | M102: =C102*L102 -> 0 | O102: =C102*N102 -> 0 | Q102: =C102*P102 -> 0
A103: Schifffahrtseinrichtungen | E103: =C103*D103 -> 0 | G103: =C103*F103 -> 0 | I103: =H103*C103 -> 0 | K103: =J103*C103 -> 0 | M103: =C103*L103 -> 0 | O103: =C103*N103 -> 0 | Q103: =C103*P103 -> 0
A104: Summe Räumungskosten Sonstige Verkehrsanlagen | D104: =SUM(D102:D103) -> 0 | E104: 0 | F104: 0 | G104: 0 | H104: =SUM(H102:H103) -> 0 | I104: =SUM(I102:I103) -> 0 | J104: 0 | K104: 0 | L104: 0 | M104: 0 | N104: 0 | O104: 0 | P104: 0 | Q104: 0
A106: Reparaturkosten | C106: Kosten in € pro m² eigene Erhebung | D106: m² | E106: Kosten in € | F106: m² | G106: Kosten in € | H106: m² | I106: Kosten in € | J106: m² | K106: Kosten in € | L106: m² | M106: Kosten in € | N106: m² | O106: Kosten in € | P106: m² | Q106: Kosten in €
A107: Flugbetriebsflächen | E107: =C107*D107 -> 0 | G107: =C107*F107 -> 0 | I107: =H107*C107 -> 0 | K107: =J107*C107 -> 0 | M107: =L107*C107 -> 0 | O107: =N107*C107 -> 0 | Q107: =P107*C107 -> 0
A108: Schifffahrtseinrichtungen | E108: =C108*D108 -> 0 | G108: =C108*F108 -> 0 | I108: =H108*C108 -> 0 | K108: =J108*C108 -> 0 | M108: =L108*C108 -> 0 | O108: =N108*C108 -> 0 | Q108: =P108*C108 -> 0
A109: Summe Reparaturkosten Sonstige Verkehrsanlagen | D109: =SUM(D107:D108) -> 0 | E109: 0 | F109: 0 | G109: 0 | H109: =SUM(H107:H108) -> 0 | I109: =SUM(I107:I108) -> 0 | J109: 0 | K109: 0 | L109: 0 | M109: 0 | N109: 0 | O109: 0 | P109: 0 | Q109: 0
A111: Erläuterungen zu den Reparaturkosten Sonstige Verkehrsanlagen
A114: Sperren | C114: €/Tag eigene Erhebung | D114: Tage | E114: Kosten in € | F114: Tage | G114: Kosten in € | H114: Tage | I114: Kosten in € | J114: Tage | K114: Kosten in € | L114: Tage | M114: Kosten in € | N114: Tage | O114: Kosten in € | P114: Tage | Q114: Kosten in €
A115: Flugbetriebsflächen | E115: =C115*D115 -> 0 | G115: =C115*F115 -> 0 | I115: =C115*H115 -> 0 | K115: =C115*J115 -> 0 | M115: =C115*L115 -> 0 | O115: =C115*N115 -> 0 | Q115: =C115*P115 -> 0
A116: Schifffahrtseinrichtungen | E116: =C116*D116 -> 0 | G116: =C116*F116 -> 0 | I116: =C116*H116 -> 0 | K116: =C116*J116 -> 0 | M116: =C116*L116 -> 0 | O116: =C116*N116 -> 0 | Q116: =C116*P116 -> 0
A117: Summe Sperre Sonstige Verkehrsanlagen | D117: =SUM(D115:D116) -> 0 | E117: 0 | F117: 0 | G117: 0 | H117: =SUM(H115:H116) -> 0 | I117: =SUM(I115:I116) -> 0 | J117: 0 | K117: 0 | L117: 0 | M117: 0 | N117: 0 | O117: 0 | P117: 0 | Q117: 0
A118: Erläuterungen zur Kalkulation Sperren Sonstige Verkehrsanlagen
D121: HQ | F121: HQ | H121: HQ | J121: HQ | L121: HQ | N121: HQ | P121: HQ
A122: SCHADENSANFÄLLIGKEIT | D122: =Projektgrunddaten!$C$24 -> 0 | F122: =Projektgrunddaten!$C$25 -> 0 | H122: =Projektgrunddaten!$C$26 -> 0 | J122: =Projektgrunddaten!$C$27 -> 0 | L122: =Projektgrunddaten!$C$28 -> 0 | N122: =Projektgrunddaten!$C$29 -> 100 | P122: =Projektgrunddaten!$C$30 -> 0
A123: SONSTIGE VERKEHRSANLAGEN GESAMT | D123: =SUM(E117+E109+E104) -> 0 | F123: =SUM(G117+G109+G104) -> 0 | H123: =SUM(I117+I109+I104) -> 0 | J123: =SUM(K117+K109+K104) -> 0 | L123: =SUM(M117+M109+M104) -> 0 | N123: =SUM(O117+O109+O104) -> 0 | P123: =SUM(Q117+Q109+Q104) -> 0
A125: BRÜCKEN
A126: Reparatur- / Neubaukosten | C126: Anfälligkeitsgrad:
A127: Richtwert Neubau Brücke in €/m² | B127: =Berechnungsgrundlagen!B70 -> 2288.407163 | C127: 0 = keine Anfälligkeit 1 = volle Anfälligkeit
A128: Alternative Eingabe: | B128: Fläche in m² | C128: Neubaukosten/ Reparaturkosten | D128: Anfällig-keit 0 - 1 | E128: Kosten in € | F128: Anfällig-keit 0 - 1 | G128: Kosten in € | H128: Anfällig-keit 0 - 1 | I128: Kosten in € | J128: Anfällig-keit 0 - 1 | K128: Kosten in € | L128: Anfällig-keit 0 - 1 | M128: Kosten in € | N128: Anfällig-keit 0 - 1 | O128: Kosten in € | P128: Anfällig-keit 0 - 1 | Q128: Kosten in €
A129: Brücke 1 | E129: =IF($C$129=0,$B$129*$B$127,$C$129)*(IF(D129="",0,D129)) -> 0 | G129: =IF($C$129=0,$B$129*$B$127,$C$129)*(IF(F129="",0,F129)) -> 0 | I129: =IF($C$129=0,$B$129*$B$127,$C$129)*(IF(H129="",0,H129)) -> 0 | K129: =IF($C$129=0,$B$129*$B$127,$C$129)*(IF(J129="",0,J129)) -> 0 | M129: =IF($C$129=0,$B$129*$B$127,$C$129)*(IF(L129="",0,L129)) -> 0 | O129: =IF($C$129=0,$B$129*$B$127,$C$129)*(IF(N129="",0,N129)) -> 0 | Q129: =IF($C$129=0,$B$129*$B$127,$C$129)*(IF(P129="",0,P129)) -> 0
A130: Brücke 2 | E130: =IF($C$130=0,$B$130*$B$127,$C$130)*(IF(D130="",0,D130)) -> 0 | G130: =IF($C$130=0,$B$130*$B$127,$C$130)*(IF(F130="",0,F130)) -> 0 | I130: =IF($C$130=0,$B$130*$B$127,$C$130)*(IF(H130="",0,H130)) -> 0 | K130: =IF($C$130=0,$B$130*$B$127,$C$130)*(IF(J130="",0,J130)) -> 0 | M130: =IF($C$130=0,$B$130*$B$127,$C$130)*(IF(L130="",0,L130)) -> 0 | O130: =IF($C$130=0,$B$130*$B$127,$C$130)*(IF(N130="",0,N130)) -> 0 | Q130: =IF($C$130=0,$B$130*$B$127,$C$130)*(IF(P130="",0,P130)) -> 0
A131: Brücke 3 | E131: =IF($C$131=0,$B$131*$B$127,$C$131)*(IF(D131="",0,D131)) -> 0 | G131: =IF($C$131=0,$B$131*$B$127,$C$131)*(IF(F131="",0,F131)) -> 0 | I131: =IF($C$131=0,$B$131*$B$127,$C$131)*(IF(H131="",0,H131)) -> 0 | K131: =IF($C$131=0,$B$131*$B$127,$C$131)*(IF(J131="",0,J131)) -> 0 | M131: =IF($C$131=0,$B$131*$B$127,$C$131)*(IF(L131="",0,L131)) -> 0 | O131: =IF($C$131=0,$B$131*$B$127,$C$131)*(IF(N131="",0,N131)) -> 0 | Q131: =IF($C$131=0,$B$131*$B$127,$C$131)*(IF(P131="",0,P131)) -> 0
A132: Brücke 4 | E132: =IF($C$132=0,$B$132*$B$127,$C$132)*(IF(D132="",0,D132)) -> 0 | G132: =IF($C$132=0,$B$132*$B$127,$C$132)*(IF(F132="",0,F132)) -> 0 | I132: =IF($C$132=0,$B$132*$B$127,$C$132)*(IF(H132="",0,H132)) -> 0 | K132: =IF($C$132=0,$B$132*$B$127,$C$132)*(IF(J132="",0,J132)) -> 0 | M132: =IF($C$132=0,$B$132*$B$127,$C$132)*(IF(L132="",0,L132)) -> 0 | O132: =IF($C$132=0,$B$132*$B$127,$C$132)*(IF(N132="",0,N132)) -> 0 | Q132: =IF($C$132=0,$B$132*$B$127,$C$132)*(IF(P132="",0,P132)) -> 0
A133: Brücke 5 | E133: =IF($C$133=0,$B$133*$B$127,$C$133)*(IF(D133="",0,D133)) -> 0 | G133: =IF($C$133=0,$B$133*$B$127,$C$133)*(IF(F133="",0,F133)) -> 0 | I133: =IF($C$133=0,$B$133*$B$127,$C$133)*(IF(H133="",0,H133)) -> 0 | K133: =IF($C$133=0,$B$133*$B$127,$C$133)*(IF(J133="",0,J133)) -> 0 | M133: =IF($C$133=0,$B$133*$B$127,$C$133)*(IF(L133="",0,L133)) -> 0 | O133: =IF($C$133=0,$B$133*$B$127,$C$133)*(IF(N133="",0,N133)) -> 0 | Q133: =IF($C$133=0,$B$133*$B$127,$C$133)*(IF(P133="",0,P133)) -> 0
A134: Brücke 6 | E134: =IF($C$134=0,$B$129*$B$134,$C$134)*(IF(D134="",0,D134)) -> 0 | G134: =IF($C$134=0,$B$134*$B$127,$C$134)*(IF(F134="",0,F134)) -> 0 | I134: =IF($C$134=0,$B$134*$B$127,$C$134)*(IF(H134="",0,H134)) -> 0 | K134: =IF($C$134=0,$B$134*$B$127,$C$134)*(IF(J134="",0,J134)) -> 0 | M134: =IF($C$134=0,$B$134*$B$127,$C$134)*(IF(L134="",0,L134)) -> 0 | O134: =IF($C$134=0,$B$134*$B$127,$C$134)*(IF(N134="",0,N134)) -> 0 | Q134: =IF($C$134=0,$B$134*$B$127,$C$134)*(IF(P134="",0,P134)) -> 0
A135: Summe Reparatur-/Neubaukosten Brücke | E135: =SUM(E129:E134) -> 0 | G135: =SUM(G129:G134) -> 0 | I135: =SUM(I129:I134) -> 0 | K135: =SUM(K129:K134) -> 0 | M135: =SUM(M129:M134) -> 0 | O135: =SUM(O129:O134) -> 0 | Q135: =SUM(Q129:Q134) -> 0
A137: Erläuterungen zu den Neubau- und Reparaturkosten von Brücken
A140: KRAFTFAHRZEUGE
A141: Abstellbereiche: | D141: Anzahl potenziell vorhandener PKW-Abstellplätze in den Bereichen 1 - 3 | J141: =+D141 -> Anzahl potenziell vorhandener PKW-Abstellplätze in den Bereichen 1 - 3
A142: Bereich 1 Überflutungshöhe > 50 cm und Fließgeschwindigkeit < 1m/s
A143: Bereich 2 Überflutungshöhe > 50 cm und Fließgeschwindigkeit > 1 m/s bzw. unzureichende Reaktionszeit
A144: Bereich 3 Tiefgaragen
A145: Summe Schadensanfälligkeit KFZ | D145: =(SUMPRODUCT(D142:D144,Berechnungsgrundlagen!$B$55:$B$57))*(Berechnungsgrundlagen!$B$53) -> 0 | F145: =(SUMPRODUCT(F142:F144,Berechnungsgrundlagen!$B$55:$B$57))*(Berechnungsgrundlagen!$B$53) -> 0 | H145: =(SUMPRODUCT(H142:H144,Berechnungsgrundlagen!$B$55:$B$57))*(Berechnungsgrundlagen!$B$53) -> 0 | J145: =(SUMPRODUCT(J142:J144,Berechnungsgrundlagen!$B$55:$B$57))*(Berechnungsgrundlagen!$B$53) -> 0 | L145: =(SUMPRODUCT(L142:L144,Berechnungsgrundlagen!$B$55:$B$57))*(Berechnungsgrundlagen!$B$53) -> 0 | N145: =(SUMPRODUCT(N142:N144,Berechnungsgrundlagen!$B$55:$B$57))*(Berechnungsgrundlagen!$B$53) -> 0 | P145: =(SUMPRODUCT(P142:P144,Berechnungsgrundlagen!$B$55:$B$57))*(Berechnungsgrundlagen!$B$53) -> 0
A147: VER- UND ENTSORGUNGSINFRASTRUKTUR
A148: Reparaturkosten | D148: Anfälligkeitsgrad eigene Schätzung | F148: Anfälligkeitsgrad eigene Schätzung | H148: Anfälligkeitsgrad eigene Schätzung | J148: Anfälligkeitsgrad eigene Schätzung | L148: Anfälligkeitsgrad eigene Schätzung | N148: Anfälligkeitsgrad eigene Schätzung | P148: Anfälligkeitsgrad eigene Schätzung
A149: Anfälligkeitsgrad, 0 = keine Anfälligkeit, 1 = max. Anfälligkeit:
D150: Länge in lfm | E150: Kosten in € | F150: Länge in lfm | G150: Kosten in € | H150: Länge in lfm | I150: Kosten in € | J150: Länge in lfm | K150: Kosten in € | L150: Länge in lfm | M150: Kosten in € | N150: Länge in lfm | O150: Kosten in € | P150: Länge in lfm | Q150: Kosten in €
A151: Freileitungen | E151: =INDEX(Berechnungsgrundlagen!$C$60:$C$64,MATCH($B$151,Freileitungen,0))*$D$149*D151 -> 0 | G151: =INDEX(Berechnungsgrundlagen!$C$60:$C$64,MATCH($B$151,Freileitungen,0))*$F$149*F151 -> 0 | I151: =INDEX(Berechnungsgrundlagen!$C$60:$C$64,MATCH($B$151,Freileitungen,0))*$H$149*H151 -> 0 | K151: =INDEX(Berechnungsgrundlagen!$C$60:$C$64,MATCH($B$151,Freileitungen,0))*$J$149*J151 -> 0 | M151: =INDEX(Berechnungsgrundlagen!$C$60:$C$64,MATCH($B$151,Freileitungen,0))*$L$149*L151 -> 0 | O151: =INDEX(Berechnungsgrundlagen!$C$60:$C$64,MATCH($B$151,Freileitungen,0))*$N$149*N151 -> 0 | Q151: =INDEX(Berechnungsgrundlagen!$C$60:$C$64,MATCH($B$151,Freileitungen,0))*$P$149*P151 -> 0
A152: Freileitungen | E152: =INDEX(Berechnungsgrundlagen!$C$60:$C$64,MATCH($B$152,Freileitungen,0))*$D$149*D152 -> 0 | G152: =INDEX(Berechnungsgrundlagen!$C$60:$C$64,MATCH($B$152,Freileitungen,0))*$F$149*F152 -> 0 | I152: =INDEX(Berechnungsgrundlagen!$C$60:$C$64,MATCH($B$152,Freileitungen,0))*$H$149*H152 -> 0 | K152: =INDEX(Berechnungsgrundlagen!$C$60:$C$64,MATCH($B$152,Freileitungen,0))*$J$149*J152 -> 0 | M152: =INDEX(Berechnungsgrundlagen!$C$60:$C$64,MATCH($B$152,Freileitungen,0))*$L$149*L152 -> 0 | O152: =INDEX(Berechnungsgrundlagen!$C$60:$C$64,MATCH($B$152,Freileitungen,0))*$N$149*N152 -> 0 | Q152: =INDEX(Berechnungsgrundlagen!$C$60:$C$64,MATCH($B$152,Freileitungen,0))*$P$149*P152 -> 0
A153: Freileitungen | E153: =INDEX(Berechnungsgrundlagen!$C$60:$C$64,MATCH($B$153,Freileitungen,0))*$D$149*D153 -> 0 | G153: =INDEX(Berechnungsgrundlagen!$C$60:$C$64,MATCH($B$153,Freileitungen,0))*$F$149*F153 -> 0 | I153: =INDEX(Berechnungsgrundlagen!$C$60:$C$64,MATCH($B$153,Freileitungen,0))*$H$149*H153 -> 0 | K153: =INDEX(Berechnungsgrundlagen!$C$60:$C$64,MATCH($B$153,Freileitungen,0))*$J$149*J153 -> 0 | M153: =INDEX(Berechnungsgrundlagen!$C$60:$C$64,MATCH($B$153,Freileitungen,0))*$L$149*L153 -> 0 | O153: =INDEX(Berechnungsgrundlagen!$C$60:$C$64,MATCH($B$153,Freileitungen,0))*$N$149*N153 -> 0 | Q153: =INDEX(Berechnungsgrundlagen!$C$60:$C$64,MATCH($B$153,Freileitungen,0))*$P$149*P153 -> 0
D155: Kosten in € | F155: Kosten in € | H155: Kosten in € | J155: Kosten in € | L155: Kosten in € | N155: Kosten in € | P155: Kosten in €
A156: Stromversorgung unter Gelände
A157: Gasversorgung unter Gelände
A158: Telefonleitungen unter Gelände
A159: Rundfunkleitungen, Glasfaser unter Gelände
A160: Abwasserentsorgung, Kanäle
A161: Wasserversorgung unter Gelände
A162: Sonstige (Leitungen, Masten)
A163: Summe Schadensanfälligkeit Leitungen | D163: =SUM(E151:E153,D156:D162) -> 0 | F163: =SUM(G151:G153,F156:F162) -> 0 | H163: =SUM(I151:I153,H156:H162) -> 0 | J163: =SUM(K151:K153,J156:J162) -> 0 | L163: =SUM(M151:M153,L156:L162) -> 0 | N163: =SUM(O151:O153,N156:N162) -> 0 | P163: =SUM(Q151:Q153,P156:P162) -> 0
A165: Erläuterungen zur Kalkulation der Reparaturkosten der Ver- und Entsorgungsinfrastruktur
A168: SOFORTMASSNAHMEN | D168: Kosten in € | F168: Kosten in € | H168: Kosten in € | J168: Kosten in € | L168: Kosten in € | N168: Kosten in € | P168: Kosten in €
A169: Einrichtung und Betrieb einer Notversorgung
A170: Kosten für Leitungsprovisorium (10 % der Reparaturkosten) | D170: =D163*0.1 -> 0 | F170: =F163*0.1 -> 0 | H170: =H163*0.1 -> 0 | J170: =J163*0.1 -> 0 | L170: =L163*0.1 -> 0 | N170: =N163*0.1 -> 0 | P170: =P163*0.1 -> 0
A171: Sonstige Kosten (Schadenserhebung, Freimachung etc.)
B172: Kosten in €/lfm Richtwert | C172: Kosten in €/lfm eigene Erhebung | D172: lfm | F172: lfm | H172: lfm | J172: lfm | L172: lfm | N172: lfm | P172: lfm
A173: Räumung/Spülung Kanal | B173: =Berechnungsgrundlagen!B73 -> 2.316297011 | E173: =IF($C$173>0,$C$173,$B$173)*D173 -> 0 | G173: =IF($C$173>0,$C$173,$B$173)*F173 -> 0 | I173: =IF($C$173>0,$C$173,$B$173)*H173 -> 0 | K173: =IF($C$173>0,$C$173,$B$173)*J173 -> 0 | M173: =IF($C$173>0,$C$173,$B$173)*L173 -> 0 | O173: =IF($C$173>0,$C$173,$B$173)*N173 -> 0 | Q173: =IF($C$173>0,$C$173,$B$173)*P173 -> 0
A174: Summe Sofortmaßnahmen | E174: =SUM(D169:D171,E173) -> 0 | G174: =SUM(F169:F171,G173) -> 0 | I174: =SUM(H169:H171,I173) -> 0 | K174: =SUM(J169:J171,K173) -> 0 | M174: =SUM(L169:L171,M173) -> 0 | O174: =SUM(N169:N171,O173) -> 0 | Q174: =SUM(P169:P171,Q173) -> 0
A176: Erläuterungen zur Kalkulation der Kosten für Sofortmaßnahmen (Notversorgung, Sonstige Kosten)
A180: SUMMEN SCHADENSANFÄLLIGKEIT
A181: BEI VERKEHRS-, | D181: HQ | F181: HQ | H181: HQ | J181: HQ | L181: HQ | N181: HQ | P181: HQ
A182: VER- UND ENTSORGUNGSINFRASTRUKTUR | D182: =Projektgrunddaten!$C$24 -> 0 | F182: =Projektgrunddaten!$C$25 -> 0 | H182: =Projektgrunddaten!$C$26 -> 0 | J182: =Projektgrunddaten!$C$27 -> 0 | L182: =Projektgrunddaten!$C$28 -> 0 | N182: =Projektgrunddaten!$C$29 -> 100 | P182: =Projektgrunddaten!$C$30 -> 0
D183: =SUM(E174+D163+D145+E135+D123+D97+D65) -> 0 | F183: =SUM(G174+F163+F145+G135+F123+F97+F65) -> 0 | H183: =SUM(I174+H163+H145+I135+H123+H97+H65) -> 0 | J183: =SUM(K174+J163+J145+K135+J123+J97+J65) -> 0 | L183: =SUM(M174+L163+L145+M135+L123+L97+L65) -> 0 | N183: =SUM(O174+N163+N145+O135+N123+N97+N65) -> 0 | P183: =SUM(Q174+P163+P145+Q135+P123+P97+P65) -> 0

Sheet Wasserbauliche Anlagen
A1: WASSERBAULICHE ANLAGEN UND GEWÄSSER
A3: Wiederinstandsetzungskosten | C3: bei HQ
C4: =Projektgrunddaten!$C$24 -> 0 | D4: =Projektgrunddaten!$C$25 -> 0 | E4: =Projektgrunddaten!$C$26 -> 0 | F4: =Projektgrunddaten!$C$27 -> 0 | G4: =Projektgrunddaten!$C$28 -> 0 | H4: =Projektgrunddaten!$C$29 -> 100 | I4: =Projektgrunddaten!$C$30 -> 0
C5: geschätzte Kosten | D5: geschätzte Kosten | E5: geschätzte Kosten | F5: geschätzte Kosten | G5: geschätzte Kosten | H5: geschätzte Kosten | I5: geschätzte Kosten
A6: Uferverbauten
A7: Sohlstufen
A8: Leitwerke
A9: Buhnen
A10: Sonstige wasserbauliche Anlagen
A11: Summe Wiederinstandsetzungskosten Wasserbau | C11: =SUM(C6:C10) -> 0 | D11: 0 | E11: 0 | F11: 0 | G11: 0 | H11: 0 | I11: 0
A13: Erläuterungen zur Festlegung von Wiederinstandsetzungskosten
A16: Räumungskosten
A17: z.B. bei Verklausungen, Auflandungen | C17: bei HQ
C18: =Projektgrunddaten!$C$24 -> 0 | D18: =Projektgrunddaten!$C$25 -> 0 | E18: =Projektgrunddaten!$C$26 -> 0 | F18: =Projektgrunddaten!$C$27 -> 0 | G18: =Projektgrunddaten!$C$28 -> 0 | H18: =Projektgrunddaten!$C$29 -> 100 | I18: =Projektgrunddaten!$C$30 -> 0
B19: Kosten in € pro m³ | C19: Kubatur | D19: Kubatur | E19: Kubatur | F19: Kubatur | G19: Kubatur | H19: Kubatur | I19: Kubatur
A20: Räumungskosten (in m³)
A23: SUMMEN SCHADENSANFÄLLIGKEITEN BEI WASSERBAULICHEN ANLAGEN
C24: bei HQx
C25: =Projektgrunddaten!$C$24 -> 0 | D25: =Projektgrunddaten!$C$25 -> 0 | E25: =Projektgrunddaten!$C$26 -> 0 | F25: =Projektgrunddaten!$C$27 -> 0 | G25: =Projektgrunddaten!$C$28 -> 0 | H25: =Projektgrunddaten!$C$29 -> 100 | I25: =Projektgrunddaten!$C$30 -> 0
C26: =SUM(C11+(B20*C20)) -> 0 | D26: =SUM(D11+(B20*D20)) -> 0 | E26: =SUM(E11+(B20*E20)) -> 0 | F26: =SUM(F11+(B20*F20)) -> 0 | G26: =SUM(G11+(B20*G20)) -> 0 | H26: =SUM(H11+(B20*H20)) -> 0 | I26: =SUM(I11+(B20*I20)) -> 0
A28: Erläuterungen zu den Räumungskosten

Sheet Land-, Forstwirtschaft
A1: LAND- UND FORSTWIRTSCHAFTLICHE FLÄCHEN
A3: ERTRAGSVERLUSTE | C3: bei HQ
C4: =Projektgrunddaten!$C$24 -> 0 | D4: =Projektgrunddaten!$C$25 -> 0 | E4: =Projektgrunddaten!$C$26 -> 0 | F4: =Projektgrunddaten!$C$27 -> 0 | G4: =Projektgrunddaten!$C$28 -> 0 | H4: =Projektgrunddaten!$C$29 -> 100 | I4: =Projektgrunddaten!$C$30 -> 0
A5: Landwirtschaftliche Nutzung
A6: Prozentualer Anteil Sommerhochwässer (100% = ausschließlich Sommerhochwässer)
B7: Ertragsverlust in €/ha | C7: Fläche in ha | D7: Fläche in ha | E7: Fläche in ha | F7: Fläche in ha | G7: Fläche in ha | H7: Fläche in ha | I7: Fläche in ha
A8: Grünland | B8: =Berechnungsgrundlagen!B79/2 -> 1420.631283 | C8: =(Flächennutzungen!D38)/10000 -> 0 | D8: =(Flächennutzungen!F38)/10000 -> 0 | E8: =(Flächennutzungen!H38)/10000 -> 0 | F8: =(Flächennutzungen!J38)/10000 -> 0 | G8: =(Flächennutzungen!L38)/10000 -> 0 | H8: =(Flächennutzungen!N38)/10000 -> 0 | I8: =(Flächennutzungen!P38)/10000 -> 0
A9: Ackerland | B9: =Berechnungsgrundlagen!B80/2 -> 1894.180834 | C9: =(Flächennutzungen!D39)/10000 -> 0 | D9: =(Flächennutzungen!F39)/10000 -> 0 | E9: =(Flächennutzungen!H39)/10000 -> 0 | F9: =(Flächennutzungen!J39)/10000 -> 0 | G9: =(Flächennutzungen!L39)/10000 -> 0 | H9: =(Flächennutzungen!N39)/10000 -> 0 | I9: =(Flächennutzungen!P39)/10000 -> 0
A10: Sonderkulturen | C10: =(Flächennutzungen!D40)/10000 -> 0 | D10: =(Flächennutzungen!F40)/10000 -> 0 | E10: =(Flächennutzungen!H40)/10000 -> 0 | F10: =(Flächennutzungen!J40)/10000 -> 0 | G10: =(Flächennutzungen!L40)/10000 -> 0 | H10: =(Flächennutzungen!N40)/10000 -> 0 | I10: =(Flächennutzungen!P40)/10000 -> 0
A11: Sonstige Nutzflächen | C11: =(Flächennutzungen!D41)/10000 -> 0 | D11: =(Flächennutzungen!F41)/10000 -> 0 | E11: =(Flächennutzungen!H41)/10000 -> 0 | F11: =(Flächennutzungen!J41)/10000 -> 0 | G11: =(Flächennutzungen!L41)/10000 -> 0 | H11: =(Flächennutzungen!N41)/10000 -> 0 | I11: =(Flächennutzungen!P41)/10000 -> 0
A12: Forstwirtschaftliche Nutzung | C12: =(Flächennutzungen!D42)/10000 -> 0 | D12: =(Flächennutzungen!F42)/10000 -> 0 | E12: =(Flächennutzungen!H42)/10000 -> 0 | F12: =(Flächennutzungen!J42)/10000 -> 0 | G12: =(Flächennutzungen!L42)/10000 -> 0 | H12: =(Flächennutzungen!N42)/10000 -> 0 | I12: =(Flächennutzungen!P42)/10000 -> 0
A13: Summe land- und forstwirtschaftliche Nutzung | C13: =SUM($B$8*C8*IF($B$6="",1,$B$6))+(C9*$B$9)+($B$10*C10)+($B$11*C11)+($B$12*C12) -> 0 | D13: 0 | E13: 0 | F13: 0 | G13: 0 | H13: 0 | I13: 0
A15: RÄUMUNGS- UND REKULTIVIERUNGSMAßNAHMEN
C16: bei HQ
C17: =Projektgrunddaten!$C$24 -> 0 | D17: =Projektgrunddaten!$C$25 -> 0 | E17: =Projektgrunddaten!$C$26 -> 0 | F17: =Projektgrunddaten!$C$27 -> 0 | G17: =Projektgrunddaten!$C$28 -> 0 | H17: =Projektgrunddaten!$C$29 -> 100 | I17: =Projektgrunddaten!$C$30 -> 0
B18: Kosten in € pro Einheit | C18: Kubatur bzw. Fläche | D18: Kubatur bzw. Fläche | E18: Kubatur bzw. Fläche | F18: Kubatur bzw. Fläche | G18: Kubatur bzw. Fläche | H18: Kubatur bzw. Fläche | I18: Kubatur bzw. Fläche
A19: Räumungskosten (in m³)
A20: Rekultivierungskosten (in ha)
A22: Begründung für Aufnahme in die Bewertung (siehe Erläuterungen)
A25: Summen Schadensanfälligkeit bei land- und forstwirtschaftlichen Flächen
C26: bei HQ
C27: =Projektgrunddaten!$C$24 -> 0 | D27: =Projektgrunddaten!$C$25 -> 0 | E27: =Projektgrunddaten!$C$26 -> 0 | F27: =Projektgrunddaten!$C$27 -> 0 | G27: =Projektgrunddaten!$C$28 -> 0 | H27: =Projektgrunddaten!$C$29 -> 100 | I27: =Projektgrunddaten!$C$30 -> 0
C28: =C13+SUMPRODUCT($B$19:$B$20,C19:C20) -> 0 | D28: 0 | E28: 0 | F28: 0 | G28: 0 | H28: 0 | I28: 0

Sheet Sonstige Flächennutzungen
A1: SONSTIGE FLÄCHENNUTZUNGEN
D3: bei HQx | E3: bei HQ
E4: =Projektgrunddaten!$C$24 -> 0 | F4: =Projektgrunddaten!$C$25 -> 0 | G4: =Projektgrunddaten!$C$26 -> 0 | H4: =Projektgrunddaten!$C$27 -> 0 | I4: =Projektgrunddaten!$C$28 -> 0 | J4: =Projektgrunddaten!$C$29 -> 100 | K4: =Projektgrunddaten!$C$30 -> 0
B5: Wiederherstellungskosten in €/m²
B6: Richtwerte | C6: Eigene Werte | D6: Rechenwert | E6: m² | F6: m² | G6: m² | H6: m² | I6: m² | J6: m² | K6: m²
A7: Grünflächen | B7: =Berechnungsgrundlagen!B86 -> 1.158148505 | D7: =IF(B7+C7=B7,B7,C7) -> 1.158148505 | E7: =Flächennutzungen!D47 -> 0 | F7: =Flächennutzungen!F47 -> 0 | G7: =Flächennutzungen!H47 -> 0 | H7: =Flächennutzungen!J47 -> 0 | I7: =Flächennutzungen!L47 -> 0 | J7: =Flächennutzungen!N47 -> 0 | K7: =Flächennutzungen!P47 -> 0
A8: Sport- und Freizeitflächen, Kinderspielplätze | B8: =Berechnungsgrundlagen!B87 -> 2.316297011 | D8: 2.316297011 | E8: =Flächennutzungen!D48 -> 0 | F8: =Flächennutzungen!F48 -> 0 | G8: =Flächennutzungen!H48 -> 0 | H8: =Flächennutzungen!J48 -> 0 | I8: =Flächennutzungen!L48 -> 0 | J8: =Flächennutzungen!N48 -> 0 | K8: =Flächennutzungen!P48 -> 0
A9: Campingplätze | B9: =Berechnungsgrundlagen!B88 -> 2.316297011 | D9: 2.316297011 | E9: =Flächennutzungen!D49 -> 0 | F9: =Flächennutzungen!F49 -> 0 | G9: =Flächennutzungen!H49 -> 0 | H9: =Flächennutzungen!J49 -> 0 | I9: =Flächennutzungen!L49 -> 0 | J9: =Flächennutzungen!N49 -> 0 | K9: =Flächennutzungen!P49 -> 0
A10: Parkanlagen | B10: =Berechnungsgrundlagen!B89 -> 2.316297011 | D10: 2.316297011 | E10: =Flächennutzungen!D50 -> 0 | F10: =Flächennutzungen!F50 -> 0 | G10: =Flächennutzungen!H50 -> 0 | H10: =Flächennutzungen!J50 -> 0 | I10: =Flächennutzungen!L50 -> 0 | J10: =Flächennutzungen!N50 -> 0 | K10: =Flächennutzungen!P50 -> 0
A11: Friedhöfe | B11: =Berechnungsgrundlagen!B90 -> 2.316297011 | D11: 2.316297011 | E11: =Flächennutzungen!D51 -> 0 | F11: =Flächennutzungen!F51 -> 0 | G11: =Flächennutzungen!H51 -> 0 | H11: =Flächennutzungen!J51 -> 0 | I11: =Flächennutzungen!L51 -> 0 | J11: =Flächennutzungen!N51 -> 0 | K11: =Flächennutzungen!P51 -> 0
A12: Kleingartensiedlungen | B12: =Berechnungsgrundlagen!B91 -> 3.474445516 | D12: 3.474445516 | E12: =Flächennutzungen!D52 -> 0 | F12: =Flächennutzungen!F52 -> 0 | G12: =Flächennutzungen!H52 -> 0 | H12: =Flächennutzungen!J52 -> 0 | I12: =Flächennutzungen!L52 -> 0 | J12: =Flächennutzungen!N52 -> 0 | K12: =Flächennutzungen!P52 -> 0
A13: =Flächennutzungen!B53 -> Sonstige Flächennutzungen 1 | D13: =C13 -> 0 | E13: =Flächennutzungen!D53 -> 0 | F13: =Flächennutzungen!F53 -> 0 | G13: =Flächennutzungen!H53 -> 0 | H13: =Flächennutzungen!J53 -> 0 | I13: =Flächennutzungen!L53 -> 0 | J13: =Flächennutzungen!N53 -> 0 | K13: =Flächennutzungen!P53 -> 0
A14: =Flächennutzungen!B54 -> Sonstige Flächennutzungen 2 | D14: =C14 -> 0 | E14: =Flächennutzungen!D54 -> 0 | F14: =Flächennutzungen!F54 -> 0 | G14: =Flächennutzungen!H54 -> 0 | H14: =Flächennutzungen!J54 -> 0 | I14: =Flächennutzungen!L54 -> 0 | J14: =Flächennutzungen!N54 -> 0 | K14: =Flächennutzungen!P54 -> 0
A16: Summe Schadensanfälligkeit bei sonstigen Nutzungen
E17: bei HQ
D18: bei HQx | E18: =Projektgrunddaten!$C$24 -> 0 | F18: =Projektgrunddaten!$C$25 -> 0 | G18: =Projektgrunddaten!$C$26 -> 0 | H18: =Projektgrunddaten!$C$27 -> 0 | I18: =Projektgrunddaten!$C$28 -> 0 | J18: =Projektgrunddaten!$C$29 -> 100 | K18: =Projektgrunddaten!$C$30 -> 0
E19: =SUMPRODUCT($D$7:$D$14,E7:E14) -> 0 | F19: 0 | G19: 0 | H19: 0 | I19: 0 | J19: 0 | K19: 0
A21: Begründung für die Änderung der Richtwerte für Wiederherstellkosten und für die Flächenschätzungen

Sheet Fremdenverkehr
A1: FREMDENVERKEHR
A4: Ermittlung der Auslastungszahlen
B6: Anzahl Betten gesamt | C6: Auslastung pro Tag (in %) | D6: Anzahl Übernachtungen pro Tag
A7: Beherbergungsbetriebe | D7: =B7*C7 -> 0
D10: Mittlere Ausfalltage bei HQ
C11: Tagesausgaben in €/Person | D11: =Projektgrunddaten!$C$24 -> 0 | E11: =Projektgrunddaten!$C$25 -> 0 | F11: =Projektgrunddaten!$C$26 -> 0 | G11: =Projektgrunddaten!$C$27 -> 0 | H11: =Projektgrunddaten!$C$28 -> 0 | I11: =Projektgrunddaten!$C$29 -> 100 | J11: =Projektgrunddaten!$C$30 -> 0
A12: Beherbergungsbetriebe | C12: =IF(ISNUMBER(VLOOKUP(Projektgrunddaten!C7,Berechnungsgrundlagen!D99:E107,2)),(VLOOKUP(Projektgrunddaten!C7,Berechnungsgrundlagen!D99:E107,2)),0) -> 41.69334619 | D12: =IF(Wertschöpfungsverluste!C13<>0,Wertschöpfungsverluste!E13/Wertschöpfungsverluste!C13,0) -> 0 | E12: =IF(Wertschöpfungsverluste!$C$13<>0,Wertschöpfungsverluste!$G$13/Wertschöpfungsverluste!$C$13,0) -> 0 | F12: =IF(Wertschöpfungsverluste!$C$13<>0,Wertschöpfungsverluste!$I$13/Wertschöpfungsverluste!$C$13,0) -> 0 | G12: =IF(Wertschöpfungsverluste!$C$13<>0,Wertschöpfungsverluste!$K$13/Wertschöpfungsverluste!$C$13,0) -> 0 | H12: =IF(Wertschöpfungsverluste!$C$13<>0,Wertschöpfungsverluste!$M$13/Wertschöpfungsverluste!$C$13,0) -> 0 | I12: =IF(Wertschöpfungsverluste!$C$13<>0,Wertschöpfungsverluste!$O$13/Wertschöpfungsverluste!$C$13,0) -> 0 | J12: =IF(Wertschöpfungsverluste!$C$13<>0,Wertschöpfungsverluste!$Q$13/Wertschöpfungsverluste!$C$13,0) -> 0
A15: Summe Zusätzliche Wertschöpfungsverluste Fremdenverkehr
D16: bei HQ
D17: =Projektgrunddaten!$C$24 -> 0 | E17: =Projektgrunddaten!$C$25 -> 0 | F17: =Projektgrunddaten!$C$26 -> 0 | G17: =Projektgrunddaten!$C$27 -> 0 | H17: =Projektgrunddaten!$C$28 -> 0 | I17: =Projektgrunddaten!$C$29 -> 100 | J17: =Projektgrunddaten!$C$30 -> 0
D18: =D12*(C12*0.4)*D7 -> 0 | E18: =E12*(C12*0.4)*D7 -> 0 | F18: =F12*(C12*0.4)*D7 -> 0 | G18: =G12*(C12*0.4)*D7 -> 0 | H18: =H12*(C12*0.4)*D7 -> 0 | I18: =I12*(C12*0.4)*D7 -> 0 | J18: =J12*(C12*0.4)*D7 -> 0

Sheet Summe monetär bewertete Schäden
A1: SUMME DER MONETÄR BEWERTETEN SCHÄDEN
E3: bei HQ
E4: =Projektgrunddaten!$C$24 -> 0 | F4: =Projektgrunddaten!$C$25 -> 0 | G4: =Projektgrunddaten!$C$26 -> 0 | H4: =Projektgrunddaten!$C$27 -> 0 | I4: =Projektgrunddaten!$C$28 -> 0 | J4: =Projektgrunddaten!$C$29 -> 100 | K4: =Projektgrunddaten!$C$30 -> 0
E5: in € | F5: in € | G5: in € | H5: in € | I5: in € | J5: in € | K5: in €
A6: Wohngebäude | E6: ='Schadensermittlung Wohngebäude'!C12 -> 0 | F6: ='Schadensermittlung Wohngebäude'!S12 -> 0 | G6: ='Schadensermittlung Wohngebäude'!AI12 -> 0 | H6: ='Schadensermittlung Wohngebäude'!AY12 -> 0 | I6: ='Schadensermittlung Wohngebäude'!BO12 -> 0 | J6: ='Schadensermittlung Wohngebäude'!CE12 -> 0 | K6: ='Schadensermittlung Wohngebäude'!CU12 -> 0
A7: Nicht-Wohngebäude + Öffentliche Gebäude | E7: ='Schadensermittl. NichtWGebäude'!C12+'Schadenseingabe Öffentl. Geb.'!D13 -> 0 | F7: ='Schadensermittl. NichtWGebäude'!S12+'Schadenseingabe Öffentl. Geb.'!F13 -> 0 | G7: ='Schadensermittl. NichtWGebäude'!AI12+'Schadenseingabe Öffentl. Geb.'!H13 -> 0 | H7: ='Schadensermittl. NichtWGebäude'!AY12+'Schadenseingabe Öffentl. Geb.'!J13 -> 0 | I7: ='Schadensermittl. NichtWGebäude'!BO12+'Schadenseingabe Öffentl. Geb.'!L13 -> 0 | J7: ='Schadensermittl. NichtWGebäude'!CE12+'Schadenseingabe Öffentl. Geb.'!N13 -> 0 | K7: ='Schadensermittl. NichtWGebäude'!CU12+'Schadenseingabe Öffentl. Geb.'!P13 -> 0
A8: Verkehrs-, Ver- sowie Entsorgungsinfrastruktur | E8: =Infrastruktur!D183 -> 0 | F8: =Infrastruktur!F183 -> 0 | G8: =Infrastruktur!H183 -> 0 | H8: =Infrastruktur!J183 -> 0 | I8: =Infrastruktur!L183 -> 0 | J8: =Infrastruktur!N183 -> 0 | K8: =Infrastruktur!P183 -> 0
A9: Wasserbauliche Anlagen und Gewässer | E9: ='Wasserbauliche Anlagen'!C26 -> 0 | F9: ='Wasserbauliche Anlagen'!D26 -> 0 | G9: ='Wasserbauliche Anlagen'!E26 -> 0 | H9: ='Wasserbauliche Anlagen'!F26 -> 0 | I9: ='Wasserbauliche Anlagen'!G26 -> 0 | J9: ='Wasserbauliche Anlagen'!H26 -> 0 | K9: ='Wasserbauliche Anlagen'!I26 -> 0
A10: Land- und forstwirtschaftliche Flächen | E10: ='Land-, Forstwirtschaft'!C28 -> 0 | F10: ='Land-, Forstwirtschaft'!D28 -> 0 | G10: ='Land-, Forstwirtschaft'!E28 -> 0 | H10: ='Land-, Forstwirtschaft'!F28 -> 0 | I10: ='Land-, Forstwirtschaft'!G28 -> 0 | J10: ='Land-, Forstwirtschaft'!H28 -> 0 | K10: ='Land-, Forstwirtschaft'!I28 -> 0
A11: Sonstige Flächennutzungen | E11: ='Sonstige Flächennutzungen'!E19 -> 0 | F11: ='Sonstige Flächennutzungen'!F19 -> 0 | G11: ='Sonstige Flächennutzungen'!G19 -> 0 | H11: ='Sonstige Flächennutzungen'!H19 -> 0 | I11: ='Sonstige Flächennutzungen'!I19 -> 0 | J11: ='Sonstige Flächennutzungen'!J19 -> 0 | K11: ='Sonstige Flächennutzungen'!K19 -> 0
A12: Summe der Vermögensschäden | E12: =SUM(E6:E11) -> 0 | F12: 0 | G12: 0 | H12: 0 | I12: 0 | J12: 0 | K12: 0
A13: Wertschöpfungsverluste Gewerbe und Industrie | E13: =IF(ISNUMBER(Wertschöpfungsverluste!D23),Wertschöpfungsverluste!D23,0) -> 0 | F13: =IF(ISNUMBER(Wertschöpfungsverluste!F23),Wertschöpfungsverluste!F23,0) -> 0 | G13: =IF(ISNUMBER(Wertschöpfungsverluste!H23),Wertschöpfungsverluste!H23,0) -> 0 | H13: =IF(ISNUMBER(Wertschöpfungsverluste!J23),Wertschöpfungsverluste!J23,0) -> 0 | I13: =IF(ISNUMBER(Wertschöpfungsverluste!L23),Wertschöpfungsverluste!L23,0) -> 0 | J13: =IF(ISNUMBER(Wertschöpfungsverluste!N23),Wertschöpfungsverluste!N23,0) -> 0 | K13: =IF(ISNUMBER(Wertschöpfungsverluste!P23),Wertschöpfungsverluste!P23,0) -> 0
A14: Zusätzliche Wertschöpfungsverluste im Fremdenverkehr | E14: =IF(ISNUMBER(Fremdenverkehr!D18),Fremdenverkehr!D18,0) -> 0 | F14: =IF(ISNUMBER(Fremdenverkehr!E18),Fremdenverkehr!E18,0) -> 0 | G14: =IF(ISNUMBER(Fremdenverkehr!F18),Fremdenverkehr!F18,0) -> 0 | H14: =IF(ISNUMBER(Fremdenverkehr!G18),Fremdenverkehr!G18,0) -> 0 | I14: =IF(ISNUMBER(Fremdenverkehr!H18),Fremdenverkehr!H18,0) -> 0 | J14: =IF(ISNUMBER(Fremdenverkehr!I18),Fremdenverkehr!I18,0) -> 0 | K14: =IF(ISNUMBER(Fremdenverkehr!J18),Fremdenverkehr!J18,0) -> 0
A15: Summe der Wertschöpfungsverluste | E15: =SUM(E13:E14) -> 0 | F15: 0 | G15: 0 | H15: 0 | I15: 0 | J15: 0 | K15: 0
A16: Katastrophenschutz - Aufwand für HW-Einsatz
A18: Summe der monetär bewerteten Schäden | E18: =E12+E15+E16 -> 0 | F18: 0 | G18: =G12+G15+G16 -> 0 | H18: 0 | I18: 0 | J18: 0 | K18: 0
A20: Erläuterung der Berechnungsansätze für Katastrophenschäden (Aufwendungen des Katastrophenschutzeinsatzes)

Sheet Schadenserwartungen
A1: KNU14 | B1: SCHADENSERWARTUNGEN | P1: 5.3.2 SCHADENSERWARTUNGEN BEI RETENTIONS- UND KOMBIMAßNAHMEN
B2: Stütz-stelle | C2: Ohne-Fall | K2: Mit-Fall | O2: Stütz-stelle | P2: Ohne-Fall | Y2: Mit-Fall
C3: HQx m³/s | D3: Jährlichkeit Tn a (Ohne-Fall) | E3: Pi 1/a | F3: DPi 1/a | G3: Si € | H3: 1/2(Si-1 + Si) € | I3: DSG €/a | J3: Gesamtschadens-erwartung (SG) €/a | K3: Si € | L3: DSV €/a | M3: verbleibende Schadens-erwartung (SV) €/a | P3: HQx m³/s | Q3: Jährlichkeit Tn a (Ohne-Fall) | R3: Pi 1/a | S3: DPi 1/a | T3: Si € | U3: 1/2(Si-1 + Si) € | V3: DSG €/a | W3: Gesamtschadens-erwartung SG €/a | X3: Jährlichkeit Tn a (Mit-Fall) | Y3: Pi 1/a | Z3: DPi 1/a | AA3: Si € | AB3: 1/2(Si-1 + Si) € | AC3: DSV €/a | AD3: verbleibende Schadenserwartung SV €/a
D4: =Berechnungsgrundlagen!D11 -> 6 | F4: 0 | K4: 0 | AE4: 0
C5: =Projektgrunddaten!D23 -> 0 | D5: =Projektgrunddaten!C23 -> 0 | E5: =IF(D5=0,0,1/D5) -> 0 | J5: =SUM(I5) -> 0 | K5: =IF(D5>Berechnungsgrundlagen!$D$12,G5,"") ->  | L5: =IF(D5>Berechnungsgrundlagen!$D$11,I5,"") ->  | N5: =Berechnungsgrundlagen!$D$10 -> 7 | O5: 1 | P5: =Projektgrunddaten!D23 -> 0 | Q5: =Projektgrunddaten!C23 -> 0 | R5: =IF(Q5=0,0,1/Q5) -> 0 | W5: =SUM(V5) -> 0 | Y5: =IF(X5=0,0,1/X5) -> 0 | AD5: =AC5 -> 0 | AE5: =IF(D5>=100,G5,"") -> 
B6: =Projektgrunddaten!B24 -> 1 | C6: =Projektgrunddaten!D24 -> 0 | D6: =IF(N6=1,Projektgrunddaten!C24,0) -> 0 | E6: =IF(D6=0,0,1/D6)*N6 -> 0 | F6: =(IF((E5-E6)<0,0,E5-E6))*N6 -> 0 | G6: =IF(N6=1,'Summe monetär bewertete Schäden'!E18,0) -> 0 | H6: =(0.5*((G5)+G6))*N6 -> 0 | I6: =F6*H6 -> 0 | J6: =SUM($I$5:I6)*N6 -> 0 | K6: =IF(D6>Berechnungsgrundlagen!$D$12,G6,"") ->  | L6: =IF(D6>Berechnungsgrundlagen!$D$12,I6,"") ->  | M6: =IF(D6>Berechnungsgrundlagen!$D$12,SUM($L$6:L6),"") ->  | N6: =IF(Berechnungsgrundlagen!$D$10>=1,1,0) -> 1 | O6: 2 | P6: =Projektgrunddaten!D24 -> 0 | Q6: =IF(N6=1,Projektgrunddaten!C24,0) -> 0 | R6: =IF(Q6<=0,0,1/Q6)*N6 -> 0 | S6: =IF(R5-R6<0,0,ROUND(R5-R6,3)*N6) -> 0 | T6: =IF(N6=1,'Summe monetär bewertete Schäden'!E18,0) -> 0 | U6: =0.5*((T5)+T6)*N6 -> 0 | V6: =S6*U6 -> 0 | W6: =SUM($V$5:V6)*N6 -> 0 | Y6: =IF(X6=0,0,1/X6) -> 0 | Z6: =IF((Y5-Y6)<0,0,ROUND(Y5-Y6,3)*N6) -> 0 | AA6: =IF(Z6=0,0,'Summe monetär bewertete Schäden'!E18) -> 0 | AB6: =((AA5+AA6)/2)*N6 -> 0 | AC6: =AB6*Z6 -> 0 | AD6: =SUM($AC$5:AC6) -> 0 | AE6: =IF(D6>=Berechnungsgrundlagen!$D$11,G6,"") -> 
B7: =Projektgrunddaten!B25 -> 2 | C7: =Projektgrunddaten!D25 -> 0 | D7: =IF(N7=1,Projektgrunddaten!C25,0) -> 0 | E7: =IF(D7=0,0,1/D7)*N7 -> 0 | F7: 0 | G7: =IF(N7=1,'Summe monetär bewertete Schäden'!F18,0) -> 0 | H7: 0 | I7: 0 | J7: =SUM($I$5:I7)*N7 -> 0 | K7: =IF(D7>Berechnungsgrundlagen!$D$12,G7,"") ->  | L7: =IF(D7>Berechnungsgrundlagen!$D$12,I7,"") ->  | M7: =IF(D7>Berechnungsgrundlagen!$D$12,SUM($L$6:L7),"") ->  | N7: =IF(Berechnungsgrundlagen!$D$10>=2,1,0) -> 1 | O7: 3 | P7: =Projektgrunddaten!D25 -> 0 | Q7: =IF(N7=1,Projektgrunddaten!C25,0) -> 0 | R7: =IF(Q7<=0,0,1/Q7)*N7 -> 0 | S7: 0 | T7: =IF(N7=1,'Summe monetär bewertete Schäden'!F18,0) -> 0 | U7: 0 | V7: 0 | W7: =SUM($V$5:V7)*N7 -> 0 | Y7: 0 | Z7: 0 | AA7: =IF(Z7=0,0,'Summe monetär bewertete Schäden'!F18) -> 0 | AB7: 0 | AC7: =AB7*Z7 -> 0 | AD7: =SUM($AC$5:AC7) -> 0
B8: =Projektgrunddaten!B26 -> 3 | C8: =Projektgrunddaten!D26 -> 0 | D8: =IF(N8=1,Projektgrunddaten!C26,0) -> 0 | E8: 0 | F8: 0 | G8: =IF(N8=1,'Summe monetär bewertete Schäden'!G18,0) -> 0 | H8: 0 | I8: 0 | J8: =SUM($I$5:I8)*N8 -> 0 | K8: =IF(D8>Berechnungsgrundlagen!$D$12,G8,"") ->  | L8: =IF(D8>Berechnungsgrundlagen!$D$12,I8,"") ->  | M8: =IF(D8>Berechnungsgrundlagen!$D$12,SUM($L$6:L8),"") ->  | N8: =IF(Berechnungsgrundlagen!$D$10>=3,1,0) -> 1 | O8: 4 | P8: =Projektgrunddaten!D26 -> 0 | Q8: =IF(N8=1,Projektgrunddaten!C26,0) -> 0 | R8: 0 | S8: 0 | T8: =IF(N8=1,'Summe monetär bewertete Schäden'!G18,0) -> 0 | U8: 0 | V8: 0 | W8: =SUM($V$5:V8)*N8 -> 0 | Y8: 0 | Z8: 0 | AA8: =IF(Z8=0,0,'Summe monetär bewertete Schäden'!G18) -> 0 | AB8: 0 | AC8: 0 | AD8: =SUM($AC$5:AC8) -> 0 | AE8: =IF(D8>=Berechnungsgrundlagen!$D$11,G8,"") -> 
B9: =Projektgrunddaten!B27 -> 4 | C9: =Projektgrunddaten!D27 -> 0 | D9: =IF(N9=1,Projektgrunddaten!C27,0) -> 0 | E9: 0 | F9: 0 | G9: =IF(N9=1,'Summe monetär bewertete Schäden'!H18,0) -> 0 | H9: 0 | I9: 0 | J9: =SUM($I$5:I9)*N9 -> 0 | K9: =IF(D9>Berechnungsgrundlagen!$D$12,G9,"") ->  | L9: =IF(D9>Berechnungsgrundlagen!$D$12,I9,"") ->  | M9: =IF(D9>Berechnungsgrundlagen!$D$12,SUM($L$6:L9),"") ->  | N9: =IF(Berechnungsgrundlagen!$D$10>=4,1,0) -> 1 | O9: 5 | P9: =Projektgrunddaten!D27 -> 0 | Q9: =IF(N9=1,Projektgrunddaten!C27,0) -> 0 | R9: 0 | S9: 0 | T9: =IF(N9=1,'Summe monetär bewertete Schäden'!H18,) -> 0 | U9: 0 | V9: 0 | W9: =SUM($V$5:V9)*N9 -> 0 | Y9: 0 | Z9: 0 | AA9: =IF(Z9=0,0,'Summe monetär bewertete Schäden'!H18) -> 0 | AB9: 0 | AC9: 0 | AD9: =SUM($AC$5:AC9) -> 0 | AE9: =IF(D9>=Berechnungsgrundlagen!$D$11,G9,"") -> 
B10: =Projektgrunddaten!B28 -> 5 | C10: =Projektgrunddaten!D28 -> 0 | D10: =IF(N10=1,Projektgrunddaten!C28,0) -> 0 | E10: 0 | F10: 0 | G10: =IF(N10=1,'Summe monetär bewertete Schäden'!I18,0) -> 0 | H10: 0 | I10: 0 | J10: =SUM($I$5:I10)*N10 -> 0 | K10: =IF(D10>Berechnungsgrundlagen!$D$12,G10,"") ->  | L10: =IF(D10>Berechnungsgrundlagen!$D$12,I10,"") ->  | M10: =IF(D10>Berechnungsgrundlagen!$D$12,SUM($L$6:L10),"") ->  | N10: =IF(Berechnungsgrundlagen!$D$10>=5,1,0) -> 1 | O10: 6 | P10: =Projektgrunddaten!D28 -> 0 | Q10: =IF(N10=1,Projektgrunddaten!C28,0) -> 0 | R10: 0 | S10: 0 | T10: =IF(N10=1,'Summe monetär bewertete Schäden'!I18,0) -> 0 | U10: 0 | V10: 0 | W10: =SUM($V$5:V10)*N10 -> 0 | Y10: 0 | Z10: 0 | AA10: =IF(Z10=0,0,'Summe monetär bewertete Schäden'!I18) -> 0 | AB10: 0 | AC10: 0 | AD10: =SUM($AC$5:AC10) -> 0 | AE10: =IF(D10>=Berechnungsgrundlagen!$D$11,G10,"") -> 
B11: =Projektgrunddaten!B29 -> 6 | C11: =Projektgrunddaten!D29 -> 0 | D11: =IF(N11=1,Projektgrunddaten!C29,0) -> 100 | E11: 0.01 | F11: 0 | G11: =IF(N11=1,'Summe monetär bewertete Schäden'!J18,0) -> 0 | H11: 0 | I11: 0 | J11: =SUM($I$5:I11)*N11 -> 0 | K11: =IF(D11>Berechnungsgrundlagen!$D$12,G11,"") ->  | L11: =IF(D11>Berechnungsgrundlagen!$D$12,I11,"") ->  | M11: =IF(D11>Berechnungsgrundlagen!$D$12,SUM($L$6:L11),"") ->  | N11: =IF(Berechnungsgrundlagen!$D$10>=6,1,0) -> 1 | O11: 7 | P11: =Projektgrunddaten!D29 -> 0 | Q11: =IF(N11=1,Projektgrunddaten!C29,0) -> 100 | R11: 0.01 | S11: 0 | T11: =IF(N11=1,'Summe monetär bewertete Schäden'!J18,0) -> 0 | U11: 0 | V11: 0 | W11: =SUM($V$5:V11)*N11 -> 0 | Y11: 0 | Z11: 0 | AA11: =IF(Z11=0,0,'Summe monetär bewertete Schäden'!J18) -> 0 | AB11: 0 | AC11: 0 | AD11: =SUM($AC$5:AC11) -> 0 | AE11: =IF(D11>=Berechnungsgrundlagen!$D$11,G11,"") -> 0
B12: =Projektgrunddaten!B30 -> 7 | C12: =Projektgrunddaten!D30 -> 0 | D12: =IF(N12=1,Projektgrunddaten!C30,0) -> 0 | E12: 0 | F12: 0.01 | G12: =IF(N12=1,'Summe monetär bewertete Schäden'!K18,0) -> 0 | H12: 0 | I12: 0 | J12: =SUM($I$5:I12)*N12 -> 0 | K12: =IF(D12>Berechnungsgrundlagen!$D$12,G12,"") ->  | L12: =IF(D12>Berechnungsgrundlagen!$D$12,I12,"") ->  | M12: =IF(D12>Berechnungsgrundlagen!$D$12,SUM($L$6:L12),"") ->  | N12: =IF(Berechnungsgrundlagen!$D$10>=7,1,0) -> 1 | O12: 8 | P12: =Projektgrunddaten!D30 -> 0 | Q12: =IF(N12=1,Projektgrunddaten!C30,0) -> 0 | R12: 0 | S12: 0.01 | T12: =IF(N12=1,'Summe monetär bewertete Schäden'!K18,0) -> 0 | U12: 0 | V12: 0 | W12: =SUM($V$5:V12)*N12 -> 0 | Y12: 0 | Z12: 0 | AA12: =IF(Z12=0,0,'Summe monetär bewertete Schäden'!K18) -> 0 | AB12: 0 | AC12: 0 | AD12: =SUM($AC$5:AC12) -> 0 | AE12: =IF(D12>=Berechnungsgrundlagen!$D$11,G12,"") -> 
D13: ∞ | E13: 0 | F13: =OFFSET(E6,N5-1,0)-E13 -> 0 | G13: =OFFSET(G6,N5-1,0) -> 0 | H13: =+G13 -> 0 | I13: 0 | J13: =SUM(I5:I13) -> 0 | K13: =IF(D13>=Berechnungsgrundlagen!$D$12,G13,"") -> 0 | L13: =IF(D13>Berechnungsgrundlagen!$D$12,I13,"") -> 0 | M13: =IF(D13>Berechnungsgrundlagen!$D$12,SUM($L$6:L13),"") -> 0 | O13: 9 | Q13: ¥ | R13: 0 | S13: =ROUND(OFFSET(R6,N5-1,0)-R13,3) -> 0 | T13: =OFFSET(T6,N5-1,0) -> 0 | U13: =+T13 -> 0 | V13: 0 | W13: =SUM(V5:V13) -> 0 | X13: ¥ | Y13: 0 | Z13: =ROUND(OFFSET(Y6,N5-1,0)-Y13,3) -> 0 | AA13: =OFFSET(AA6,N5-1,0) -> 0 | AB13: =+AA13 -> 0 | AC13: 0 | AD13: =SUM($AC$5:AC13) -> 0
C14: Gesamtschadenserwartung SG | J14: =J13 -> 0 | K14: Verbleib. SV | M14: =M13 -> 0 | O14: Gesamtschadenserwartung SG | W14: =W13 -> 0 | AB14: Verbleib. SV | AD14: =AD13 -> 0 | AE14: =IF(D12>=Berechnungsgrundlagen!$D$11,G12,"") -> 
C16: Gesamtschadenserwartung SG (Ohne-Fall) | H16: =J14 -> 0 | I16: €/a | P16: Gesamtschadenserwartung SG (Ohne-Fall) | U16: =W14 -> 0 | V16: €/a
C17: verbleibende Schadenserwartung über BHQ (Mit-Fall) | H17: =M14 -> 0 | I17: €/a | J17: (Restrisiko) | P17: verbleibende Schadenserwartung (Mit-Fall) | U17: =AD14 -> 0 | V17: €/a | W17: (Restrisiko)
C18: Erwartungswert der Schadensminderung | H18: =H16-H17 -> 0 | I18: €/a | P18: Erwartungswert der Schadensminderung | U18: =U16-U17 -> 0 | V18: €/a
B21: HINWEIS: | D21: Die zur Information angefügte Grafik stellt nur die Funktion für die Maßnahmen im Ohne-Fall dar! | O21: HINWEIS: | Q21: Die zur Information angefügte Grafik stellt derzeit nur die Funktion für die Maßnahmen im Ohne-Fall dar.

Sheet A1 Kostenermittlung
A1: KOSTENERMITTLUNG | D1: A1
A3: Bauzeit (Jahre)
A4: Betriebsbeginn
A5: Untersuchungszeitraum (Jahre) | B5: 80
A7: HERSTELLUNGSKOSTEN
C8: Teilsummen Baukosten | D8: Summe Herstellungskosten
A9: Kosten der Projektierung
A10: Baukosten
A11: davon für
A12: Dämme und Absperrbauwerke
A13: Stahlwasserbau
A14: maschinenbauliche, elektrische Anlagenteile
A15: ingenieurbiologische Maßnahmen
A17: Grunderwerbskosten
A18: Allfällige Ablösen
A20: Herstellungskosten gesamt | D20: =SUM(D9+D10+D17+D18) -> 0
A21: Herstellungskosten pro Jahr | D21: =IF(ISNUMBER(D20/B3),(D20/B3),0) -> 0
A23: Akkumulationsfaktor für Herstellungskosten (Reihe): | B23: =IF(ISNUMBER(VLOOKUP(B3,Faktoren!A2:E101,5,0)),(VLOOKUP(B3,Faktoren!A2:E101,5,0)),0) -> 0
A24: BARWERT DER HERSTELLUNGSKOSTEN | D24: =(B23*D21)-D17*(VLOOKUP(B5,Faktoren!A2:E101,2,0)) -> 0
A25: REINVESTITIONSKOSTEN
B26: Nutzungsdauer in Jahren
A27: Stahlwasserbau | B27: 40 | D27: =C27*(VLOOKUP(B27,Faktoren!A2:E101,2,0)) -> 0
A28: maschinenbauliche, elektrische Anlagenteile | B28: 20 | D28: =C28*((VLOOKUP(B28,Faktoren!A3:E102,2,0))+(VLOOKUP(2*B28,Faktoren!A3:E102,2,0))+(VLOOKUP(3*B28,Faktoren!A3:E102,2,0))) -> 0
A29: ingenieurbiologische Maßnahmen | B29: 40 | D29: =C29*(VLOOKUP(B29,Faktoren!A4:E103,2,0)) -> 0
A30: BARWERT DER REINVESTITIONSKOSTEN | D30: =SUM(D27:D29) -> 0
A32: INSTANDHALTUNGSKOSTEN
A33: Jährliche Instandhaltungskosten für technische Anlagen ohne ingenieurbiologische Maßnahmen | D33: =SUM(C13+C14+C12)*0.005 -> 0
A34: Jährliche Instandhaltungskosten ingenieurbiologische Maßnahmen | D34: =C15*0.01 -> 0
A35: Summe jährliche Instandhaltungskosten | D35: =SUM(D33:D34) -> 0
A37: Diskontierungsfaktor Instandhaltungskosten (Reihe): | B37: =VLOOKUP(B5,Faktoren!A2:E101,3,0) -> 26.74877567
A38: BARWERT DER INSTANDHALTUNGSKOSTEN | D38: =D35*B37 -> 0
A40: PROJEKTKOSTENBARWERT | D40: =IF(ISNUMBER(SUM(D24+D30+D38)),(SUM(D24+D30+D38)),0) -> 0

Sheet A1 monetäre ökonom Effizienz
A1: MONETÄR BELEGTE ÖKONOMISCHE EFFIZIENZ | E1: A1
A2: NUTZENSCHÄTZUNG
A4: Kalkulationsparameter
A5: Untersuchungszeitraum | B5: ='A1 Kostenermittlung'!B5 -> 80 | C5: Jahre
A6: Zinsatz p.a. | B6: 0.035 | C6: p.a.
A7: Erwartungswert der Schadensminderung | B7: =IF(Berechnungsgrundlagen!I6=1,Schadenserwartungen!H18,Schadenserwartungen!U18) -> 0 | C7: p.a.
A8: Diskontierungsfaktor Schadensminderung (Reihe) | C8: =VLOOKUP(B5,Faktoren!A2:E101,3,0) -> 26.74877567
A9: Berücksichtigung von Wertsteigerungen | B9: 1% p.a | C9: 34.687
B10: 2% p.a | C10: 46.8508
A12: PROJEKTNUTZENBARWERT
A13: ohne Berücksichtigung von Wertsteigerungen | E13: =B7*C8 -> 0
A14: mit Berücksichtigung 1% Wertsteigerung | E14: =B7*C9 -> 0
A15: mit Berücksichtigung 2% Wertsteigerung | E15: =B7*C10 -> 0
A16: KOSTENSCHÄTZUNG
A17: Projektsalternative | B17: =IF(Projektgrunddaten!D13=0,"",Projektgrunddaten!D13) -> Name Alternative 1
A19: BARWERT DER HERSTELLUNGSKOSTEN | E19: =IF(ISNUMBER('A1 Kostenermittlung'!D24),'A1 Kostenermittlung'!D24,0) -> 0
A20: Projektierung | C20: ='A1 Kostenermittlung'!D9 -> 0
A21: Baukosten | C21: ='A1 Kostenermittlung'!D10 -> 0
A22: davon ingenieurbiologische Maßnahmen | C22: ='A1 Kostenermittlung'!C15 -> 0
A23: Grunderwerbskosten incl. allfälliger Ablösen | C23: ='A1 Kostenermittlung'!D17 -> 0
E25: ='A1 Kostenermittlung'!D30 -> 0
A26: ='A1 Kostenermittlung'!A30 -> BARWERT DER REINVESTITIONSKOSTEN
A29: BARWERT DER INSTANDHALTUNGSKOSTEN | E29: ='A1 Kostenermittlung'!D38 -> 0
A32: PROJEKTKOSTENBARWERT | E32: =SUM(E19:E29) -> 0
A34: KAPITALWERT KW
A35: ohne Berücksichtigung von Wertsteigerungen | E35: =E13-E32 -> 0
A36: mit Berücksichtigung 1% Wertsteigerung | E36: =E14-E32 -> 0
A37: mit Berücksichtigung 2% Wertsteigerung | E37: =E15-E32 -> 0
A39: NUTZEN-KOSTEN-VERHÄLTNIS NKV
A40: ohne Berücksichtigung von Wertsteigerungen | E40: =IF(ISNUMBER(ROUND(E13/E32,2)),(ROUND(E13/E32,2)),0) -> 0
A41: mit Berücksichtigung 1% Wertsteigerung | E41: =IF(ISNUMBER(ROUND(E14/E32,2)),(ROUND(E14/E32,2)),0) -> 0
A42: mit Berücksichtigung 2% Wertsteigerung | E42: =IF(ISNUMBER(ROUND(E15/E32,2)),(ROUND(E15/E32,2)),0) -> 0

Sheet A1 Weitere Projektwirkungen
A1: DARSTELLUNG UND BEURTEILUNG DER WEITEREN PROJEKTWIRKUNGEN | H1: A1
A3: Beurteilung der Personengefährdung
G4: direkt | H4: indirekt
A5: Anzahl direkt und indirekt betroffener Personen bei HQ100:
A6: physische Betroffenheit (Gefahr für Leib und Leben)
A7: psychische Betroffenheit (Stress, Traumata, subjektives Sicherheitsgefühl)
A11: Projektwirkung:
A13: Monetär nicht bewertete oder nicht bewertbare ökonomische Nutzen
A14: nicht bewertete sind: | C14: grundsätzlich bewertbare Nutzen, die z.B. wegen geringer Auswirkungen nicht monetär bewertet werden (Gründe sind hier zu beschreiben)
A15: nicht bewertbar sind: | C15: Prosperitätsschäden, Standortsicherung (Auswirkungen eines Hochwassers auf die Wirtschaftskraft einer Region)
C16: Gefährdung sicherheitsrelevanter Einrichtungen
C17: Nutzungseinschränkungen bei Ver- und Entsorgungsinfrastruktur
A22: Projektwirkung:
A24: Außerökonomische soziokulturelle Effekte
A25: Auswirkungen auf die Lebensqualität und den Erholungswert
A26: Auswirkungen auf Kulturgüter
A30: Projektwirkung:
A32: Ökologische Aspekte
A33: Verbesserung der ökologischen Situation
A34: verbleibende Beeinträchtigung bei nicht vollständigem ökologischen Wertausgleich
A38: Projektwirkung:

Sheet A1 Zssfg Teilbilanzen
A1: ZUSAMMENFASSUNG DER TEILBILANZEN EINER ALTERNATIVE | H1: A1
A3: PROJEKT | B3: =IF(Projektgrunddaten!C3=0,"",Projektgrunddaten!C3) -> 
A4: Alternative | B4: =IF(Projektgrunddaten!D13=0,"",Projektgrunddaten!D13) -> Name Alternative 1
A6: TEILBILANZ 1
A8: ='A1 monetäre ökonom Effizienz'!A12 -> PROJEKTNUTZENBARWERT | H8: ='A1 monetäre ökonom Effizienz'!E13 -> 0
A9: ='A1 monetäre ökonom Effizienz'!A32 -> PROJEKTKOSTENBARWERT | H9: ='A1 monetäre ökonom Effizienz'!E32 -> 0
A11: ='A1 monetäre ökonom Effizienz'!A34 -> KAPITALWERT KW | H11: ='A1 monetäre ökonom Effizienz'!E35 -> 0
A12: ='A1 monetäre ökonom Effizienz'!A39 -> NUTZEN-KOSTEN-VERHÄLTNIS NKV | H12: ='A1 monetäre ökonom Effizienz'!E40 -> 0
A14: ERGEBNIS TEILBILANZ 1 | D14: Absolute Wirtschaftlichkeit | G14: =IF(H12>=1, "gegeben", "nicht gegeben") -> nicht gegeben
A16: TEILBILANZ 2
G17: Beurteilung
A18: ='A1 Weitere Projektwirkungen'!A3:H3 -> Beurteilung der Personengefährdung | G18: ='A1 Weitere Projektwirkungen'!D11 -> 0 | H18: ='A1 Weitere Projektwirkungen'!E11 -> 0
A19: ='A1 Weitere Projektwirkungen'!A13:H13 -> Monetär nicht bewertete oder nicht bewertbare ökonomische Nutzen | G19: ='A1 Weitere Projektwirkungen'!D22 -> 0 | H19: ='A1 Weitere Projektwirkungen'!E22 -> 0
A20: ='A1 Weitere Projektwirkungen'!A24:H24 -> Außerökonomische soziokulturelle Effekte | G20: ='A1 Weitere Projektwirkungen'!D30 -> 0 | H20: ='A1 Weitere Projektwirkungen'!E30 -> 0
A21: ='A1 Weitere Projektwirkungen'!A32:H32 -> Ökologische Aspekte | G21: ='A1 Weitere Projektwirkungen'!D38 -> 0 | H21: ='A1 Weitere Projektwirkungen'!E38 -> 0
A23: ERGEBNIS TEILBILANZ 2
A24: Kurze schriftliche Würdigung der Gesamtbewertung von Teilbilanz 2
A26: GESAMTBEURTEILUNG VON TEILBILANZ 1 und 2
A28: Anmerkung:
A29: Bei einheitlich positiver oder negativer Bewertung der Teilbilanzen 1 und 2 wird das Projekt als gesamtgesellschaftlich vorteilhaft oder nicht vorteilhaft beurteilt. Bei unterschiedlicher Bewertung von Teilbilanz 1 oder 2 ist im freien Feld unter "Abwägung und Würdigung" das Projekt als vorteilhaft oder nicht vorteilhaft zu beurteilen und eine Begründung für diese Abwägung zu übermitteln.
A30: Teilbilanz 1 | C30: Teilbilanz 2 | E30: Abwägung und Würdigung
A31: =IF(H12>=1, "positiv", "negativ") -> negativ | C31: =G23 -> 0 | D31: =H23 -> 0
A33: BEGRÜNDUNG DER VORTEILHAFTEN / NICHT VORTEILHAFTEN WÜRDIGUNG

Sheet A2 Kostenermittlung
A1: KOSTENERMITTLUNG | D1: A2
A3: Bauzeit (Jahre)
A4: Betriebsbeginn
A5: Untersuchungszeitraum (Jahre) | B5: 80
A7: HERSTELLUNGSKOSTEN
C8: Teilsummen Baukosten | D8: Summe Herstellungskosten
A9: Kosten der Projektierung
A10: Baukosten
A11: davon für
A12: Dämme und Absperrbauwerke
A13: Stahlwasserbau
A14: maschinenbauliche, elektrische Anlagenteile
A15: ingenieurbiologische Maßnahmen
A17: Grunderwerbskosten
A18: Allfällige Ablösen
A20: Herstellungskosten gesamt | D20: =SUM(D9+D10+D17+D18) -> 0
A21: Herstellungskosten pro Jahr | D21: =IF(ISNUMBER(D20/B3),(D20/B3),0) -> 0
A23: Akkumulationsfaktor für Herstellungskosten (Reihe): | B23: =IF(ISNUMBER(VLOOKUP(B3,Faktoren!A2:E101,5,0)),(VLOOKUP(B3,Faktoren!A2:E101,5,0)),0) -> 0
A24: BARWERT DER HERSTELLUNGSKOSTEN | D24: =(B23*D21)-D17*(VLOOKUP(B5,Faktoren!A2:E101,2,0)) -> 0
A25: REINVESTITIONSKOSTEN
B26: Nutzungsdauer in Jahren
A27: Stahlwasserbau | B27: 40 | D27: =C27*(VLOOKUP(B27,Faktoren!A2:E101,2,0)) -> 0
A28: maschinenbauliche, elektrische Anlagenteile | B28: 20 | D28: =C28*((VLOOKUP(B28,Faktoren!A3:E102,2,0))+(VLOOKUP(2*B28,Faktoren!A3:E102,2,0))+(VLOOKUP(3*B28,Faktoren!A3:E102,2,0))) -> 0
A29: ingenieurbiologische Maßnahmen | B29: 40 | D29: =C29*(VLOOKUP(B29,Faktoren!A4:E103,2,0)) -> 0
A30: BARWERT DER REINVESTITIONSKOSTEN | D30: =SUM(D27:D29) -> 0
A32: INSTANDHALTUNGSKOSTEN
A33: Jährliche Instandhaltungskosten für technische Anlagen ohne ingenieurbiologische Maßnahmen | D33: =SUM(C13+C14+C12)*0.005 -> 0
A34: Jährliche Instandhaltungskosten ingenieurbiologische Maßnahmen | D34: =C15*0.01 -> 0
A35: Summe jährliche Instandhaltungskosten | D35: =SUM(D33:D34) -> 0
A37: Diskontierungsfaktor Instandhaltungskosten (Reihe): | B37: =VLOOKUP(B5,Faktoren!A2:E101,3,0) -> 26.74877567
A38: BARWERT DER INSTANDHALTUNGSKOSTEN | D38: =D35*B37 -> 0
A40: PROJEKTKOSTENBARWERT | D40: =IF(ISNUMBER(SUM(D24+D30+D38)),(SUM(D24+D30+D38)),0) -> 0

Sheet A2 monetäre ökonom Effizienz
A1: MONETÄR BELEGTE ÖKONOMISCHE EFFIZIENZ | E1: A2
A2: NUTZENSCHÄTZUNG
A4: Kalkulationsparameter
A5: Untersuchungszeitraum | B5: ='A2 Kostenermittlung'!B5 -> 80 | C5: Jahre
A6: Zinsatz p.a. | B6: 0.035 | C6: p.a.
A7: Erwartungswert der Schadensminderung | B7: =IF(Berechnungsgrundlagen!I7=1,Schadenserwartungen!H18,Schadenserwartungen!U18) -> 0 | C7: p.a.
A8: Diskontierungsfaktor Schadensminderung (Reihe) | C8: =VLOOKUP(B5,Faktoren!A2:E101,3,0) -> 26.74877567
A9: Berücksichtigung von Wertsteigerungen | B9: 1% p.a | C9: 34.687
B10: 2% p.a | C10: 46.8508
A12: PROJEKTNUTZENBARWERT
A13: ohne Berücksichtigung von Wertsteigerungen | E13: =B7*C8 -> 0
A14: mit Berücksichtigung 1% Wertsteigerung | E14: =B7*C9 -> 0
A15: mit Berücksichtigung 2% Wertsteigerung | E15: =B7*C10 -> 0
A16: KOSTENSCHÄTZUNG
A17: Projektsalternative | B17: =IF(Projektgrunddaten!D15=0,"",Projektgrunddaten!D15) -> Name Alternative 2
A19: BARWERT DER HERSTELLUNGSKOSTEN | E19: =IF(ISNUMBER('A2 Kostenermittlung'!D24),'A2 Kostenermittlung'!D24,0) -> 0
A20: Projektierung | C20: ='A2 Kostenermittlung'!D9 -> 0
A21: Baukosten | C21: ='A2 Kostenermittlung'!D10 -> 0
A22: davon ingenieurbiologische Maßnahmen | C22: ='A2 Kostenermittlung'!C15 -> 0
A23: Grunderwerbskosten incl. allfälliger Ablösen | C23: ='A2 Kostenermittlung'!D17 -> 0
E25: ='A2 Kostenermittlung'!D30 -> 0
A26: ='A2 Kostenermittlung'!A30 -> BARWERT DER REINVESTITIONSKOSTEN
A29: BARWERT DER INSTANDHALTUNGSKOSTEN | E29: ='A2 Kostenermittlung'!D38 -> 0
A32: PROJEKTKOSTENBARWERT | E32: =SUM(E19:E29) -> 0
A34: KAPITALWERT KW
A35: ohne Berücksichtigung von Wertsteigerungen | E35: =E13-E32 -> 0
A36: mit Berücksichtigung 1% Wertsteigerung | E36: =E14-E32 -> 0
A37: mit Berücksichtigung 2% Wertsteigerung | E37: =E15-E32 -> 0
A39: NUTZEN-KOSTEN-VERHÄLTNIS NKV
A40: ohne Berücksichtigung von Wertsteigerungen | E40: =IF(ISNUMBER(ROUND(E13/E32,2)),(ROUND(E13/E32,2)),0) -> 0
A41: mit Berücksichtigung 1% Wertsteigerung | E41: =IF(ISNUMBER(ROUND(E14/E32,2)),(ROUND(E14/E32,2)),0) -> 0
A42: mit Berücksichtigung 2% Wertsteigerung | E42: =IF(ISNUMBER(ROUND(E15/E32,2)),(ROUND(E15/E32,2)),0) -> 0

Sheet A2 Weitere Projektwirkungen
A1: DARSTELLUNG UND BEURTEILUNG DER WEITEREN PROJEKTWIRKUNGEN | H1: A2
A3: Beurteilung der Personengefährdung
G4: direkt | H4: indirekt
A5: Anzahl direkt und indirekt betroffener Personen bei HQ100:
A6: physische Betroffenheit (Gefahr für Leib und Leben)
A7: psychische Betroffenheit (Stress, Traumata, subjektives Sicherheitsgefühl)
A11: Projektwirkung:
A13: Monetär nicht bewertete oder nicht bewertbare ökonomische Nutzen
A14: nicht bewertete sind: | C14: grundsätzlich bewertbare Nutzen, die z.B. wegen geringer Auswirkungen nicht monetär bewertet werden (Gründe sind hier zu beschreiben)
A15: nicht bewertbar sind: | C15: Prosperitätsschäden, Standortsicherung (Auswirkungen eines Hochwassers auf die Wirtschaftskraft einer Region)
C16: Gefährdung sicherheitsrelevanter Einrichtungen
C17: Nutzungseinschränkungen bei Ver- und Entsorgungsinfrastruktur
A22: Projektwirkung:
A24: Außerökonomische soziokulturelle Effekte
A25: Auswirkungen auf die Lebensqualität und den Erholungswert
A26: Auswirkungen auf Kulturgüter
A30: Projektwirkung:
A32: Ökologische Aspekte
A33: Verbesserung der ökologischen Situation
A34: verbleibende Beeinträchtigung bei nicht vollständigem ökologischen Wertausgleich
A38: Projektwirkung:

Sheet A2 Zssfg Teilbilanzen
A1: ZUSAMMENFASSUNG DER TEILBILANZEN EINER ALTERNATIVE | H1: A2
A3: PROJEKT | B3: =IF(Projektgrunddaten!C3=0,"",Projektgrunddaten!C3) -> 
A4: Alternative | B4: =IF(Projektgrunddaten!D15=0,"",Projektgrunddaten!D15) -> Name Alternative 2
A6: TEILBILANZ 1
A8: ='A2 monetäre ökonom Effizienz'!A12 -> PROJEKTNUTZENBARWERT | H8: ='A2 monetäre ökonom Effizienz'!E13 -> 0
A9: ='A2 monetäre ökonom Effizienz'!A32 -> PROJEKTKOSTENBARWERT | H9: ='A2 monetäre ökonom Effizienz'!E32 -> 0
A11: ='A2 monetäre ökonom Effizienz'!A34 -> KAPITALWERT KW | H11: ='A2 monetäre ökonom Effizienz'!E35 -> 0
A12: ='A2 monetäre ökonom Effizienz'!A39 -> NUTZEN-KOSTEN-VERHÄLTNIS NKV | H12: ='A2 monetäre ökonom Effizienz'!E40 -> 0
A14: ERGEBNIS TEILBILANZ 1 | D14: Absolute Wirtschaftlichkeit | G14: =IF(H12>=1, "gegeben", "nicht gegeben") -> nicht gegeben
A16: TEILBILANZ 2
G17: Beurteilung
A18: ='A2 Weitere Projektwirkungen'!A3:H3 -> Beurteilung der Personengefährdung | G18: ='A2 Weitere Projektwirkungen'!D11 -> 0 | H18: ='A2 Weitere Projektwirkungen'!E11 -> 0
A19: ='A2 Weitere Projektwirkungen'!A13:H13 -> Monetär nicht bewertete oder nicht bewertbare ökonomische Nutzen | G19: ='A2 Weitere Projektwirkungen'!D22 -> 0 | H19: ='A2 Weitere Projektwirkungen'!E22 -> 0
A20: ='A2 Weitere Projektwirkungen'!A24:H24 -> Außerökonomische soziokulturelle Effekte | G20: ='A2 Weitere Projektwirkungen'!D30 -> 0 | H20: ='A2 Weitere Projektwirkungen'!E30 -> 0
A21: ='A2 Weitere Projektwirkungen'!A32:H32 -> Ökologische Aspekte | G21: ='A2 Weitere Projektwirkungen'!D38 -> 0 | H21: ='A2 Weitere Projektwirkungen'!E38 -> 0
A23: ERGEBNIS TEILBILANZ 2
A24: Kurze schriftliche Würdigung der Gesamtbewertung von Teilbilanz 2
A26: GESAMTBEURTEILUNG VON TEILBILANZ 1 und 2
A28: Anmerkung:
A29: Bei einheitlich positiver oder negativer Bewertung der Teilbilanzen 1 und 2 wird das Projekt als gesamtgesellschaftlich vorteilhaft oder nicht vorteilhaft beurteilt. Bei unterschiedlicher Bewertung von Teilbilanz 1 oder 2 ist im freien Feld unter "Abwägung und Würdigung" das Projekt als vorteilhaft oder nicht vorteilhaft zu beurteilen und eine Begründung für diese Abwägung zu übermitteln.
A30: Teilbilanz 1 | C30: Teilbilanz 2 | E30: Abwägung und Würdigung
A31: =IF(H12>=1, "positiv", "negativ") -> negativ | C31: =G23 -> 0 | D31: =H23 -> 0
A33: BEGRÜNDUNG DER VORTEILHAFTEN / NICHT VORTEILHAFTEN WÜRDIGUNG

Sheet A3 Kostenermittlung
A1: KOSTENERMITTLUNG | D1: A3
A3: Bauzeit (Jahre)
A4: Betriebsbeginn
A5: Untersuchungszeitraum (Jahre) | B5: 80
A7: HERSTELLUNGSKOSTEN
C8: Teilsummen Baukosten | D8: Summe Herstellungskosten
A9: Kosten der Projektierung
A10: Baukosten
A11: davon für
A12: Dämme und Absperrbauwerke
A13: Stahlwasserbau
A14: maschinenbauliche, elektrische Anlagenteile
A15: ingenieurbiologische Maßnahmen
A17: Grunderwerbskosten
A18: Allfällige Ablösen
A20: Herstellungskosten gesamt | D20: =SUM(D9+D10+D17+D18) -> 0
A21: Herstellungskosten pro Jahr | D21: =IF(ISNUMBER(D20/B3),(D20/B3),0) -> 0
A23: Akkumulationsfaktor für Herstellungskosten (Reihe): | B23: =IF(ISNUMBER(VLOOKUP(B3,Faktoren!A2:E101,5,0)),(VLOOKUP(B3,Faktoren!A2:E101,5,0)),0) -> 0
A24: BARWERT DER HERSTELLUNGSKOSTEN | D24: =(B23*D21)-D17*(VLOOKUP(B5,Faktoren!A2:E101,2,0)) -> 0
A25: REINVESTITIONSKOSTEN
B26: Nutzungsdauer in Jahren
A27: Stahlwasserbau | B27: 40 | D27: =C27*(VLOOKUP(B27,Faktoren!A2:E101,2,0)) -> 0
A28: maschinenbauliche, elektrische Anlagenteile | B28: 20 | D28: =C28*((VLOOKUP(B28,Faktoren!A3:E102,2,0))+(VLOOKUP(2*B28,Faktoren!A3:E102,2,0))+(VLOOKUP(3*B28,Faktoren!A3:E102,2,0))) -> 0
A29: ingenieurbiologische Maßnahmen | B29: 40 | D29: =C29*(VLOOKUP(B29,Faktoren!A4:E103,2,0)) -> 0
A30: BARWERT DER REINVESTITIONSKOSTEN | D30: =SUM(D27:D29) -> 0
A32: INSTANDHALTUNGSKOSTEN
A33: Jährliche Instandhaltungskosten für technische Anlagen ohne ingenieurbiologische Maßnahmen | D33: =SUM(C13+C14+C12)*0.005 -> 0
A34: Jährliche Instandhaltungskosten ingenieurbiologische Maßnahmen | D34: =C15*0.01 -> 0
A35: Summe jährliche Instandhaltungskosten | D35: =SUM(D33:D34) -> 0
A37: Diskontierungsfaktor Instandhaltungskosten (Reihe): | B37: =VLOOKUP(B5,Faktoren!A2:E101,3,0) -> 26.74877567
A38: BARWERT DER INSTANDHALTUNGSKOSTEN | D38: =D35*B37 -> 0
A40: PROJEKTKOSTENBARWERT | D40: =IF(ISNUMBER(SUM(D24+D30+D38)),(SUM(D24+D30+D38)),0) -> 0

Sheet A3 monetäre ökonom Effizienz
A1: MONETÄR BELEGTE ÖKONOMISCHE EFFIZIENZ | E1: A3
A2: NUTZENSCHÄTZUNG
A4: Kalkulationsparameter
A5: Untersuchungszeitraum | B5: ='A3 Kostenermittlung'!B5 -> 80 | C5: Jahre
A6: Zinsatz p.a. | B6: 0.035 | C6: p.a.
A7: Erwartungswert der Schadensminderung | B7: =IF(Berechnungsgrundlagen!I8=1,Schadenserwartungen!H18,Schadenserwartungen!U18) -> 0 | C7: p.a.
A8: Diskontierungsfaktor Schadensminderung (Reihe) | C8: =VLOOKUP(B5,Faktoren!A2:E101,3,0) -> 26.74877567
A9: Berücksichtigung von Wertsteigerungen | B9: 1% p.a | C9: 34.687
B10: 2% p.a | C10: 46.8508
A12: PROJEKTNUTZENBARWERT
A13: ohne Berücksichtigung von Wertsteigerungen | E13: =B7*C8 -> 0
A14: mit Berücksichtigung 1% Wertsteigerung | E14: =B7*C9 -> 0
A15: mit Berücksichtigung 2% Wertsteigerung | E15: =B7*C10 -> 0
A16: KOSTENSCHÄTZUNG
A17: Projektsalternative | B17: =IF(Projektgrunddaten!D17=0,"",Projektgrunddaten!D17) -> Name Alternative 3
A19: BARWERT DER HERSTELLUNGSKOSTEN | E19: =IF(ISNUMBER('A3 Kostenermittlung'!D24),'A3 Kostenermittlung'!D24,0) -> 0
A20: Projektierung | C20: ='A3 Kostenermittlung'!D9 -> 0
A21: Baukosten | C21: ='A3 Kostenermittlung'!D10 -> 0
A22: davon ingenieurbiologische Maßnahmen | C22: ='A3 Kostenermittlung'!C15 -> 0
A23: Grunderwerbskosten incl. allfälliger Ablösen | C23: ='A3 Kostenermittlung'!D17 -> 0
E25: ='A3 Kostenermittlung'!D30 -> 0
A26: ='A3 Kostenermittlung'!A30 -> BARWERT DER REINVESTITIONSKOSTEN
A29: BARWERT DER INSTANDHALTUNGSKOSTEN | E29: ='A3 Kostenermittlung'!D38 -> 0
A32: PROJEKTKOSTENBARWERT | E32: =SUM(E19:E29) -> 0
A34: KAPITALWERT KW
A35: ohne Berücksichtigung von Wertsteigerungen | E35: =E13-E32 -> 0
A36: mit Berücksichtigung 1% Wertsteigerung | E36: =E14-E32 -> 0
A37: mit Berücksichtigung 2% Wertsteigerung | E37: =E15-E32 -> 0
A39: NUTZEN-KOSTEN-VERHÄLTNIS NKV
A40: ohne Berücksichtigung von Wertsteigerungen | E40: =IF(ISNUMBER(ROUND(E13/E32,2)),(ROUND(E13/E32,2)),0) -> 0
A41: mit Berücksichtigung 1% Wertsteigerung | E41: =IF(ISNUMBER(ROUND(E14/E32,2)),(ROUND(E14/E32,2)),0) -> 0
A42: mit Berücksichtigung 2% Wertsteigerung | E42: =IF(ISNUMBER(ROUND(E15/E32,2)),(ROUND(E15/E32,2)),0) -> 0

Sheet A3 Weitere Projektwirkungen
A1: DARSTELLUNG UND BEURTEILUNG DER WEITEREN PROJEKTWIRKUNGEN | H1: A3
A3: Beurteilung der Personengefährdung
G4: direkt | H4: indirekt
A5: Anzahl direkt und indirekt betroffener Personen bei HQ100:
A6: physische Betroffenheit (Gefahr für Leib und Leben)
A7: psychische Betroffenheit (Stress, Traumata, subjektives Sicherheitsgefühl)
A11: Projektwirkung:
A13: Monetär nicht bewertete oder nicht bewertbare ökonomische Nutzen
A14: nicht bewertete sind: | C14: grundsätzlich bewertbare Nutzen, die z.B. wegen geringer Auswirkungen nicht monetär bewertet werden (Gründe sind hier zu beschreiben)
A15: nicht bewertbar sind: | C15: Prosperitätsschäden, Standortsicherung (Auswirkungen eines Hochwassers auf die Wirtschaftskraft einer Region)
C16: Gefährdung sicherheitsrelevanter Einrichtungen
C17: Nutzungseinschränkungen bei Ver- und Entsorgungsinfrastruktur
A22: Projektwirkung:
A24: Außerökonomische soziokulturelle Effekte
A25: Auswirkungen auf die Lebensqualität und den Erholungswert
A26: Auswirkungen auf Kulturgüter
A30: Projektwirkung:
A32: Ökologische Aspekte
A33: Verbesserung der ökologischen Situation
A34: verbleibende Beeinträchtigung bei nicht vollständigem ökologischen Wertausgleich
A38: Projektwirkung:

Sheet A3 Zssfg Teilbilanzen
A1: ZUSAMMENFASSUNG DER TEILBILANZEN EINER ALTERNATIVE | H1: A3
A3: PROJEKT | B3: =IF(Projektgrunddaten!C3=0,"",Projektgrunddaten!C3) -> 
A4: Alternative | B4: =IF(Projektgrunddaten!D17=0,"",Projektgrunddaten!D17) -> Name Alternative 3
A6: TEILBILANZ 1
A8: ='A3 monetäre ökonom Effizienz'!A12 -> PROJEKTNUTZENBARWERT | H8: ='A3 monetäre ökonom Effizienz'!E13 -> 0
A9: ='A3 monetäre ökonom Effizienz'!A32 -> PROJEKTKOSTENBARWERT | H9: ='A3 monetäre ökonom Effizienz'!E32 -> 0
A11: ='A3 monetäre ökonom Effizienz'!A34 -> KAPITALWERT KW | H11: ='A3 monetäre ökonom Effizienz'!E35 -> 0
A12: ='A3 monetäre ökonom Effizienz'!A39 -> NUTZEN-KOSTEN-VERHÄLTNIS NKV | H12: ='A3 monetäre ökonom Effizienz'!E40 -> 0
A14: ERGEBNIS TEILBILANZ 1 | D14: Absolute Wirtschaftlichkeit | G14: =IF(H12>=1, "gegeben", "nicht gegeben") -> nicht gegeben
A16: TEILBILANZ 2
G17: Beurteilung
A18: ='A3 Weitere Projektwirkungen'!A3:H3 -> Beurteilung der Personengefährdung | G18: ='A3 Weitere Projektwirkungen'!D11 -> 0 | H18: ='A3 Weitere Projektwirkungen'!E11 -> 0
A19: ='A3 Weitere Projektwirkungen'!A13:H13 -> Monetär nicht bewertete oder nicht bewertbare ökonomische Nutzen | G19: ='A3 Weitere Projektwirkungen'!D22 -> 0 | H19: ='A3 Weitere Projektwirkungen'!E22 -> 0
A20: ='A3 Weitere Projektwirkungen'!A24:H24 -> Außerökonomische soziokulturelle Effekte | G20: ='A3 Weitere Projektwirkungen'!D30 -> 0 | H20: ='A3 Weitere Projektwirkungen'!E30 -> 0
A21: ='A3 Weitere Projektwirkungen'!A32:H32 -> Ökologische Aspekte | G21: ='A3 Weitere Projektwirkungen'!D38 -> 0 | H21: ='A3 Weitere Projektwirkungen'!E38 -> 0
A23: ERGEBNIS TEILBILANZ 2
A24: Kurze schriftliche Würdigung der Gesamtbewertung von Teilbilanz 2
A26: GESAMTBEURTEILUNG VON TEILBILANZ 1 und 2
A28: Anmerkung:
A29: Bei einheitlich positiver oder negativer Bewertung der Teilbilanzen 1 und 2 wird das Projekt als gesamtgesellschaftlich vorteilhaft oder nicht vorteilhaft beurteilt. Bei unterschiedlicher Bewertung von Teilbilanz 1 oder 2 ist im freien Feld unter "Abwägung und Würdigung" das Projekt als vorteilhaft oder nicht vorteilhaft zu beurteilen und eine Begründung für diese Abwägung zu übermitteln.
A30: Teilbilanz 1 | C30: Teilbilanz 2 | E30: Abwägung und Würdigung
A31: =IF(H12>=1, "positiv", "negativ") -> negativ | C31: =G23 -> 0 | D31: =H23 -> 0
A33: BEGRÜNDUNG DER VORTEILHAFTEN / NICHT VORTEILHAFTEN WÜRDIGUNG

Sheet A4 Kostenermittlung
A1: KOSTENERMITTLUNG | D1: A4
A3: Bauzeit (Jahre)
A4: Betriebsbeginn
A5: Untersuchungszeitraum (Jahre) | B5: 80
A7: HERSTELLUNGSKOSTEN
C8: Teilsummen Baukosten | D8: Summe Herstellungskosten
A9: Kosten der Projektierung
A10: Baukosten
A11: davon für
A12: Dämme und Absperrbauwerke
A13: Stahlwasserbau
A14: maschinenbauliche, elektrische Anlagenteile
A15: ingenieurbiologische Maßnahmen
A17: Grunderwerbskosten
A18: Allfällige Ablösen
A20: Herstellungskosten gesamt | D20: =SUM(D9+D10+D17+D18) -> 0
A21: Herstellungskosten pro Jahr | D21: =IF(ISNUMBER(D20/B3),(D20/B3),0) -> 0
A23: Akkumulationsfaktor für Herstellungskosten (Reihe): | B23: =IF(ISNUMBER(VLOOKUP(B3,Faktoren!A2:E101,5,0)),(VLOOKUP(B3,Faktoren!A2:E101,5,0)),0) -> 0
A24: BARWERT DER HERSTELLUNGSKOSTEN | D24: =(B23*D21)-D17*(VLOOKUP(B5,Faktoren!A2:E101,2,0)) -> 0
A25: REINVESTITIONSKOSTEN
B26: Nutzungsdauer in Jahren
A27: Stahlwasserbau | B27: 40 | D27: =C27*(VLOOKUP(B27,Faktoren!A2:E101,2,0)) -> 0
A28: maschinenbauliche, elektrische Anlagenteile | B28: 20 | D28: =C28*((VLOOKUP(B28,Faktoren!A3:E102,2,0))+(VLOOKUP(2*B28,Faktoren!A3:E102,2,0))+(VLOOKUP(3*B28,Faktoren!A3:E102,2,0))) -> 0
A29: ingenieurbiologische Maßnahmen | B29: 40 | D29: =C29*(VLOOKUP(B29,Faktoren!A4:E103,2,0)) -> 0
A30: BARWERT DER REINVESTITIONSKOSTEN | D30: =SUM(D27:D29) -> 0
A32: INSTANDHALTUNGSKOSTEN
A33: Jährliche Instandhaltungskosten für technische Anlagen ohne ingenieurbiologische Maßnahmen | D33: =SUM(C13+C14+C12)*0.005 -> 0
A34: Jährliche Instandhaltungskosten ingenieurbiologische Maßnahmen | D34: =C15*0.01 -> 0
A35: Summe jährliche Instandhaltungskosten | D35: =SUM(D33:D34) -> 0
A37: Diskontierungsfaktor Instandhaltungskosten (Reihe): | B37: =VLOOKUP(B5,Faktoren!A2:E101,3,0) -> 26.74877567
A38: BARWERT DER INSTANDHALTUNGSKOSTEN | D38: =D35*B37 -> 0
A40: PROJEKTKOSTENBARWERT | D40: =IF(ISNUMBER(SUM(D24+D30+D38)),(SUM(D24+D30+D38)),0) -> 0

Sheet A4 monetäre ökonom Effizienz
A1: MONETÄR BELEGTE ÖKONOMISCHE EFFIZIENZ | E1: A4
A2: NUTZENSCHÄTZUNG
A4: Kalkulationsparameter
A5: Untersuchungszeitraum | B5: ='A4 Kostenermittlung'!B5 -> 80 | C5: Jahre
A6: Zinsatz p.a. | B6: 0.035 | C6: p.a.
A7: Erwartungswert der Schadensminderung | B7: =IF(Berechnungsgrundlagen!I9=1,Schadenserwartungen!H18,Schadenserwartungen!U18) -> 0 | C7: p.a.
A8: Diskontierungsfaktor Schadensminderung (Reihe) | C8: =VLOOKUP(B5,Faktoren!A2:E101,3,0) -> 26.74877567
A9: Berücksichtigung von Wertsteigerungen | B9: 1% p.a | C9: 34.687
B10: 2% p.a | C10: 46.8508
A12: PROJEKTNUTZENBARWERT
A13: ohne Berücksichtigung von Wertsteigerungen | E13: =B7*C8 -> 0
A14: mit Berücksichtigung 1% Wertsteigerung | E14: =B7*C9 -> 0
A15: mit Berücksichtigung 2% Wertsteigerung | E15: =B7*C10 -> 0
A16: KOSTENSCHÄTZUNG
A17: Projektsalternative | B17: =IF(Projektgrunddaten!D19=0,"",Projektgrunddaten!D19) -> Name Alternative 4
A19: BARWERT DER HERSTELLUNGSKOSTEN | E19: =IF(ISNUMBER('A4 Kostenermittlung'!D24),('A4 Kostenermittlung'!D24),0) -> 0
A20: Projektierung | C20: ='A4 Kostenermittlung'!D9 -> 0
A21: Baukosten | C21: ='A4 Kostenermittlung'!D10 -> 0
A22: davon ingenieurbiologische Maßnahmen | C22: ='A4 Kostenermittlung'!C15 -> 0
A23: Grunderwerbskosten incl. allfälliger Ablösen | C23: ='A4 Kostenermittlung'!D17 -> 0
E25: ='A4 Kostenermittlung'!D30 -> 0
A26: ='A4 Kostenermittlung'!A30 -> BARWERT DER REINVESTITIONSKOSTEN
A29: BARWERT DER INSTANDHALTUNGSKOSTEN | E29: ='A4 Kostenermittlung'!D38 -> 0
A32: PROJEKTKOSTENBARWERT | E32: =SUM(E19:E29) -> 0
A34: KAPITALWERT KW
A35: ohne Berücksichtigung von Wertsteigerungen | E35: =E13-E32 -> 0
A36: mit Berücksichtigung 1% Wertsteigerung | E36: =E14-E32 -> 0
A37: mit Berücksichtigung 2% Wertsteigerung | E37: =E15-E32 -> 0
A39: NUTZEN-KOSTEN-VERHÄLTNIS NKV
A40: ohne Berücksichtigung von Wertsteigerungen | E40: =IF(ISNUMBER(ROUND(E13/E32,2)),(ROUND(E13/E32,2)),0) -> 0
A41: mit Berücksichtigung 1% Wertsteigerung | E41: =IF(ISNUMBER(ROUND(E14/E32,2)),(ROUND(E14/E32,2)),0) -> 0
A42: mit Berücksichtigung 2% Wertsteigerung | E42: =IF(ISNUMBER(ROUND(E15/E32,2)),(ROUND(E15/E32,2)),0) -> 0

Sheet A4 Weitere Projektwirkungen
A1: DARSTELLUNG UND BEURTEILUNG DER WEITEREN PROJEKTWIRKUNGEN | H1: A4
A3: Beurteilung der Personengefährdung
G4: direkt | H4: indirekt
A5: Anzahl direkt und indirekt betroffener Personen bei HQ100:
A6: physische Betroffenheit (Gefahr für Leib und Leben)
A7: psychische Betroffenheit (Stress, Traumata, subjektives Sicherheitsgefühl)
A11: Projektwirkung:
A13: Monetär nicht bewertete oder nicht bewertbare ökonomische Nutzen
A14: nicht bewertete sind: | C14: grundsätzlich bewertbare Nutzen, die z.B. wegen geringer Auswirkungen nicht monetär bewertet werden (Gründe sind hier zu beschreiben)
A15: nicht bewertbar sind: | C15: Prosperitätsschäden, Standortsicherung (Auswirkungen eines Hochwassers auf die Wirtschaftskraft einer Region)
C16: Gefährdung sicherheitsrelevanter Einrichtungen
C17: Nutzungseinschränkungen bei Ver- und Entsorgungsinfrastruktur
A22: Projektwirkung:
A24: Außerökonomische soziokulturelle Effekte
A25: Auswirkungen auf die Lebensqualität und den Erholungswert
A26: Auswirkungen auf Kulturgüter
A30: Projektwirkung:
A32: Ökologische Aspekte
A33: Verbesserung der ökologischen Situation
A34: verbleibende Beeinträchtigung bei nicht vollständigem ökologischen Wertausgleich
A38: Projektwirkung:

Sheet A4 Zssfg Teilbilanzen
A1: ZUSAMMENFASSUNG DER TEILBILANZEN EINER ALTERNATIVE | H1: A4
A3: PROJEKT | B3: =IF(Projektgrunddaten!C3=0,"",Projektgrunddaten!C3) -> 
A4: Alternative | B4: =IF(Projektgrunddaten!D19=0,"",Projektgrunddaten!D19) -> Name Alternative 4
A6: TEILBILANZ 1
A8: ='A4 monetäre ökonom Effizienz'!A12 -> PROJEKTNUTZENBARWERT | H8: ='A4 monetäre ökonom Effizienz'!E13 -> 0
A9: ='A4 monetäre ökonom Effizienz'!A32 -> PROJEKTKOSTENBARWERT | H9: ='A4 monetäre ökonom Effizienz'!E32 -> 0
A11: ='A4 monetäre ökonom Effizienz'!A34 -> KAPITALWERT KW | H11: ='A4 monetäre ökonom Effizienz'!E35 -> 0
A12: ='A4 monetäre ökonom Effizienz'!A39 -> NUTZEN-KOSTEN-VERHÄLTNIS NKV | H12: ='A4 monetäre ökonom Effizienz'!E40 -> 0
A14: ERGEBNIS TEILBILANZ 1 | D14: Absolute Wirtschaftlichkeit | G14: =IF(H12>=1, "gegeben", "nicht gegeben") -> nicht gegeben
A16: TEILBILANZ 2
G17: Beurteilung
A18: ='A4 Weitere Projektwirkungen'!A3:H3 -> Beurteilung der Personengefährdung | G18: ='A4 Weitere Projektwirkungen'!D11 -> 0 | H18: ='A4 Weitere Projektwirkungen'!E11 -> 0
A19: ='A4 Weitere Projektwirkungen'!A13:H13 -> Monetär nicht bewertete oder nicht bewertbare ökonomische Nutzen | G19: ='A4 Weitere Projektwirkungen'!D22 -> 0 | H19: ='A4 Weitere Projektwirkungen'!E22 -> 0
A20: ='A4 Weitere Projektwirkungen'!A24:H24 -> Außerökonomische soziokulturelle Effekte | G20: ='A4 Weitere Projektwirkungen'!D30 -> 0 | H20: ='A4 Weitere Projektwirkungen'!E30 -> 0
A21: ='A4 Weitere Projektwirkungen'!A32:H32 -> Ökologische Aspekte | G21: ='A4 Weitere Projektwirkungen'!D38 -> 0 | H21: ='A4 Weitere Projektwirkungen'!E38 -> 0
A23: ERGEBNIS TEILBILANZ 2
A24: Kurze schriftliche Würdigung der Gesamtbewertung von Teilbilanz 2
A26: GESAMTBEURTEILUNG VON TEILBILANZ 1 und 2
A28: Anmerkung:
A29: Bei einheitlich positiver oder negativer Bewertung der Teilbilanzen 1 und 2 wird das Projekt als gesamtgesellschaftlich vorteilhaft oder nicht vorteilhaft beurteilt. Bei unterschiedlicher Bewertung von Teilbilanz 1 oder 2 ist im freien Feld unter "Abwägung und Würdigung" das Projekt als vorteilhaft oder nicht vorteilhaft zu beurteilen und eine Begründung für diese Abwägung zu übermitteln.
A30: Teilbilanz 1 | C30: Teilbilanz 2 | E30: Abwägung und Würdigung
A31: =IF(H12>=1, "positiv", "negativ") -> negativ | C31: =G23 -> 0 | D31: =H23 -> 0
A33: BEGRÜNDUNG DER VORTEILHAFTEN / NICHT VORTEILHAFTEN WÜRDIGUNG

Sheet Alternativenvergleich
A1: ALTERNATIVENVERGLEICH
B2: Alternative 1 | E2: Alternative 2 | H2: Alternative 3 | K2: Alternative 4
A3: NAME | B3: =Projektgrunddaten!D13 -> Name Alternative 1 | E3: =Projektgrunddaten!D15 -> Name Alternative 2 | H3: =Projektgrunddaten!D17 -> Name Alternative 3 | K3: =Projektgrunddaten!D19 -> Name Alternative 4
A4: TEILBILANZ 1
A5: Barwert der Herstellungskosten | B5: € | C5: ='A1 Kostenermittlung'!$D$24 -> 0 | E5: € | F5: ='A2 Kostenermittlung'!$D$24 -> 0 | H5: € | I5: ='A3 Kostenermittlung'!$D$24 -> 0 | K5: € | L5: ='A4 Kostenermittlung'!$D$24 -> 0
A6: Barwert der Reinvestitionskosten | B6: € | C6: ='A1 Kostenermittlung'!$D$30 -> 0 | E6: € | F6: ='A2 Kostenermittlung'!$D$30 -> 0 | H6: € | I6: ='A3 Kostenermittlung'!$D$30 -> 0 | K6: € | L6: ='A4 Kostenermittlung'!$D$30 -> 0
A7: Barwert der Instandhaltungskosten | B7: € | C7: ='A1 Kostenermittlung'!$D$38 -> 0 | E7: € | F7: ='A2 Kostenermittlung'!$D$38 -> 0 | H7: € | I7: ='A3 Kostenermittlung'!$D$38 -> 0 | K7: € | L7: ='A4 Kostenermittlung'!$D$38 -> 0
A8: Projektkostenbarwert | B8: € | C8: ='A1 monetäre ökonom Effizienz'!$E$32 -> 0 | E8: € | F8: ='A2 monetäre ökonom Effizienz'!$E$32 -> 0 | H8: € | I8: ='A3 monetäre ökonom Effizienz'!$E$32 -> 0 | K8: € | L8: ='A4 monetäre ökonom Effizienz'!$E$32 -> 0
A9: Projektnutzenbarwert | B9: € | C9: ='A1 monetäre ökonom Effizienz'!$E$13 -> 0 | E9: € | F9: ='A2 monetäre ökonom Effizienz'!$E$13 -> 0 | H9: € | I9: ='A3 monetäre ökonom Effizienz'!$E$13 -> 0 | K9: € | L9: ='A4 monetäre ökonom Effizienz'!$E$13 -> 0
A10: Kapitalwert KW | B10: € | C10: ='A1 monetäre ökonom Effizienz'!$E$35 -> 0 | E10: € | F10: ='A2 monetäre ökonom Effizienz'!$E$35 -> 0 | I10: ='A3 monetäre ökonom Effizienz'!$E$35 -> 0 | L10: ='A4 monetäre ökonom Effizienz'!$E$35 -> 0
A11: Nutzen-Kosten-Verhältnis NKV | C11: ='A1 monetäre ökonom Effizienz'!$E$40 -> 0 | F11: ='A2 monetäre ökonom Effizienz'!$E$40 -> 0 | I11: ='A3 monetäre ökonom Effizienz'!$E$40 -> 0 | L11: ='A4 monetäre ökonom Effizienz'!$E$40 -> 0
A13: TEILBILANZ 2
A14: ='A1 Zssfg Teilbilanzen'!A18:F18 -> Beurteilung der Personengefährdung | B14: ='A1 Zssfg Teilbilanzen'!$G$18 -> 0 | C14: ='A1 Zssfg Teilbilanzen'!$H$18 -> 0 | E14: ='A2 Zssfg Teilbilanzen'!$G$18 -> 0 | F14: ='A2 Zssfg Teilbilanzen'!$H$18 -> 0 | H14: ='A3 Zssfg Teilbilanzen'!$G$18 -> 0 | I14: ='A3 Zssfg Teilbilanzen'!$H$18 -> 0 | K14: ='A4 Zssfg Teilbilanzen'!$G$18 -> 0 | L14: ='A4 Zssfg Teilbilanzen'!$H$18 -> 0
A15: ='A1 Zssfg Teilbilanzen'!A19:F19 -> Monetär nicht bewertete oder nicht bewertbare ökonomische Nutzen | B15: ='A1 Zssfg Teilbilanzen'!$G$19 -> 0 | C15: ='A1 Zssfg Teilbilanzen'!$H$19 -> 0 | E15: ='A2 Zssfg Teilbilanzen'!$G$19 -> 0 | F15: ='A2 Zssfg Teilbilanzen'!$H$19 -> 0 | H15: ='A3 Zssfg Teilbilanzen'!$G$19 -> 0 | I15: ='A3 Zssfg Teilbilanzen'!$H$19 -> 0 | K15: ='A4 Zssfg Teilbilanzen'!$G$19 -> 0 | L15: ='A4 Zssfg Teilbilanzen'!$H$19 -> 0
A16: ='A1 Zssfg Teilbilanzen'!A20:F20 -> Außerökonomische soziokulturelle Effekte | B16: ='A1 Zssfg Teilbilanzen'!$G$20 -> 0 | C16: ='A1 Zssfg Teilbilanzen'!$H$20 -> 0 | E16: ='A2 Zssfg Teilbilanzen'!$G$20 -> 0 | F16: ='A2 Zssfg Teilbilanzen'!$H$20 -> 0 | H16: ='A3 Zssfg Teilbilanzen'!$G$20 -> 0 | I16: ='A3 Zssfg Teilbilanzen'!$H$20 -> 0 | K16: ='A4 Zssfg Teilbilanzen'!$G$20 -> 0 | L16: ='A4 Zssfg Teilbilanzen'!$H$20 -> 0
A17: ='A1 Zssfg Teilbilanzen'!A21:F21 -> Ökologische Aspekte | B17: ='A1 Zssfg Teilbilanzen'!$G$21 -> 0 | C17: ='A1 Zssfg Teilbilanzen'!$H$21 -> 0 | E17: ='A2 Zssfg Teilbilanzen'!$G$21 -> 0 | F17: ='A2 Zssfg Teilbilanzen'!$H$21 -> 0 | H17: ='A3 Zssfg Teilbilanzen'!$G$21 -> 0 | I17: ='A3 Zssfg Teilbilanzen'!$H$21 -> 0 | K17: ='A4 Zssfg Teilbilanzen'!$G$21 -> 0 | L17: ='A4 Zssfg Teilbilanzen'!$H$21 -> 0
A18: Ergebnis Teilbilanz 2 | B18: ='A1 Zssfg Teilbilanzen'!$G$23 -> 0 | C18: ='A1 Zssfg Teilbilanzen'!$H$23 -> 0 | E18: ='A2 Zssfg Teilbilanzen'!$G$23 -> 0 | F18: ='A2 Zssfg Teilbilanzen'!$H$23 -> 0 | H18: ='A3 Zssfg Teilbilanzen'!$G$23 -> 0 | I18: ='A3 Zssfg Teilbilanzen'!$H$23 -> 0 | K18: ='A4 Zssfg Teilbilanzen'!$G$23 -> 0 | L18: ='A4 Zssfg Teilbilanzen'!$H$23 -> 0
A20: GESAMTBEURTEILUNG | B20: ='A1 Zssfg Teilbilanzen'!$E$31 -> 0 | E20: ='A2 Zssfg Teilbilanzen'!$E$31 -> 0 | H20: ='A3 Zssfg Teilbilanzen'!$E$31 -> 0 | K20: ='A4 Zssfg Teilbilanzen'!$E$31 -> 0
A23: Gewählte Alternative: | B23: 1
A24: AUSWAHL AUS DEN POSITIV BEURTEILTEN ALTERNATIVEN UND BEGRÜNDUNG DER ENTSCHEIDUNG

Sheet Einordnung in integrales HWSM
A1: EINORDNUNG IN DAS INTEGRALE HOCHWASSERSCHUTZMANAGEMENT
A3: Informationen zu Personen- und Infrastrukturgefährdungen

Sheet Detailliste Wirtschaftszweige
A4: Wirtschaftssektoren, Gliederung entsprechend ÖNACE
A5: ÖNACE-Gruppe | C5: Details
A6: B | B6: BERGBAU UND GEWINNUNG VON STEINEN UND ERDEN | C6: 05 KOHLENBERGBAU
C7: 05.1 Steinkohlenbergbau
C8: 05.2 Braunkohlenbergbau
C9: 06 GEWINNUNG VON ERDÖL UND ERDGAS
C10: 06.1 Gewinnung von Erdöl
C11: 06.2 Gewinnung von Erdgas
C12: 07 ERZBERGBAU
C13: 07.1 Eisenerzbergbau
C14: 07.2 NE-Metallerzbergbau
C15: 08 GEWINNUNG VON STEINEN UND ERDEN, SONSTIGER BERGBAU
C16: 08.1 Gewinnung von Natursteinen, Kies, Sand, Ton und Kaolin
C17: 08.9 Sonstiger Bergbau; Gewinnung von Steinen und Erden a.n.g.
C18: 09 ERBRINGUNG VON DIENSTLEISTUNGEN FÜR DEN BERGBAU UND FÜR DIE GEWINNUNG VON STEINEN UND ERDEN
C19: 09.1 Erbringung von Dienstleistungen für die Gewinnung von Erdöl und Erdgas
C20: 09.9 Erbringung von Dienstleistungen für den sonstigen Bergbau und die Gewinnung von Steinen und Erden
A22: C | B22: HERSTELLUNG VON WAREN | C22: 10 HERSTELLUNG VON NAHRUNGS- UND FUTTERMITTELN
C23: 10.1 Schlachten und Fleischverarbeitung
C24: 10.2 Fischverarbeitung
C25: 10.3 Obst- und Gemüseverarbeitung
C26: 10.4 Herstellung von pflanzlichen und tierischen Ölen und Fetten
C27: 10.5 Milchverarbeitung
C28: 10.6 Mahl- und Schälmühlen, Herstellung von Stärke und Stärkeerzeugnissen
C29: 10.7 Herstellung von Back- und Teigwaren
C30: 10.8 Herstellung von sonstigen Nahrungsmitteln
C31: 10.9 Herstellung von Futtermitteln
C32: 11 GETRÄNKEHERSTELLUNG
C33: 11.0 Getränkeherstellung
C34: 12 TABAKVERARBEITUNG
C35: 12.0 Tabakverarbeitung
C36: 13 HERSTELLUNG VON TEXTILIEN
C37: 13.1 Spinnstoffaufbereitung und Spinnerei
C38: 13.2 Weberei
C39: 13.3 Veredlung von Textilien und Bekleidung
C40: 13.9 Herstellung von sonstigen Textilwaren
C41: 14 HERSTELLUNG VON BEKLEIDUNG
C42: 14.1 Herstellung von Bekleidung (ohne Pelzbekleidung)
C43: 14.2 Herstellung von Pelzwaren
C44: 14.3 Herstellung von Bekleidung aus gewirktem und gestricktem Stoff
C45: 15 HERSTELLUNG VON LEDER, LEDERWAREN UND SCHUHEN
C46: 15.1 Herstellung von Leder und Lederwaren (ohne Herstellung von Lederbekleidung)
C47: 15.2 Herstellung von Schuhen
C48: 16 HERSTELLUNG VON HOLZ-, FLECHT-, KORB- UND KORKWAREN (OHNE MÖBEL)
C49: 16.1 Säge-, Hobel- und Holzimprägnierwerke
C50: 16.2 Herstellung von sonstigen Holz-, Kork-, Flecht- und Korbwaren (ohne Möbel)
C51: 17 HERSTELLUNG VON PAPIER, PAPPE UND WAREN DARAUS
C52: 17.1 Herstellung von Holz- und Zellstoff, Papier, Karton und Pappe
C53: 17.2 Herstellung von Waren aus Papier, Karton und Pappe
C54: 18 HERSTELLUNG VON DRUCKERZEUGNISSEN; VERVIELFÄLTIGUNG VON BESPIELTEN TON-, BILD- UND DATENTRÄGERN
C55: 18.1 Herstellung von Druckerzeugnissen
C56: 18.2 Vervielfältigung von bespielten Ton-, Bild- und Datenträgern
C57: 19 KOKEREI UND MINERALÖLVERARBEITUNG
C58: 19.1 Kokerei
C59: 19.2 Mineralölverarbeitung
C60: 20 HERSTELLUNG VON CHEMISCHEN ERZEUGNISSEN
C61: 20.1 Herstellung von chemischen Grundstoffen, Düngemitteln und Stickstoffverbindungen, Kunststoffen in Primärformen und synthetischem Kautschuk in Primärformen
C62: 20.2 Herstellung von Schädlingsbekämpfungs-, Pflanzenschutz- und Desinfektionsmitteln
C63: 20.3 Herstellung von Anstrichmitteln, Druckfarben und Kitten
C64: 20.4 Herstellung von Seifen, Wasch-, Reinigungs- und Körperpflegemitteln sowie von Duftstoffen
C65: 20.5 Herstellung von sonstigen chemischen Erzeugnissen
C66: 20.6 Herstellung von Chemiefasern
C67: 21 HERSTELLUNG VON PHARMAZEUTISCHEN ERZEUGNISSEN
C68: 21.1 Herstellung von pharmazeutischen Grundstoffen
C69: 21.2 Herstellung von pharmazeutischen Spezialitäten und sonstigen pharmazeutischen Erzeugnissen
C70: 22 HERSTELLUNG VON GUMMI- UND KUNSTSTOFFWAREN
C71: 22.1 Herstellung von Gummiwaren
C72: 22.2 Herstellung von Kunststoffwaren
C73: 23 HERSTELLUNG VON GLAS UND GLASWAREN, KERAMIK, VERARBEITUNG VON STEINEN UND ERDEN
C74: 23.1 Herstellung von Glas und Glaswaren
C75: 23.2 Herstellung von feuerfesten keramischen Werkstoffen und Waren
C76: 23.3 Herstellung von keramischen Baumaterialien
C77: 23.4 Herstellung von sonstigen Porzellan- und keramischen Erzeugnissen
C78: 23.5 Herstellung von Zement, Kalk und gebranntem Gips
C79: 23.6 Herstellung von Erzeugnissen aus Beton, Zement und Gips
C80: 23.7 Be- und Verarbeitung von Naturwerksteinen und Natursteinen a.n.g.
C81: 23.9 Herstellung von Schleifkörpern und Schleifmitteln auf Unterlage sowie sonstigen Erzeugnissen aus nicht metallischen Mineralien a.n.g.
C82: 24 METALLERZEUGUNG UND -BEARBEITUNG
C83: 24.1 Erzeugung von Roheisen, Stahl und Ferrolegierungen
C84: 24.2 Herstellung von Stahlrohren, Rohrform-, Rohrverschluss- und Rohrverbindungsstücken aus Stahl
C85: 24.3 Sonstige erste Bearbeitung von Eisen und Stahl
C86: 24.4 Erzeugung und erste Bearbeitung von NE-Metallen
C87: 24.5 Gießereien
C88: 25 HERSTELLUNG VON METALLERZEUGNISSEN
C89: 25.1 Stahl- und Leichtmetallbau
C90: 25.2 Herstellung von Metalltanks und -behältern; Herstellung von Heizkörpern und -kesseln für Zentralheizungen
C91: 25.3 Herstellung von Dampfkesseln (ohne Zentralheizungskessel)
C92: 25.4 Herstellung von Waffen und Munition
C93: 25.5 Herstellung von Schmiede-, Press-, Zieh- und Stanzteilen, gewalzten Ringen und pulvermetallurgischen Erzeugnissen
C94: 25.6 Oberflächenveredlung und Wärmebehandlung; Mechanik a.n.g.
C95: 25.7 Herstellung von Schneidwaren, Werkzeugen, Schlössern und Beschlägen aus unedlen Metallen
C96: 25.9 Herstellung von sonstigen Metallwaren
C97: 26 HERSTELLUNG VON DATENVERARBEITUNGSGERÄTEN, ELEKTRONISCHEN UND OPTISCHEN ERZEUGNISSEN
C98: 26.1 Herstellung von elektronischen Bauelementen und Leiterplatten
C99: 26.2 Herstellung von Datenverarbeitungsgeräten und peripheren Geräten
C100: 26.3 Herstellung von Geräten und Einrichtungen der Telekommunikationstechnik
C101: 26.4 Herstellung von Geräten der Unterhaltungselektronik
C102: 26.5 Herstellung von Mess-, Kontroll-, Navigations- u.ä. Instrumenten und Vorrichtungen; Herstellung von
C103: 26.6 Herstellung von Bestrahlungs- und Elektrotherapiegeräten und elektromedizinischen Geräten
C104: 26.7 Herstellung von optischen und fotografischen Instrumenten und Geräten
C105: 26.8 Herstellung von magnetischen und optischen Datenträgern
C106: 27 HERSTELLUNG VON ELEKTRISCHEN AUSRÜSTUNGEN
C107: 27.1 Herstellung von Elektromotoren, Generatoren, Transformatoren, Elektrizitätsverteilungs- und -schalteinrichtungen
C108: 27.2 Herstellung von Batterien und Akkumulatoren
C109: 27.3 Herstellung von Kabeln und elektrischem Installationsmaterial
C110: 27.4 Herstellung von elektrischen Lampen und Leuchten
C111: 27.5 Herstellung von Haushaltsgeräten
C112: 27.9 Herstellung von sonstigen elektrischen Ausrüstungen und Geräten a.n.g.
C113: 28 MASCHINENBAU
C114: 28.1 Herstellung von nicht wirtschaftszweigspezifischen Maschinen
C115: 28.2 Herstellung von sonstigen nicht wirtschaftszweigspezifischen Maschinen
C116: 28.3 Herstellung von land- und forstwirtschaftlichen Maschinen
C117: 28.4 Herstellung von Werkzeugmaschinen
C118: 28.9 Herstellung von Maschinen für sonstige bestimmte Wirtschaftszweige
C119: 29 HERSTELLUNG VON KRAFTWAGEN UND KRAFTWAGENTEILEN
C120: 29.1 Herstellung von Kraftwagen und Kraftwagenmotoren
C121: 29.2 Herstellung von Karosserien, Aufbauten und Anhängern
C122: 29.3 Herstellung von Teilen und Zubehör für Kraftwagen
C123: 30 SONSTIGER FAHRZEUGBAU
C124: 30.1 Schiff- und Bootsbau
C125: 30.2 Schienenfahrzeugbau
C126: 30.3 Luft- und Raumfahrzeugbau
C127: 30.4 Herstellung von militärischen Kampffahrzeugen
C128: 30.9 Herstellung von Fahrzeugen a.n.g.
C129: 31 HERSTELLUNG VON MÖBELN
C130: 31.0 Herstellung von Möbeln
C131: 32 HERSTELLUNG VON SONSTIGEN WAREN
C132: 32.1 Herstellung von Münzen, Schmuck und ähnlichen Erzeugnissen
C133: 32.2 Herstellung von Musikinstrumenten
C134: 32.3 Herstellung von Sportgeräten
C135: 32.4 Herstellung von Spielwaren
C136: 32.5 Herstellung von medizinischen und zahnmedizinischen Apparaten und Materialien
C137: 32.9 Herstellung von Erzeugnissen a.n.g.
C138: 33 REPARATUR UND INSTALLATION VON MASCHINEN UND AUSRÜSTUNGEN
C139: 33.1 Reparatur von Metallerzeugnissen, Maschinen und Ausrüstungen
C140: 33.2 Installation von Maschinen und Ausrüstungen a.n.g.
A142: D | B142: ENERGIEVERSORGUNG | C142: 35 ENERGIEVERSORGUNG
C143: 35.1 Elektrizitätsversorgung
C144: 35.2 Gasversorgung
C145: 35.3 Wärme- und Kälteversorgung
A147: E | B147: WASSERVERSORGUNG; ABWASSER- UND ABFALLENTSORGUNG UND BESEITIGUNG VON UMWELTVERSCHMUTZUNGEN | C147: 36 WASSERVERSORGUNG
C148: 36.0 Wasserversorgung
C149: 37 ABWASSERENTSORGUNG
C150: 37.0 Abwasserentsorgung
C151: 38 SAMMLUNG, BEHANDLUNG UND BESEITIGUNG VON ABFÄLLEN; RÜCKGEWINNUNG
C152: 38.1 Sammlung von Abfällen
C153: 38.2 Abfallbehandlung und -beseitigung
C154: 38.3 Rückgewinnung
C155: 39 BESEITIGUNG VON UMWELTVERSCHMUTZUNGEN UND SONSTIGE ENTSORGUNG
C156: 39.0 Beseitigung von Umweltverschmutzungen und sonstige Entsorgung
A158: F | B158: BAU | C158: 41 HOCHBAU
C159: 41.1 Erschließung von Grundstücken; Bauträger
C160: 41.2 Bau von Gebäuden
C161: 42 TIEFBAU
C162: 42.1 Bau von Straßen und Bahnverkehrsstrecken
C163: 42.2 Leitungstiefbau und Kläranlagenbau
C164: 42.9 Sonstiger Tiefbau
C165: 43 VORBEREITENDE BAUSTELLENARBEITEN, BAUINSTALLATION UND SONSTIGES AUSBAUGEWERBE
C166: 43.1 Abbrucharbeiten und vorbereitende Baustellenarbeiten
C167: 43.2 Bauinstallation
C168: 43.3 Sonstiger Ausbau
C169: 43.9 Sonstige spezialisierte Bautätigkeiten
A171: G | B171: HANDEL; INSTANDHALTUNG UND REPARATUR VON KRAFTFAHRZEUGEN | C171: 45 HANDEL MIT KRAFTFAHRZEUGEN; INSTANDHALTUNG UND REPARATUR VON KRAFTFAHRZEUGEN
C172: 45.1 Handel mit Kraftwagen
C173: 45.2 Instandhaltung und Reparatur von Kraftwagen
C174: 45.3 Handel mit Kraftwagenteilen und -zubehör
C175: 45.4 Handel mit Krafträdern, Kraftradteilen und -zubehör; Instandhaltung und Reparatur von Krafträdern
C176: 46 GROßHANDEL (OHNE HANDEL MIT KRAFTFAHRZEUGEN UND KRAFTRÄDERN)
C177: 46.1 Handelsvermittlung
C178: 46.2 Großhandel mit landwirtschaftlichen Grundstoffen und lebenden Tieren
C179: 46.3 Großhandel mit Nahrungs- und Genussmitteln, Getränken und Tabakwaren
C180: 46.4 Großhandel mit Gebrauchs- und Verbrauchsgütern
C181: 46.5 Großhandel mit Geräten der Informations- und Kommunikationstechnik
C182: 46.6 Großhandel mit sonstigen Maschinen, Ausrüstungen und Zubehör
C183: 46.7 Sonstiger Großhandel
C184: 46.9 Großhandel ohne ausgeprägten Schwerpunkt
C185: 47 EINZELHANDEL (OHNE HANDEL MIT KRAFTFAHRZEUGEN)
C186: 47.1 Einzelhandel mit Waren verschiedener Art (in Verkaufsräumen)
C187: 47.2 Einzelhandel mit Nahrungs- und Genussmitteln, Getränken und Tabakwaren (in Verkaufsräumen)
C188: 47.3 Einzelhandel mit Motorenkraftstoffen (Tankstellen)
C189: 47.4 Einzelhandel mit Geräten der Informations- und Kommunikationstechnik (in Verkaufsräumen)
C190: 47.5 Einzelhandel mit sonstigen Haushaltsgeräten, Textilien, Heimwerker- und Einrichtungsbedarf (in Verkaufsräumen)
C191: 47.6 Einzelhandel mit Verlagsprodukten, Sportausrüstungen und Spielwaren (in Verkaufsräumen)
C192: 47.7 Einzelhandel mit sonstigen Gütern (in Verkaufsräumen)
C193: 47.8 Einzelhandel an Verkaufsständen und auf Märkten
C194: 47.9 Einzelhandel, nicht in Verkaufsräumen, an Verkaufsständen oder auf Märkten
A196: H | B196: VERKEHR UND LAGEREI | C196: 49 LANDVERKEHR UND TRANSPORT IN ROHRFERNLEITUNGEN
C197: 49.1 Personenbeförderung im Eisenbahnfernverkehr
C198: 49.2 Güterbeförderung im Eisenbahnverkehr
C199: 49.3 Sonstige Personenbeförderung im Landverkehr
C200: 49.4 Güterbeförderung im Straßenverkehr, Umzugstransporte
C201: 49.5 Transport in Rohrfernleitungen
C202: 50 SCHIFFFAHRT
C203: 50.1 Personenbeförderung in der See- und Küstenschifffahrt
C204: 50.2 Güterbeförderung in der See- und Küstenschifffahrt
C205: 50.3 Personenbeförderung in der Binnenschifffahrt
C206: 50.4 Güterbeförderung in der Binnenschifffahrt
C207: 51 LUFTFAHRT
C208: 51.1 Personenbeförderung in der Luftfahrt
C209: 51.2 Güterbeförderung in der Luftfahrt und Raumtransport
... 114 more rows

Sheet Daten für Bruttowertschöpfung (hidden)
A1: ÖNACE Gruppen | B1: Branche | C1: Burgenland | D1: Kärnten | E1: Niederösterreich | F1: Oberösterreich | G1: Salzburg | H1: Steiermark | I1: Tirol | J1: Vorarlberg | K1: Wien | L1: Österreich
B2: Bergbau und Gewinnung von Steinen u. Erden (B) | C2: 266.8509419 | D2: 603.3537051 | E2: 1746.437878 | F2: 415.0606061 | G2: 386.6180893 | H2: 383.3129957 | I2: 360.9457807 | J2: 424.1277641 | K2: 2453.596747 | L2: 969.1719469
B3: Herstellung von Waren (C) | C3: 292.8363734 | D3: 332.5822 | E3: 336.2824516 | F3: 359.2656503 | G3: 379.3786827 | H3: 354.9980686 | I3: 345.2021163 | J3: 377.8282093 | K3: 389.874118 | L3: 356.4675635
B4: Energieversorgung (D) | C4: 688.9016519 | D4: 882.8654288 | E4: 874.356462 | F4: 562.2291061 | G4: 642.7233404 | H4: 636.0538218 | I4: 943.5258701 | J4: 884.7093808 | K4: 1107.395967 | L4: 853.9002057
B5: Wasserversorgung; Abwasser- u. Abfallentsorgung u. Beseitigung v. Umweltverschmutzungen (E) | C5: 402.9968288 | D5: 492.4372666 | E5: 415.1985275 | F5: 361.2144709 | G5: 390.2145887 | H5: 338.0280857 | I5: 328.1041346 | J5: 581.2596302 | K5: 593.9699082 | L5: 430.4638295
B6: Bau (F) | C6: 182.2500418 | D6: 261.8674799 | E6: 211.5386435 | F6: 247.3627469 | G6: 246.584667 | H6: 223.0409782 | I6: 225.224685 | J6: 242.3974134 | K6: 268.343261 | L6: 238.8342754
B7: Handel; Instandhaltung und Reparatur von KFZ (G) | C7: 181.1597678 | D7: 189.4228096 | E7: 188.696283 | F7: 213.9423153 | G7: 218.6652022 | H7: 173.0802516 | I7: 197.1117358 | J7: 225.5323439 | K7: 295.5055146 | L7: 220.196913
B8: Verkehr und Lagerei (H) | C8: 171.4759756 | D8: 218.2457952 | E8: 273.4812744 | F8: 216.2734212 | G8: 252.0730012 | H8: 210.7414917 | I8: 309.4282562 | J8: 257.5424228 | K8: 402.929831 | L8: 314.0018694
B9: Beherbergung und Gastronomie (I) | C9: 115.4531128 | D9: 119.178209 | E9: 105.3479968 | F9: 112.6155019 | G9: 153.7778812 | H9: 108.3359571 | I9: 166.5597415 | J9: 160.4177435 | K9: 115.6279039 | L9: 128.362995
B10: Information und Kommunikation (J) | C10: 253.707927 | D10: 251.9932714 | E10: 252.2624825 | F10: 304.1008203 | G10: 347.5832583 | H10: 239.7537462 | I10: 266.5192784 | J10: 277.9330144 | K10: 430.9326018 | L10: 368.8599401
B11: Erbringung von Finanz- und Versicherungsdienstl. (K) | C11: 478.0897714 | D11: 472.5584132 | E11: 417.5521033 | F11: 578.0257591 | G11: 404.9159025 | H11: 490.9262467 | I11: 499.5849078 | J11: 596.2289796 | K11: 853.8421325 | L11: 661.8434244
B12: Grundstücks- und Wohnungswesen (L) | C12: 649.6348868 | D12: 594.8075988 | E12: 724.6835232 | F12: 733.9849068 | G12: 690.843949 | H12: 601.036207 | I12: 712.2747415 | J12: 665.9312067 | K12: 1012.617516 | L12: 803.9911083
B13: Erbringung v. freiberuflichen, wissenschaftl. und techn.Dienstl. (M) | C13: 201.7440655 | D13: 228.4509272 | E13: 237.2385391 | F13: 274.8119537 | G13: 229.763599 | H13: 242.9718626 | I13: 232.9876583 | J13: 258.9095666 | K13: 285.8984724 | L13: 260.3864549
B14: Erbringung von sonstigen wirtschaftl. Dienstleistungen (N) | C14: 200.8002685 | D14: 184.2329692 | E14: 194.8835361 | F14: 205.9468432 | G14: 207.749715 | H14: 164.5666765 | I14: 172.4827837 | J14: 153.3473469 | K14: 251.2947012 | L14: 212.9370911
B15: Reparatur von Gebrauchsgütern (S95) | C15: 100.1443001 | D15: 133.3515882 | E15: 139.0353237 | F15: 124.5741272 | G15: 117.6791958 | H15: 138.1313131 | I15: 133.2738259 | J15: 136.4701705 | K15: 152.135884 | L15: 139.6196478
A17: Q: Sonderauswertung Leistungs- und Strukturstatistik 2012, Statistik Austria. Daten bearbeitet von DonauConsult Ingenieurbüro GmbH
A19: *): Gruppierung lt. "SYSTEMATIK DER WIRTSCHAFTSTÄTIGKEITEN ÖNACE 2008", Band 1; Statistik Austria, Wien, 2008
B21: Erwerbstätige umfassen Arbeitnehmer und Arbeitnehmerinnen sowie Selbständige.

Sheet Faktoren (hidden)
A1: Jahre | B1: DFAKE | C1: DFAKR | D1: AFAKE | E1: AFAKR | G1: Zinssatz i | H1: 0.035 | I1: Jahre | J1: DFAKE | K1: DFAKR | L1: AFAKE | M1: AFAKR | N1: Zinssatz i | O1: 0.001
A2: 1 | B2: =1/(1+$H$1)^A2 -> 0.9661835749 | C2: =((1+$H$1)^A2-1)/($H$1*(1+$H$1)^A2) -> 0.9661835749 | D2: =(1+$H$1)^A2 -> 1.035 | E2: =((1+$H$1)^A2-1)/$H$1 -> 1 | I2: 1 | J2: =1/(1+$O$1)^I2 -> 0.999000999 | K2: =((1+$O$1)^I2-1)/($O$1*(1+$O$1)^I2) -> 0.999000999 | L2: =(1+$O$1)^I2 -> 1.001 | M2: =((1+$O$1)^I2-1)/$O$1 -> 1
A3: 2 | B3: 0.9335107004 | C3: 1.899694275 | D3: 1.071225 | E3: 2.035 | I3: 2 | J3: =1/(1+$O$1)^I3 -> 0.998002996 | K3: =((1+$O$1)^I3-1)/($O$1*(1+$O$1)^I3) -> 1.997003995 | L3: =(1+$O$1)^I3 -> 1.002001 | M3: =((1+$O$1)^I3-1)/$O$1 -> 2.001
A4: 3 | B4: 0.9019427057 | C4: 2.801636981 | D4: 1.108717875 | E4: 3.106225 | I4: 3 | J4: 0.99700599 | K4: 2.994009985 | L4: 1.003003001 | M4: 3.003001
A5: 4 | B5: 0.8714422277 | C5: 3.673079209 | D5: 1.147523001 | E5: 4.214942875 | I5: 4 | J5: 0.99600998 | K5: 3.990019965 | L5: 1.004006004 | M5: 4.006004001
A6: 5 | B6: 0.8419731669 | C6: 4.515052375 | D6: 1.187686306 | E6: 5.362465876 | I6: 5 | J6: 0.9950149651 | K6: 4.98503493 | L6: 1.00501001 | M6: 5.010010005
A7: 6 | B7: 0.8135006443 | C7: 5.32855302 | D7: 1.229255326 | E7: 6.550152181 | I7: 6 | J7: 0.9940209441 | K7: 5.979055874 | L7: 1.00601502 | M7: 6.015020015
A8: 7 | B8: 0.7859909607 | C8: 6.11454398 | D8: 1.272279263 | E8: 7.779407508 | I8: 7 | J8: 0.9930279162 | K8: 6.97208379 | L8: 1.007021035 | M8: 7.021035035
A9: 8 | B9: 0.7594115562 | C9: 6.873955537 | D9: 1.316809037 | E9: 9.05168677 | I9: 8 | J9: 0.9920358803 | K9: 7.964119671 | L9: 1.008028056 | M9: 8.02805607
A10: 9 | B10: 0.7337309722 | C10: 7.607686509 | D10: 1.362897353 | E10: 10.36849581 | I10: 9 | J10: 0.9910448355 | K10: 8.955164506 | L10: 1.009036084 | M10: 9.036084126
A11: 10 | B11: 0.7089188137 | C11: 8.316605323 | D11: 1.410598761 | E11: 11.73139316 | I11: 10 | J11: 0.9900547807 | K11: 9.945219287 | L11: 1.01004512 | M11: 10.04512021
A12: 11 | B12: 0.6849457137 | C12: 9.001551036 | D12: 1.459969717 | E12: 13.14199192 | I12: 11 | J12: 0.989065715 | K12: 10.934285 | L12: 1.011055165 | M12: 11.05516533
A13: 12 | B13: 0.6617832983 | C13: 9.663334335 | D13: 1.511068657 | E13: 14.60196164 | I13: 12 | J13: 0.9880776374 | K13: 11.92236264 | L13: 1.01206622 | M13: 12.0662205
A14: 13 | B14: 0.6394041529 | C14: 10.30273849 | D14: 1.56395606 | E14: 16.1130303 | I14: 13 | J14: 0.9870905468 | K14: 12.90945319 | L14: 1.013078287 | M14: 13.07828672
A15: 14 | B15: 0.6177817903 | C15: 10.92052028 | D15: 1.618694522 | E15: 17.67698636 | I15: 14 | J15: 0.9861044424 | K15: 13.89555763 | L15: 1.014091365 | M15: 14.091365
A16: 15 | B16: 0.5968906186 | C16: 11.5174109 | D16: 1.675348831 | E16: 19.29568088 | I16: 15 | J16: 0.985119323 | K16: 14.88067695 | L16: 1.015105456 | M16: 15.10545637
A17: 16 | B17: 0.5767059117 | C17: 12.09411681 | D17: 1.73398604 | E17: 20.97102971 | I17: 16 | J17: 0.9841351879 | K17: 15.86481214 | L17: 1.016120562 | M17: 16.12056182
A18: 17 | B18: 0.5572037794 | C18: 12.65132059 | D18: 1.794675551 | E18: 22.70501575 | I18: 17 | J18: 0.9831520358 | K18: 16.84796418 | L18: 1.017136682 | M18: 17.13668239
A19: 18 | B19: 0.5383611396 | C19: 13.18968173 | D19: 1.857489196 | E19: 24.4996913 | I19: 18 | J19: 0.982169866 | K19: 17.83013404 | L19: 1.018153819 | M19: 18.15381907
A20: 19 | B20: 0.5201556904 | C20: 13.70983742 | D20: 1.922501317 | E20: 26.3571805 | I20: 19 | J20: 0.9811886773 | K20: 18.81132272 | L20: 1.019171973 | M20: 19.17197289
A21: 20 | B21: 0.5025658844 | C21: 14.2124033 | D21: 1.989788863 | E21: 28.27968181 | I21: 20 | J21: 0.9802084688 | K21: 19.79153119 | L21: 1.020191145 | M21: 20.19114486
A22: 21 | B22: 0.4855709028 | C22: 14.6979742 | D22: 2.059431474 | E22: 30.26947068 | I22: 21 | J22: 0.9792292396 | K22: 20.77076043 | L22: 1.021211336 | M22: 21.21133601
A23: 22 | B23: 0.4691506308 | C23: 15.16712484 | D23: 2.131511575 | E23: 32.32890215 | I23: 22 | J23: 0.9782509886 | K23: 21.74901142 | L23: 1.022232547 | M23: 22.23254734
A24: 23 | B24: 0.4532856336 | C24: 15.62041047 | D24: 2.20611448 | E24: 34.46041373 | I24: 23 | J24: 0.9772737149 | K24: 22.72628513 | L24: 1.02325478 | M24: 23.25477989
A25: 24 | B25: 0.4379571339 | C25: 16.0583676 | D25: 2.283328487 | E25: 36.66652821 | I25: 24 | J25: 0.9762974175 | K25: 23.70258255 | L25: 1.024278035 | M25: 24.27803467
A26: 25 | B26: 0.4231469893 | C26: 16.48151459 | D26: 2.363244984 | E26: 38.94985669 | I26: 25 | J26: 0.9753220954 | K26: 24.67790464 | L26: 1.025302313 | M26: 25.3023127
A27: 26 | B27: 0.4088376708 | C27: 16.89035226 | D27: 2.445958559 | E27: 41.31310168 | I27: 26 | J27: 0.9743477476 | K27: 25.65225239 | L27: 1.026327615 | M27: 26.32761502
A28: 27 | B28: 0.3950122423 | C28: 17.28536451 | D28: 2.531567108 | E28: 43.75906024 | I28: 27 | J28: 0.9733743732 | K28: 26.62562676 | L28: 1.027353943 | M28: 27.35394263
A29: 28 | B29: 0.3816543404 | C29: 17.66701885 | D29: 2.620171957 | E29: 46.29062734 | I29: 28 | J29: 0.9724019713 | K29: 27.59802874 | L29: 1.028381297 | M29: 28.38129657
A30: 29 | B30: 0.368748155 | C30: 18.035767 | D30: 2.711877976 | E30: 48.9107993 | I30: 29 | J30: 0.9714305407 | K30: 28.56945928 | L30: 1.029409678 | M30: 29.40967787
A31: 30 | B31: 0.3562784106 | C31: 18.39204541 | D31: 2.806793705 | E31: 51.62267728 | I31: 30 | J31: 0.9704600806 | K31: 29.53991936 | L31: 1.030439088 | M31: 30.43908755
A32: 31 | B32: 0.3442303484 | C32: 18.73627576 | D32: 2.905031484 | E32: 54.42947098 | I32: 31 | J32: 0.9694905901 | K32: 30.50940995 | L32: 1.031469527 | M32: 31.46952664
A33: 32 | B33: 0.3325897086 | C33: 19.06886547 | D33: 3.006707586 | E33: 57.33450247 | I33: 32 | J33: 0.968522068 | K33: 31.47793201 | L33: 1.032500996 | M33: 32.50099616
A34: 33 | B34: 0.3213427136 | C34: 19.39020818 | D34: 3.111942352 | E34: 60.34121005 | I34: 33 | J34: 0.9675545135 | K34: 32.44548653 | L34: 1.033533497 | M34: 33.53349716
A35: 34 | B35: 0.3104760518 | C35: 19.70068423 | D35: 3.220860334 | E35: 63.4531524 | I35: 34 | J35: 0.9665879255 | K35: 33.41207445 | L35: 1.034567031 | M35: 34.56703066
A36: 35 | B36: 0.2999768617 | C36: 20.0006611 | D36: 3.333590446 | E36: 66.67401274 | I36: 35 | J36: 0.9656223032 | K36: 34.37769676 | L36: 1.035601598 | M36: 35.60159769
A37: 36 | B37: 0.2898327166 | C37: 20.29049381 | D37: 3.450266111 | E37: 70.00760318 | I37: 36 | J37: 0.9646576456 | K37: 35.3423544 | L37: 1.036637199 | M37: 36.63719928
A38: 37 | B38: 0.2800316102 | C38: 20.57052542 | D38: 3.571025425 | E38: 73.4578693 | I38: 37 | J38: 0.9636939516 | K38: 36.30604835 | L38: 1.037673836 | M38: 37.67383648
A39: 38 | B39: 0.2705619422 | C39: 20.84108736 | D39: 3.696011315 | E39: 77.02889472 | I39: 38 | J39: 0.9627312204 | K39: 37.26877957 | L39: 1.03871151 | M39: 38.71151032
A40: 39 | B40: 0.2614125046 | C40: 21.10249987 | D40: 3.825371711 | E40: 80.72490604 | I40: 39 | J40: 0.961769451 | K40: 38.23054903 | L40: 1.039750222 | M40: 39.75022183
A41: 40 | B41: 0.2525724682 | C41: 21.35507234 | D41: 3.959259721 | E41: 84.55027775 | I41: 40 | J41: 0.9608086423 | K41: 39.19135767 | L41: 1.040789972 | M41: 40.78997205
A42: 41 | B42: 0.2440313702 | C42: 21.59910371 | D42: 4.097833811 | E42: 88.50953747 | I42: 41 | J42: 0.9598487935 | K42: 40.15120646 | L42: 1.041830762 | M42: 41.83076202
A43: 42 | B43: 0.2357791017 | C43: 21.83488281 | D43: 4.241257995 | E43: 92.60737128 | I43: 42 | J43: 0.9588899036 | K43: 41.11009637 | L43: 1.042872593 | M43: 42.87259279
A44: 43 | B44: 0.2278058953 | C44: 22.0626887 | D44: 4.389702025 | E44: 96.84862928 | I44: 43 | J44: 0.9579319717 | K44: 42.06802834 | L44: 1.043915465 | M44: 43.91546538
A45: 44 | B45: 0.2201023143 | C45: 22.28279102 | D45: 4.543341595 | E45: 101.2383313 | I45: 44 | J45: 0.9569749967 | K45: 43.02500333 | L45: 1.044959381 | M45: 44.95938084
A46: 45 | B46: 0.2126592409 | C46: 22.49545026 | D46: 4.702358551 | E46: 105.7816729 | I46: 45 | J46: 0.9560189777 | K46: 43.98102231 | L46: 1.04600434 | M46: 46.00434022
A47: 46 | B47: 0.2054678656 | C47: 22.70091813 | D47: 4.866941101 | E47: 110.4840314 | I47: 46 | J47: 0.9550639138 | K47: 44.93608622 | L47: 1.047050345 | M47: 47.05034457
A48: 47 | B48: 0.1985196769 | C48: 22.8994378 | D48: 5.037284039 | E48: 115.3509725 | I48: 47 | J48: 0.954109804 | K48: 45.89019603 | L48: 1.048097395 | M48: 48.09739491
A49: 48 | B49: 0.1918064511 | C49: 23.09124425 | D49: 5.213588981 | E49: 120.3882566 | I49: 48 | J49: 0.9531566473 | K49: 46.84335268 | L49: 1.049145492 | M49: 49.1454923
A50: 49 | B50: 0.1853202426 | C50: 23.2765645 | D50: 5.396064595 | E50: 125.6018456 | I50: 49 | J50: 0.9522044429 | K50: 47.79555712 | L50: 1.050194638 | M50: 50.1946378
A51: 50 | B51: 0.1790533745 | C51: 23.45561787 | D51: 5.584926856 | E51: 130.9979102 | I51: 50 | J51: 0.9512531897 | K51: 48.74681031 | L51: 1.051244832 | M51: 51.24483243
A52: 51 | B52: 0.1729984295 | C52: 23.6286163 | D52: 5.780399296 | E52: 136.582837 | I52: 51 | J52: 0.9503028868 | K52: 49.6971132 | L52: 1.052296077 | M52: 52.29607727
A53: 52 | B53: 0.1671482411 | C53: 23.79576454 | D53: 5.982713271 | E53: 142.3632363 | I53: 52 | J53: 0.9493535333 | K53: 50.64646673 | L53: 1.053348373 | M53: 53.34837334
A54: 53 | B54: 0.1614958851 | C54: 23.95726043 | D54: 6.192108235 | E54: 148.3459496 | I54: 53 | J54: 0.9484051281 | K54: 51.59487186 | L54: 1.054401722 | M54: 54.40172172
A55: 54 | B55: 0.1560346716 | C55: 24.1132951 | D55: 6.408832024 | E55: 154.5380578 | I55: 54 | J55: 0.9474576705 | K55: 52.54232953 | L55: 1.055456123 | M55: 55.45612344
A56: 55 | B56: 0.1507581368 | C56: 24.26405323 | D56: 6.633141145 | E56: 160.9468898 | I56: 55 | J56: 0.9465111593 | K56: 53.48884069 | L56: 1.05651158 | M56: 56.51157956
A57: 56 | B57: 0.1456600355 | C57: 24.40971327 | D57: 6.865301085 | E57: 167.580031 | I57: 56 | J57: 0.9455655937 | K57: 54.43440628 | L57: 1.057568091 | M57: 57.56809114
A58: 57 | B58: 0.1407343339 | C58: 24.5504476 | D58: 7.105586623 | E58: 174.4453321 | I58: 57 | J58: 0.9446209727 | K58: 55.37902725 | L58: 1.058625659 | M58: 58.62565923
A59: 58 | B59: 0.1359752018 | C59: 24.68642281 | D59: 7.354282154 | E59: 181.5509187 | I59: 58 | J59: 0.9436772955 | K59: 56.32270455 | L59: 1.059684285 | M59: 59.68428489
A60: 59 | B60: 0.1313770066 | C60: 24.81779981 | D60: 7.61168203 | E60: 188.9052008 | I60: 59 | J60: 0.9427345609 | K60: 57.26543911 | L60: 1.060743969 | M60: 60.74396918
A61: 60 | B61: 0.1269343059 | C61: 24.94473412 | D61: 7.878090901 | E61: 196.5168829 | I61: 60 | J61: 0.9417927681 | K61: 58.20723188 | L61: 1.061804713 | M61: 61.80471315
A62: 61 | B62: 0.1226418414 | C62: 25.06737596 | D62: 8.153824082 | E62: 204.3949738 | I62: 61 | J62: 0.9408519162 | K62: 59.14808379 | L62: 1.062866518 | M62: 62.86651786
A63: 62 | B63: 0.1184945328 | C63: 25.18587049 | D63: 8.439207925 | E63: 212.5487979 | I63: 62 | J63: 0.9399120042 | K63: 60.0879958 | L63: 1.063929384 | M63: 63.92938438
A64: 63 | B64: 0.1144874713 | C64: 25.30035796 | D64: 8.734580203 | E64: 220.9880058 | I64: 63 | J64: 0.9389730312 | K64: 61.02696883 | L64: 1.064993314 | M64: 64.99331376
A65: 64 | B65: 0.1106159143 | C65: 25.41097388 | D65: 9.04029051 | E65: 229.722586 | I65: 64 | J65: 0.9380349962 | K65: 61.96500383 | L65: 1.066058307 | M65: 66.05830708
A66: 65 | B66: =1/(1+$H$1)^A66 -> 0.1068752795 | C66: =((1+$H$1)^A66-1)/($H$1*(1+$H$1)^A66) -> 25.51784916 | D66: =(1+$H$1)^A66 -> 9.356700677 | E66: =((1+$H$1)^A66-1)/$H$1 -> 238.7628765 | I66: 65 | J66: 0.9370978983 | K66: 62.90210172 | L66: 1.067124365 | M66: 67.12436538
A67: 66 | B67: 0.1032611396 | C67: 25.6211103 | D67: 9.684185201 | E67: 248.1195772 | I67: 66 | J67: =1/(1+$O$1)^I67 -> 0.9361617365 | K67: =((1+$O$1)^I67-1)/($O$1*(1+$O$1)^I67) -> 63.83826346 | L67: =(1+$O$1)^I67 -> 1.06819149 | M67: =((1+$O$1)^I67-1)/$O$1 -> 68.19148975
A68: 67 | B68: 0.09976921701 | C68: 25.72087951 | D68: 10.02313168 | E68: 257.8037624 | I68: 67 | J68: 0.93522651 | K68: 64.77348997 | L68: 1.069259681 | M68: 69.25968124
A69: 68 | B69: 0.09639537875 | C69: 25.81727489 | D69: 10.37394129 | E69: 267.8268941 | I69: 68 | J69: 0.9342922178 | K69: 65.70778219 | L69: 1.070328941 | M69: 70.32894092
A70: 69 | B70: 0.09313563164 | C70: 25.91041052 | D70: 10.73702924 | E70: 278.2008354 | I70: 69 | J70: 0.933358859 | K70: 66.64114105 | L70: 1.07139927 | M70: 71.39926986
A71: 70 | B71: 0.08998611753 | C71: 26.00039664 | D71: 11.11282526 | E71: 288.9378646 | I71: 70 | J71: 0.9324264325 | K71: 67.57356748 | L71: 1.072470669 | M71: 72.47066913
A72: 71 | B72: 0.08694310872 | C72: 26.08733975 | D72: 11.50177414 | E72: 300.0506899 | I72: 71 | J72: 0.9314949376 | K72: 68.50506242 | L72: 1.07354314 | M72: 73.5431398
A73: 72 | B73: 0.0840030036 | C73: 26.17134275 | D73: 11.90433624 | E73: 311.552464 | I73: 72 | J73: 0.9305643732 | K73: 69.43562679 | L73: 1.074616683 | M73: 74.61668294
A74: 73 | B74: 0.08116232232 | C74: 26.25250508 | D74: 12.32098801 | E74: 323.4568002 | I74: 73 | J74: 0.9296347385 | K74: 70.36526153 | L74: 1.0756913 | M74: 75.69129962
A75: 74 | B75: 0.07841770272 | C75: 26.33092278 | D75: 12.75222259 | E75: 335.7777882 | I75: 74 | J75: 0.9287060324 | K75: 71.29396756 | L75: 1.076766991 | M75: 76.76699092
A76: 75 | B76: 0.07576589635 | C76: 26.40668868 | D76: 13.19855038 | E76: 348.5300108 | I76: 75 | J76: 0.9277782542 | K76: 72.22174582 | L76: 1.077843758 | M76: 77.84375791
A77: 76 | B77: 0.07320376459 | C77: 26.47989244 | D77: 13.66049964 | E77: 361.7285612 | I77: 76 | J77: 0.9268514028 | K77: 73.14859722 | L77: 1.078921602 | M77: 78.92160167
A78: 77 | B78: 0.07072827497 | C78: 26.55062072 | D78: 14.13861713 | E78: 375.3890609 | I78: 77 | J78: 0.9259254773 | K78: 74.0745227 | L78: 1.080000523 | M78: 80.00052327
A79: 78 | B79: 0.06833649755 | C79: 26.61895721 | D79: 14.63346873 | E79: 389.527678 | I79: 78 | J79: 0.9250004768 | K79: 74.99952317 | L79: 1.081080524 | M79: 81.0805238
A80: 79 | B80: 0.0660256015 | C80: 26.68498281 | D80: 15.14564013 | E80: 404.1611467 | I80: 79 | J80: 0.9240764004 | K80: 75.92359957 | L80: 1.082161604 | M80: 82.16160432
A81: 80 | B81: 0.06379285169 | C81: 26.74877567 | D81: 15.67573754 | E81: 419.3067868 | I81: 80 | J81: 0.9231532472 | K81: 76.84675282 | L81: 1.083243766 | M81: 83.24376592
A82: 81 | B82: 0.0616356055 | C82: 26.81041127 | D82: 16.22438835 | E82: 434.9825244 | I82: 81 | J82: 0.9222310162 | K82: 77.76898384 | L82: 1.08432701 | M82: 84.32700969
A83: 82 | B83: 0.05955130966 | C83: 26.86996258 | D83: 16.79224195 | E83: 451.2069127 | I83: 82 | J83: 0.9213097065 | K83: 78.69029354 | L83: 1.085411337 | M83: 85.4113367
A84: 83 | B84: 0.05753749726 | C84: 26.92750008 | D84: 17.37997041 | E84: 467.9991547 | I84: 83 | J84: 0.9203893171 | K84: 79.61068286 | L84: 1.086496748 | M84: 86.49674804
A85: 84 | B85: 0.05559178479 | C85: 26.98309186 | D85: 17.98826938 | E85: 485.3791251 | I85: 84 | J85: 0.9194698473 | K85: 80.53015271 | L85: 1.087583245 | M85: 87.58324478
A86: 85 | B86: 0.05371186936 | C86: 27.03680373 | D86: 18.61785881 | E86: 503.3673945 | I86: 85 | J86: 0.918551296 | K86: 81.448704 | L86: 1.088670828 | M86: 88.67082803
A87: 86 | B87: 0.05189552595 | C87: 27.08869926 | D87: 19.26948387 | E87: 521.9852533 | I87: 86 | J87: 0.9176336623 | K87: 82.36633767 | L87: 1.089759499 | M87: 89.75949886
A88: 87 | B88: 0.05014060478 | C88: 27.13883986 | D88: 19.9439158 | E88: 541.2547372 | I88: 87 | J88: 0.9167169454 | K88: 83.28305461 | L88: 1.090849258 | M88: 90.84925836
A89: 88 | B89: 0.04844502878 | C89: 27.18728489 | D89: 20.64195285 | E89: 561.198653 | I89: 88 | J89: 0.9158011442 | K89: 84.19885575 | L89: 1.091940108 | M89: 91.94010761
A90: 89 | B90: 0.04680679109 | C90: 27.23409168 | D90: 21.3644212 | E90: 581.8406058 | I90: 89 | J90: 0.914886258 | K90: 85.11374201 | L90: 1.093032048 | M90: 93.03204772
A91: 90 | B91: 0.04522395274 | C91: 27.27931564 | D91: 22.11217595 | E91: 603.205027 | I91: 90 | J91: 0.9139722857 | K91: 86.0277143 | L91: 1.09412508 | M91: 94.12507977
A92: 91 | B92: 0.04369464033 | C92: 27.32301028 | D92: 22.8861021 | E92: 625.317203 | I92: 91 | J92: 0.9130592265 | K92: 86.94077353 | L92: 1.095219205 | M92: 95.21920485
